Workbook

Sheet Cover
C13: ="RSS Workbook V1.0 " -> RSS Workbook V1.0
C14: =MID(CELL("filename"),SEARCH("[",CELL("filename"))+1, SEARCH("]",CELL("filename"))-SEARCH("[",CELL("filename"))-1) -> RSSModel.BP26PublicExample FY 26 and FY 28.xlsm
C15: Home / Contents
C17: Purpose of this Workbook:
C18: The Resource Support Services (RSS) module of RAM, a spreadsheet-based model, calculates the charges and rates applied to resources receiving Resource Support Services. These services include Diurnal Flattening Service (DFS), Secondary Crediting Service (SCS), Forced Outage Reserves (FOR), and Grandfathered Generation Management Service (GMS). The RSS module of RAM will also calculate each customer’s Resource Shaping Charge (RSC), Transmission Scheduling Service (TSS), and the Transmission Curtailment Management Service (TCMS) component of TSS, the aggregate RSS and RSC revenue credits used in RAM Core, and the capacity obligations that will inform BPA generation planning and the Slice model. The RSS module is also the source of operating minimums, planned amounts, and FORS energy limits that are defined in the customer contracts. The RSS model calculates the above for non-federal resources as well as federal resources used as augmentation and federal resources used to support the Tier 2 rate.
C20: Legend:
C22: Tab Colors | H22: Font Colors | L22: Hyperlink Types
C24: Blue Tab | E24: Cover Sheet | H24: Blue Font | I24: Constant Values | L24: Cover Hyperlink | N24: Cover Page
C25: Green Tab | E25: Table of Contents | H25: Black Font | I25: Calculated Values | L25: TOC Hyperlink | N25: TOC
C26: Grey Tabs | E26: Base Case Sheets | H26: Plum Font | I26: Hyperlinks | L26: Sheet Top Hyperlink | N26: é
C27: Rose Tabs | E27: Assumption Sheets | H27: Red Font | I27: Errors
C28: Tan Tabs | E28: Output Sheets | H28: Black/Yellow | I28: Work in Progress
C29: Teal Tabs | E29: Lookup Sheets | H29: Black/Gold | I29: Modifiable Assumptions
C30: Reb Tabs | E30: Log/Error Sheet | H30: White/Grey | I30: Locked Data
C31: Blue Tabs | E31: Non-Spreadsheet Input
C32: Black Tabs | E32: Locked Data Sheet
C35: Model Identifier Convention
C36: PurposeClassification.SubPurposeClassificationIdentifier.ResourceType.SubResourceTypeIdentifier.ApplicablePeriod
C37: Example: NF.1.Hydro.1.2012_2028
C39: PurposeClassification | F39: SubPurposeClassificationIdentifier | J39: ResourceType | L39: SubResourceTypeIdentifier | O39: ApplicablePeriod
C40: [AG] Augmenation | F40: Numerical Value Beginning [1] | J40: Hydro | L40: Numerical Value Beginning [1] | O40: StartFY_EndFY
C41: [ST] Short-Term | J41: BioMass
C42: [LG] Load-Growth | J42: LandFill
C43: [VT] Vintage | J43: Wind
C44: [NF] Non-Federal | J44: Solar
C45: [RS] ResourceShaping | J45: CCCT
J46: SCCT
J47: Mkt
J48: UnSpfd

Sheet TOC
B1: Table of Contents
A2: TOC | B2: =Cover!C14 -> RSSModel.BP26PublicExample FY 26 and FY 28.xlsm
A3: é
B4: Sheet Titles | M4: Page
B6: RateInputs | M6: 3
B7: ResourceInputs | M7: =M6+1 -> 4
B8: ResourceProfiles | M8: =M7+1 -> 5
B9: ResourceSelect&Sort&Summarize | M9: 6
B10: RSSRateCalculator | M10: 7
B11: RSSRates&RevenueOutput | M11: 8
B12: RSSContractOutput | M12: 9
B13: RAMRSSOutput | M13: 10
B14: Tier2ModelOutput | M14: 11
B15: LORALTModelOutput | M15: 12
B16: DropDownMenueControls | M16: 13
B17: Lookup Tables | M17: 14

Sheet button1 (hidden)
L2: Customer Dropdown Menu
L3: 1 Tier 1 | N3: Customer Index | P3: =VALUE(LEFT(L3,2)) -> 1
B10: =MODE($F10:$AH10,E10) -> 6 | C10: =AVERAGE($F10:$AH10) -> 14.5 | D10: =SUM($F10:$AH10) -> 406 | E10: ={6,7,8,9,10,11,12,13,14,15,16,17,18,19,20,21,22,23,24,25,26,27,28,29,30,31,32,33,34,35,36,37,38,39,40,41,42,43,44,45,46,47,48,49,50,51,52,53,54} -> 6 | F10: 1 | G10: 2 | H10: 3 | I10: 4 | J10: 5 | K10: 6 | L10: 7 | M10: 8 | N10: 9 | O10: 10 | P10: 11 | Q10: 12 | R10: 13 | S10: 14 | T10: 15 | U10: 16 | V10: 17 | W10: 18 | X10: 19 | Y10: 20 | Z10: 21 | AA10: 22 | AB10: 23 | AC10: 24 | AD10: 25 | AE10: 26 | AF10: 27 | AG10: 28
B11: =AVERAGE($F11:$AH11) -> 10014.5 | C11: 10014.5 | D11: =SUM($F11:$AH11) -> 280406 | E11: =COUNT($F11:$AH11) -> 28 | F11: =10000+F10 -> 10001 | G11: =10000+G10 -> 10002 | H11: 10003 | I11: 10004 | J11: 10005 | K11: 10006 | L11: 10007 | M11: 10008 | N11: 10009 | O11: 10010 | P11: 10011 | Q11: 10012 | R11: 10013 | S11: 10014 | T11: 10015 | U11: 10016 | V11: 10017 | W11: 10018 | X11: 10019 | Y11: 10020 | Z11: 10021 | AA11: 10022 | AB11: 10023 | AC11: 10024 | AD11: 10025 | AE11: 10026 | AF11: 10027 | AG11: 10028
B13: 14.5 | C13: 14.5 | D13: =SUM($F13:$AH13) -> 406 | E13: =COUNT($F13:$AH13) -> 28 | F13: 1 | G13: 2 | H13: 3 | I13: 4 | J13: 5 | K13: 6 | L13: 7 | M13: 8 | N13: 9 | O13: 10 | P13: 11 | Q13: 12 | R13: 13 | S13: 14 | T13: 15 | U13: 16 | V13: 17 | W13: 18 | X13: 19 | Y13: 20 | Z13: 21 | AA13: 22 | AB13: 23 | AC13: 24 | AD13: 25 | AE13: 26 | AF13: 27 | AG13: 28
B14: 10014.5 | C14: 10014.5 | D14: =SUM($F14:$AH14) -> 280406 | E14: =COUNT($F14:$AH14) -> 28 | F14: =10000+F13 -> 10001 | G14: 10002 | H14: 10003 | I14: 10004 | J14: 10005 | K14: 10006 | L14: 10007 | M14: 10008 | N14: 10009 | O14: 10010 | P14: 10011 | Q14: 10012 | R14: 10013 | S14: 10014 | T14: 10015 | U14: 10016 | V14: 10017 | W14: 10018 | X14: 10019 | Y14: 10020 | Z14: 10021 | AA14: 10022 | AB14: 10023 | AC14: 10024 | AD14: 10025 | AE14: 10026 | AF14: 10027 | AG14: 10028
E15: =COUNTIF(F15:BB15,MATCH(COLUMN(),F13:BB13,0)) -> 0 | F15: =COLUMN()-5 -> 1 | G15: =COLUMN()-5 -> 2
E17: 5
A42: Check 8760
A43: Check na and column numbers on resource inputs
A44: Resource year
A45: Check for non zero value on rates and revenue outpt $/mw column
A46: Check for values in product sepecifc columns on rates and revenue just like manual
A47: Check resource year like data input check flash yellow if more than 2 years old yellow if 2 years old
A48: Match na with unspecifiec and gms and scs
A49: Check years with rate period note that could be ok for test runs between rate cases when years aremixed
A52: Match products that take forced outage rateing with value maybe do input control?
A53: Use yes no on provile to provide check input | P53: jst check if tss has na
A54: Then look for input data in ranges by product | P54: tss is problem appleis to both resources and unspecified
A55: does identifier match resource | K55: count unspecified in 13 | N55: na count | P55: scs count | Q55: gms count
A56: only check unspecified | K56: =COUNTIF(ResourceInputs!$F48:$AL48,"Unspecified Resource Amounts") -> 0 | L56: =COUNTIF(ResourceInputs!$F42:$AL42,"UnSpfd") -> 0 | M56: =COUNTIF(ResourceInputs!F40:AL40,"*UnSpfd*") -> 0 | N56: =COUNTIF(ResourceInputs!F39:AL39,"N/A") -> 2 | O56: =IF((AND(K56=L56,M56=L56)),"good","bad") -> good | P56: =COUNTIF(ResourceProfiles!F51:AL51,"Yes") -> 0 | Q56: =COUNTIF(ResourceProfiles!F52:AL52,"Yes") -> 0
A57: Is identifier well formed? No consecutative periods | K57: =COUNTIF(ResourceInputs!F40:EX40,"..") -> 0
A58: Find a cell, appl y a rule flash a warning if out of bounds
A60: Rates revenue summary has same number of resources as resource inputs | K60: =COUNTA(ResourceInputs!F40:AL40) -> 6 | L60: =COUNTA('RSSRates&RevenueOutput'!D40:D285) -> 0

Sheet CustomerSpecificSummary
A1: Input drop down in cell A2 | B1: Comparison Count | C1: Documentation
A2: 10005 Example Customer D WaterBug | B2: 0
B3: Key | C3: =VALUE(LEFT(A2,5)) -> 10005 | F3: Key
B4: Resource Output Data Year | C4: =RSSRateCalculator!D4 -> N/A | F4: Resource Output Data Year
B5: Planned Amount (aMW) | C5: ='ResourceSelect&Sort&Summarize'!U5 -> N/A | F5: Planned Amount (aMW)
B6: Purchaser | C6: =LEFT(RSSRateCalculator!D7,23) -> Example Customer D | F6: Purchaser
B7: Resource Name | C7: =RSSRateCalculator!D8 -> WaterBug | F7: Resource Name
B8: BESID | C8: ='ResourceSelect&Sort&Summarize'!D6 -> 80004 | F8: BESID
B9: Services & RSC | C9: =RSSRateCalculator!D9 -> TSS TCMS | F9: Services & RSC
B10: Applicable Year(s) | C10: =RSSRateCalculator!D10 -> FY2026&FY2028 | F10: Applicable Year(s)
B11: Operating Minimums ? | C11: =IF(SUMIF('ResourceSelect&Sort&Summarize'!AH12:AI23,"<>0"),"Yes","No") -> No | F11: Operating Minimums ?
B12: Forced Outage Rating | C12: ='ResourceSelect&Sort&Summarize'!AD10 -> 0 | F12: Forced Outage Rating
B13: Estimated Energy Charges | C13: Estimated Monthly Energy Charge ($) | D13: $/MWH | F13: Estimated Energy Charges
B15: DFS | C15: =RSSRateCalculator!I24/12 -> 0 | D15: =RSSRateCalculator!I27 -> 0 | F15: DFS
B16: RSC | C16: =RSSRateCalculator!W28 -> 0 | D16: =RSSRateCalculator!W27 -> 0 | F16: RSC
B17: TSS | C17: =RSSRateCalculator!AD19 -> 78 | D17: =RSSRateCalculator!AD18 -> 0.12 | F17: TSS
B18: TCMS | C18: =RSSRateCalculator!AG19 -> 0 | D18: =RSSRateCalculator!AG18 -> 0 | F18: TCMS
B19: SCS | C19: =RSSRateCalculator!AJ28 -> 0 | D19: =RSSRateCalculator!AJ27 -> 0 | F19: SCS
B20: GMS | C20: =RSSRateCalculator!AM28 -> 0 | D20: =RSSRateCalculator!AM27 -> 0 | F20: GMS
B22: Total Monthly Estimated Energy Charges | C22: =SUM(C15:C20) -> 78 | F22: Total Monthly Estimated Energy Charges
B24: Capacity Charges | C24: Monthly Capacity Charge ($) | D24: $/MWH | F24: Capacity Charges
B25: DFS | C25: =RSSRateCalculator!L30 -> 0 | D25: =RSSRateCalculator!L29 -> 0 | F25: DFS
B26: FORS | C26: =RSSRateCalculator!Z28 -> 0 | D26: =RSSRateCalculator!Z27 -> 0 | F26: FORS
B27: Total Monthly Estimated Capacity Charges | C27: =SUM(C25:C26) -> 0 | F27: Total Monthly Estimated Capacity Charges
B29: Net Estimated RSS Monthly Charges | C29: =C22+C27 -> 78 | F29: Net Estimated RSS Monthly Charges
B30: Forecast Total $/MWh Equivalent Rate | D30: =SUM(D15:D20)+SUM(D25:D26) -> 0.12 | F30: Forecast Total $/MWh Equivalent Rate
B32: Net Estimated RSS Annual Charges | C32: =(RSSRateCalculator!Z32+RSSRateCalculator!Z35)/2 -> 936.048 | F32: Net Estimated RSS Annual Charges

Sheet RSSRates&RevenueOutput
B1: RSSRates&RevenuesOutput
A2: TOC | B2: =Cover!C14 -> RSSModel.BP26PublicExample FY 26 and FY 28.xlsm
A3: é
A4: Key | B4: RSS Model Identifier | C4: BES_ID | D4: Purchaser | E4: Resource Name | F4: Services & RSC | G4: Applicable Year(s) | H4: "ResourceInput" Tab Adj. for Schedule Annual aMW | I4: ="Exh. A " &ResourceProfiles!$D$69 &" Annual aMW" -> Exh. A FY2026 Annual aMW | J4: ="Exh. A " &ResourceProfiles!$D$98 &" Annual aMW" -> Exh. A FY2028 Annual aMW | K4: DFS Energy Rate $/MWh | L4: DFS Capacity Charge $/mo | M4: DFS Capacity $/MWh Equiv. | N4: RSC $/mo | O4: RSC $/MWh Equiv. | P4: FOR Capacity $/mo | Q4: FOR Capacity $/MWh Equiv. | R4: TSS $/mo | S4: TSS $/MWh Equiv. | T4: TCMS $/mo | U4: TCMS $/MWh Equiv. | V4: SCS $/mo | W4: SCS $/MWh Equiv. | X4: GMS $/mo | Y4: GMS $/MWh Equiv. | Z4: ="Revenue Credit to Composite Cost Pool " & ResourceProfiles!D69 -> Revenue Credit to Composite Cost Pool FY2026 | AA4: ="Revenue Credit to Non-Slice Cost Pool " & ResourceProfiles!D69 -> Revenue Credit to Non-Slice Cost Pool FY2026 | AB4: ="Revenue Credit to Composite Cost Pool " &ResourceProfiles!D98 -> Revenue Credit to Composite Cost Pool FY2028 | AC4: ="Revenue Credit to Non-Slice Cost Pool " & ResourceProfiles!D98 -> Revenue Credit to Non-Slice Cost Pool FY2028 | AD4: Forecast Total $/MWh Equivalent Rate
A5: 10001 | B5: AG.1.Wind.1.2026_2027 | C5: BPA | D5: Tier 1 | E5: BreezyWind | F5: DFS TSS TCMS RSC | G5: FY2026&FY2028 | H5: 14.7224315 | I5: 15.96662466 | J5: 15.945 | K5: 4.1 | L5: 142872 | M5: 13.29 | N5: 61543 | O5: 5.73 | P5: 0 | Q5: 0 | R5: 1074 | S5: 0.1 | T5: 0 | U5: 0 | V5: 0 | W5: 0 | X5: 0 | Y5: 0 | Z5: 1727355.72 | AA5: 1267875 | AB5: 1727355.72 | AC5: 1267875 | AD5: =IF(A5="","",IF(ISERROR(Y5+W5+U5+S5+Q5+O5+M5+K5),0,Y5+W5+U5+S5+Q5+O5+M5+K5)) -> 23.22
A6: 10002 | B6: NF.0.Hydro.Hydro.2024_2025 | C6: 80000 | D6: Example Customer A | E6: WetWater | F6: DFS TSS TCMS RSC | G6: FY2026&FY2028 | H6: 2.464199653 | I6: 2.457466867 | J6: 2.464199653 | K6: 1.37 | L6: 11262 | M6: 6.26 | N6: 1299 | O6: 0.72 | P6: 0 | Q6: 0 | R6: 216 | S6: 0.12 | T6: 0 | U6: 0 | V6: 0 | W6: 0 | X6: 0 | Y6: 0 | Z6: 137734.3667 | AA6: 45109.5 | AB6: 137734.3667 | AC6: 45109.5 | AD6: =IF(A6="","",IF(ISERROR(Y6+W6+U6+S6+Q6+O6+M6+K6),0,Y6+W6+U6+S6+Q6+O6+M6+K6)) -> 8.47
A7: 10003 | B7: NF.1.Wind.0.2024_2025 | C7: 80002 | D7: Example Customer B | E7: WindyWind | F7: DFS TSS TCMS RSC | G7: FY2026&FY2028 | H7: 3.447260274 | I7: 3.43784153 | J7: 3.447260274 | K7: 4.22 | L7: 36476 | M7: 14.49 | N7: -763 | O7: -0.3 | P7: 0 | Q7: 0 | R7: 302 | S7: 0.12 | T7: 0 | U7: 0 | V7: 0 | W7: 0 | X7: 0 | Y7: 0 | Z7: 441335.76 | AA7: 118264 | AB7: 441335.76 | AC7: 118264 | AD7: =IF(A7="","",IF(ISERROR(Y7+W7+U7+S7+Q7+O7+M7+K7),0,Y7+W7+U7+S7+Q7+O7+M7+K7)) -> 18.53
A8: 10004 | B8: NF.2.Solar.0.2024_2025 | C8: 80003 | D8: Example Customer C | E8: SunnySun | F8: DFS RSC | G8: FY2026&FY2028 | H8: 27.52566895 | I8: 27.4504622 | J8: 27.52566895 | K8: 4.7 | L8: 292391 | M8: 14.55 | N8: 98056 | O8: 4.88 | P8: 0 | Q8: 0 | R8: 0 | S8: 0 | T8: 0 | U8: 0 | V8: 0 | W8: 0 | X8: 0 | Y8: 0 | Z8: 3508692 | AA8: 2309467 | AB8: 3508692 | AC8: 2309467 | AD8: =IF(A8="","",IF(ISERROR(Y8+W8+U8+S8+Q8+O8+M8+K8),0,Y8+W8+U8+S8+Q8+O8+M8+K8)) -> 24.13
A9: 10005 | B9: NF.3.Hydro.1.2024_2025 | C9: 80004 | D9: Example Customer D | E9: WaterBug | F9: TSS TCMS | G9: FY2026&FY2028 | H9: N/A | I9: 0.8892304189 | J9: 0.8892465753 | K9: 0 | L9: 0 | M9: 0 | N9: 0 | O9: 0 | P9: 0 | Q9: 0 | R9: 78 | S9: 0.12 | T9: 0 | U9: 0 | V9: 0 | W9: 0 | X9: 0 | Y9: 0 | Z9: 936.048 | AA9: 0 | AB9: 936.048 | AC9: 0 | AD9: 0.12
A10: 10006 | B10: NF.4.Hydro.2.2024_2025 | C10: 80004 | D10: Example Customer E | E10: WaterDrop | F10: TSS TCMS | G10: FY2026&FY2028 | H10: N/A | I10: 3.515027322 | J10: 3.519589041 | K10: 0 | L10: 0 | M10: 0 | N10: 0 | O10: 0 | P10: 0 | Q10: 0 | R10: 350 | S10: 0.12 | T10: 0 | U10: 0 | V10: 0 | W10: 0 | X10: 0 | Y10: 0 | Z10: 4203.0376 | AA10: 0 | AB10: 4203.0376 | AC10: 0 | AD10: 0.12
AD11: =IF(A11="","",IF(ISERROR(Y11+W11+U11+S11+Q11+O11+M11+K11),0,Y11+W11+U11+S11+Q11+O11+M11+K11)) -> 
AD33: =IF(A33="","",IF(ISERROR(Y33+W33+U33+S33+Q33+O33+M33+K33),0,Y33+W33+U33+S33+Q33+O33+M33+K33)) -> 
AD34: =IF(A34="","",IF(ISERROR(Y34+W34+U34+S34+Q34+O34+M34+K34),0,Y34+W34+U34+S34+Q34+O34+M34+K34)) -> 

Sheet ResourceInputs
B1: Resource Inputs | D1: Column Number | E1: 1 | F1: 1 | G1: 2 | H1: 3 | I1: 4 | J1: 5 | K1: 6
D2: Column Count | E2: =COUNT($F$3:$IC$3)+4 -> 10 | F2: Documentation
D3: Key | E3: 10000 | F3: =E3+1 -> 10001 | G3: =F3+1 -> 10002 | H3: 10003 | I3: 10004 | J3: 10005 | K3: 10006
B4: Resource Output Data Year | F4: FY2022 | G4: FY2022 | H4: FY2022 | I4: FY2022 | J4: N/A | K4: N/A
B5: Model Identifier | E5: 3 | F5: AG.1.Wind.1.2026_2027 | G5: =IF(LEFT(G6,2)="NF",LEFT(G6,2)&"."&VLOOKUP(G6,$E$8826:$IS$8831,G1,FALSE)&"."&G7&"."&VLOOKUP(G7,$E$8804:$IS$8813,G1,FALSE)&"."&G8&"_"&G9,LEFT(G6,2)&"."&VLOOKUP(G6,$E$8826:$IS$8831,G1,FALSE)&"."&G7&"."&VLOOKUP(G7,$E$8815:$IS$8824,G1,FALSE)&"."&G8&"_"&G9) -> NF.0.Hydro.Hydro.2024_2025 | H5: NF.1.Wind.0.2024_2025 | I5: NF.2.Solar.0.2024_2025 | J5: NF.3.Hydro.1.2024_2025 | K5: NF.4.Hydro.2.2024_2025
C6: Purpose | E6: 4 | F6: AG Augmenation | G6: NF Non-Federal | H6: NF Non-Federal | I6: NF Non-Federal | J6: NF Non-Federal | K6: NF Non-Federal
C7: Resource Type | E7: 6 | F7: Wind | G7: Hydro | H7: Wind | I7: Solar | J7: Hydro | K7: Hydro
C8: StartYear (FY) | E8: 7 | F8: 2024 | G8: 2024 | H8: 2024 | I8: 2024 | J8: 2024 | K8: 2024
C9: EndYear (FY) | E9: 8 | F9: 2025 | G9: 2025 | H9: 2025 | I9: 2025 | J9: 2025 | K9: 2025
C10: Purchaser | E10: 9 | F10: Tier 1 | G10: Example Customer A | H10: Example Customer B | I10: Example Customer C | J10: Example Customer D | K10: Example Customer E
C11: BES_ID | E11: 10 | F11: BPA | G11: 80000 | H11: 80002 | I11: 80003 | J11: 80004 | K11: 80004
C12: Resource ID (GRID) | E12: 11 | F12: 3000 | G12: 3001 | H12: 3003 | I12: 3004 | J12: 3005 | K12: 3006
C13: Resource Name | E13: 12 | F13: BreezyWind | G13: WetWater | H13: WindyWind | I13: SunnySun | J13: WaterBug | K13: WaterDrop
D14: Source of Data (info only) | E14: 13 | F14: Historical Metered | G14: Historical Metered | H14: Historical Metered | I14: Historical Metered | J14: N/A | K14: N/A
D15: Meter/Share | E15: 14
D16: Pricing Treatment Schedule Resource or Not Scheduled | E16: 15 | F16: N/A | G16: N/A | H16: Scheduled | I16: N/A | J16: N/A | K16: N/A
D17: Output Data Start Row | E17: 16 | F17: 7.58004 | G17: 1.3671 | H17: 3 | I17: 0 | J17: N/A | K17: N/A
E18: 17 | F18: 11.18 | G18: 1.3671 | H18: 3 | I18: 0 | J18: N/A | K18: N/A
E19: 18 | F19: 6.17136 | G19: 1.3671 | H19: 3 | I19: 0 | J19: N/A | K19: N/A
E20: 19 | F20: 1.63228 | G20: 1.1191 | H20: 5 | I20: 0 | J20: N/A | K20: N/A
E21: 20 | F21: 3.48816 | G21: 1.1191 | H21: 4 | I21: 0 | J21: N/A | K21: N/A
E22: 21 | F22: 8.1614 | G22: 1.1191 | H22: 3 | I22: 0 | J22: N/A | K22: N/A
E23: 22 | F23: 9.34648 | G23: 1.1191 | H23: 5 | I23: 0 | J23: N/A | K23: N/A
E24: 23 | F24: 3.93536 | G24: 1.1191 | H24: 5 | I24: 0 | J24: N/A | K24: N/A
E25: 24 | F25: 1.05092 | G25: 1.128125 | H25: 4 | I25: 3.13 | J25: N/A | K25: N/A
E26: 25 | F26: 1.29688 | G26: 1.6606 | H26: 6 | I26: 7.43 | J26: N/A | K26: N/A
E27: 26 | F27: 0.76024 | G27: 2.066725 | H27: 4 | I27: 10.27 | J27: N/A | K27: N/A
E28: 27 | F28: 0 | G28: 2.066725 | H28: 4 | I28: 0 | J28: N/A | K28: N/A
E29: 28 | F29: 0.02236 | G29: 2.0577 | H29: 3 | I29: 0 | J29: N/A | K29: N/A
E30: 29 | F30: 0.13416 | G30: 2.573044 | H30: 5 | I30: 0 | J30: N/A | K30: N/A
E31: 30 | F31: 0 | G31: 2.573044 | H31: 2 | I31: 0 | J31: N/A | K31: N/A
E32: 31 | F32: 0 | G32: 2.561808 | H32: 2 | I32: 0 | J32: N/A | K32: N/A
E33: 32 | F33: 0 | G33: 2.573044 | H33: 2 | I33: 0 | J33: N/A | K33: N/A
E34: 33 | F34: 0.15652 | G34: 2.561808 | H34: 3 | I34: 0 | J34: N/A | K34: N/A
E35: 34 | F35: 3.19748 | G35: 2.573044 | H35: 3 | I35: 0 | J35: N/A | K35: N/A
E36: 35 | F36: 17.50788 | G36: 2.561808 | H36: 4 | I36: 0 | J36: N/A | K36: N/A
E37: 36 | F37: 29.69408 | G37: 2.561808 | H37: 1 | I37: 0 | J37: N/A | K37: N/A
E38: 37 | F38: 45.838 | G38: 2.561808 | H38: 3 | I38: 0 | J38: N/A | K38: N/A
E39: 38 | F39: 49.3038 | G39: 2.561808 | H39: 1 | I39: 0 | J39: N/A | K39: N/A
E40: 39 | F40: 49.28144 | G40: 2.561808 | H40: 1 | I40: 0 | J40: N/A | K40: N/A
E41: 40 | F41: 43.64672 | G41: 2.561808 | H41: 1 | I41: 0 | J41: N/A | K41: N/A
E42: 41 | F42: 35.776 | G42: 2.561808 | H42: 0 | I42: 0 | J42: N/A | K42: N/A
E43: 42 | F43: 45.25664 | G43: 2.189712 | H43: 2 | I43: 0 | J43: N/A | K43: N/A
E44: 43 | F44: 44.07156 | G44: 1.6473 | H44: 0 | I44: 0 | J44: N/A | K44: N/A
E45: 44 | F45: 33.45056 | G45: 1.6473 | H45: 0 | I45: 0 | J45: N/A | K45: N/A
E46: 45 | F46: 30.67792 | G46: 1.6473 | H46: 0 | I46: 0 | J46: N/A | K46: N/A
E47: 46 | F47: 37.7884 | G47: 1.6473 | H47: 0 | I47: 0 | J47: N/A | K47: N/A
E48: 47 | F48: 37.81076 | G48: 1.6473 | H48: 0 | I48: 0 | J48: N/A | K48: N/A
E49: 48 | F49: 36.02196 | G49: 1.5028 | H49: 0 | I49: 0 | J49: N/A | K49: N/A
E50: 49 | F50: 43.602 | G50: 1.408875 | H50: 0 | I50: 0 | J50: N/A | K50: N/A
E51: 50 | F51: 46.0616 | G51: 1.4161 | H51: 0 | I51: 0 | J51: N/A | K51: N/A
E52: 51 | F52: 46.68768 | G52: 1.4161 | H52: 0 | I52: 0 | J52: N/A | K52: N/A
E53: 52 | F53: 47.9622 | G53: 2.729104 | H53: 1 | I53: 0 | J53: N/A | K53: N/A
E54: 53 | F54: 48.81188 | G54: 2.729104 | H54: 0 | I54: 0 | J54: N/A | K54: N/A
E55: 54 | F55: 48.72244 | G55: 2.729104 | H55: 0 | I55: 0 | J55: N/A | K55: N/A
E56: 55 | F56: 49.0802 | G56: 2.729104 | H56: 0 | I56: 0 | J56: N/A | K56: N/A
E57: 56 | F57: 48.00692 | G57: 2.729104 | H57: 0 | I57: 0 | J57: N/A | K57: N/A
E58: 57 | F58: 47.42556 | G58: 2.729104 | H58: 0 | I58: 0 | J58: N/A | K58: N/A
E59: 58 | F59: 44.4964 | G59: 2.729104 | H59: 0 | I59: 0 | J59: N/A | K59: N/A
E60: 59 | F60: 48.074 | G60: 2.729104 | H60: 0 | I60: 0 | J60: N/A | K60: N/A
E61: 60 | F61: 48.49884 | G61: 2.71518 | H61: 0 | I61: 0 | J61: N/A | K61: N/A
E62: 61 | F62: 48.70008 | G62: 2.729104 | H62: 0 | I62: 0 | J62: N/A | K62: N/A
E63: 62 | F63: 44.65292 | G63: 2.1609 | H63: 1 | I63: 0 | J63: N/A | K63: N/A
E64: 63 | F64: 40.807 | G64: 2.149875 | H64: 0 | I64: 0 | J64: N/A | K64: N/A
E65: 64 | F65: 38.48156 | G65: 2.1609 | H65: 0 | I65: 0 | J65: N/A | K65: N/A
E66: 65 | F66: 47.02308 | G66: 1.7689 | H66: 0 | I66: 0 | J66: N/A | K66: N/A
E67: 66 | F67: 47.58208 | G67: 1.759875 | H67: 0 | I67: 0 | J67: N/A | K67: N/A
E68: 67 | F68: 46.71004 | G68: 1.7689 | H68: 1 | I68: 0 | J68: N/A | K68: N/A
E69: 68 | F69: 42.01444 | G69: 1.7689 | H69: 2 | I69: 0 | J69: N/A | K69: N/A
E70: 69 | F70: 31.03568 | G70: 1.7689 | H70: 1 | I70: 0 | J70: N/A | K70: N/A
E71: 70 | F71: 19.02836 | G71: 1.759875 | H71: 1 | I71: 0 | J71: N/A | K71: N/A
E72: 71 | F72: 12.7452 | G72: 1.7689 | H72: 1 | I72: 0 | J72: N/A | K72: N/A
E73: 72 | F73: 9.1676 | G73: 1.89525 | H73: 2 | I73: 0 | J73: N/A | K73: N/A
E74: 73 | F74: 8.96636 | G74: 1.96745 | H74: 2 | I74: 0 | J74: N/A | K74: N/A
E75: 74 | F75: 4.00244 | G75: 1.976475 | H75: 1 | I75: 0 | J75: N/A | K75: N/A
E76: 75 | F76: 0.04472 | G76: 2.460684 | H76: 0 | I76: 0 | J76: N/A | K76: N/A
E77: 76 | F77: 0.06708 | G77: 2.460684 | H77: 1 | I77: 0 | J77: N/A | K77: N/A
E78: 77 | F78: 2.25836 | G78: 2.460684 | H78: 1 | I78: 0 | J78: N/A | K78: N/A
E79: 78 | F79: 1.94532 | G79: 2.460684 | H79: 2 | I79: 0 | J79: N/A | K79: N/A
E80: 79 | F80: 3.44344 | G80: 2.460684 | H80: 2 | I80: 0 | J80: N/A | K80: N/A
E81: 80 | F81: 3.89064 | G81: 2.460684 | H81: 2 | I81: 0 | J81: N/A | K81: N/A
E82: 81 | F82: 3.53288 | G82: 2.460684 | H82: 2 | I82: 0 | J82: N/A | K82: N/A
E83: 82 | F83: 1.60992 | G83: 2.460684 | H83: 2 | I83: 0 | J83: N/A | K83: N/A
E84: 83 | F84: 0.51428 | G84: 2.460684 | H84: 2 | I84: 0 | J84: N/A | K84: N/A
E85: 84 | F85: 0 | G85: 2.460684 | H85: 3 | I85: 0 | J85: N/A | K85: N/A
E86: 85 | F86: 0 | G86: 2.449448 | H86: 2 | I86: 0 | J86: N/A | K86: N/A
E87: 86 | F87: 0 | G87: 2.460684 | H87: 6 | I87: 0 | J87: N/A | K87: N/A
E88: 87 | F88: 0 | G88: 2.449448 | H88: 5 | I88: 0 | J88: N/A | K88: N/A
E89: 88 | F89: 0.8944 | G89: 2.103276 | H89: 3 | I89: 0 | J89: N/A | K89: N/A
E90: 89 | F90: 3.33164 | G90: 1.582275 | H90: 3 | I90: 0 | J90: N/A | K90: N/A
E91: 90 | F91: 0.08944 | G91: 1.57505 | H91: 3 | I91: 0 | J91: N/A | K91: N/A
E92: 91 | F92: 0 | G92: 1.582275 | H92: 3 | I92: 0 | J92: N/A | K92: N/A
E93: 92 | F93: 0 | G93: 1.57505 | H93: 2 | I93: 0 | J93: N/A | K93: N/A
E94: 93 | F94: 0.04472 | G94: 1.582275 | H94: 1 | I94: 0 | J94: N/A | K94: N/A
E95: 94 | F95: 0.20124 | G95: 1.567825 | H95: 3 | I95: 0 | J95: N/A | K95: N/A
E96: 95 | F96: 0.31304 | G96: 1.37275 | H96: 5 | I96: 0 | J96: N/A | K96: N/A
E97: 96 | F97: 0 | G97: 1.37275 | H97: 5 | I97: 0 | J97: N/A | K97: N/A
E98: 97 | F98: 0.02236 | G98: 1.365525 | H98: 6 | I98: 0 | J98: N/A | K98: N/A
E99: 98 | F99: 3.17512 | G99: 2.631636 | H99: 4 | I99: 0 | J99: N/A | K99: N/A
E100: 99 | F100: 4.85212 | G100: 2.64556 | H100: 2 | I100: 0 | J100: N/A | K100: N/A
E101: 100 | F101: 3.6894 | G101: 2.64556 | H101: 5 | I101: 0 | J101: N/A | K101: N/A
E102: 101 | F102: 4.27076 | G102: 2.64556 | H102: 3 | I102: 0 | J102: N/A | K102: N/A
E103: 102 | F103: 3.64468 | G103: 2.64556 | H103: 3 | I103: 0 | J103: N/A | K103: N/A
E104: 103 | F104: 3.37636 | G104: 2.64556 | H104: 5 | I104: 0 | J104: N/A | K104: N/A
E105: 104 | F105: 3.98008 | G105: 2.64556 | H105: 6 | I105: 0 | J105: N/A | K105: N/A
E106: 105 | F106: 4.76268 | G106: 2.64556 | H106: 8 | I106: 0 | J106: N/A | K106: N/A
E107: 106 | F107: 4.49436 | G107: 2.631636 | H107: 9 | I107: 0 | J107: N/A | K107: N/A
E108: 107 | F108: 3.30928 | G108: 2.64556 | H108: 10 | I108: 0 | J108: N/A | K108: N/A
E109: 108 | F109: 1.18508 | G109: 2.09475 | H109: 9 | I109: 0 | J109: N/A | K109: N/A
E110: 109 | F110: 0.20124 | G110: 2.083725 | H110: 8 | I110: 0 | J110: N/A | K110: N/A
E111: 110 | F111: 0 | G111: 2.09475 | H111: 10 | I111: 0 | J111: N/A | K111: N/A
E112: 111 | F112: 0 | G112: 1.705725 | H112: 9 | I112: 0 | J112: N/A | K112: N/A
E113: 112 | F113: 0 | G113: 1.71475 | H113: 10 | I113: 0 | J113: N/A | K113: N/A
E114: 113 | F114: 0 | G114: 1.705725 | H114: 8 | I114: 0 | J114: N/A | K114: N/A
E115: 114 | F115: 0 | G115: 1.705725 | H115: 6 | I115: 0 | J115: N/A | K115: N/A
E116: 115 | F116: 0 | G116: 1.71475 | H116: 6 | I116: 0 | J116: N/A | K116: N/A
E117: 116 | F117: 0 | G117: 1.705725 | H117: 7 | I117: 0 | J117: N/A | K117: N/A
E118: 117 | F118: 0 | G118: 1.71475 | H118: 8 | I118: 0 | J118: N/A | K118: N/A
E119: 118 | F119: 0.13416 | G119: 1.705725 | H119: 8 | I119: 0 | J119: N/A | K119: N/A
E120: 119 | F120: 0.06708 | G120: 1.71475 | H120: 4 | I120: 0 | J120: N/A | K120: N/A
E121: 120 | F121: 0 | G121: 1.705725 | H121: 3 | I121: 0 | J121: N/A | K121: N/A
E122: 121 | F122: 0 | G122: 2.13484 | H122: 5 | I122: 0 | J122: N/A | K122: N/A
E123: 122 | F123: 0 | G123: 2.13484 | H123: 8 | I123: 0 | J123: N/A | K123: N/A
E124: 123 | F124: 0.51428 | G124: 2.123604 | H124: 5 | I124: 0 | J124: N/A | K124: N/A
E125: 124 | F125: 2.83972 | G125: 2.13484 | H125: 4 | I125: 0 | J125: N/A | K125: N/A
E126: 125 | F126: 3.8012 | G126: 2.13484 | H126: 3 | I126: 3.57 | J126: N/A | K126: N/A
E127: 126 | F127: 5.09808 | G127: 2.123604 | H127: 3 | I127: 38.98 | J127: N/A | K127: N/A
E128: 127 | F128: 5.65708 | G128: 2.13484 | H128: 3 | I128: 12.52 | J128: N/A | K128: N/A
E129: 128 | F129: 5.41112 | G129: 2.123604 | H129: 0 | I129: 0.5 | J129: N/A | K129: N/A
E130: 129 | F130: 4.31548 | G130: 2.13484 | H130: 1 | I130: 0 | J130: N/A | K130: N/A
E131: 130 | F131: 3.1304 | G131: 2.123604 | H131: 3 | I131: 0 | J131: N/A | K131: N/A
E132: 131 | F132: 2.37016 | G132: 2.13484 | H132: 2 | I132: 0 | J132: N/A | K132: N/A
E133: 132 | F133: 0.91676 | G133: 2.123604 | H133: 2 | I133: 0 | J133: N/A | K133: N/A
E134: 133 | F134: 0.13416 | G134: 2.123604 | H134: 2 | I134: 0 | J134: N/A | K134: N/A
E135: 134 | F135: 0 | G135: 1.82476 | H135: 1 | I135: 0 | J135: N/A | K135: N/A
E136: 135 | F136: 0 | G136: 1.365525 | H136: 1 | I136: 0 | J136: N/A | K136: N/A
E137: 136 | F137: 0 | G137: 1.365525 | H137: 1 | I137: 0 | J137: N/A | K137: N/A
E138: 137 | F138: 0 | G138: 1.37275 | H138: 3 | I138: 0 | J138: N/A | K138: N/A
E139: 138 | F139: 0.04472 | G139: 1.365525 | H139: 4 | I139: 0 | J139: N/A | K139: N/A
E140: 139 | F140: 0.02236 | G140: 1.365525 | H140: 2 | I140: 0 | J140: N/A | K140: N/A
E141: 140 | F141: 0.17888 | G141: 1.37275 | H141: 3 | I141: 0 | J141: N/A | K141: N/A
E142: 141 | F142: 0 | G142: 1.365525 | H142: 3 | I142: 0 | J142: N/A | K142: N/A
E143: 142 | F143: 0.06708 | G143: 1.37275 | H143: 4 | I143: 0 | J143: N/A | K143: N/A
E144: 143 | F144: 0.2236 | G144: 1.365525 | H144: 3 | I144: 0 | J144: N/A | K144: N/A
E145: 144 | F145: 0.26832 | G145: 2.64556 | H145: 2 | I145: 2.47 | J145: N/A | K145: N/A
E146: 145 | F146: 0 | G146: 2.631636 | H146: 7 | I146: 7.02 | J146: N/A | K146: N/A
E147: 146 | F147: 0 | G147: 2.631636 | H147: 5 | I147: 13.69 | J147: N/A | K147: N/A
E148: 147 | F148: 0.3354 | G148: 2.64556 | H148: 3 | I148: 8.94 | J148: N/A | K148: N/A
E149: 148 | F149: 1.92296 | G149: 2.64556 | H149: 3 | I149: 5.02 | J149: N/A | K149: N/A
E150: 149 | F150: 1.47576 | G150: 2.631636 | H150: 2 | I150: 4.45 | J150: N/A | K150: N/A
E151: 150 | F151: 2.39252 | G151: 2.64556 | H151: 4 | I151: 3.28 | J151: N/A | K151: N/A
E152: 151 | F152: 5.20988 | G152: 2.64556 | H152: 2 | I152: 0.01 | J152: N/A | K152: N/A
E153: 152 | F153: 13.34892 | G153: 2.64556 | H153: 1 | I153: 0 | J153: N/A | K153: N/A
E154: 153 | F154: 12.99116 | G154: 2.64556 | H154: 1 | I154: 0 | J154: N/A | K154: N/A
E155: 154 | F155: 15.9874 | G155: 2.09475 | H155: 1 | I155: 0 | J155: N/A | K155: N/A
E156: 155 | F156: 21.66684 | G156: 2.083725 | H156: 2 | I156: 0 | J156: N/A | K156: N/A
E157: 156 | F157: 26.34008 | G157: 2.09475 | H157: 0 | I157: 0 | J157: N/A | K157: N/A
E158: 157 | F158: 19.52028 | G158: 1.705725 | H158: 1 | I158: 0 | J158: N/A | K158: N/A
E159: 158 | F159: 17.329 | G159: 1.71475 | H159: 1 | I159: 0 | J159: N/A | K159: N/A
E160: 159 | F160: 15.92032 | G160: 1.705725 | H160: 0 | I160: 0 | J160: N/A | K160: N/A
E161: 160 | F161: 14.60108 | G161: 1.705725 | H161: 1 | I161: 0 | J161: N/A | K161: N/A
E162: 161 | F162: 12.298 | G162: 1.705725 | H162: 1 | I162: 0 | J162: N/A | K162: N/A
E163: 162 | F163: 11.80608 | G163: 1.71475 | H163: 1 | I163: 0 | J163: N/A | K163: N/A
E164: 163 | F164: 9.86076 | G164: 1.705725 | H164: 1 | I164: 0 | J164: N/A | K164: N/A
E165: 164 | F165: 7.96016 | G165: 1.705725 | H165: 3 | I165: 0 | J165: N/A | K165: N/A
E166: 165 | F166: 6.86452 | G166: 1.71475 | H166: 9 | I166: 0 | J166: N/A | K166: N/A
E167: 166 | F167: 6.17136 | G167: 1.705725 | H167: 8 | I167: 0 | J167: N/A | K167: N/A
E168: 167 | F168: 4.8074 | G168: 2.13484 | H168: 9 | I168: 0 | J168: N/A | K168: N/A
E169: 168 | F169: 2.48196 | G169: 1.85394 | H169: 9 | I169: 4.4 | J169: N/A | K169: N/A
E170: 169 | F170: 0.91676 | G170: 1.831468 | H170: 8 | I170: 52.11 | J170: N/A | K170: N/A
E171: 170 | F171: 0.20124 | G171: 1.842704 | H171: 9 | I171: 84.94 | J171: N/A | K171: N/A
E172: 171 | F172: 0.15652 | G172: 1.831468 | H172: 8 | I172: 69.95 | J172: N/A | K172: N/A
E173: 172 | F173: 0.17888 | G173: 1.831468 | H173: 9 | I173: 78.4 | J173: N/A | K173: N/A
E174: 173 | F174: 1.20744 | G174: 1.842704 | H174: 9 | I174: 105.34 | J174: N/A | K174: N/A
E175: 174 | F175: 3.48816 | G175: 1.831468 | H175: 8 | I175: 52.54 | J175: N/A | K175: N/A
E176: 175 | F176: 3.0186 | G176: 1.842704 | H176: 5 | I176: 11.31 | J176: N/A | K176: N/A
E177: 176 | F177: 0.2236 | G177: 1.842704 | H177: 7 | I177: 0.47 | J177: N/A | K177: N/A
E178: 177 | F178: 0.02236 | G178: 1.831468 | H178: 2 | I178: 0 | J178: N/A | K178: N/A
E179: 178 | F179: 0.04472 | G179: 1.842704 | H179: 3 | I179: 0 | J179: N/A | K179: N/A
E180: 179 | F180: 0.06708 | G180: 1.842704 | H180: 2 | I180: 0 | J180: N/A | K180: N/A
E181: 180 | F181: 0.24596 | G181: 1.565452 | H181: 0 | I181: 0 | J181: N/A | K181: N/A
E182: 181 | F182: 0.02236 | G182: 1.177675 | H182: 0 | I182: 0 | J182: N/A | K182: N/A
E183: 182 | F183: 0.04472 | G183: 1.1849 | H183: 0 | I183: 0 | J183: N/A | K183: N/A
E184: 183 | F184: 0.40248 | G184: 1.177675 | H184: 0 | I184: 0 | J184: N/A | K184: N/A
E185: 184 | F185: 0.02236 | G185: 1.177675 | H185: 0 | I185: 0 | J185: N/A | K185: N/A
E186: 185 | F186: 0 | G186: 1.1849 | H186: 0 | I186: 0 | J186: N/A | K186: N/A
E187: 186 | F187: 0 | G187: 1.177675 | H187: 1 | I187: 0 | J187: N/A | K187: N/A
E188: 187 | F188: 0 | G188: 1.177675 | H188: 0 | I188: 0 | J188: N/A | K188: N/A
E189: 188 | F189: 0 | G189: 1.1849 | H189: 0 | I189: 0 | J189: N/A | K189: N/A
E190: 189 | F190: 0 | G190: 1.177675 | H190: 0 | I190: 0 | J190: N/A | K190: N/A
E191: 190 | F191: 0 | G191: 2.283536 | H191: 0 | I191: 0 | J191: N/A | K191: N/A
E192: 191 | F192: 0.53664 | G192: 2.269612 | H192: 0 | I192: 0 | J192: N/A | K192: N/A
E193: 192 | F193: 0.6708 | G193: 2.269612 | H193: 0 | I193: 1.28 | J193: N/A | K193: N/A
E194: 193 | F194: 1.4534 | G194: 1.8081 | H194: 1 | I194: 8.23 | J194: N/A | K194: N/A
E195: 194 | F195: 0.91676 | G195: 1.797075 | H195: 0 | I195: 22.42 | J195: N/A | K195: N/A
E196: 195 | F196: 1.60992 | G196: 1.8081 | H196: 0 | I196: 21.2 | J196: N/A | K196: N/A
E197: 196 | F197: 1.63228 | G197: 1.4801 | H197: 1 | I197: 63.45 | J197: N/A | K197: N/A
E198: 197 | F198: 2.48196 | G198: 1.4801 | H198: 1 | I198: 48.41 | J198: N/A | K198: N/A
E199: 198 | F199: 2.07948 | G199: 1.4801 | H199: 0 | I199: 13.52 | J199: N/A | K199: N/A
E200: 199 | F200: 2.99624 | G200: 1.4801 | H200: 0 | I200: 2.65 | J200: N/A | K200: N/A
... 4263 more rows

Sheet ResourceProfiles
B1: Resource Profiles
A2: TOC | B2: =Cover!C14 -> RSSModel.BP26PublicExample FY 26 and FY 28.xlsm
A3: é
A4: 1 | B4: Key | F4: 10001 | G4: 10002 | H4: 10003 | I4: 10004 | J4: 10005 | K4: 10006
A5: 2 | B5: Resource Output Data Year | F5: =IF(ISBLANK(ResourceInputs!F4),"",ResourceInputs!F4) -> FY2022 | G5: =IF(ISBLANK(ResourceInputs!G4),"",ResourceInputs!G4) -> FY2022 | H5: =IF(ISBLANK(ResourceInputs!H4),"",ResourceInputs!H4) -> FY2022 | I5: =IF(ISBLANK(ResourceInputs!I4),"",ResourceInputs!I4) -> FY2022 | J5: =IF(ISBLANK(ResourceInputs!J4),"",ResourceInputs!J4) -> N/A | K5: =IF(ISBLANK(ResourceInputs!K4),"",ResourceInputs!K4) -> N/A
A6: 3 | B6: Model Identifier | F6: =ResourceInputs!F5 -> AG.1.Wind.1.2026_2027 | G6: =ResourceInputs!G5 -> NF.0.Hydro.Hydro.2024_2025 | H6: =ResourceInputs!H5 -> NF.1.Wind.0.2024_2025 | I6: =ResourceInputs!I5 -> NF.2.Solar.0.2024_2025 | J6: =ResourceInputs!J5 -> NF.3.Hydro.1.2024_2025 | K6: =ResourceInputs!K5 -> NF.4.Hydro.2.2024_2025
A7: 4 | B7: The fol | C7: Purchaser | F7: =ResourceInputs!F10 -> Tier 1 | G7: =ResourceInputs!G10 -> Example Customer A | H7: =ResourceInputs!H10 -> Example Customer B | I7: =ResourceInputs!I10 -> Example Customer C | J7: =ResourceInputs!J10 -> Example Customer D | K7: =ResourceInputs!K10 -> Example Customer E
A8: 5 | C8: BES_ID | F8: =ResourceInputs!F11 -> BPA | G8: =ResourceInputs!G11 -> 80000 | H8: =ResourceInputs!H11 -> 80002 | I8: =ResourceInputs!I11 -> 80003 | J8: =ResourceInputs!J11 -> 80004 | K8: =ResourceInputs!K11 -> 80004
A9: 6 | C9: Resource ID (GRID) | F9: =ResourceInputs!F12 -> 3000 | G9: =ResourceInputs!G12 -> 3001 | H9: =ResourceInputs!H12 -> 3003 | I9: =ResourceInputs!I12 -> 3004 | J9: =ResourceInputs!J12 -> 3005 | K9: =ResourceInputs!K12 -> 3006
A10: 7 | C10: Resource Name | F10: =ResourceInputs!F13 -> BreezyWind | G10: =ResourceInputs!G13 -> WetWater | H10: =ResourceInputs!H13 -> WindyWind | I10: =ResourceInputs!I13 -> SunnySun | J10: =ResourceInputs!J13 -> WaterBug | K10: =ResourceInputs!K13 -> WaterDrop
A11: 8 | D11: Annual Generation aMW | F11: =IF(ISERROR(AVERAGE(ResourceInputs!F17:F8800)),"N/A",AVERAGE(ResourceInputs!F17:F8800)) -> 14.7465931 | G11: =IF(ISERROR(AVERAGE(ResourceInputs!G17:G8800)),"N/A",AVERAGE(ResourceInputs!G17:G8800)) -> 2.465665288 | H11: =IF(ISERROR(AVERAGE(ResourceInputs!H17:H8800)),"N/A",AVERAGE(ResourceInputs!H17:H8800)) -> 3.43784153 | I11: =IF(ISERROR(AVERAGE(ResourceInputs!I17:I8800)),"N/A",AVERAGE(ResourceInputs!I17:I8800)) -> 27.49729736 | J11: =IF(ISERROR(AVERAGE(ResourceInputs!J17:J8800)),"N/A",AVERAGE(ResourceInputs!J17:J8800)) -> N/A | K11: =IF(ISERROR(AVERAGE(ResourceInputs!K17:K8800)),"N/A",AVERAGE(ResourceInputs!K17:K8800)) -> N/A
A12: 9 | D12: Diurnal Flattening Service | F12: Yes | G12: Yes | H12: Yes | I12: Yes | J12: No | K12: No
A13: 10 | D13: Forced Outage Reserve Service | F13: No | G13: No | H13: No | I13: No | J13: No | K13: No
A14: 11 | D14: Forced Outage Rating | F14: 0 | G14: 0.05 | H14: 0 | I14: 0 | J14: 0 | K14: 0
A15: 12 | D15: Secondary Crediting Service | F15: No | G15: No | H15: No | I15: No | J15: No | K15: No
A16: 13 | D16: Grandfathered GMS | F16: No | G16: No | H16: No | I16: No | J16: No | K16: No
A17: 14 | D17: PURPA Resource | F17: No | G17: No | H17: No | I17: No | J17: No | K17: No
A18: 15 | D18: Services & RSC | F18: =IF(F12="yes","DFS ","")&IF(F13="yes","FOR ","")&IF(F15="yes","SCS ","")&IF(F16="yes","GMS ","")&IF(F63="yes","TSS ","")&IF(F64="yes","TCMS ","")&IF(AND(F17="no",OR(F66="yes",F12="yes")),"RSC ","") -> DFS TSS TCMS RSC | G18: =IF(G12="yes","DFS ","")&IF(G13="yes","FOR ","")&IF(G15="yes","SCS ","")&IF(G16="yes","GMS ","")&IF(G63="yes","TSS ","")&IF(G64="yes","TCMS ","")&IF(AND(G17="no",OR(G66="yes",G12="yes")),"RSC ","") -> DFS TSS TCMS RSC | H18: DFS TSS TCMS RSC | I18: DFS RSC | J18: =IF(J12="yes","DFS ","")&IF(J13="yes","FOR ","")&IF(J15="yes","SCS ","")&IF(J16="yes","GMS ","")&IF(J63="yes","TSS ","")&IF(J64="yes","TCMS ","")&IF(AND(J17="no",OR(J66="yes",J12="yes")),"RSC ","") -> TSS TCMS | K18: TSS TCMS
A19: 16
A20: 17 | D20: Planned Outage Replacement (yes or no) | F20: No | G20: No | H20: No | I20: No | J20: No | K20: No
A21: 18 | D21: Total Planned Outage Hours | F21: 0 | G21: 0 | H21: 0 | I21: 0 | J21: 0 | K21: 0
A22: 19 | D22: Planned Outage HLH Hours | F22: 0 | G22: 0 | H22: 0 | I22: 0 | J22: 0 | K22: 0
A23: 20 | E23: October | F23: 0 | G23: 0 | H23: 0 | I23: 0 | J23: 0 | K23: 0
A24: 21 | E24: November | F24: 0 | G24: 0 | H24: 0 | I24: 0 | J24: 0 | K24: 0
A25: 22 | E25: December | F25: 0 | G25: 0 | H25: 0 | I25: 0 | J25: 0 | K25: 0
A26: 23 | E26: January | F26: 0 | G26: 0 | H26: 0 | I26: 0 | J26: 0 | K26: 0
A27: 24 | E27: February | F27: 0 | G27: 0 | H27: 0 | I27: 0 | J27: 0 | K27: 0
A28: 25 | E28: March | F28: 0 | G28: 0 | H28: 0 | I28: 0 | J28: 0 | K28: 0
A29: 26 | E29: April | F29: 0 | G29: 0 | H29: 0 | I29: 0 | J29: 0 | K29: 0
A30: 27 | E30: May | F30: 0 | G30: 0 | H30: 0 | I30: 0 | J30: 0 | K30: 0
A31: 28 | E31: June | F31: 0 | G31: 0 | H31: 0 | I31: 0 | J31: 0 | K31: 0
A32: 29 | E32: July | F32: 0 | G32: 0 | H32: 0 | I32: 0 | J32: 0 | K32: 0
A33: 30 | E33: August | F33: 0 | G33: 0 | H33: 0 | I33: 0 | J33: 0 | K33: 0
A34: 31 | E34: September | F34: 0 | G34: 0 | H34: 0 | I34: 0 | J34: 0 | K34: 0
A35: 32 | D35: Planned Outage LLH Hours | F35: 0 | G35: 0 | H35: 0 | I35: 0 | J35: 0 | K35: 0
A36: 33 | E36: October | F36: 0 | G36: 0 | H36: 0 | I36: 0 | J36: 0 | K36: 0
A37: 34 | E37: November | F37: 0 | G37: 0 | H37: 0 | I37: 0 | J37: 0 | K37: 0
A38: 35 | E38: December | F38: 0 | G38: 0 | H38: 0 | I38: 0 | J38: 0 | K38: 0
A39: 36 | E39: January | F39: 0 | G39: 0 | H39: 0 | I39: 0 | J39: 0 | K39: 0
A40: 37 | E40: February | F40: 0 | G40: 0 | H40: 0 | I40: 0 | J40: 0 | K40: 0
A41: 38 | E41: March | F41: 0 | G41: 0 | H41: 0 | I41: 0 | J41: 0 | K41: 0
A42: 39 | E42: April | F42: 0 | G42: 0 | H42: 0 | I42: 0 | J42: 0 | K42: 0
A43: 40 | E43: May | F43: 0 | G43: 0 | H43: 0 | I43: 0 | J43: 0 | K43: 0
A44: 41 | E44: June | F44: 0 | G44: 0 | H44: 0 | I44: 0 | J44: 0 | K44: 0
A45: 42 | E45: July | F45: 0 | G45: 0 | H45: 0 | I45: 0 | J45: 0 | K45: 0
A46: 43 | E46: August | F46: 0 | G46: 0 | H46: 0 | I46: 0 | J46: 0 | K46: 0
A47: 44 | E47: September | F47: 0 | G47: 0 | H47: 0 | I47: 0 | J47: 0 | K47: 0
A48: 45
A49: 46 | D49: Operating/Firm Capacity kW Adjustment | F49: No | G49: No | H49: No | I49: No | J49: No | K49: No
A50: 47 | E50: October | F50: 0 | G50: 0 | H50: 0 | I50: 0 | J50: 0 | K50: 0
A51: 48 | E51: November | F51: 0 | G51: 0 | H51: 0 | I51: 0 | J51: 0 | K51: 0
A52: 49 | E52: December | F52: 0 | G52: 0 | H52: 0 | I52: 0 | J52: 0 | K52: 0
A53: 50 | E53: January | F53: 0 | G53: 0 | H53: 0 | I53: 0 | J53: 0 | K53: 0
A54: 51 | E54: February | F54: 0 | G54: 0 | H54: 0 | I54: 0 | J54: 0 | K54: 0
A55: 52 | E55: March | F55: 0 | G55: 0 | H55: 0 | I55: 0 | J55: 0 | K55: 0
A56: 53 | E56: April | F56: 0 | G56: 0 | H56: 0 | I56: 0 | J56: 0 | K56: 0
A57: 54 | E57: May | F57: 0 | G57: 0 | H57: 0 | I57: 0 | J57: 0 | K57: 0
A58: 55 | E58: June | F58: 0 | G58: 0 | H58: 0 | I58: 0 | J58: 0 | K58: 0
A59: 56 | E59: July | F59: 0 | G59: 0 | H59: 0 | I59: 0 | J59: 0 | K59: 0
A60: 57 | E60: August | F60: 0 | G60: 0 | H60: 0 | I60: 0 | J60: 0 | K60: 0
A61: 58 | E61: September | F61: 0 | G61: 0 | H61: 0 | I61: 0 | J61: 0 | K61: 0
A62: 59 | E62: Unspecified Resource Serving Above High Water Mark Load | F62: No | G62: No | H62: No | I62: No | J62: No | K62: No
A63: 60 | D63: Transmission Scheduling Services | F63: Yes | G63: Yes | H63: Yes | I63: No | J63: Yes | K63: Yes
A64: 61 | D64: Transmission Curtailment Management Service | F64: Yes | G64: Yes | H64: Yes | I64: No | J64: Yes | K64: Yes
A65: 62 | D65: Oati FEE adjustment | F65: OATI FEE share added after Cap applied | G65: OATI FEE share added after Cap applied | H65: Yes | I65: No | J65: No | K65: No
A66: 63 | D66: Apply RSC within ExhA/Tier2Obl/SCS/GMS/TSSOnly | F66: No | G66: No | H66: No | I66: No | J66: TSSOnly | K66: TSSOnly
A67: 64 | D67: TSS resources per customer each year | F67: =IF(F63="Yes",TEXT(IF(RIGHT(RateInputs!$F$4,4)=TEXT(ResourceInputs!F$8,"0000"),COUNTIFS($F$7:$BC$7,F7,$F$63:$BC$63,"Yes"),0),"0")&" "&TEXT($D$69,0)&", "&TEXT(IF(RIGHT(RateInputs!$G$4,4)=TEXT(ResourceInputs!F$9,"0000"),COUNTIFS($F$7:$BC$7,F7,$F$63:$BC$63,"Yes"),0),"0")&" "&TEXT($D$98,0),"0 "&"FY" &(RIGHT(RateInputs!$F$4,4))& ", 0 " &"FY" &RIGHT(RateInputs!$G$4,4)) -> 0 FY2026, 0 FY2028 | G67: =IF(G63="Yes",TEXT(IF(RIGHT(RateInputs!$F$4,4)=TEXT(ResourceInputs!G$8,"0000"),COUNTIFS($F$7:$BC$7,G7,$F$63:$BC$63,"Yes"),0),"0")&" "&TEXT($D$69,0)&", "&TEXT(IF(RIGHT(RateInputs!$G$4,4)=TEXT(ResourceInputs!G$9,"0000"),COUNTIFS($F$7:$BC$7,G7,$F$63:$BC$63,"Yes"),0),"0")&" "&TEXT($D$98,0),"0 "&"FY" &(RIGHT(RateInputs!$F$4,4))& ", 0 " &"FY" &RIGHT(RateInputs!$G$4,4)) -> 0 FY2026, 0 FY2028 | H67: =IF(H63="Yes",TEXT(IF(RIGHT(RateInputs!$F$4,4)=TEXT(ResourceInputs!H$8,"0000"),COUNTIFS($F$7:$BC$7,H7,$F$63:$BC$63,"Yes"),0),"0")&" "&TEXT($D$69,0)&", "&TEXT(IF(RIGHT(RateInputs!$G$4,4)=TEXT(ResourceInputs!H$9,"0000"),COUNTIFS($F$7:$BC$7,H7,$F$63:$BC$63,"Yes"),0),"0")&" "&TEXT($D$98,0),"0 "&"FY" &(RIGHT(RateInputs!$F$4,4))& ", 0 " &"FY" &RIGHT(RateInputs!$G$4,4)) -> 0 FY2026, 0 FY2028 | I67: =IF(I63="Yes",TEXT(IF(RIGHT(RateInputs!$F$4,4)=TEXT(ResourceInputs!I$8,"0000"),COUNTIFS($F$7:$BC$7,I7,$F$63:$BC$63,"Yes"),0),"0")&" "&TEXT($D$69,0)&", "&TEXT(IF(RIGHT(RateInputs!$G$4,4)=TEXT(ResourceInputs!I$9,"0000"),COUNTIFS($F$7:$BC$7,I7,$F$63:$BC$63,"Yes"),0),"0")&" "&TEXT($D$98,0),"0 "&"FY" &(RIGHT(RateInputs!$F$4,4))& ", 0 " &"FY" &RIGHT(RateInputs!$G$4,4)) -> 0 FY2026, 0 FY2028 | J67: =IF(J63="Yes",TEXT(IF(RIGHT(RateInputs!$F$4,4)=TEXT(ResourceInputs!J$8,"0000"),COUNTIFS($F$7:$BC$7,J7,$F$63:$BC$63,"Yes"),0),"0")&" "&TEXT($D$69,0)&", "&TEXT(IF(RIGHT(RateInputs!$G$4,4)=TEXT(ResourceInputs!J$9,"0000"),COUNTIFS($F$7:$BC$7,J7,$F$63:$BC$63,"Yes"),0),"0")&" "&TEXT($D$98,0),"0 "&"FY" &(RIGHT(RateInputs!$F$4,4))& ", 0 " &"FY" &RIGHT(RateInputs!$G$4,4)) -> 0 FY2026, 0 FY2028 | K67: =IF(K63="Yes",TEXT(IF(RIGHT(RateInputs!$F$4,4)=TEXT(ResourceInputs!K$8,"0000"),COUNTIFS($F$7:$BC$7,K7,$F$63:$BC$63,"Yes"),0),"0")&" "&TEXT($D$69,0)&", "&TEXT(IF(RIGHT(RateInputs!$G$4,4)=TEXT(ResourceInputs!K$9,"0000"),COUNTIFS($F$7:$BC$7,K7,$F$63:$BC$63,"Yes"),0),"0")&" "&TEXT($D$98,0),"0 "&"FY" &(RIGHT(RateInputs!$F$4,4))& ", 0 " &"FY" &RIGHT(RateInputs!$G$4,4)) -> 0 FY2026, 0 FY2028
A68: 65 | D68: Exhibit A Amounts or Tier 2 Obligations Amounts
A69: 66 | D69: =RateInputs!F4 -> FY2026
A70: 67 | D70: Annual aMW | F70: 15.96662466 | G70: 2.457466867 | H70: 3.43784153 | I70: 27.4504622 | J70: 0.8892304189 | K70: 3.515027322
A71: 68 | D71: HLH MWh | F71: 78213.776 | G71: 12124.4932 | H71: 16567 | I71: 203949.1 | J71: 4520.4 | K71: 16165.2
A72: 69 | E72: October | F72: 6623.968 | G72: 759.852614 | H72: 1430 | I72: 6172.87 | J72: 428.4 | K72: 1665.33732
A73: 70 | E73: November | F73: 6369.2 | G73: 506.462568 | H73: 1336 | I73: 10641.75 | J73: 430.1 | K73: 1776.86676
A74: 71 | E74: December | F74: 6623.968 | G74: 400.690967 | H74: 1388 | I74: 18406 | J74: 421.6 | K74: 2286.35352
A75: 72 | E75: January | F75: 6369.2 | G75: 245.620821 | H75: 1986 | I75: 22073.12 | J75: 66 | K75: 1880.79192
A76: 73 | E76: February | F76: 6369.2 | G76: 211.080824 | H76: 1706 | I76: 20097.08 | J76: 396 | K76: 1482.8346
A77: 74 | E77: March | F77: 6878.736 | G77: 373.82025 | H77: 1980 | I77: 25908.91 | J77: 295.9 | K77: 1315.54044
A78: 75 | E78: April | F78: 6369.2 | G78: 202.451125 | H78: 1401 | I78: 26914.22 | J78: 129.6 | K78: 854.21412
A79: 76 | E79: May | F79: 6623.968 | G79: 1176.797905 | H79: 1325 | I79: 23045.09 | J79: 103 | K79: 1558.8774
A80: 77 | E80: June | F80: 6623.968 | G80: 2442.656308 | H80: 800 | I80: 21053.52 | J80: 618 | K80: 2010.06468
A81: 78 | E81: July | F81: 6369.2 | G81: 2352.585321 | H81: 922 | I81: 13638.92 | J81: 440 | K81: 1490.43888
A82: 79 | E82: August | F82: 6878.736 | G82: 2195.945633 | H82: 1114 | I82: 9002.74 | J82: 374.4 | K82: 1827.56196
A83: 80 | E83: September | F83: 6114.432 | G83: 1256.528863 | H83: 1179 | I83: 6994.88 | J83: 817.4 | K83: 1454.95224
A84: 81 | D84: LLH MWh | F84: 61653.856 | G84: 9461.895761 | H84: 13631 | I84: 37175.76 | J84: 3290.6 | K84: 14710.8
A85: 82 | E85: October | F85: 5222.744 | G85: 548.885743 | H85: 1179 | I85: 508.18 | J85: 396 | K85: 1315.54044
A86: 83 | E86: November | F86: 5111.283 | G86: 444.159916 | H86: 1322 | I86: 2112.8 | J86: 394.9 | K86: 1427.06988
A87: 84 | E87: December | F87: 5222.744 | G87: 307.854037 | H87: 1300 | I87: 3605.78 | J87: 369.6 | K87: 1804.74912
A88: 85 | E88: January | F88: 5477.512 | G88: 200.420315 | H88: 1337 | I88: 4116.9 | J88: 57.6 | K88: 1617.17688
A89: 86 | E89: February | F89: 4713.208 | G89: 127.887082 | H89: 1028 | I89: 3732.19 | J89: 345.6 | K89: 1112.75964
A90: 87 | E90: March | F90: 4952.053 | G90: 271.779015 | H90: 1474 | I90: 5230.32 | J90: 262.9 | K90: 945.46548
A91: 88 | E91: April | F91: 5095.36 | G91: 136.284314 | H91: 1090 | I91: 3656.54 | J91: 139.2 | K91: 623.55096
A92: 89 | E92: May | F92: 5222.744 | G92: 1139.341623 | H92: 1364 | I92: 4782.72 | J92: 84 | K92: 1340.88804
A93: 90 | E93: June | F93: 4840.592 | G93: 1831.128967 | H93: 543 | I93: 3167.06 | J93: 504 | K93: 1467.62604
A94: 91 | E94: July | F94: 5477.512 | G94: 1822.758019 | H94: 861 | I94: 2780.97 | J94: 431.2 | K94: 1282.58856
A95: 92 | E95: August | F95: 4967.976 | G95: 1627.937746 | H95: 896 | I95: 2254.58 | J95: 305.6 | K95: 1320.60996
A96: 93 | E96: September | F96: 5350.128 | G96: 1003.458984 | H96: 1237 | I96: 1227.72 | J96: 0 | K96: 1163.45484
A97: 94
A98: 95 | D98: =RateInputs!G4 -> FY2028
A99: 96 | D99: Annual aMW | F99: 15.945 | G99: 2.464199653 | H99: 3.447260274 | I99: 27.52566895 | J99: 0.8892465753 | K99: 3.519589041
A100: 97 | D100: HLH MWh | F100: 78321.84 | G100: 12124.4932 | H100: 16567 | I100: 203949.1 | J100: 4496 | K100: 16166.4
A101: 98 | E101: October | F101: 6888.24 | G101: 759.852614 | H101: 1430 | I101: 6172.87 | J101: 448.8 | K101: 1665.33732
A102: 99 | E102: November | F102: 6378 | G102: 506.462568 | H102: 1336 | I102: 10641.75 | J102: 432.3 | K102: 1776.86676
A103: 100 | E103: December | F103: 6378 | G103: 400.690967 | H103: 1388 | I103: 18406 | J103: 406.4 | K103: 2286.35352
A104: 101 | E104: January | F104: 6633.12 | G104: 245.620821 | H104: 1986 | I104: 22073.12 | J104: 63.8 | K104: 1880.79192
A105: 102 | E105: February | F105: 6122.88 | G105: 211.080824 | H105: 1706 | I105: 20097.08 | J105: 382.8 | K105: 1482.8346
A106: 103 | E106: March | F106: 6633.12 | G106: 373.82025 | H106: 1980 | I106: 25908.91 | J106: 286 | K106: 1315.54044
A107: 104 | E107: April | F107: 6633.12 | G107: 202.451125 | H107: 1401 | I107: 26914.22 | J107: 136 | K107: 854.21412
A108: 105 | E108: May | F108: 6633.12 | G108: 1176.797905 | H108: 1325 | I108: 23045.09 | J108: 98.6 | K108: 1558.8774
A109: 106 | E109: June | F109: 6378 | G109: 2442.656308 | H109: 800 | I109: 21053.52 | J109: 591.6 | K109: 2010.06468
A110: 107 | E110: July | F110: 6633.12 | G110: 2352.585321 | H110: 922 | I110: 13638.92 | J110: 460.9 | K110: 1490.43888
A111: 108 | E111: August | F111: 6888.24 | G111: 2195.945633 | H111: 1114 | I111: 9002.74 | J111: 374.4 | K111: 1827.56196
A112: 109 | E112: September | F112: 6122.88 | G112: 1256.528863 | H112: 1179 | I112: 6994.88 | J112: 814.4 | K112: 1454.95224
A113: 110 | D113: LLH MWh | F113: 61356.36 | G113: 9461.895761 | H113: 13631 | I113: 37175.76 | J113: 3293.8 | K113: 14665.2
A114: 111 | E114: October | F114: 4974.84 | G114: 548.885743 | H114: 1179 | I114: 508.18 | J114: 375.6 | K114: 1315.54044
A115: 112 | E115: November | F115: 5118.345 | G115: 444.159916 | H115: 1322 | I115: 2112.8 | J115: 394.9 | K115: 1427.06988
A116: 113 | E116: December | F116: 5485.08 | G116: 307.854037 | H116: 1300 | I116: 3605.78 | J116: 388 | K116: 1804.74912
A117: 114 | E117: January | F117: 5229.96 | G117: 200.420315 | H117: 1337 | I117: 4116.9 | J117: 55.8 | K117: 1617.17688
A118: 115 | E118: February | F118: 4592.16 | G118: 127.887082 | H118: 1028 | I118: 3732.19 | J118: 334.8 | K118: 1112.75964
A119: 116 | E119: March | F119: 5214.015 | G119: 271.779015 | H119: 1474 | I119: 5230.32 | J119: 277.2 | K119: 945.46548
A120: 117 | E120: April | F120: 4847.28 | G120: 136.284314 | H120: 1090 | I120: 3656.54 | J120: 132.8 | K120: 623.55096
A121: 118 | E121: May | F121: 5229.96 | G121: 1139.341623 | H121: 1364 | I121: 4782.72 | J121: 88.4 | K121: 1340.88804
A122: 119 | E122: June | F122: 5102.4 | G122: 1831.128967 | H122: 543 | I122: 3167.06 | J122: 530.4 | K122: 1467.62604
A123: 120 | E123: July | F123: 5229.96 | G123: 1822.758019 | H123: 861 | I123: 2780.97 | J123: 410.3 | K123: 1282.58856
A124: 121 | E124: August | F124: 4974.84 | G124: 1627.937746 | H124: 896 | I124: 2254.58 | J124: 305.6 | K124: 1320.60996
A125: 122 | E125: September | F125: 5357.52 | G125: 1003.458984 | H125: 1237 | I125: 1227.72 | J125: 0 | K125: 1163.45484
A126: 123
A127: 124 | D127: Applicable Year(s) | F127: FY2026&FY2028 | G127: FY2026&FY2028 | H127: FY2026&FY2028 | I127: FY2026&FY2028 | J127: FY2026&FY2028 | K127: FY2026&FY2028
A128: 125

Sheet ResourceSelect&Sort&Summarize
B1: ResourceSelect&Sorter&Summarize | F1: Documentation
B2: =Cover!C14 -> RSSModel.BP26PublicExample FY 26 and FY 28.xlsm | T2: =ResourceProfiles!D68&" "&ResourceProfiles!D69&" "&ResourceProfiles!D70 -> Exhibit A Amounts or Tier 2 Obligations Amounts FY2026 Annual aMW | U2: =HLOOKUP($D$3,ResourceProfiles!$4:$350,ResourceProfiles!A70) -> 0.8892304189
A3: TOC | C3: Select Key | D3: =CustomerSpecificSummary!C3 -> 10005 | T3: =ResourceProfiles!D68&" "&ResourceProfiles!D98&" "&ResourceProfiles!D99 -> Exhibit A Amounts or Tier 2 Obligations Amounts FY2028 Annual aMW | U3: =HLOOKUP($D$3,ResourceProfiles!$4:$350,ResourceProfiles!A99) -> 0.8892465753
A4: é | C4: Resource Output Data Year | D4: =HLOOKUP(D3,ResourceProfiles!4:350,ResourceProfiles!A5) -> N/A | T4: "ResourceInput" Tab Adj. for Schedule Annual aMW | U4: =IF(ISERROR(SUM(P12:Q23)/E24),"N/A",SUM(P12:Q23)/E24) -> N/A
C5: Model Identifier | D5: =HLOOKUP(D3,ResourceProfiles!4:350,ResourceProfiles!A6) -> NF.3.Hydro.1.2024_2025 | T5: Total Planned Energy Annual aMW | U5: =IF(ISERROR(SUM(V12:W23)/E24),"N/A",SUM(P12:Q23)/E24) -> N/A
C6: BES_ID | D6: =HLOOKUP(D3,ResourceProfiles!4:350,ResourceProfiles!A8) -> 80004
C7: Purchaser | D7: =HLOOKUP(D3,ResourceProfiles!4:350,ResourceProfiles!A7) -> Example Customer D | AG7: 0=Max, max | AI7: Set 1 to suppress LLH opmin
C8: Resource Name | D8: =HLOOKUP(D3,ResourceProfiles!4:350,ResourceProfiles!A10) -> WaterBug | AG8: 1= max min | AI8: LLH opmin toggle
C9: Services & RSC | D9: =HLOOKUP(D3,ResourceProfiles!4:350,ResourceProfiles!A18) -> TSS TCMS | AD9: FOR Rating | AG9: 1 | AI9: 1
C10: Applicable Year(s) | D10: =HLOOKUP(D3,ResourceProfiles!4:350,ResourceProfiles!A127) -> FY2026&FY2028 | O10: "ResourceInput" Tab Adj. for Schedule Monthly/Diurnal | R10: Forecast FORE Use | T10: ="Planned Outage Replacement "&HLOOKUP($D$3,ResourceProfiles!$4:$350,ResourceProfiles!$A$20) -> Planned Outage Replacement No | V10: Planned Amounts | X10: FOR Hours | Z10: Planned Outage Hours | AB10: Zero Output Count | AD10: =HLOOKUP('ResourceSelect&Sort&Summarize'!D3,ResourceProfiles!4:350,ResourceProfiles!A14) -> 0 | AE10: Capacity Calculations | AH10: Operating Minimums | AJ10: Information Only | AL10: Used For DFS Energy Rate | AN10: Used for BPA Planning | AQ10: Planned Amounts Flat by Month (MW)
B11: Month | C11: HLH | D11: LLH | E11: Total | F11: CountHours | G11: Month | H11: Fiscal Year | I11: HLH/LLH | J11: Hourly Output | K11: HLH Sort | L11: LLH Sort | M11: HLH Above Average | N11: LLH Above Average | P11: HLH MWh | Q11: LLH MWh | R11: HLH FORE MWh | S11: LLH FORE MWh | T11: HLH Planned MWh | U11: LLH Planned MWh | V11: HLH Total MWh | W11: LLH Total MWh | X11: FOR HLH Hours | Y11: FOR LLH Hours | Z11: Planned HLH Hours | AA11: Planned LLH Hours | AB11: Count HLH Zeros | AC11: Count LLH Zeros | AD11: ="HLH Capacity at the "&AD10*100&"th Percentile (kW)" -> HLH Capacity at the 0th Percentile (kW) | AE11: HLH Capacity Adjusted for Planned Outages (kW) | AF11: Firm HLH Capacity Adjustment based on Operations (kW) | AG11: Calculated HLH Firm Capacity (kW) | AH11: HLH Operating Minimum (kW) | AI11: LLH Operating Minimum (kW) | AJ11: HLH Historical Minimum (kW) | AK11: LLH Historical Minimum (kW) | AL11: Above Average HLH kWh | AM11: Above Average LLH kWh | AN11: ="LLH "&AD10*100&"th Percentile (kW)" -> LLH 0th Percentile (kW) | AO11: LLH Planned Outage Adjustment (kW) | AP11: LLH Firm Capacity (kW) | AQ11: HLH | AR11: LLH
B12: Oct | C12: =DCOUNT($F$11:$I$8795,"counthours",B24:C25) -> 0 | D12: =E12-C12 -> 0 | E12: =DCOUNT($F$11:$I$8795,"counthours",B24:B25) -> 0 | F12: =IF(G12="","",1) ->  | G12: =IF($D$4="N/A","",IF(HLOOKUP($G$11&$D$4,Look_Tbl!$C$6:$ST$8790,Look_Tbl!B7,FALSE)="","",HLOOKUP($G$11&$D$4,Look_Tbl!$C$6:$ST$8790,Look_Tbl!B7,FALSE))) ->  | H12: =IF($D$4="N/A","",IF(G12="","",$D$4)) ->  | I12: =IF($D$4="N/A",0,IF(G12="","",HLOOKUP($I$11&$D$4,Look_Tbl!$C$6:$ST$8790,Look_Tbl!B7,FALSE))) -> 0 | J12: =IF($D$4="N/A",0,IF(OR(ISBLANK(HLOOKUP($D$3,ResourceInputs!$3:$65536,ResourceInputs!E16)),HLOOKUP($D$3,ResourceInputs!$3:$65536,ResourceInputs!E16)="nonleap"),"",IF((HLOOKUP($D$3,ResourceInputs!$3:$65536,ResourceInputs!$E$16)="Scheduled"),MAX(ROUND(HLOOKUP($D$3,ResourceInputs!$3:$65536,ResourceInputs!E16),0),0),MAX(HLOOKUP($D$3,ResourceInputs!$3:$65536,ResourceInputs!E16),0)))) -> 0 | K12: =IF(I12="HLH",J12,"") ->  | L12: =IF(I12="LLH",J12,"") ->  | M12: =IF(K12="","",ROUND(MAX(0,K12-(VLOOKUP(G12,$O$12:$W$23,8,FALSE)/VLOOKUP(G12,$B$12:$C$23,2,FALSE))),3)) ->  | N12: =IF(L12="","",ROUND(MAX(0,L12-(VLOOKUP(G12,$O$12:$W$23,9,FALSE)/VLOOKUP(G12,$B$12:$D$23,3,FALSE))),3)) ->  | O12: Oct | P12: =SUMIF($G$12:$G$8795,O12,$K$12:$K$8795) -> 0 | Q12: =SUMIF($G$12:$G$8795,O12,$L$12:$L$8795) -> 0 | R12: =IF(P12=0,0,P12/(C12-AB12)*X12) -> 0 | S12: =IF(Q12=0,0,Q12/(D12-AC12)*Y12) -> 0 | T12: =IF(HLOOKUP($D$3,ResourceProfiles!$4:$350,ResourceProfiles!$A$20)="yes",P12/(C12-AB12)*Z12,0) -> 0 | U12: =IF(HLOOKUP($D$3,ResourceProfiles!$4:$350,ResourceProfiles!$A$20)="yes",Q12/(D12-AC12)*AA12,0) -> 0 | V12: =IF($D$4="N/A",$D$4,P12+R12+T12) -> N/A | W12: =IF($D$4="N/A",$D$4,Q12+S12+U12) -> N/A | X12: =IF(HLOOKUP($D$3,ResourceProfiles!$F$4:$AO$127,ResourceProfiles!$A$13)="Yes",AB12-Z12,0) -> 0 | Y12: =IF(HLOOKUP($D$3,ResourceProfiles!$F$4:$AO$127,ResourceProfiles!$A$13)="Yes",AC12-AA12,0) -> 0 | Z12: =HLOOKUP($D$3,ResourceProfiles!$F$4:$AO$127,ResourceProfiles!A23,FALSE) -> 0 | AA12: =HLOOKUP($D$3,ResourceProfiles!$F$4:$AO$127,ResourceProfiles!A36,FALSE) -> 0 | AB12: =IF($D$4="N/A",$D$4,COUNTIF(INDIRECT(CONCATENATE("K",MATCH(O12,$G$12:$G$8796,0)+11,":","K",MATCH(O13,$G$12:$G$8796,0)+10)),0)) -> N/A | AC12: =IF($D$4="N/A",$D$4,COUNTIF(INDIRECT(CONCATENATE("L",MATCH(O12,$G$12:$G$8796,0)+11,":","L",MATCH(O13,$G$12:$G$8796,0)+10)),0)) -> N/A | AD12: =IF($D$4="N/A",$D$4,PERCENTILE(INDIRECT(CONCATENATE("K",MATCH(O12,$G$12:$G$8796,0)+11,":","K",MATCH(O13,$G$12:$G$8796,0)+10)),$AD$10)*1000) -> N/A | AE12: =IF(OR($D$4="N/A",HLOOKUP($D$3,ResourceProfiles!$F$4:$AL$65537,ResourceProfiles!$A$20)="no"),0,IF(Z12/C12<25%,PERCENTILE(INDIRECT(CONCATENATE("K",MATCH(O12,$G$12:$G$8796,0)+11,":","K",MATCH(O13,$G$12:$G$8796,0)+10)),Z12/C12+(1-(Z12/C12))*$AD$10)*1000,IF(Z12/C12>75%,0,PERCENTILE(INDIRECT(CONCATENATE("K",MATCH(O12,$G$12:$G$8796,0)+11,":","K",MATCH(O13,$G$12:$G$8796,0)+10)),Z12/C12+(1-(Z12/C12))*$AD$10)*1000*(1-Z12/C12)))) -> 0 | AF12: =HLOOKUP($D$3,ResourceProfiles!$F$4:$AO$127,ResourceProfiles!A50) -> 0 | AG12: =IF(HLOOKUP($D$3,ResourceProfiles!$F$4:$AO$35,(ROW(A12)+7))>0,MAX(0,MIN(AD12,AE12)+AF12),MAX(0,MAX(AD12,AE12)+AF12)) -> 0 | AH12: =IF($D$4="N/A",$D$4,TRUNC(MIN(IF(AB12+RateInputs!$Q$6>=C12,0,SMALL(INDIRECT(CONCATENATE("K",MATCH(O12,$G$12:$G$8796,0)+11,":","K",MATCH(O13,$G$12:$G$8796,0)+10)),AB12+RateInputs!$Q$6))*1000+AF12,$AG12),-3)) -> N/A | AI12: =AO57 -> 0 | AJ12: =IF($D$4="N/A",$D$4,MIN(INDIRECT(CONCATENATE("K",MATCH(O12,$G$12:$G$8796,0)+11,":","K",MATCH(O13,$G$12:$G$8796,0)+10)))*1000) -> N/A | AK12: =IF($D$4="N/A",$D$4,MIN(INDIRECT(CONCATENATE("L",MATCH(O12,$G$12:$G$8796,0)+11,":","L",MATCH(O13,$G$12:$G$8796,0)+10)))*1000) -> N/A | AL12: =ROUND(SUMIF($G$12:$G$8795,O12,$M$12:$M$8795),0) -> 0 | AM12: =ROUND(SUMIF($G$12:$G$8795,O12,$N$12:$N$8795),0) -> 0 | AN12: =IF($D$4="N/A",$D$4,PERCENTILE(INDIRECT(CONCATENATE("L",MATCH(O12,$G$12:$G$8796,0)+11,":","L",MATCH(O13,$G$12:$G$8796,0)+10)),$AD$10)*1000) -> N/A | AO12: =IF(OR($D$4="N/A",HLOOKUP($D$3,ResourceProfiles!$F$4:$AL$65537,ResourceProfiles!$A$20)="no"),0,IF(AA12/D12<25%,PERCENTILE(INDIRECT(CONCATENATE("K",MATCH(O12,$G$12:$G$8796,0)+11,":","K",MATCH(O13,$G$12:$G$8796,0)+10)),AA12/D12+(1-(AA12/D12))*$AD$10)*1000,IF(AA12/D12>75%,0,PERCENTILE(INDIRECT(CONCATENATE("K",MATCH(O12,$G$12:$G$8796,0)+11,":","K",MATCH(O13,$G$12:$G$8796,0)+10)),AA12/D12+(1-(AA12/D12))*$AD$10)*1000*(1-AA12/D12)))) -> 0 | AP12: =MAX(AN12,AO12) -> 0 | AQ12: =IF($D$4="N/A",$D$4,ROUNDDOWN(V12/C12,0)) -> N/A | AR12: =IF($D$4="N/A",$D$4,ROUNDDOWN(W12/D12,0)) -> N/A
B13: Nov | C13: =DCOUNT($F$11:$I$8795,"counthours",B26:C27) -> 0 | D13: =E13-C13 -> 0 | E13: =DCOUNT($F$11:$I$8795,"counthours",B26:B27) -> 0 | F13: =IF(G13="","",1) ->  | G13: =IF($D$4="N/A","",IF(HLOOKUP($G$11&$D$4,Look_Tbl!$C$6:$ST$8790,Look_Tbl!B8,FALSE)="","",HLOOKUP($G$11&$D$4,Look_Tbl!$C$6:$ST$8790,Look_Tbl!B8,FALSE))) ->  | H13: =IF($D$4="N/A","",IF(G13="","",$D$4)) ->  | I13: =IF($D$4="N/A",0,IF(G13="","",HLOOKUP($I$11&$D$4,Look_Tbl!$C$6:$ST$8790,Look_Tbl!B8,FALSE))) -> 0 | J13: =IF($D$4="N/A",0,IF(OR(ISBLANK(HLOOKUP($D$3,ResourceInputs!$3:$65536,ResourceInputs!E17)),HLOOKUP($D$3,ResourceInputs!$3:$65536,ResourceInputs!E17)="nonleap"),"",IF((HLOOKUP($D$3,ResourceInputs!$3:$65536,ResourceInputs!$E$16)="Scheduled"),MAX(ROUND(HLOOKUP($D$3,ResourceInputs!$3:$65536,ResourceInputs!E17),0),0),MAX(HLOOKUP($D$3,ResourceInputs!$3:$65536,ResourceInputs!E17),0)))) -> 0 | M13: =IF(K13="","",ROUND(MAX(0,K13-(VLOOKUP(G13,$O$12:$W$23,8,FALSE)/VLOOKUP(G13,$B$12:$C$23,2,FALSE))),3)) ->  | N13: =IF(L13="","",ROUND(MAX(0,L13-(VLOOKUP(G13,$O$12:$W$23,9,FALSE)/VLOOKUP(G13,$B$12:$D$23,3,FALSE))),3)) ->  | O13: Nov | P13: =SUMIF($G$12:$G$8795,O13,$K$12:$K$8795) -> 0 | Q13: =SUMIF($G$12:$G$8795,O13,$L$12:$L$8795) -> 0 | R13: =IF(P13=0,0,P13/(C13-AB13)*X13) -> 0 | S13: =IF(Q13=0,0,Q13/(D13-AC13)*Y13) -> 0 | T13: =IF(HLOOKUP($D$3,ResourceProfiles!$4:$350,ResourceProfiles!$A$20)="yes",P13/(C13-AB13)*Z13,0) -> 0 | U13: =IF(HLOOKUP($D$3,ResourceProfiles!$4:$350,ResourceProfiles!$A$20)="yes",Q13/(D13-AC13)*AA13,0) -> 0 | V13: =IF($D$4="N/A",$D$4,P13+R13+T13) -> N/A | W13: =IF($D$4="N/A",$D$4,Q13+S13+U13) -> N/A | X13: =IF(HLOOKUP($D$3,ResourceProfiles!$F$4:$AO$127,ResourceProfiles!$A$13)="Yes",AB13-Z13,0) -> 0 | Y13: =IF(HLOOKUP($D$3,ResourceProfiles!$F$4:$AO$127,ResourceProfiles!$A$13)="Yes",AC13-AA13,0) -> 0 | Z13: =HLOOKUP($D$3,ResourceProfiles!$F$4:$AO$127,ResourceProfiles!A24,FALSE) -> 0 | AA13: =HLOOKUP($D$3,ResourceProfiles!$F$4:$AO$127,ResourceProfiles!A37,FALSE) -> 0 | AB13: N/A | AC13: N/A | AD13: N/A | AE13: =IF(OR($D$4="N/A",HLOOKUP($D$3,ResourceProfiles!$F$4:$AL$65537,ResourceProfiles!$A$20)="no"),0,IF(Z13/C13<25%,PERCENTILE(INDIRECT(CONCATENATE("K",MATCH(O13,$G$12:$G$8796,0)+11,":","K",MATCH(O14,$G$12:$G$8796,0)+10)),Z13/C13+(1-(Z13/C13))*$AD$10)*1000,IF(Z13/C13>75%,0,PERCENTILE(INDIRECT(CONCATENATE("K",MATCH(O13,$G$12:$G$8796,0)+11,":","K",MATCH(O14,$G$12:$G$8796,0)+10)),Z13/C13+(1-(Z13/C13))*$AD$10)*1000*(1-Z13/C13)))) -> 0 | AF13: =HLOOKUP($D$3,ResourceProfiles!$F$4:$AO$127,ResourceProfiles!A51) -> 0 | AG13: =IF(HLOOKUP($D$3,ResourceProfiles!$F$4:$AO$35,(ROW(A13)+7))>0,MAX(0,MIN(AD13,AE13)+AF13),MAX(0,MAX(AD13,AE13)+AF13)) -> 0 | AH13: =IF($D$4="N/A",$D$4,TRUNC(MIN(IF(AB13+RateInputs!$Q$6>=C13,0,SMALL(INDIRECT(CONCATENATE("K",MATCH(O13,$G$12:$G$8796,0)+11,":","K",MATCH(O14,$G$12:$G$8796,0)+10)),AB13+RateInputs!$Q$6))*1000+AF13,$AG13),-3)) -> N/A | AI13: =AO58 -> 0 | AJ13: =IF($D$4="N/A",$D$4,MIN(INDIRECT(CONCATENATE("K",MATCH(O13,$G$12:$G$8796,0)+11,":","K",MATCH(O14,$G$12:$G$8796,0)+10)))*1000) -> N/A | AK13: =IF($D$4="N/A",$D$4,MIN(INDIRECT(CONCATENATE("L",MATCH(O13,$G$12:$G$8796,0)+11,":","L",MATCH(O14,$G$12:$G$8796,0)+10)))*1000) -> N/A | AL13: =ROUND(SUMIF($G$12:$G$8795,O13,$M$12:$M$8795),0) -> 0 | AM13: =ROUND(SUMIF($G$12:$G$8795,O13,$N$12:$N$8795),0) -> 0 | AN13: N/A | AO13: =IF(OR($D$4="N/A",HLOOKUP($D$3,ResourceProfiles!$F$4:$AL$65537,ResourceProfiles!$A$20)="no"),0,IF(AA13/D13<25%,PERCENTILE(INDIRECT(CONCATENATE("K",MATCH(O13,$G$12:$G$8796,0)+11,":","K",MATCH(O14,$G$12:$G$8796,0)+10)),AA13/D13+(1-(AA13/D13))*$AD$10)*1000,IF(AA13/D13>75%,0,PERCENTILE(INDIRECT(CONCATENATE("K",MATCH(O13,$G$12:$G$8796,0)+11,":","K",MATCH(O14,$G$12:$G$8796,0)+10)),AA13/D13+(1-(AA13/D13))*$AD$10)*1000*(1-AA13/D13)))) -> 0 | AP13: =MAX(AN13,AO13) -> 0 | AQ13: N/A | AR13: N/A
B14: Dec | C14: =DCOUNT($F$11:$I$8795,"counthours",B28:C29) -> 0 | D14: 0 | E14: =DCOUNT($F$11:$I$8795,"counthours",B28:B29) -> 0 | G14: =IF($D$4="N/A","",IF(HLOOKUP($G$11&$D$4,Look_Tbl!$C$6:$ST$8790,Look_Tbl!B9,FALSE)="","",HLOOKUP($G$11&$D$4,Look_Tbl!$C$6:$ST$8790,Look_Tbl!B9,FALSE))) ->  | I14: =IF($D$4="N/A",0,IF(G14="","",HLOOKUP($I$11&$D$4,Look_Tbl!$C$6:$ST$8790,Look_Tbl!B9,FALSE))) -> 0 | J14: =IF($D$4="N/A",0,IF(OR(ISBLANK(HLOOKUP($D$3,ResourceInputs!$3:$65536,ResourceInputs!E18)),HLOOKUP($D$3,ResourceInputs!$3:$65536,ResourceInputs!E18)="nonleap"),"",IF((HLOOKUP($D$3,ResourceInputs!$3:$65536,ResourceInputs!$E$16)="Scheduled"),MAX(ROUND(HLOOKUP($D$3,ResourceInputs!$3:$65536,ResourceInputs!E18),0),0),MAX(HLOOKUP($D$3,ResourceInputs!$3:$65536,ResourceInputs!E18),0)))) -> 0 | O14: Dec | P14: =SUMIF($G$12:$G$8795,O14,$K$12:$K$8795) -> 0 | Q14: 0 | R14: =IF(P14=0,0,P14/(C14-AB14)*X14) -> 0 | S14: 0 | T14: =IF(HLOOKUP($D$3,ResourceProfiles!$4:$350,ResourceProfiles!$A$20)="yes",P14/(C14-AB14)*Z14,0) -> 0 | U14: =IF(HLOOKUP($D$3,ResourceProfiles!$4:$350,ResourceProfiles!$A$20)="yes",Q14/(D14-AC14)*AA14,0) -> 0 | V14: =IF($D$4="N/A",$D$4,P14+R14+T14) -> N/A | W14: N/A | X14: =IF(HLOOKUP($D$3,ResourceProfiles!$F$4:$AO$127,ResourceProfiles!$A$13)="Yes",AB14-Z14,0) -> 0 | Y14: =IF(HLOOKUP($D$3,ResourceProfiles!$F$4:$AO$127,ResourceProfiles!$A$13)="Yes",AC14-AA14,0) -> 0 | Z14: =HLOOKUP($D$3,ResourceProfiles!$F$4:$AO$127,ResourceProfiles!A25,FALSE) -> 0 | AA14: =HLOOKUP($D$3,ResourceProfiles!$F$4:$AO$127,ResourceProfiles!A38,FALSE) -> 0 | AB14: N/A | AC14: N/A | AD14: N/A | AE14: =IF(OR($D$4="N/A",HLOOKUP($D$3,ResourceProfiles!$F$4:$AL$65537,ResourceProfiles!$A$20)="no"),0,IF(Z14/C14<25%,PERCENTILE(INDIRECT(CONCATENATE("K",MATCH(O14,$G$12:$G$8796,0)+11,":","K",MATCH(O15,$G$12:$G$8796,0)+10)),Z14/C14+(1-(Z14/C14))*$AD$10)*1000,IF(Z14/C14>75%,0,PERCENTILE(INDIRECT(CONCATENATE("K",MATCH(O14,$G$12:$G$8796,0)+11,":","K",MATCH(O15,$G$12:$G$8796,0)+10)),Z14/C14+(1-(Z14/C14))*$AD$10)*1000*(1-Z14/C14)))) -> 0 | AF14: =HLOOKUP($D$3,ResourceProfiles!$F$4:$AO$127,ResourceProfiles!A52) -> 0 | AG14: =IF(HLOOKUP($D$3,ResourceProfiles!$F$4:$AO$35,(ROW(A14)+7))>0,MAX(0,MIN(AD14,AE14)+AF14),MAX(0,MAX(AD14,AE14)+AF14)) -> 0 | AH14: =IF($D$4="N/A",$D$4,TRUNC(MIN(IF(AB14+RateInputs!$Q$6>=C14,0,SMALL(INDIRECT(CONCATENATE("K",MATCH(O14,$G$12:$G$8796,0)+11,":","K",MATCH(O15,$G$12:$G$8796,0)+10)),AB14+RateInputs!$Q$6))*1000+AF14,$AG14),-3)) -> N/A | AI14: 0 | AJ14: N/A | AK14: N/A | AL14: 0 | AM14: 0 | AN14: N/A | AO14: =IF(OR($D$4="N/A",HLOOKUP($D$3,ResourceProfiles!$F$4:$AL$65537,ResourceProfiles!$A$20)="no"),0,IF(AA14/D14<25%,PERCENTILE(INDIRECT(CONCATENATE("K",MATCH(O14,$G$12:$G$8796,0)+11,":","K",MATCH(O15,$G$12:$G$8796,0)+10)),AA14/D14+(1-(AA14/D14))*$AD$10)*1000,IF(AA14/D14>75%,0,PERCENTILE(INDIRECT(CONCATENATE("K",MATCH(O14,$G$12:$G$8796,0)+11,":","K",MATCH(O15,$G$12:$G$8796,0)+10)),AA14/D14+(1-(AA14/D14))*$AD$10)*1000*(1-AA14/D14)))) -> 0 | AP14: 0 | AQ14: N/A | AR14: N/A
B15: Jan | C15: =DCOUNT($F$11:$I$8795,"counthours",B30:C31) -> 0 | D15: 0 | E15: =DCOUNT($F$11:$I$8795,"counthours",B30:B31) -> 0 | G15: =IF($D$4="N/A","",IF(HLOOKUP($G$11&$D$4,Look_Tbl!$C$6:$ST$8790,Look_Tbl!B10,FALSE)="","",HLOOKUP($G$11&$D$4,Look_Tbl!$C$6:$ST$8790,Look_Tbl!B10,FALSE))) ->  | I15: =IF($D$4="N/A",0,IF(G15="","",HLOOKUP($I$11&$D$4,Look_Tbl!$C$6:$ST$8790,Look_Tbl!B10,FALSE))) -> 0 | J15: =IF($D$4="N/A",0,IF(OR(ISBLANK(HLOOKUP($D$3,ResourceInputs!$3:$65536,ResourceInputs!E19)),HLOOKUP($D$3,ResourceInputs!$3:$65536,ResourceInputs!E19)="nonleap"),"",IF((HLOOKUP($D$3,ResourceInputs!$3:$65536,ResourceInputs!$E$16)="Scheduled"),MAX(ROUND(HLOOKUP($D$3,ResourceInputs!$3:$65536,ResourceInputs!E19),0),0),MAX(HLOOKUP($D$3,ResourceInputs!$3:$65536,ResourceInputs!E19),0)))) -> 0 | O15: Jan | P15: 0 | Q15: 0 | R15: 0 | S15: 0 | T15: =IF(HLOOKUP($D$3,ResourceProfiles!$4:$350,ResourceProfiles!$A$20)="yes",P15/(C15-AB15)*Z15,0) -> 0 | U15: =IF(HLOOKUP($D$3,ResourceProfiles!$4:$350,ResourceProfiles!$A$20)="yes",Q15/(D15-AC15)*AA15,0) -> 0 | V15: N/A | W15: N/A | X15: =IF(HLOOKUP($D$3,ResourceProfiles!$F$4:$AO$127,ResourceProfiles!$A$13)="Yes",AB15-Z15,0) -> 0 | Y15: =IF(HLOOKUP($D$3,ResourceProfiles!$F$4:$AO$127,ResourceProfiles!$A$13)="Yes",AC15-AA15,0) -> 0 | Z15: =HLOOKUP($D$3,ResourceProfiles!$F$4:$AO$127,ResourceProfiles!A26,FALSE) -> 0 | AA15: =HLOOKUP($D$3,ResourceProfiles!$F$4:$AO$127,ResourceProfiles!A39,FALSE) -> 0 | AB15: N/A | AC15: N/A | AD15: N/A | AE15: =IF(OR($D$4="N/A",HLOOKUP($D$3,ResourceProfiles!$F$4:$AL$65537,ResourceProfiles!$A$20)="no"),0,IF(Z15/C15<25%,PERCENTILE(INDIRECT(CONCATENATE("K",MATCH(O15,$G$12:$G$8796,0)+11,":","K",MATCH(O16,$G$12:$G$8796,0)+10)),Z15/C15+(1-(Z15/C15))*$AD$10)*1000,IF(Z15/C15>75%,0,PERCENTILE(INDIRECT(CONCATENATE("K",MATCH(O15,$G$12:$G$8796,0)+11,":","K",MATCH(O16,$G$12:$G$8796,0)+10)),Z15/C15+(1-(Z15/C15))*$AD$10)*1000*(1-Z15/C15)))) -> 0 | AF15: =HLOOKUP($D$3,ResourceProfiles!$F$4:$AO$127,ResourceProfiles!A53) -> 0 | AG15: =IF(HLOOKUP($D$3,ResourceProfiles!$F$4:$AO$35,(ROW(A15)+7))>0,MAX(0,MIN(AD15,AE15)+AF15),MAX(0,MAX(AD15,AE15)+AF15)) -> 0 | AH15: =IF($D$4="N/A",$D$4,TRUNC(MIN(IF(AB15+RateInputs!$Q$6>=C15,0,SMALL(INDIRECT(CONCATENATE("K",MATCH(O15,$G$12:$G$8796,0)+11,":","K",MATCH(O16,$G$12:$G$8796,0)+10)),AB15+RateInputs!$Q$6))*1000+AF15,$AG15),-3)) -> N/A | AI15: 0 | AJ15: N/A | AK15: N/A | AL15: 0 | AM15: 0 | AN15: N/A | AO15: =IF(OR($D$4="N/A",HLOOKUP($D$3,ResourceProfiles!$F$4:$AL$65537,ResourceProfiles!$A$20)="no"),0,IF(AA15/D15<25%,PERCENTILE(INDIRECT(CONCATENATE("K",MATCH(O15,$G$12:$G$8796,0)+11,":","K",MATCH(O16,$G$12:$G$8796,0)+10)),AA15/D15+(1-(AA15/D15))*$AD$10)*1000,IF(AA15/D15>75%,0,PERCENTILE(INDIRECT(CONCATENATE("K",MATCH(O15,$G$12:$G$8796,0)+11,":","K",MATCH(O16,$G$12:$G$8796,0)+10)),AA15/D15+(1-(AA15/D15))*$AD$10)*1000*(1-AA15/D15)))) -> 0 | AP15: 0 | AQ15: N/A | AR15: N/A
B16: Feb | C16: =DCOUNT($F$11:$I$8795,"counthours",B32:C33) -> 0 | D16: 0 | E16: =DCOUNT($F$11:$I$8795,"counthours",B32:B33) -> 0 | G16: =IF($D$4="N/A","",IF(HLOOKUP($G$11&$D$4,Look_Tbl!$C$6:$ST$8790,Look_Tbl!B11,FALSE)="","",HLOOKUP($G$11&$D$4,Look_Tbl!$C$6:$ST$8790,Look_Tbl!B11,FALSE))) ->  | I16: =IF($D$4="N/A",0,IF(G16="","",HLOOKUP($I$11&$D$4,Look_Tbl!$C$6:$ST$8790,Look_Tbl!B11,FALSE))) -> 0 | J16: =IF($D$4="N/A",0,IF(OR(ISBLANK(HLOOKUP($D$3,ResourceInputs!$3:$65536,ResourceInputs!E20)),HLOOKUP($D$3,ResourceInputs!$3:$65536,ResourceInputs!E20)="nonleap"),"",IF((HLOOKUP($D$3,ResourceInputs!$3:$65536,ResourceInputs!$E$16)="Scheduled"),MAX(ROUND(HLOOKUP($D$3,ResourceInputs!$3:$65536,ResourceInputs!E20),0),0),MAX(HLOOKUP($D$3,ResourceInputs!$3:$65536,ResourceInputs!E20),0)))) -> 0 | O16: Feb | P16: 0 | Q16: 0 | R16: 0 | S16: 0 | T16: =IF(HLOOKUP($D$3,ResourceProfiles!$4:$350,ResourceProfiles!$A$20)="yes",P16/(C16-AB16)*Z16,0) -> 0 | U16: =IF(HLOOKUP($D$3,ResourceProfiles!$4:$350,ResourceProfiles!$A$20)="yes",Q16/(D16-AC16)*AA16,0) -> 0 | V16: N/A | W16: N/A | X16: =IF(HLOOKUP($D$3,ResourceProfiles!$F$4:$AO$127,ResourceProfiles!$A$13)="Yes",AB16-Z16,0) -> 0 | Y16: =IF(HLOOKUP($D$3,ResourceProfiles!$F$4:$AO$127,ResourceProfiles!$A$13)="Yes",AC16-AA16,0) -> 0 | Z16: =HLOOKUP($D$3,ResourceProfiles!$F$4:$AO$127,ResourceProfiles!A27,FALSE) -> 0 | AA16: =HLOOKUP($D$3,ResourceProfiles!$F$4:$AO$127,ResourceProfiles!A40,FALSE) -> 0 | AB16: N/A | AC16: N/A | AD16: N/A | AE16: =IF(OR($D$4="N/A",HLOOKUP($D$3,ResourceProfiles!$F$4:$AL$65537,ResourceProfiles!$A$20)="no"),0,IF(Z16/C16<25%,PERCENTILE(INDIRECT(CONCATENATE("K",MATCH(O16,$G$12:$G$8796,0)+11,":","K",MATCH(O17,$G$12:$G$8796,0)+10)),Z16/C16+(1-(Z16/C16))*$AD$10)*1000,IF(Z16/C16>75%,0,PERCENTILE(INDIRECT(CONCATENATE("K",MATCH(O16,$G$12:$G$8796,0)+11,":","K",MATCH(O17,$G$12:$G$8796,0)+10)),Z16/C16+(1-(Z16/C16))*$AD$10)*1000*(1-Z16/C16)))) -> 0 | AF16: =HLOOKUP($D$3,ResourceProfiles!$F$4:$AO$127,ResourceProfiles!A54) -> 0 | AG16: =IF(HLOOKUP($D$3,ResourceProfiles!$F$4:$AO$35,(ROW(A16)+7))>0,MAX(0,MIN(AD16,AE16)+AF16),MAX(0,MAX(AD16,AE16)+AF16)) -> 0 | AH16: =IF($D$4="N/A",$D$4,TRUNC(MIN(IF(AB16+RateInputs!$Q$6>=C16,0,SMALL(INDIRECT(CONCATENATE("K",MATCH(O16,$G$12:$G$8796,0)+11,":","K",MATCH(O17,$G$12:$G$8796,0)+10)),AB16+RateInputs!$Q$6))*1000+AF16,$AG16),-3)) -> N/A | AI16: 0 | AJ16: N/A | AK16: N/A | AL16: 0 | AM16: 0 | AN16: N/A | AO16: =IF(OR($D$4="N/A",HLOOKUP($D$3,ResourceProfiles!$F$4:$AL$65537,ResourceProfiles!$A$20)="no"),0,IF(AA16/D16<25%,PERCENTILE(INDIRECT(CONCATENATE("K",MATCH(O16,$G$12:$G$8796,0)+11,":","K",MATCH(O17,$G$12:$G$8796,0)+10)),AA16/D16+(1-(AA16/D16))*$AD$10)*1000,IF(AA16/D16>75%,0,PERCENTILE(INDIRECT(CONCATENATE("K",MATCH(O16,$G$12:$G$8796,0)+11,":","K",MATCH(O17,$G$12:$G$8796,0)+10)),AA16/D16+(1-(AA16/D16))*$AD$10)*1000*(1-AA16/D16)))) -> 0 | AP16: 0 | AQ16: N/A | AR16: N/A
B17: Mar | C17: =DCOUNT($F$11:$I$8795,"counthours",B34:C35) -> 0 | D17: 0 | E17: =DCOUNT($F$11:$I$8795,"counthours",B34:B35) -> 0 | G17: =IF($D$4="N/A","",IF(HLOOKUP($G$11&$D$4,Look_Tbl!$C$6:$ST$8790,Look_Tbl!B12,FALSE)="","",HLOOKUP($G$11&$D$4,Look_Tbl!$C$6:$ST$8790,Look_Tbl!B12,FALSE))) ->  | I17: =IF($D$4="N/A",0,IF(G17="","",HLOOKUP($I$11&$D$4,Look_Tbl!$C$6:$ST$8790,Look_Tbl!B12,FALSE))) -> 0 | J17: =IF($D$4="N/A",0,IF(OR(ISBLANK(HLOOKUP($D$3,ResourceInputs!$3:$65536,ResourceInputs!E21)),HLOOKUP($D$3,ResourceInputs!$3:$65536,ResourceInputs!E21)="nonleap"),"",IF((HLOOKUP($D$3,ResourceInputs!$3:$65536,ResourceInputs!$E$16)="Scheduled"),MAX(ROUND(HLOOKUP($D$3,ResourceInputs!$3:$65536,ResourceInputs!E21),0),0),MAX(HLOOKUP($D$3,ResourceInputs!$3:$65536,ResourceInputs!E21),0)))) -> 0 | O17: Mar | P17: 0 | Q17: 0 | R17: 0 | S17: 0 | T17: =IF(HLOOKUP($D$3,ResourceProfiles!$4:$350,ResourceProfiles!$A$20)="yes",P17/(C17-AB17)*Z17,0) -> 0 | U17: =IF(HLOOKUP($D$3,ResourceProfiles!$4:$350,ResourceProfiles!$A$20)="yes",Q17/(D17-AC17)*AA17,0) -> 0 | V17: N/A | W17: N/A | X17: =IF(HLOOKUP($D$3,ResourceProfiles!$F$4:$AO$127,ResourceProfiles!$A$13)="Yes",AB17-Z17,0) -> 0 | Y17: =IF(HLOOKUP($D$3,ResourceProfiles!$F$4:$AO$127,ResourceProfiles!$A$13)="Yes",AC17-AA17,0) -> 0 | Z17: =HLOOKUP($D$3,ResourceProfiles!$F$4:$AO$127,ResourceProfiles!A28,FALSE) -> 0 | AA17: =HLOOKUP($D$3,ResourceProfiles!$F$4:$AO$127,ResourceProfiles!A41,FALSE) -> 0 | AB17: N/A | AC17: N/A | AD17: N/A | AE17: =IF(OR($D$4="N/A",HLOOKUP($D$3,ResourceProfiles!$F$4:$AL$65537,ResourceProfiles!$A$20)="no"),0,IF(Z17/C17<25%,PERCENTILE(INDIRECT(CONCATENATE("K",MATCH(O17,$G$12:$G$8796,0)+11,":","K",MATCH(O18,$G$12:$G$8796,0)+10)),Z17/C17+(1-(Z17/C17))*$AD$10)*1000,IF(Z17/C17>75%,0,PERCENTILE(INDIRECT(CONCATENATE("K",MATCH(O17,$G$12:$G$8796,0)+11,":","K",MATCH(O18,$G$12:$G$8796,0)+10)),Z17/C17+(1-(Z17/C17))*$AD$10)*1000*(1-Z17/C17)))) -> 0 | AF17: =HLOOKUP($D$3,ResourceProfiles!$F$4:$AO$127,ResourceProfiles!A55) -> 0 | AG17: =IF(HLOOKUP($D$3,ResourceProfiles!$F$4:$AO$35,(ROW(A17)+7))>0,MAX(0,MIN(AD17,AE17)+AF17),MAX(0,MAX(AD17,AE17)+AF17)) -> 0 | AH17: =IF($D$4="N/A",$D$4,TRUNC(MIN(IF(AB17+RateInputs!$Q$6>=C17,0,SMALL(INDIRECT(CONCATENATE("K",MATCH(O17,$G$12:$G$8796,0)+11,":","K",MATCH(O18,$G$12:$G$8796,0)+10)),AB17+RateInputs!$Q$6))*1000+AF17,$AG17),-3)) -> N/A | AI17: 0 | AJ17: N/A | AK17: N/A | AL17: 0 | AM17: 0 | AN17: N/A | AO17: =IF(OR($D$4="N/A",HLOOKUP($D$3,ResourceProfiles!$F$4:$AL$65537,ResourceProfiles!$A$20)="no"),0,IF(AA17/D17<25%,PERCENTILE(INDIRECT(CONCATENATE("K",MATCH(O17,$G$12:$G$8796,0)+11,":","K",MATCH(O18,$G$12:$G$8796,0)+10)),AA17/D17+(1-(AA17/D17))*$AD$10)*1000,IF(AA17/D17>75%,0,PERCENTILE(INDIRECT(CONCATENATE("K",MATCH(O17,$G$12:$G$8796,0)+11,":","K",MATCH(O18,$G$12:$G$8796,0)+10)),AA17/D17+(1-(AA17/D17))*$AD$10)*1000*(1-AA17/D17)))) -> 0 | AP17: 0 | AQ17: N/A | AR17: N/A
B18: Apr | C18: =DCOUNT($F$11:$I$8795,"counthours",B36:C37) -> 0 | D18: 0 | E18: =DCOUNT($F$11:$I$8795,"counthours",B36:B37) -> 0 | G18: =IF($D$4="N/A","",IF(HLOOKUP($G$11&$D$4,Look_Tbl!$C$6:$ST$8790,Look_Tbl!B13,FALSE)="","",HLOOKUP($G$11&$D$4,Look_Tbl!$C$6:$ST$8790,Look_Tbl!B13,FALSE))) ->  | I18: =IF($D$4="N/A",0,IF(G18="","",HLOOKUP($I$11&$D$4,Look_Tbl!$C$6:$ST$8790,Look_Tbl!B13,FALSE))) -> 0 | J18: =IF($D$4="N/A",0,IF(OR(ISBLANK(HLOOKUP($D$3,ResourceInputs!$3:$65536,ResourceInputs!E22)),HLOOKUP($D$3,ResourceInputs!$3:$65536,ResourceInputs!E22)="nonleap"),"",IF((HLOOKUP($D$3,ResourceInputs!$3:$65536,ResourceInputs!$E$16)="Scheduled"),MAX(ROUND(HLOOKUP($D$3,ResourceInputs!$3:$65536,ResourceInputs!E22),0),0),MAX(HLOOKUP($D$3,ResourceInputs!$3:$65536,ResourceInputs!E22),0)))) -> 0 | M18: =IF(K18="","",ROUND(MAX(0,K18-(VLOOKUP(G18,$O$12:$W$23,8,FALSE)/VLOOKUP(G18,$B$12:$C$23,2,FALSE))),3)) ->  | O18: Apr | P18: 0 | Q18: 0 | R18: 0 | S18: 0 | T18: =IF(HLOOKUP($D$3,ResourceProfiles!$4:$350,ResourceProfiles!$A$20)="yes",P18/(C18-AB18)*Z18,0) -> 0 | U18: =IF(HLOOKUP($D$3,ResourceProfiles!$4:$350,ResourceProfiles!$A$20)="yes",Q18/(D18-AC18)*AA18,0) -> 0 | V18: N/A | W18: N/A | X18: =IF(HLOOKUP($D$3,ResourceProfiles!$F$4:$AO$127,ResourceProfiles!$A$13)="Yes",AB18-Z18,0) -> 0 | Y18: =IF(HLOOKUP($D$3,ResourceProfiles!$F$4:$AO$127,ResourceProfiles!$A$13)="Yes",AC18-AA18,0) -> 0 | Z18: =HLOOKUP($D$3,ResourceProfiles!$F$4:$AO$127,ResourceProfiles!A29,FALSE) -> 0 | AA18: =HLOOKUP($D$3,ResourceProfiles!$F$4:$AO$127,ResourceProfiles!A42,FALSE) -> 0 | AB18: N/A | AC18: N/A | AD18: N/A | AE18: =IF(OR($D$4="N/A",HLOOKUP($D$3,ResourceProfiles!$F$4:$AL$65537,ResourceProfiles!$A$20)="no"),0,IF(Z18/C18<25%,PERCENTILE(INDIRECT(CONCATENATE("K",MATCH(O18,$G$12:$G$8796,0)+11,":","K",MATCH(O19,$G$12:$G$8796,0)+10)),Z18/C18+(1-(Z18/C18))*$AD$10)*1000,IF(Z18/C18>75%,0,PERCENTILE(INDIRECT(CONCATENATE("K",MATCH(O18,$G$12:$G$8796,0)+11,":","K",MATCH(O19,$G$12:$G$8796,0)+10)),Z18/C18+(1-(Z18/C18))*$AD$10)*1000*(1-Z18/C18)))) -> 0 | AF18: =HLOOKUP($D$3,ResourceProfiles!$F$4:$AO$127,ResourceProfiles!A56) -> 0 | AG18: =IF(HLOOKUP($D$3,ResourceProfiles!$F$4:$AO$35,(ROW(A18)+7))>0,MAX(0,MIN(AD18,AE18)+AF18),MAX(0,MAX(AD18,AE18)+AF18)) -> 0 | AH18: =IF($D$4="N/A",$D$4,TRUNC(MIN(IF(AB18+RateInputs!$Q$6>=C18,0,SMALL(INDIRECT(CONCATENATE("K",MATCH(O18,$G$12:$G$8796,0)+11,":","K",MATCH(O19,$G$12:$G$8796,0)+10)),AB18+RateInputs!$Q$6))*1000+AF18,$AG18),-3)) -> N/A | AI18: 0 | AJ18: N/A | AK18: N/A | AL18: 0 | AM18: 0 | AN18: N/A | AO18: =IF(OR($D$4="N/A",HLOOKUP($D$3,ResourceProfiles!$F$4:$AL$65537,ResourceProfiles!$A$20)="no"),0,IF(AA18/D18<25%,PERCENTILE(INDIRECT(CONCATENATE("K",MATCH(O18,$G$12:$G$8796,0)+11,":","K",MATCH(O19,$G$12:$G$8796,0)+10)),AA18/D18+(1-(AA18/D18))*$AD$10)*1000,IF(AA18/D18>75%,0,PERCENTILE(INDIRECT(CONCATENATE("K",MATCH(O18,$G$12:$G$8796,0)+11,":","K",MATCH(O19,$G$12:$G$8796,0)+10)),AA18/D18+(1-(AA18/D18))*$AD$10)*1000*(1-AA18/D18)))) -> 0 | AP18: 0 | AQ18: N/A | AR18: N/A
B19: May | C19: =DCOUNT($F$11:$I$8795,"counthours",B38:C39) -> 0 | D19: 0 | E19: =DCOUNT($F$11:$I$8795,"counthours",B38:B39) -> 0 | G19: =IF($D$4="N/A","",IF(HLOOKUP($G$11&$D$4,Look_Tbl!$C$6:$ST$8790,Look_Tbl!B14,FALSE)="","",HLOOKUP($G$11&$D$4,Look_Tbl!$C$6:$ST$8790,Look_Tbl!B14,FALSE))) ->  | I19: =IF($D$4="N/A",0,IF(G19="","",HLOOKUP($I$11&$D$4,Look_Tbl!$C$6:$ST$8790,Look_Tbl!B14,FALSE))) -> 0 | J19: =IF($D$4="N/A",0,IF(OR(ISBLANK(HLOOKUP($D$3,ResourceInputs!$3:$65536,ResourceInputs!E23)),HLOOKUP($D$3,ResourceInputs!$3:$65536,ResourceInputs!E23)="nonleap"),"",IF((HLOOKUP($D$3,ResourceInputs!$3:$65536,ResourceInputs!$E$16)="Scheduled"),MAX(ROUND(HLOOKUP($D$3,ResourceInputs!$3:$65536,ResourceInputs!E23),0),0),MAX(HLOOKUP($D$3,ResourceInputs!$3:$65536,ResourceInputs!E23),0)))) -> 0 | O19: May | P19: 0 | Q19: 0 | R19: 0 | S19: 0 | T19: =IF(HLOOKUP($D$3,ResourceProfiles!$4:$350,ResourceProfiles!$A$20)="yes",P19/(C19-AB19)*Z19,0) -> 0 | U19: =IF(HLOOKUP($D$3,ResourceProfiles!$4:$350,ResourceProfiles!$A$20)="yes",Q19/(D19-AC19)*AA19,0) -> 0 | V19: N/A | W19: N/A | X19: =IF(HLOOKUP($D$3,ResourceProfiles!$F$4:$AO$127,ResourceProfiles!$A$13)="Yes",AB19-Z19,0) -> 0 | Y19: =IF(HLOOKUP($D$3,ResourceProfiles!$F$4:$AO$127,ResourceProfiles!$A$13)="Yes",AC19-AA19,0) -> 0 | Z19: =HLOOKUP($D$3,ResourceProfiles!$F$4:$AO$127,ResourceProfiles!A30,FALSE) -> 0 | AA19: =HLOOKUP($D$3,ResourceProfiles!$F$4:$AO$127,ResourceProfiles!A43,FALSE) -> 0 | AB19: N/A | AC19: N/A | AD19: N/A | AE19: =IF(OR($D$4="N/A",HLOOKUP($D$3,ResourceProfiles!$F$4:$AL$65537,ResourceProfiles!$A$20)="no"),0,IF(Z19/C19<25%,PERCENTILE(INDIRECT(CONCATENATE("K",MATCH(O19,$G$12:$G$8796,0)+11,":","K",MATCH(O20,$G$12:$G$8796,0)+10)),Z19/C19+(1-(Z19/C19))*$AD$10)*1000,IF(Z19/C19>75%,0,PERCENTILE(INDIRECT(CONCATENATE("K",MATCH(O19,$G$12:$G$8796,0)+11,":","K",MATCH(O20,$G$12:$G$8796,0)+10)),Z19/C19+(1-(Z19/C19))*$AD$10)*1000*(1-Z19/C19)))) -> 0 | AF19: =HLOOKUP($D$3,ResourceProfiles!$F$4:$AO$127,ResourceProfiles!A57) -> 0 | AG19: =IF(HLOOKUP($D$3,ResourceProfiles!$F$4:$AO$35,(ROW(A19)+7))>0,MAX(0,MIN(AD19,AE19)+AF19),MAX(0,MAX(AD19,AE19)+AF19)) -> 0 | AH19: =IF($D$4="N/A",$D$4,TRUNC(MIN(IF(AB19+RateInputs!$Q$6>=C19,0,SMALL(INDIRECT(CONCATENATE("K",MATCH(O19,$G$12:$G$8796,0)+11,":","K",MATCH(O20,$G$12:$G$8796,0)+10)),AB19+RateInputs!$Q$6))*1000+AF19,$AG19),-3)) -> N/A | AI19: 0 | AJ19: N/A | AK19: N/A | AL19: 0 | AM19: 0 | AN19: N/A | AO19: =IF(OR($D$4="N/A",HLOOKUP($D$3,ResourceProfiles!$F$4:$AL$65537,ResourceProfiles!$A$20)="no"),0,IF(AA19/D19<25%,PERCENTILE(INDIRECT(CONCATENATE("K",MATCH(O19,$G$12:$G$8796,0)+11,":","K",MATCH(O20,$G$12:$G$8796,0)+10)),AA19/D19+(1-(AA19/D19))*$AD$10)*1000,IF(AA19/D19>75%,0,PERCENTILE(INDIRECT(CONCATENATE("K",MATCH(O19,$G$12:$G$8796,0)+11,":","K",MATCH(O20,$G$12:$G$8796,0)+10)),AA19/D19+(1-(AA19/D19))*$AD$10)*1000*(1-AA19/D19)))) -> 0 | AP19: 0 | AQ19: N/A | AR19: N/A
B20: Jun | C20: =DCOUNT($F$11:$I$8795,"counthours",B40:C41) -> 0 | D20: 0 | E20: =DCOUNT($F$11:$I$8795,"counthours",B40:B41) -> 0 | G20: =IF($D$4="N/A","",IF(HLOOKUP($G$11&$D$4,Look_Tbl!$C$6:$ST$8790,Look_Tbl!B15,FALSE)="","",HLOOKUP($G$11&$D$4,Look_Tbl!$C$6:$ST$8790,Look_Tbl!B15,FALSE))) ->  | I20: =IF($D$4="N/A",0,IF(G20="","",HLOOKUP($I$11&$D$4,Look_Tbl!$C$6:$ST$8790,Look_Tbl!B15,FALSE))) -> 0 | J20: =IF($D$4="N/A",0,IF(OR(ISBLANK(HLOOKUP($D$3,ResourceInputs!$3:$65536,ResourceInputs!E24)),HLOOKUP($D$3,ResourceInputs!$3:$65536,ResourceInputs!E24)="nonleap"),"",IF((HLOOKUP($D$3,ResourceInputs!$3:$65536,ResourceInputs!$E$16)="Scheduled"),MAX(ROUND(HLOOKUP($D$3,ResourceInputs!$3:$65536,ResourceInputs!E24),0),0),MAX(HLOOKUP($D$3,ResourceInputs!$3:$65536,ResourceInputs!E24),0)))) -> 0 | O20: Jun | P20: 0 | Q20: 0 | R20: 0 | S20: 0 | T20: =IF(HLOOKUP($D$3,ResourceProfiles!$4:$350,ResourceProfiles!$A$20)="yes",P20/(C20-AB20)*Z20,0) -> 0 | U20: =IF(HLOOKUP($D$3,ResourceProfiles!$4:$350,ResourceProfiles!$A$20)="yes",Q20/(D20-AC20)*AA20,0) -> 0 | V20: N/A | W20: N/A | X20: =IF(HLOOKUP($D$3,ResourceProfiles!$F$4:$AO$127,ResourceProfiles!$A$13)="Yes",AB20-Z20,0) -> 0 | Y20: =IF(HLOOKUP($D$3,ResourceProfiles!$F$4:$AO$127,ResourceProfiles!$A$13)="Yes",AC20-AA20,0) -> 0 | Z20: =HLOOKUP($D$3,ResourceProfiles!$F$4:$AO$127,ResourceProfiles!A31,FALSE) -> 0 | AA20: =HLOOKUP($D$3,ResourceProfiles!$F$4:$AO$127,ResourceProfiles!A44,FALSE) -> 0 | AB20: N/A | AC20: N/A | AD20: N/A | AE20: =IF(OR($D$4="N/A",HLOOKUP($D$3,ResourceProfiles!$F$4:$AL$65537,ResourceProfiles!$A$20)="no"),0,IF(Z20/C20<25%,PERCENTILE(INDIRECT(CONCATENATE("K",MATCH(O20,$G$12:$G$8796,0)+11,":","K",MATCH(O21,$G$12:$G$8796,0)+10)),Z20/C20+(1-(Z20/C20))*$AD$10)*1000,IF(Z20/C20>75%,0,PERCENTILE(INDIRECT(CONCATENATE("K",MATCH(O20,$G$12:$G$8796,0)+11,":","K",MATCH(O21,$G$12:$G$8796,0)+10)),Z20/C20+(1-(Z20/C20))*$AD$10)*1000*(1-Z20/C20)))) -> 0 | AF20: =HLOOKUP($D$3,ResourceProfiles!$F$4:$AO$127,ResourceProfiles!A58) -> 0 | AG20: =IF(HLOOKUP($D$3,ResourceProfiles!$F$4:$AO$35,(ROW(A20)+7))>0,MAX(0,MIN(AD20,AE20)+AF20),MAX(0,MAX(AD20,AE20)+AF20)) -> 0 | AH20: =IF($D$4="N/A",$D$4,TRUNC(MIN(IF(AB20+RateInputs!$Q$6>=C20,0,SMALL(INDIRECT(CONCATENATE("K",MATCH(O20,$G$12:$G$8796,0)+11,":","K",MATCH(O21,$G$12:$G$8796,0)+10)),AB20+RateInputs!$Q$6))*1000+AF20,$AG20),-3)) -> N/A | AI20: 0 | AJ20: N/A | AK20: N/A | AL20: 0 | AM20: 0 | AN20: N/A | AO20: =IF(OR($D$4="N/A",HLOOKUP($D$3,ResourceProfiles!$F$4:$AL$65537,ResourceProfiles!$A$20)="no"),0,IF(AA20/D20<25%,PERCENTILE(INDIRECT(CONCATENATE("K",MATCH(O20,$G$12:$G$8796,0)+11,":","K",MATCH(O21,$G$12:$G$8796,0)+10)),AA20/D20+(1-(AA20/D20))*$AD$10)*1000,IF(AA20/D20>75%,0,PERCENTILE(INDIRECT(CONCATENATE("K",MATCH(O20,$G$12:$G$8796,0)+11,":","K",MATCH(O21,$G$12:$G$8796,0)+10)),AA20/D20+(1-(AA20/D20))*$AD$10)*1000*(1-AA20/D20)))) -> 0 | AP20: 0 | AQ20: N/A | AR20: N/A
B21: Jul | C21: =DCOUNT($F$11:$I$8795,"counthours",B42:C43) -> 0 | D21: 0 | E21: =DCOUNT($F$11:$I$8795,"counthours",B42:B43) -> 0 | G21: =IF($D$4="N/A","",IF(HLOOKUP($G$11&$D$4,Look_Tbl!$C$6:$ST$8790,Look_Tbl!B16,FALSE)="","",HLOOKUP($G$11&$D$4,Look_Tbl!$C$6:$ST$8790,Look_Tbl!B16,FALSE))) ->  | I21: =IF($D$4="N/A",0,IF(G21="","",HLOOKUP($I$11&$D$4,Look_Tbl!$C$6:$ST$8790,Look_Tbl!B16,FALSE))) -> 0 | J21: =IF($D$4="N/A",0,IF(OR(ISBLANK(HLOOKUP($D$3,ResourceInputs!$3:$65536,ResourceInputs!E25)),HLOOKUP($D$3,ResourceInputs!$3:$65536,ResourceInputs!E25)="nonleap"),"",IF((HLOOKUP($D$3,ResourceInputs!$3:$65536,ResourceInputs!$E$16)="Scheduled"),MAX(ROUND(HLOOKUP($D$3,ResourceInputs!$3:$65536,ResourceInputs!E25),0),0),MAX(HLOOKUP($D$3,ResourceInputs!$3:$65536,ResourceInputs!E25),0)))) -> 0 | O21: Jul | P21: 0 | Q21: 0 | R21: 0 | S21: 0 | T21: =IF(HLOOKUP($D$3,ResourceProfiles!$4:$350,ResourceProfiles!$A$20)="yes",P21/(C21-AB21)*Z21,0) -> 0 | U21: =IF(HLOOKUP($D$3,ResourceProfiles!$4:$350,ResourceProfiles!$A$20)="yes",Q21/(D21-AC21)*AA21,0) -> 0 | V21: N/A | W21: N/A | X21: =IF(HLOOKUP($D$3,ResourceProfiles!$F$4:$AO$127,ResourceProfiles!$A$13)="Yes",AB21-Z21,0) -> 0 | Y21: =IF(HLOOKUP($D$3,ResourceProfiles!$F$4:$AO$127,ResourceProfiles!$A$13)="Yes",AC21-AA21,0) -> 0 | Z21: =HLOOKUP($D$3,ResourceProfiles!$F$4:$AO$127,ResourceProfiles!A32,FALSE) -> 0 | AA21: =HLOOKUP($D$3,ResourceProfiles!$F$4:$AO$127,ResourceProfiles!A45,FALSE) -> 0 | AB21: N/A | AC21: N/A | AD21: N/A | AE21: =IF(OR($D$4="N/A",HLOOKUP($D$3,ResourceProfiles!$F$4:$AL$65537,ResourceProfiles!$A$20)="no"),0,IF(Z21/C21<25%,PERCENTILE(INDIRECT(CONCATENATE("K",MATCH(O21,$G$12:$G$8796,0)+11,":","K",MATCH(O22,$G$12:$G$8796,0)+10)),Z21/C21+(1-(Z21/C21))*$AD$10)*1000,IF(Z21/C21>75%,0,PERCENTILE(INDIRECT(CONCATENATE("K",MATCH(O21,$G$12:$G$8796,0)+11,":","K",MATCH(O22,$G$12:$G$8796,0)+10)),Z21/C21+(1-(Z21/C21))*$AD$10)*1000*(1-Z21/C21)))) -> 0 | AF21: =HLOOKUP($D$3,ResourceProfiles!$F$4:$AO$127,ResourceProfiles!A59) -> 0 | AG21: =IF(HLOOKUP($D$3,ResourceProfiles!$F$4:$AO$35,(ROW(A21)+7))>0,MAX(0,MIN(AD21,AE21)+AF21),MAX(0,MAX(AD21,AE21)+AF21)) -> 0 | AH21: =IF($D$4="N/A",$D$4,TRUNC(MIN(IF(AB21+RateInputs!$Q$6>=C21,0,SMALL(INDIRECT(CONCATENATE("K",MATCH(O21,$G$12:$G$8796,0)+11,":","K",MATCH(O22,$G$12:$G$8796,0)+10)),AB21+RateInputs!$Q$6))*1000+AF21,$AG21),-3)) -> N/A | AI21: 0 | AJ21: N/A | AK21: N/A | AL21: 0 | AM21: 0 | AN21: N/A | AO21: =IF(OR($D$4="N/A",HLOOKUP($D$3,ResourceProfiles!$F$4:$AL$65537,ResourceProfiles!$A$20)="no"),0,IF(AA21/D21<25%,PERCENTILE(INDIRECT(CONCATENATE("K",MATCH(O21,$G$12:$G$8796,0)+11,":","K",MATCH(O22,$G$12:$G$8796,0)+10)),AA21/D21+(1-(AA21/D21))*$AD$10)*1000,IF(AA21/D21>75%,0,PERCENTILE(INDIRECT(CONCATENATE("K",MATCH(O21,$G$12:$G$8796,0)+11,":","K",MATCH(O22,$G$12:$G$8796,0)+10)),AA21/D21+(1-(AA21/D21))*$AD$10)*1000*(1-AA21/D21)))) -> 0 | AP21: 0 | AQ21: N/A | AR21: N/A
B22: Aug | C22: =DCOUNT($F$11:$I$8795,"counthours",B44:C45) -> 0 | D22: 0 | E22: =DCOUNT($F$11:$I$8795,"counthours",B44:B45) -> 0 | G22: =IF($D$4="N/A","",IF(HLOOKUP($G$11&$D$4,Look_Tbl!$C$6:$ST$8790,Look_Tbl!B17,FALSE)="","",HLOOKUP($G$11&$D$4,Look_Tbl!$C$6:$ST$8790,Look_Tbl!B17,FALSE))) ->  | I22: =IF($D$4="N/A",0,IF(G22="","",HLOOKUP($I$11&$D$4,Look_Tbl!$C$6:$ST$8790,Look_Tbl!B17,FALSE))) -> 0 | J22: =IF($D$4="N/A",0,IF(OR(ISBLANK(HLOOKUP($D$3,ResourceInputs!$3:$65536,ResourceInputs!E26)),HLOOKUP($D$3,ResourceInputs!$3:$65536,ResourceInputs!E26)="nonleap"),"",IF((HLOOKUP($D$3,ResourceInputs!$3:$65536,ResourceInputs!$E$16)="Scheduled"),MAX(ROUND(HLOOKUP($D$3,ResourceInputs!$3:$65536,ResourceInputs!E26),0),0),MAX(HLOOKUP($D$3,ResourceInputs!$3:$65536,ResourceInputs!E26),0)))) -> 0 | O22: Aug | P22: 0 | Q22: 0 | R22: 0 | S22: 0 | T22: =IF(HLOOKUP($D$3,ResourceProfiles!$4:$350,ResourceProfiles!$A$20)="yes",P22/(C22-AB22)*Z22,0) -> 0 | U22: =IF(HLOOKUP($D$3,ResourceProfiles!$4:$350,ResourceProfiles!$A$20)="yes",Q22/(D22-AC22)*AA22,0) -> 0 | V22: N/A | W22: N/A | X22: =IF(HLOOKUP($D$3,ResourceProfiles!$F$4:$AO$127,ResourceProfiles!$A$13)="Yes",AB22-Z22,0) -> 0 | Y22: =IF(HLOOKUP($D$3,ResourceProfiles!$F$4:$AO$127,ResourceProfiles!$A$13)="Yes",AC22-AA22,0) -> 0 | Z22: =HLOOKUP($D$3,ResourceProfiles!$F$4:$AO$127,ResourceProfiles!A33,FALSE) -> 0 | AA22: =HLOOKUP($D$3,ResourceProfiles!$F$4:$AO$127,ResourceProfiles!A46,FALSE) -> 0 | AB22: N/A | AC22: N/A | AD22: N/A | AE22: =IF(OR($D$4="N/A",HLOOKUP($D$3,ResourceProfiles!$F$4:$AL$65537,ResourceProfiles!$A$20)="no"),0,IF(Z22/C22<25%,PERCENTILE(INDIRECT(CONCATENATE("K",MATCH(O22,$G$12:$G$8796,0)+11,":","K",MATCH(O23,$G$12:$G$8796,0)+10)),Z22/C22+(1-(Z22/C22))*$AD$10)*1000,IF(Z22/C22>75%,0,PERCENTILE(INDIRECT(CONCATENATE("K",MATCH(O22,$G$12:$G$8796,0)+11,":","K",MATCH(O23,$G$12:$G$8796,0)+10)),Z22/C22+(1-(Z22/C22))*$AD$10)*1000*(1-Z22/C22)))) -> 0 | AF22: =HLOOKUP($D$3,ResourceProfiles!$F$4:$AO$127,ResourceProfiles!A60) -> 0 | AG22: =IF(HLOOKUP($D$3,ResourceProfiles!$F$4:$AO$35,(ROW(A22)+7))>0,MAX(0,MIN(AD22,AE22)+AF22),MAX(0,MAX(AD22,AE22)+AF22)) -> 0 | AH22: =IF($D$4="N/A",$D$4,TRUNC(MIN(IF(AB22+RateInputs!$Q$6>=C22,0,SMALL(INDIRECT(CONCATENATE("K",MATCH(O22,$G$12:$G$8796,0)+11,":","K",MATCH(O23,$G$12:$G$8796,0)+10)),AB22+RateInputs!$Q$6))*1000+AF22,$AG22),-3)) -> N/A | AI22: 0 | AJ22: N/A | AK22: N/A | AL22: 0 | AM22: 0 | AN22: N/A | AO22: =IF(OR($D$4="N/A",HLOOKUP($D$3,ResourceProfiles!$F$4:$AL$65537,ResourceProfiles!$A$20)="no"),0,IF(AA22/D22<25%,PERCENTILE(INDIRECT(CONCATENATE("K",MATCH(O22,$G$12:$G$8796,0)+11,":","K",MATCH(O23,$G$12:$G$8796,0)+10)),AA22/D22+(1-(AA22/D22))*$AD$10)*1000,IF(AA22/D22>75%,0,PERCENTILE(INDIRECT(CONCATENATE("K",MATCH(O22,$G$12:$G$8796,0)+11,":","K",MATCH(O23,$G$12:$G$8796,0)+10)),AA22/D22+(1-(AA22/D22))*$AD$10)*1000*(1-AA22/D22)))) -> 0 | AP22: 0 | AQ22: N/A | AR22: N/A
B23: Sep | C23: =DCOUNT($F$11:$I$8795,"counthours",B46:C47) -> 0 | D23: 0 | E23: =DCOUNT($F$11:$I$8795,"counthours",B46:B47) -> 0 | G23: =IF($D$4="N/A","",IF(HLOOKUP($G$11&$D$4,Look_Tbl!$C$6:$ST$8790,Look_Tbl!B18,FALSE)="","",HLOOKUP($G$11&$D$4,Look_Tbl!$C$6:$ST$8790,Look_Tbl!B18,FALSE))) ->  | I23: =IF($D$4="N/A",0,IF(G23="","",HLOOKUP($I$11&$D$4,Look_Tbl!$C$6:$ST$8790,Look_Tbl!B18,FALSE))) -> 0 | J23: =IF($D$4="N/A",0,IF(OR(ISBLANK(HLOOKUP($D$3,ResourceInputs!$3:$65536,ResourceInputs!E27)),HLOOKUP($D$3,ResourceInputs!$3:$65536,ResourceInputs!E27)="nonleap"),"",IF((HLOOKUP($D$3,ResourceInputs!$3:$65536,ResourceInputs!$E$16)="Scheduled"),MAX(ROUND(HLOOKUP($D$3,ResourceInputs!$3:$65536,ResourceInputs!E27),0),0),MAX(HLOOKUP($D$3,ResourceInputs!$3:$65536,ResourceInputs!E27),0)))) -> 0 | O23: Sep | P23: 0 | Q23: 0 | R23: 0 | S23: 0 | T23: =IF(HLOOKUP($D$3,ResourceProfiles!$4:$350,ResourceProfiles!$A$20)="yes",P23/(C23-AB23)*Z23,0) -> 0 | U23: =IF(HLOOKUP($D$3,ResourceProfiles!$4:$350,ResourceProfiles!$A$20)="yes",Q23/(D23-AC23)*AA23,0) -> 0 | V23: N/A | W23: N/A | X23: =IF(HLOOKUP($D$3,ResourceProfiles!$F$4:$AO$127,ResourceProfiles!$A$13)="Yes",AB23-Z23,0) -> 0 | Y23: =IF(HLOOKUP($D$3,ResourceProfiles!$F$4:$AO$127,ResourceProfiles!$A$13)="Yes",AC23-AA23,0) -> 0 | Z23: =HLOOKUP($D$3,ResourceProfiles!$F$4:$AO$127,ResourceProfiles!A34,FALSE) -> 0 | AA23: =HLOOKUP($D$3,ResourceProfiles!$F$4:$AO$127,ResourceProfiles!A47,FALSE) -> 0 | AB23: N/A | AC23: N/A | AD23: N/A | AE23: =IF(OR($D$4="N/A",HLOOKUP($D$3,ResourceProfiles!$F$4:$AL$65537,ResourceProfiles!$A$20)="no"),0,IF(Z23/C23<25%,PERCENTILE(INDIRECT(CONCATENATE("K",MATCH(O23,$G$12:$G$8796,0)+11,":","K",MATCH(O24,$G$12:$G$8796,0)+10)),Z23/C23+(1-(Z23/C23))*$AD$10)*1000,IF(Z23/C23>75%,0,PERCENTILE(INDIRECT(CONCATENATE("K",MATCH(O23,$G$12:$G$8796,0)+11,":","K",MATCH(O24,$G$12:$G$8796,0)+10)),Z23/C23+(1-(Z23/C23))*$AD$10)*1000*(1-Z23/C23)))) -> 0 | AF23: =HLOOKUP($D$3,ResourceProfiles!$F$4:$AO$127,ResourceProfiles!A61) -> 0 | AG23: =IF(HLOOKUP($D$3,ResourceProfiles!$F$4:$AO$35,(ROW(A23)+7))>0,MAX(0,MIN(AD23,AE23)+AF23),MAX(0,MAX(AD23,AE23)+AF23)) -> 0 | AH23: =IF($D$4="N/A",$D$4,TRUNC(MIN(IF(AB23+RateInputs!$Q$6>=C23,0,SMALL(INDIRECT(CONCATENATE("K",MATCH(O23,$G$12:$G$8796,0)+11,":","K",MATCH(O24,$G$12:$G$8796,0)+10)),AB23+RateInputs!$Q$6))*1000+AF23,$AG23),-3)) -> N/A | AI23: 0 | AJ23: N/A | AK23: N/A | AL23: 0 | AM23: 0 | AN23: N/A | AO23: =IF(OR($D$4="N/A",HLOOKUP($D$3,ResourceProfiles!$F$4:$AL$65537,ResourceProfiles!$A$20)="no"),0,IF(AA23/D23<25%,PERCENTILE(INDIRECT(CONCATENATE("K",MATCH(O23,$G$12:$G$8796,0)+11,":","K",MATCH(O24,$G$12:$G$8796,0)+10)),AA23/D23+(1-(AA23/D23))*$AD$10)*1000,IF(AA23/D23>75%,0,PERCENTILE(INDIRECT(CONCATENATE("K",MATCH(O23,$G$12:$G$8796,0)+11,":","K",MATCH(O24,$G$12:$G$8796,0)+10)),AA23/D23+(1-(AA23/D23))*$AD$10)*1000*(1-AA23/D23)))) -> 0 | AP23: 0 | AQ23: N/A | AR23: N/A
B24: Month | C24: HLH/LLH | E24: =SUM(E12:E23) -> 0 | G24: =IF($D$4="N/A","",IF(HLOOKUP($G$11&$D$4,Look_Tbl!$C$6:$ST$8790,Look_Tbl!B19,FALSE)="","",HLOOKUP($G$11&$D$4,Look_Tbl!$C$6:$ST$8790,Look_Tbl!B19,FALSE))) ->  | I24: =IF($D$4="N/A",0,IF(G24="","",HLOOKUP($I$11&$D$4,Look_Tbl!$C$6:$ST$8790,Look_Tbl!B19,FALSE))) -> 0 | J24: =IF($D$4="N/A",0,IF(OR(ISBLANK(HLOOKUP($D$3,ResourceInputs!$3:$65536,ResourceInputs!E28)),HLOOKUP($D$3,ResourceInputs!$3:$65536,ResourceInputs!E28)="nonleap"),"",IF((HLOOKUP($D$3,ResourceInputs!$3:$65536,ResourceInputs!$E$16)="Scheduled"),MAX(ROUND(HLOOKUP($D$3,ResourceInputs!$3:$65536,ResourceInputs!E28),0),0),MAX(HLOOKUP($D$3,ResourceInputs!$3:$65536,ResourceInputs!E28),0)))) -> 0 | O24: stop
B25: Oct | C25: HLH | G25: =IF($D$4="N/A","",IF(HLOOKUP($G$11&$D$4,Look_Tbl!$C$6:$ST$8790,Look_Tbl!B20,FALSE)="","",HLOOKUP($G$11&$D$4,Look_Tbl!$C$6:$ST$8790,Look_Tbl!B20,FALSE))) ->  | I25: =IF($D$4="N/A",0,IF(G25="","",HLOOKUP($I$11&$D$4,Look_Tbl!$C$6:$ST$8790,Look_Tbl!B20,FALSE))) -> 0 | J25: =IF($D$4="N/A",0,IF(OR(ISBLANK(HLOOKUP($D$3,ResourceInputs!$3:$65536,ResourceInputs!E29)),HLOOKUP($D$3,ResourceInputs!$3:$65536,ResourceInputs!E29)="nonleap"),"",IF((HLOOKUP($D$3,ResourceInputs!$3:$65536,ResourceInputs!$E$16)="Scheduled"),MAX(ROUND(HLOOKUP($D$3,ResourceInputs!$3:$65536,ResourceInputs!E29),0),0),MAX(HLOOKUP($D$3,ResourceInputs!$3:$65536,ResourceInputs!E29),0)))) -> 0 | AJ25: Change Op. Min. Info | AM25: Change Op. Min. Info
B26: Month | C26: HLH/LLH | G26: =IF($D$4="N/A","",IF(HLOOKUP($G$11&$D$4,Look_Tbl!$C$6:$ST$8790,Look_Tbl!B21,FALSE)="","",HLOOKUP($G$11&$D$4,Look_Tbl!$C$6:$ST$8790,Look_Tbl!B21,FALSE))) ->  | I26: =IF($D$4="N/A",0,IF(G26="","",HLOOKUP($I$11&$D$4,Look_Tbl!$C$6:$ST$8790,Look_Tbl!B21,FALSE))) -> 0 | J26: =IF($D$4="N/A",0,IF(OR(ISBLANK(HLOOKUP($D$3,ResourceInputs!$3:$65536,ResourceInputs!E30)),HLOOKUP($D$3,ResourceInputs!$3:$65536,ResourceInputs!E30)="nonleap"),"",IF((HLOOKUP($D$3,ResourceInputs!$3:$65536,ResourceInputs!$E$16)="Scheduled"),MAX(ROUND(HLOOKUP($D$3,ResourceInputs!$3:$65536,ResourceInputs!E30),0),0),MAX(HLOOKUP($D$3,ResourceInputs!$3:$65536,ResourceInputs!E30),0)))) -> 0 | AJ26: =IF($D$4="N/A",$D$4,MIN(IF(AB12+RateInputs!$Q$6>=C12,0,SMALL(INDIRECT(CONCATENATE("K",MATCH(O12,$G$12:$G$8796,0)+11,":","K",MATCH(O13,$G$12:$G$8796,0)+10)),AB12+RateInputs!$Q$6))*1000+AF12,$AG12)) -> N/A | AK26: =IF($D$4="N/A",$D$4,MIN(IF(AC12+RateInputs!$Q$6>=D12,0,SMALL(INDIRECT(CONCATENATE("L",MATCH(O12,$G$12:$G$8796,0)+11,":","L",MATCH(O13,$G$12:$G$8796,0)+10)),AC12+RateInputs!$Q$6))*1000+AF12,$AG12)) -> N/A | AM26: =AJ26 -> N/A | AN26: =IF(AK26>999,999,AK26) -> 999
B27: Nov | C27: HLH | G27: =IF($D$4="N/A","",IF(HLOOKUP($G$11&$D$4,Look_Tbl!$C$6:$ST$8790,Look_Tbl!B22,FALSE)="","",HLOOKUP($G$11&$D$4,Look_Tbl!$C$6:$ST$8790,Look_Tbl!B22,FALSE))) ->  | I27: =IF($D$4="N/A",0,IF(G27="","",HLOOKUP($I$11&$D$4,Look_Tbl!$C$6:$ST$8790,Look_Tbl!B22,FALSE))) -> 0 | J27: =IF($D$4="N/A",0,IF(OR(ISBLANK(HLOOKUP($D$3,ResourceInputs!$3:$65536,ResourceInputs!E31)),HLOOKUP($D$3,ResourceInputs!$3:$65536,ResourceInputs!E31)="nonleap"),"",IF((HLOOKUP($D$3,ResourceInputs!$3:$65536,ResourceInputs!$E$16)="Scheduled"),MAX(ROUND(HLOOKUP($D$3,ResourceInputs!$3:$65536,ResourceInputs!E31),0),0),MAX(HLOOKUP($D$3,ResourceInputs!$3:$65536,ResourceInputs!E31),0)))) -> 0 | AJ27: =IF($D$4="N/A",$D$4,MIN(IF(AB13+RateInputs!$Q$6>=C13,0,SMALL(INDIRECT(CONCATENATE("K",MATCH(O13,$G$12:$G$8796,0)+11,":","K",MATCH(O14,$G$12:$G$8796,0)+10)),AB13+RateInputs!$Q$6))*1000+AF13,$AG13)) -> N/A | AK27: =IF($D$4="N/A",$D$4,MIN(IF(AC13+RateInputs!$Q$6>=D13,0,SMALL(INDIRECT(CONCATENATE("L",MATCH(O13,$G$12:$G$8796,0)+11,":","L",MATCH(O14,$G$12:$G$8796,0)+10)),AC13+RateInputs!$Q$6))*1000+AF13,$AG13)) -> N/A | AM27: =AJ27 -> N/A | AN27: =IF(AK27>999,999,AK27) -> 999
B28: Month | C28: HLH/LLH | G28: =IF($D$4="N/A","",IF(HLOOKUP($G$11&$D$4,Look_Tbl!$C$6:$ST$8790,Look_Tbl!B23,FALSE)="","",HLOOKUP($G$11&$D$4,Look_Tbl!$C$6:$ST$8790,Look_Tbl!B23,FALSE))) ->  | I28: =IF($D$4="N/A",0,IF(G28="","",HLOOKUP($I$11&$D$4,Look_Tbl!$C$6:$ST$8790,Look_Tbl!B23,FALSE))) -> 0 | J28: =IF($D$4="N/A",0,IF(OR(ISBLANK(HLOOKUP($D$3,ResourceInputs!$3:$65536,ResourceInputs!E32)),HLOOKUP($D$3,ResourceInputs!$3:$65536,ResourceInputs!E32)="nonleap"),"",IF((HLOOKUP($D$3,ResourceInputs!$3:$65536,ResourceInputs!$E$16)="Scheduled"),MAX(ROUND(HLOOKUP($D$3,ResourceInputs!$3:$65536,ResourceInputs!E32),0),0),MAX(HLOOKUP($D$3,ResourceInputs!$3:$65536,ResourceInputs!E32),0)))) -> 0 | M28: =IF(K28="","",ROUND(MAX(0,K28-(VLOOKUP(G28,$O$12:$W$23,8,FALSE)/VLOOKUP(G28,$B$12:$C$23,2,FALSE))),3)) ->  | AJ28: =IF($D$4="N/A",$D$4,MIN(IF(AB14+RateInputs!$Q$6>=C14,0,SMALL(INDIRECT(CONCATENATE("K",MATCH(O14,$G$12:$G$8796,0)+11,":","K",MATCH(O15,$G$12:$G$8796,0)+10)),AB14+RateInputs!$Q$6))*1000+AF14,$AG14)) -> N/A | AK28: =IF($D$4="N/A",$D$4,MIN(IF(AC14+RateInputs!$Q$6>=D14,0,SMALL(INDIRECT(CONCATENATE("L",MATCH(O14,$G$12:$G$8796,0)+11,":","L",MATCH(O15,$G$12:$G$8796,0)+10)),AC14+RateInputs!$Q$6))*1000+AF14,$AG14)) -> N/A | AM28: N/A | AN28: 999
B29: Dec | C29: HLH | G29: =IF($D$4="N/A","",IF(HLOOKUP($G$11&$D$4,Look_Tbl!$C$6:$ST$8790,Look_Tbl!B24,FALSE)="","",HLOOKUP($G$11&$D$4,Look_Tbl!$C$6:$ST$8790,Look_Tbl!B24,FALSE))) ->  | I29: =IF($D$4="N/A",0,IF(G29="","",HLOOKUP($I$11&$D$4,Look_Tbl!$C$6:$ST$8790,Look_Tbl!B24,FALSE))) -> 0 | J29: =IF($D$4="N/A",0,IF(OR(ISBLANK(HLOOKUP($D$3,ResourceInputs!$3:$65536,ResourceInputs!E33)),HLOOKUP($D$3,ResourceInputs!$3:$65536,ResourceInputs!E33)="nonleap"),"",IF((HLOOKUP($D$3,ResourceInputs!$3:$65536,ResourceInputs!$E$16)="Scheduled"),MAX(ROUND(HLOOKUP($D$3,ResourceInputs!$3:$65536,ResourceInputs!E33),0),0),MAX(HLOOKUP($D$3,ResourceInputs!$3:$65536,ResourceInputs!E33),0)))) -> 0 | AJ29: =IF($D$4="N/A",$D$4,MIN(IF(AB15+RateInputs!$Q$6>=C15,0,SMALL(INDIRECT(CONCATENATE("K",MATCH(O15,$G$12:$G$8796,0)+11,":","K",MATCH(O16,$G$12:$G$8796,0)+10)),AB15+RateInputs!$Q$6))*1000+AF15,$AG15)) -> N/A | AK29: =IF($D$4="N/A",$D$4,MIN(IF(AC15+RateInputs!$Q$6>=D15,0,SMALL(INDIRECT(CONCATENATE("L",MATCH(O15,$G$12:$G$8796,0)+11,":","L",MATCH(O16,$G$12:$G$8796,0)+10)),AC15+RateInputs!$Q$6))*1000+AF15,$AG15)) -> N/A | AM29: N/A | AN29: 999
B30: Month | C30: HLH/LLH | G30: =IF($D$4="N/A","",IF(HLOOKUP($G$11&$D$4,Look_Tbl!$C$6:$ST$8790,Look_Tbl!B25,FALSE)="","",HLOOKUP($G$11&$D$4,Look_Tbl!$C$6:$ST$8790,Look_Tbl!B25,FALSE))) ->  | I30: =IF($D$4="N/A",0,IF(G30="","",HLOOKUP($I$11&$D$4,Look_Tbl!$C$6:$ST$8790,Look_Tbl!B25,FALSE))) -> 0 | J30: =IF($D$4="N/A",0,IF(OR(ISBLANK(HLOOKUP($D$3,ResourceInputs!$3:$65536,ResourceInputs!E34)),HLOOKUP($D$3,ResourceInputs!$3:$65536,ResourceInputs!E34)="nonleap"),"",IF((HLOOKUP($D$3,ResourceInputs!$3:$65536,ResourceInputs!$E$16)="Scheduled"),MAX(ROUND(HLOOKUP($D$3,ResourceInputs!$3:$65536,ResourceInputs!E34),0),0),MAX(HLOOKUP($D$3,ResourceInputs!$3:$65536,ResourceInputs!E34),0)))) -> 0 | AJ30: =IF($D$4="N/A",$D$4,MIN(IF(AB16+RateInputs!$Q$6>=C16,0,SMALL(INDIRECT(CONCATENATE("K",MATCH(O16,$G$12:$G$8796,0)+11,":","K",MATCH(O17,$G$12:$G$8796,0)+10)),AB16+RateInputs!$Q$6))*1000+AF16,$AG16)) -> N/A | AK30: =IF($D$4="N/A",$D$4,MIN(IF(AC16+RateInputs!$Q$6>=D16,0,SMALL(INDIRECT(CONCATENATE("L",MATCH(O16,$G$12:$G$8796,0)+11,":","L",MATCH(O17,$G$12:$G$8796,0)+10)),AC16+RateInputs!$Q$6))*1000+AF16,$AG16)) -> N/A | AM30: N/A | AN30: 999
B31: Jan | C31: HLH | G31: =IF($D$4="N/A","",IF(HLOOKUP($G$11&$D$4,Look_Tbl!$C$6:$ST$8790,Look_Tbl!B26,FALSE)="","",HLOOKUP($G$11&$D$4,Look_Tbl!$C$6:$ST$8790,Look_Tbl!B26,FALSE))) ->  | I31: =IF($D$4="N/A",0,IF(G31="","",HLOOKUP($I$11&$D$4,Look_Tbl!$C$6:$ST$8790,Look_Tbl!B26,FALSE))) -> 0 | J31: =IF($D$4="N/A",0,IF(OR(ISBLANK(HLOOKUP($D$3,ResourceInputs!$3:$65536,ResourceInputs!E35)),HLOOKUP($D$3,ResourceInputs!$3:$65536,ResourceInputs!E35)="nonleap"),"",IF((HLOOKUP($D$3,ResourceInputs!$3:$65536,ResourceInputs!$E$16)="Scheduled"),MAX(ROUND(HLOOKUP($D$3,ResourceInputs!$3:$65536,ResourceInputs!E35),0),0),MAX(HLOOKUP($D$3,ResourceInputs!$3:$65536,ResourceInputs!E35),0)))) -> 0 | AJ31: =IF($D$4="N/A",$D$4,MIN(IF(AB17+RateInputs!$Q$6>=C17,0,SMALL(INDIRECT(CONCATENATE("K",MATCH(O17,$G$12:$G$8796,0)+11,":","K",MATCH(O18,$G$12:$G$8796,0)+10)),AB17+RateInputs!$Q$6))*1000+AF17,$AG17)) -> N/A | AK31: =IF($D$4="N/A",$D$4,MIN(IF(AC17+RateInputs!$Q$6>=D17,0,SMALL(INDIRECT(CONCATENATE("L",MATCH(O17,$G$12:$G$8796,0)+11,":","L",MATCH(O18,$G$12:$G$8796,0)+10)),AC17+RateInputs!$Q$6))*1000+AF17,$AG17)) -> N/A | AM31: N/A | AN31: 999
B32: Month | C32: HLH/LLH | G32: =IF($D$4="N/A","",IF(HLOOKUP($G$11&$D$4,Look_Tbl!$C$6:$ST$8790,Look_Tbl!B27,FALSE)="","",HLOOKUP($G$11&$D$4,Look_Tbl!$C$6:$ST$8790,Look_Tbl!B27,FALSE))) ->  | I32: =IF($D$4="N/A",0,IF(G32="","",HLOOKUP($I$11&$D$4,Look_Tbl!$C$6:$ST$8790,Look_Tbl!B27,FALSE))) -> 0 | J32: =IF($D$4="N/A",0,IF(OR(ISBLANK(HLOOKUP($D$3,ResourceInputs!$3:$65536,ResourceInputs!E36)),HLOOKUP($D$3,ResourceInputs!$3:$65536,ResourceInputs!E36)="nonleap"),"",IF((HLOOKUP($D$3,ResourceInputs!$3:$65536,ResourceInputs!$E$16)="Scheduled"),MAX(ROUND(HLOOKUP($D$3,ResourceInputs!$3:$65536,ResourceInputs!E36),0),0),MAX(HLOOKUP($D$3,ResourceInputs!$3:$65536,ResourceInputs!E36),0)))) -> 0 | AJ32: =IF($D$4="N/A",$D$4,MIN(IF(AB18+RateInputs!$Q$6>=C18,0,SMALL(INDIRECT(CONCATENATE("K",MATCH(O18,$G$12:$G$8796,0)+11,":","K",MATCH(O19,$G$12:$G$8796,0)+10)),AB18+RateInputs!$Q$6))*1000+AF18,$AG18)) -> N/A | AK32: =IF($D$4="N/A",$D$4,MIN(IF(AC18+RateInputs!$Q$6>=D18,0,SMALL(INDIRECT(CONCATENATE("L",MATCH(O18,$G$12:$G$8796,0)+11,":","L",MATCH(O19,$G$12:$G$8796,0)+10)),AC18+RateInputs!$Q$6))*1000+AF18,$AG18)) -> N/A | AM32: N/A | AN32: 999
B33: Feb | C33: HLH | G33: =IF($D$4="N/A","",IF(HLOOKUP($G$11&$D$4,Look_Tbl!$C$6:$ST$8790,Look_Tbl!B28,FALSE)="","",HLOOKUP($G$11&$D$4,Look_Tbl!$C$6:$ST$8790,Look_Tbl!B28,FALSE))) ->  | I33: =IF($D$4="N/A",0,IF(G33="","",HLOOKUP($I$11&$D$4,Look_Tbl!$C$6:$ST$8790,Look_Tbl!B28,FALSE))) -> 0 | J33: =IF($D$4="N/A",0,IF(OR(ISBLANK(HLOOKUP($D$3,ResourceInputs!$3:$65536,ResourceInputs!E37)),HLOOKUP($D$3,ResourceInputs!$3:$65536,ResourceInputs!E37)="nonleap"),"",IF((HLOOKUP($D$3,ResourceInputs!$3:$65536,ResourceInputs!$E$16)="Scheduled"),MAX(ROUND(HLOOKUP($D$3,ResourceInputs!$3:$65536,ResourceInputs!E37),0),0),MAX(HLOOKUP($D$3,ResourceInputs!$3:$65536,ResourceInputs!E37),0)))) -> 0 | AJ33: =IF($D$4="N/A",$D$4,MIN(IF(AB19+RateInputs!$Q$6>=C19,0,SMALL(INDIRECT(CONCATENATE("K",MATCH(O19,$G$12:$G$8796,0)+11,":","K",MATCH(O20,$G$12:$G$8796,0)+10)),AB19+RateInputs!$Q$6))*1000+AF19,$AG19)) -> N/A | AK33: =IF($D$4="N/A",$D$4,MIN(IF(AC19+RateInputs!$Q$6>=D19,0,SMALL(INDIRECT(CONCATENATE("L",MATCH(O19,$G$12:$G$8796,0)+11,":","L",MATCH(O20,$G$12:$G$8796,0)+10)),AC19+RateInputs!$Q$6))*1000+AF19,$AG19)) -> N/A | AM33: N/A | AN33: 999
B34: Month | C34: HLH/LLH | G34: =IF($D$4="N/A","",IF(HLOOKUP($G$11&$D$4,Look_Tbl!$C$6:$ST$8790,Look_Tbl!B29,FALSE)="","",HLOOKUP($G$11&$D$4,Look_Tbl!$C$6:$ST$8790,Look_Tbl!B29,FALSE))) ->  | I34: =IF($D$4="N/A",0,IF(G34="","",HLOOKUP($I$11&$D$4,Look_Tbl!$C$6:$ST$8790,Look_Tbl!B29,FALSE))) -> 0 | J34: =IF($D$4="N/A",0,IF(OR(ISBLANK(HLOOKUP($D$3,ResourceInputs!$3:$65536,ResourceInputs!E38)),HLOOKUP($D$3,ResourceInputs!$3:$65536,ResourceInputs!E38)="nonleap"),"",IF((HLOOKUP($D$3,ResourceInputs!$3:$65536,ResourceInputs!$E$16)="Scheduled"),MAX(ROUND(HLOOKUP($D$3,ResourceInputs!$3:$65536,ResourceInputs!E38),0),0),MAX(HLOOKUP($D$3,ResourceInputs!$3:$65536,ResourceInputs!E38),0)))) -> 0 | AJ34: =IF($D$4="N/A",$D$4,MIN(IF(AB20+RateInputs!$Q$6>=C20,0,SMALL(INDIRECT(CONCATENATE("K",MATCH(O20,$G$12:$G$8796,0)+11,":","K",MATCH(O21,$G$12:$G$8796,0)+10)),AB20+RateInputs!$Q$6))*1000+AF20,$AG20)) -> N/A | AK34: =IF($D$4="N/A",$D$4,MIN(IF(AC20+RateInputs!$Q$6>=D20,0,SMALL(INDIRECT(CONCATENATE("L",MATCH(O20,$G$12:$G$8796,0)+11,":","L",MATCH(O21,$G$12:$G$8796,0)+10)),AC20+RateInputs!$Q$6))*1000+AF20,$AG20)) -> N/A | AM34: N/A | AN34: 999
B35: Mar | C35: HLH | G35: =IF($D$4="N/A","",IF(HLOOKUP($G$11&$D$4,Look_Tbl!$C$6:$ST$8790,Look_Tbl!B30,FALSE)="","",HLOOKUP($G$11&$D$4,Look_Tbl!$C$6:$ST$8790,Look_Tbl!B30,FALSE))) ->  | I35: =IF($D$4="N/A",0,IF(G35="","",HLOOKUP($I$11&$D$4,Look_Tbl!$C$6:$ST$8790,Look_Tbl!B30,FALSE))) -> 0 | J35: =IF($D$4="N/A",0,IF(OR(ISBLANK(HLOOKUP($D$3,ResourceInputs!$3:$65536,ResourceInputs!E39)),HLOOKUP($D$3,ResourceInputs!$3:$65536,ResourceInputs!E39)="nonleap"),"",IF((HLOOKUP($D$3,ResourceInputs!$3:$65536,ResourceInputs!$E$16)="Scheduled"),MAX(ROUND(HLOOKUP($D$3,ResourceInputs!$3:$65536,ResourceInputs!E39),0),0),MAX(HLOOKUP($D$3,ResourceInputs!$3:$65536,ResourceInputs!E39),0)))) -> 0 | AJ35: =IF($D$4="N/A",$D$4,MIN(IF(AB21+RateInputs!$Q$6>=C21,0,SMALL(INDIRECT(CONCATENATE("K",MATCH(O21,$G$12:$G$8796,0)+11,":","K",MATCH(O22,$G$12:$G$8796,0)+10)),AB21+RateInputs!$Q$6))*1000+AF21,$AG21)) -> N/A | AK35: =IF($D$4="N/A",$D$4,MIN(IF(AC21+RateInputs!$Q$6>=D21,0,SMALL(INDIRECT(CONCATENATE("L",MATCH(O21,$G$12:$G$8796,0)+11,":","L",MATCH(O22,$G$12:$G$8796,0)+10)),AC21+RateInputs!$Q$6))*1000+AF21,$AG21)) -> N/A | AM35: N/A | AN35: 999
B36: Month | C36: HLH/LLH | G36: =IF($D$4="N/A","",IF(HLOOKUP($G$11&$D$4,Look_Tbl!$C$6:$ST$8790,Look_Tbl!B31,FALSE)="","",HLOOKUP($G$11&$D$4,Look_Tbl!$C$6:$ST$8790,Look_Tbl!B31,FALSE))) ->  | I36: =IF($D$4="N/A",0,IF(G36="","",HLOOKUP($I$11&$D$4,Look_Tbl!$C$6:$ST$8790,Look_Tbl!B31,FALSE))) -> 0 | J36: =IF($D$4="N/A",0,IF(OR(ISBLANK(HLOOKUP($D$3,ResourceInputs!$3:$65536,ResourceInputs!E40)),HLOOKUP($D$3,ResourceInputs!$3:$65536,ResourceInputs!E40)="nonleap"),"",IF((HLOOKUP($D$3,ResourceInputs!$3:$65536,ResourceInputs!$E$16)="Scheduled"),MAX(ROUND(HLOOKUP($D$3,ResourceInputs!$3:$65536,ResourceInputs!E40),0),0),MAX(HLOOKUP($D$3,ResourceInputs!$3:$65536,ResourceInputs!E40),0)))) -> 0 | AJ36: =IF($D$4="N/A",$D$4,MIN(IF(AB22+RateInputs!$Q$6>=C22,0,SMALL(INDIRECT(CONCATENATE("K",MATCH(O22,$G$12:$G$8796,0)+11,":","K",MATCH(O23,$G$12:$G$8796,0)+10)),AB22+RateInputs!$Q$6))*1000+AF22,$AG22)) -> N/A | AK36: =IF($D$4="N/A",$D$4,MIN(IF(AC22+RateInputs!$Q$6>=D22,0,SMALL(INDIRECT(CONCATENATE("L",MATCH(O22,$G$12:$G$8796,0)+11,":","L",MATCH(O23,$G$12:$G$8796,0)+10)),AC22+RateInputs!$Q$6))*1000+AF22,$AG22)) -> N/A | AM36: N/A | AN36: 999
B37: Apr | C37: HLH | G37: =IF($D$4="N/A","",IF(HLOOKUP($G$11&$D$4,Look_Tbl!$C$6:$ST$8790,Look_Tbl!B32,FALSE)="","",HLOOKUP($G$11&$D$4,Look_Tbl!$C$6:$ST$8790,Look_Tbl!B32,FALSE))) ->  | I37: =IF($D$4="N/A",0,IF(G37="","",HLOOKUP($I$11&$D$4,Look_Tbl!$C$6:$ST$8790,Look_Tbl!B32,FALSE))) -> 0 | J37: =IF($D$4="N/A",0,IF(OR(ISBLANK(HLOOKUP($D$3,ResourceInputs!$3:$65536,ResourceInputs!E41)),HLOOKUP($D$3,ResourceInputs!$3:$65536,ResourceInputs!E41)="nonleap"),"",IF((HLOOKUP($D$3,ResourceInputs!$3:$65536,ResourceInputs!$E$16)="Scheduled"),MAX(ROUND(HLOOKUP($D$3,ResourceInputs!$3:$65536,ResourceInputs!E41),0),0),MAX(HLOOKUP($D$3,ResourceInputs!$3:$65536,ResourceInputs!E41),0)))) -> 0 | AJ37: =IF($D$4="N/A",$D$4,MIN(IF(AB23+RateInputs!$Q$6>=C23,0,SMALL(INDIRECT(CONCATENATE("K",MATCH(O23,$G$12:$G$8796,0)+11,":","K",MATCH(O24,$G$12:$G$8796,0)+10)),AB23+RateInputs!$Q$6))*1000+AF23,$AG23)) -> N/A | AK37: =IF($D$4="N/A",$D$4,MIN(IF(AC23+RateInputs!$Q$6>=D23,0,SMALL(INDIRECT(CONCATENATE("L",MATCH(O23,$G$12:$G$8796,0)+11,":","L",MATCH(O24,$G$12:$G$8796,0)+10)),AC23+RateInputs!$Q$6))*1000+AF23,$AG23)) -> N/A | AM37: N/A | AN37: 999
B38: Month | C38: HLH/LLH | G38: =IF($D$4="N/A","",IF(HLOOKUP($G$11&$D$4,Look_Tbl!$C$6:$ST$8790,Look_Tbl!B33,FALSE)="","",HLOOKUP($G$11&$D$4,Look_Tbl!$C$6:$ST$8790,Look_Tbl!B33,FALSE))) ->  | I38: =IF($D$4="N/A",0,IF(G38="","",HLOOKUP($I$11&$D$4,Look_Tbl!$C$6:$ST$8790,Look_Tbl!B33,FALSE))) -> 0 | J38: =IF($D$4="N/A",0,IF(OR(ISBLANK(HLOOKUP($D$3,ResourceInputs!$3:$65536,ResourceInputs!E42)),HLOOKUP($D$3,ResourceInputs!$3:$65536,ResourceInputs!E42)="nonleap"),"",IF((HLOOKUP($D$3,ResourceInputs!$3:$65536,ResourceInputs!$E$16)="Scheduled"),MAX(ROUND(HLOOKUP($D$3,ResourceInputs!$3:$65536,ResourceInputs!E42),0),0),MAX(HLOOKUP($D$3,ResourceInputs!$3:$65536,ResourceInputs!E42),0)))) -> 0
B39: May | C39: HLH | G39: =IF($D$4="N/A","",IF(HLOOKUP($G$11&$D$4,Look_Tbl!$C$6:$ST$8790,Look_Tbl!B34,FALSE)="","",HLOOKUP($G$11&$D$4,Look_Tbl!$C$6:$ST$8790,Look_Tbl!B34,FALSE))) ->  | I39: =IF($D$4="N/A",0,IF(G39="","",HLOOKUP($I$11&$D$4,Look_Tbl!$C$6:$ST$8790,Look_Tbl!B34,FALSE))) -> 0 | J39: =IF($D$4="N/A",0,IF(OR(ISBLANK(HLOOKUP($D$3,ResourceInputs!$3:$65536,ResourceInputs!E43)),HLOOKUP($D$3,ResourceInputs!$3:$65536,ResourceInputs!E43)="nonleap"),"",IF((HLOOKUP($D$3,ResourceInputs!$3:$65536,ResourceInputs!$E$16)="Scheduled"),MAX(ROUND(HLOOKUP($D$3,ResourceInputs!$3:$65536,ResourceInputs!E43),0),0),MAX(HLOOKUP($D$3,ResourceInputs!$3:$65536,ResourceInputs!E43),0)))) -> 0
B40: Month | C40: HLH/LLH | G40: =IF($D$4="N/A","",IF(HLOOKUP($G$11&$D$4,Look_Tbl!$C$6:$ST$8790,Look_Tbl!B35,FALSE)="","",HLOOKUP($G$11&$D$4,Look_Tbl!$C$6:$ST$8790,Look_Tbl!B35,FALSE))) ->  | I40: =IF($D$4="N/A",0,IF(G40="","",HLOOKUP($I$11&$D$4,Look_Tbl!$C$6:$ST$8790,Look_Tbl!B35,FALSE))) -> 0 | J40: =IF($D$4="N/A",0,IF(OR(ISBLANK(HLOOKUP($D$3,ResourceInputs!$3:$65536,ResourceInputs!E44)),HLOOKUP($D$3,ResourceInputs!$3:$65536,ResourceInputs!E44)="nonleap"),"",IF((HLOOKUP($D$3,ResourceInputs!$3:$65536,ResourceInputs!$E$16)="Scheduled"),MAX(ROUND(HLOOKUP($D$3,ResourceInputs!$3:$65536,ResourceInputs!E44),0),0),MAX(HLOOKUP($D$3,ResourceInputs!$3:$65536,ResourceInputs!E44),0)))) -> 0
B41: Jun | C41: HLH | G41: =IF($D$4="N/A","",IF(HLOOKUP($G$11&$D$4,Look_Tbl!$C$6:$ST$8790,Look_Tbl!B36,FALSE)="","",HLOOKUP($G$11&$D$4,Look_Tbl!$C$6:$ST$8790,Look_Tbl!B36,FALSE))) ->  | I41: =IF($D$4="N/A",0,IF(G41="","",HLOOKUP($I$11&$D$4,Look_Tbl!$C$6:$ST$8790,Look_Tbl!B36,FALSE))) -> 0 | J41: =IF($D$4="N/A",0,IF(OR(ISBLANK(HLOOKUP($D$3,ResourceInputs!$3:$65536,ResourceInputs!E45)),HLOOKUP($D$3,ResourceInputs!$3:$65536,ResourceInputs!E45)="nonleap"),"",IF((HLOOKUP($D$3,ResourceInputs!$3:$65536,ResourceInputs!$E$16)="Scheduled"),MAX(ROUND(HLOOKUP($D$3,ResourceInputs!$3:$65536,ResourceInputs!E45),0),0),MAX(HLOOKUP($D$3,ResourceInputs!$3:$65536,ResourceInputs!E45),0)))) -> 0 | AJ41: Capacity adjustments for Zero Op mins
B42: Month | C42: HLH/LLH | G42: =IF($D$4="N/A","",IF(HLOOKUP($G$11&$D$4,Look_Tbl!$C$6:$ST$8790,Look_Tbl!B37,FALSE)="","",HLOOKUP($G$11&$D$4,Look_Tbl!$C$6:$ST$8790,Look_Tbl!B37,FALSE))) ->  | I42: =IF($D$4="N/A",0,IF(G42="","",HLOOKUP($I$11&$D$4,Look_Tbl!$C$6:$ST$8790,Look_Tbl!B37,FALSE))) -> 0 | J42: =IF($D$4="N/A",0,IF(OR(ISBLANK(HLOOKUP($D$3,ResourceInputs!$3:$65536,ResourceInputs!E46)),HLOOKUP($D$3,ResourceInputs!$3:$65536,ResourceInputs!E46)="nonleap"),"",IF((HLOOKUP($D$3,ResourceInputs!$3:$65536,ResourceInputs!$E$16)="Scheduled"),MAX(ROUND(HLOOKUP($D$3,ResourceInputs!$3:$65536,ResourceInputs!E46),0),0),MAX(HLOOKUP($D$3,ResourceInputs!$3:$65536,ResourceInputs!E46),0)))) -> 0 | AJ42: =MAX(MAX(AM26:AN26)-999,0)*-1 -> 0 | AK42: =MAX(MAX(AM26:AN26)-999,0)*-1 -> 0
B43: Jul | C43: HLH | G43: =IF($D$4="N/A","",IF(HLOOKUP($G$11&$D$4,Look_Tbl!$C$6:$ST$8790,Look_Tbl!B38,FALSE)="","",HLOOKUP($G$11&$D$4,Look_Tbl!$C$6:$ST$8790,Look_Tbl!B38,FALSE))) ->  | I43: =IF($D$4="N/A",0,IF(G43="","",HLOOKUP($I$11&$D$4,Look_Tbl!$C$6:$ST$8790,Look_Tbl!B38,FALSE))) -> 0 | J43: =IF($D$4="N/A",0,IF(OR(ISBLANK(HLOOKUP($D$3,ResourceInputs!$3:$65536,ResourceInputs!E47)),HLOOKUP($D$3,ResourceInputs!$3:$65536,ResourceInputs!E47)="nonleap"),"",IF((HLOOKUP($D$3,ResourceInputs!$3:$65536,ResourceInputs!$E$16)="Scheduled"),MAX(ROUND(HLOOKUP($D$3,ResourceInputs!$3:$65536,ResourceInputs!E47),0),0),MAX(HLOOKUP($D$3,ResourceInputs!$3:$65536,ResourceInputs!E47),0)))) -> 0 | AH43: =AH12+$AJ$43 ->  | AI43: 0 | AJ43: =MAX(MAX(AM27:AN27)-999,0)*-1 -> 0 | AK43: =MAX(MAX(AM27:AN27)-999,0)*-1 -> 0
B44: Month | C44: HLH/LLH | G44: =IF($D$4="N/A","",IF(HLOOKUP($G$11&$D$4,Look_Tbl!$C$6:$ST$8790,Look_Tbl!B39,FALSE)="","",HLOOKUP($G$11&$D$4,Look_Tbl!$C$6:$ST$8790,Look_Tbl!B39,FALSE))) ->  | I44: =IF($D$4="N/A",0,IF(G44="","",HLOOKUP($I$11&$D$4,Look_Tbl!$C$6:$ST$8790,Look_Tbl!B39,FALSE))) -> 0 | J44: =IF($D$4="N/A",0,IF(OR(ISBLANK(HLOOKUP($D$3,ResourceInputs!$3:$65536,ResourceInputs!E48)),HLOOKUP($D$3,ResourceInputs!$3:$65536,ResourceInputs!E48)="nonleap"),"",IF((HLOOKUP($D$3,ResourceInputs!$3:$65536,ResourceInputs!$E$16)="Scheduled"),MAX(ROUND(HLOOKUP($D$3,ResourceInputs!$3:$65536,ResourceInputs!E48),0),0),MAX(HLOOKUP($D$3,ResourceInputs!$3:$65536,ResourceInputs!E48),0)))) -> 0 | AI44: 0 | AJ44: 0 | AK44: 0
B45: Aug | C45: HLH | G45: =IF($D$4="N/A","",IF(HLOOKUP($G$11&$D$4,Look_Tbl!$C$6:$ST$8790,Look_Tbl!B40,FALSE)="","",HLOOKUP($G$11&$D$4,Look_Tbl!$C$6:$ST$8790,Look_Tbl!B40,FALSE))) ->  | I45: =IF($D$4="N/A",0,IF(G45="","",HLOOKUP($I$11&$D$4,Look_Tbl!$C$6:$ST$8790,Look_Tbl!B40,FALSE))) -> 0 | J45: =IF($D$4="N/A",0,IF(OR(ISBLANK(HLOOKUP($D$3,ResourceInputs!$3:$65536,ResourceInputs!E49)),HLOOKUP($D$3,ResourceInputs!$3:$65536,ResourceInputs!E49)="nonleap"),"",IF((HLOOKUP($D$3,ResourceInputs!$3:$65536,ResourceInputs!$E$16)="Scheduled"),MAX(ROUND(HLOOKUP($D$3,ResourceInputs!$3:$65536,ResourceInputs!E49),0),0),MAX(HLOOKUP($D$3,ResourceInputs!$3:$65536,ResourceInputs!E49),0)))) -> 0 | AI45: 0 | AJ45: 0 | AK45: 0
B46: Month | C46: HLH/LLH | G46: =IF($D$4="N/A","",IF(HLOOKUP($G$11&$D$4,Look_Tbl!$C$6:$ST$8790,Look_Tbl!B41,FALSE)="","",HLOOKUP($G$11&$D$4,Look_Tbl!$C$6:$ST$8790,Look_Tbl!B41,FALSE))) ->  | I46: =IF($D$4="N/A",0,IF(G46="","",HLOOKUP($I$11&$D$4,Look_Tbl!$C$6:$ST$8790,Look_Tbl!B41,FALSE))) -> 0 | J46: =IF($D$4="N/A",0,IF(OR(ISBLANK(HLOOKUP($D$3,ResourceInputs!$3:$65536,ResourceInputs!E50)),HLOOKUP($D$3,ResourceInputs!$3:$65536,ResourceInputs!E50)="nonleap"),"",IF((HLOOKUP($D$3,ResourceInputs!$3:$65536,ResourceInputs!$E$16)="Scheduled"),MAX(ROUND(HLOOKUP($D$3,ResourceInputs!$3:$65536,ResourceInputs!E50),0),0),MAX(HLOOKUP($D$3,ResourceInputs!$3:$65536,ResourceInputs!E50),0)))) -> 0 | AH46: =AH15+$AJ$43 ->  | AI46: 0 | AJ46: 0 | AK46: 0
B47: Sep | C47: HLH | G47: =IF($D$4="N/A","",IF(HLOOKUP($G$11&$D$4,Look_Tbl!$C$6:$ST$8790,Look_Tbl!B42,FALSE)="","",HLOOKUP($G$11&$D$4,Look_Tbl!$C$6:$ST$8790,Look_Tbl!B42,FALSE))) ->  | I47: =IF($D$4="N/A",0,IF(G47="","",HLOOKUP($I$11&$D$4,Look_Tbl!$C$6:$ST$8790,Look_Tbl!B42,FALSE))) -> 0 | J47: =IF($D$4="N/A",0,IF(OR(ISBLANK(HLOOKUP($D$3,ResourceInputs!$3:$65536,ResourceInputs!E51)),HLOOKUP($D$3,ResourceInputs!$3:$65536,ResourceInputs!E51)="nonleap"),"",IF((HLOOKUP($D$3,ResourceInputs!$3:$65536,ResourceInputs!$E$16)="Scheduled"),MAX(ROUND(HLOOKUP($D$3,ResourceInputs!$3:$65536,ResourceInputs!E51),0),0),MAX(HLOOKUP($D$3,ResourceInputs!$3:$65536,ResourceInputs!E51),0)))) -> 0 | AH47: =AH16+$AJ$43 ->  | AI47: 0 | AJ47: 0 | AK47: 0
G48: =IF($D$4="N/A","",IF(HLOOKUP($G$11&$D$4,Look_Tbl!$C$6:$ST$8790,Look_Tbl!B43,FALSE)="","",HLOOKUP($G$11&$D$4,Look_Tbl!$C$6:$ST$8790,Look_Tbl!B43,FALSE))) ->  | I48: =IF($D$4="N/A",0,IF(G48="","",HLOOKUP($I$11&$D$4,Look_Tbl!$C$6:$ST$8790,Look_Tbl!B43,FALSE))) -> 0 | J48: =IF($D$4="N/A",0,IF(OR(ISBLANK(HLOOKUP($D$3,ResourceInputs!$3:$65536,ResourceInputs!E52)),HLOOKUP($D$3,ResourceInputs!$3:$65536,ResourceInputs!E52)="nonleap"),"",IF((HLOOKUP($D$3,ResourceInputs!$3:$65536,ResourceInputs!$E$16)="Scheduled"),MAX(ROUND(HLOOKUP($D$3,ResourceInputs!$3:$65536,ResourceInputs!E52),0),0),MAX(HLOOKUP($D$3,ResourceInputs!$3:$65536,ResourceInputs!E52),0)))) -> 0 | AI48: 0 | AJ48: 0 | AK48: 0
G49: =IF($D$4="N/A","",IF(HLOOKUP($G$11&$D$4,Look_Tbl!$C$6:$ST$8790,Look_Tbl!B44,FALSE)="","",HLOOKUP($G$11&$D$4,Look_Tbl!$C$6:$ST$8790,Look_Tbl!B44,FALSE))) ->  | I49: =IF($D$4="N/A",0,IF(G49="","",HLOOKUP($I$11&$D$4,Look_Tbl!$C$6:$ST$8790,Look_Tbl!B44,FALSE))) -> 0 | J49: =IF($D$4="N/A",0,IF(OR(ISBLANK(HLOOKUP($D$3,ResourceInputs!$3:$65536,ResourceInputs!E53)),HLOOKUP($D$3,ResourceInputs!$3:$65536,ResourceInputs!E53)="nonleap"),"",IF((HLOOKUP($D$3,ResourceInputs!$3:$65536,ResourceInputs!$E$16)="Scheduled"),MAX(ROUND(HLOOKUP($D$3,ResourceInputs!$3:$65536,ResourceInputs!E53),0),0),MAX(HLOOKUP($D$3,ResourceInputs!$3:$65536,ResourceInputs!E53),0)))) -> 0 | AI49: 0 | AJ49: 0 | AK49: 0
G50: =IF($D$4="N/A","",IF(HLOOKUP($G$11&$D$4,Look_Tbl!$C$6:$ST$8790,Look_Tbl!B45,FALSE)="","",HLOOKUP($G$11&$D$4,Look_Tbl!$C$6:$ST$8790,Look_Tbl!B45,FALSE))) ->  | I50: =IF($D$4="N/A",0,IF(G50="","",HLOOKUP($I$11&$D$4,Look_Tbl!$C$6:$ST$8790,Look_Tbl!B45,FALSE))) -> 0 | J50: =IF($D$4="N/A",0,IF(OR(ISBLANK(HLOOKUP($D$3,ResourceInputs!$3:$65536,ResourceInputs!E54)),HLOOKUP($D$3,ResourceInputs!$3:$65536,ResourceInputs!E54)="nonleap"),"",IF((HLOOKUP($D$3,ResourceInputs!$3:$65536,ResourceInputs!$E$16)="Scheduled"),MAX(ROUND(HLOOKUP($D$3,ResourceInputs!$3:$65536,ResourceInputs!E54),0),0),MAX(HLOOKUP($D$3,ResourceInputs!$3:$65536,ResourceInputs!E54),0)))) -> 0 | AI50: 0 | AJ50: 0 | AK50: 0
G51: =IF($D$4="N/A","",IF(HLOOKUP($G$11&$D$4,Look_Tbl!$C$6:$ST$8790,Look_Tbl!B46,FALSE)="","",HLOOKUP($G$11&$D$4,Look_Tbl!$C$6:$ST$8790,Look_Tbl!B46,FALSE))) ->  | I51: =IF($D$4="N/A",0,IF(G51="","",HLOOKUP($I$11&$D$4,Look_Tbl!$C$6:$ST$8790,Look_Tbl!B46,FALSE))) -> 0 | J51: =IF($D$4="N/A",0,IF(OR(ISBLANK(HLOOKUP($D$3,ResourceInputs!$3:$65536,ResourceInputs!E55)),HLOOKUP($D$3,ResourceInputs!$3:$65536,ResourceInputs!E55)="nonleap"),"",IF((HLOOKUP($D$3,ResourceInputs!$3:$65536,ResourceInputs!$E$16)="Scheduled"),MAX(ROUND(HLOOKUP($D$3,ResourceInputs!$3:$65536,ResourceInputs!E55),0),0),MAX(HLOOKUP($D$3,ResourceInputs!$3:$65536,ResourceInputs!E55),0)))) -> 0 | AI51: 0 | AJ51: 0 | AK51: 0
G52: =IF($D$4="N/A","",IF(HLOOKUP($G$11&$D$4,Look_Tbl!$C$6:$ST$8790,Look_Tbl!B47,FALSE)="","",HLOOKUP($G$11&$D$4,Look_Tbl!$C$6:$ST$8790,Look_Tbl!B47,FALSE))) ->  | I52: =IF($D$4="N/A",0,IF(G52="","",HLOOKUP($I$11&$D$4,Look_Tbl!$C$6:$ST$8790,Look_Tbl!B47,FALSE))) -> 0 | J52: =IF($D$4="N/A",0,IF(OR(ISBLANK(HLOOKUP($D$3,ResourceInputs!$3:$65536,ResourceInputs!E56)),HLOOKUP($D$3,ResourceInputs!$3:$65536,ResourceInputs!E56)="nonleap"),"",IF((HLOOKUP($D$3,ResourceInputs!$3:$65536,ResourceInputs!$E$16)="Scheduled"),MAX(ROUND(HLOOKUP($D$3,ResourceInputs!$3:$65536,ResourceInputs!E56),0),0),MAX(HLOOKUP($D$3,ResourceInputs!$3:$65536,ResourceInputs!E56),0)))) -> 0 | AI52: 0 | AJ52: 0 | AK52: 0
G53: =IF($D$4="N/A","",IF(HLOOKUP($G$11&$D$4,Look_Tbl!$C$6:$ST$8790,Look_Tbl!B48,FALSE)="","",HLOOKUP($G$11&$D$4,Look_Tbl!$C$6:$ST$8790,Look_Tbl!B48,FALSE))) ->  | I53: =IF($D$4="N/A",0,IF(G53="","",HLOOKUP($I$11&$D$4,Look_Tbl!$C$6:$ST$8790,Look_Tbl!B48,FALSE))) -> 0 | J53: =IF($D$4="N/A",0,IF(OR(ISBLANK(HLOOKUP($D$3,ResourceInputs!$3:$65536,ResourceInputs!E57)),HLOOKUP($D$3,ResourceInputs!$3:$65536,ResourceInputs!E57)="nonleap"),"",IF((HLOOKUP($D$3,ResourceInputs!$3:$65536,ResourceInputs!$E$16)="Scheduled"),MAX(ROUND(HLOOKUP($D$3,ResourceInputs!$3:$65536,ResourceInputs!E57),0),0),MAX(HLOOKUP($D$3,ResourceInputs!$3:$65536,ResourceInputs!E57),0)))) -> 0 | AI53: 0 | AJ53: 0 | AK53: 0
G54: =IF($D$4="N/A","",IF(HLOOKUP($G$11&$D$4,Look_Tbl!$C$6:$ST$8790,Look_Tbl!B49,FALSE)="","",HLOOKUP($G$11&$D$4,Look_Tbl!$C$6:$ST$8790,Look_Tbl!B49,FALSE))) ->  | I54: =IF($D$4="N/A",0,IF(G54="","",HLOOKUP($I$11&$D$4,Look_Tbl!$C$6:$ST$8790,Look_Tbl!B49,FALSE))) -> 0 | J54: =IF($D$4="N/A",0,IF(OR(ISBLANK(HLOOKUP($D$3,ResourceInputs!$3:$65536,ResourceInputs!E58)),HLOOKUP($D$3,ResourceInputs!$3:$65536,ResourceInputs!E58)="nonleap"),"",IF((HLOOKUP($D$3,ResourceInputs!$3:$65536,ResourceInputs!$E$16)="Scheduled"),MAX(ROUND(HLOOKUP($D$3,ResourceInputs!$3:$65536,ResourceInputs!E58),0),0),MAX(HLOOKUP($D$3,ResourceInputs!$3:$65536,ResourceInputs!E58),0)))) -> 0
G55: =IF($D$4="N/A","",IF(HLOOKUP($G$11&$D$4,Look_Tbl!$C$6:$ST$8790,Look_Tbl!B50,FALSE)="","",HLOOKUP($G$11&$D$4,Look_Tbl!$C$6:$ST$8790,Look_Tbl!B50,FALSE))) ->  | I55: =IF($D$4="N/A",0,IF(G55="","",HLOOKUP($I$11&$D$4,Look_Tbl!$C$6:$ST$8790,Look_Tbl!B50,FALSE))) -> 0 | J55: =IF($D$4="N/A",0,IF(OR(ISBLANK(HLOOKUP($D$3,ResourceInputs!$3:$65536,ResourceInputs!E59)),HLOOKUP($D$3,ResourceInputs!$3:$65536,ResourceInputs!E59)="nonleap"),"",IF((HLOOKUP($D$3,ResourceInputs!$3:$65536,ResourceInputs!$E$16)="Scheduled"),MAX(ROUND(HLOOKUP($D$3,ResourceInputs!$3:$65536,ResourceInputs!E59),0),0),MAX(HLOOKUP($D$3,ResourceInputs!$3:$65536,ResourceInputs!E59),0)))) -> 0 | AP55: entry list
G56: =IF($D$4="N/A","",IF(HLOOKUP($G$11&$D$4,Look_Tbl!$C$6:$ST$8790,Look_Tbl!B51,FALSE)="","",HLOOKUP($G$11&$D$4,Look_Tbl!$C$6:$ST$8790,Look_Tbl!B51,FALSE))) ->  | I56: =IF($D$4="N/A",0,IF(G56="","",HLOOKUP($I$11&$D$4,Look_Tbl!$C$6:$ST$8790,Look_Tbl!B51,FALSE))) -> 0 | J56: =IF($D$4="N/A",0,IF(OR(ISBLANK(HLOOKUP($D$3,ResourceInputs!$3:$65536,ResourceInputs!E60)),HLOOKUP($D$3,ResourceInputs!$3:$65536,ResourceInputs!E60)="nonleap"),"",IF((HLOOKUP($D$3,ResourceInputs!$3:$65536,ResourceInputs!$E$16)="Scheduled"),MAX(ROUND(HLOOKUP($D$3,ResourceInputs!$3:$65536,ResourceInputs!E60),0),0),MAX(HLOOKUP($D$3,ResourceInputs!$3:$65536,ResourceInputs!E60),0)))) -> 0 | AP56: 0
G57: =IF($D$4="N/A","",IF(HLOOKUP($G$11&$D$4,Look_Tbl!$C$6:$ST$8790,Look_Tbl!B52,FALSE)="","",HLOOKUP($G$11&$D$4,Look_Tbl!$C$6:$ST$8790,Look_Tbl!B52,FALSE))) ->  | I57: =IF($D$4="N/A",0,IF(G57="","",HLOOKUP($I$11&$D$4,Look_Tbl!$C$6:$ST$8790,Look_Tbl!B52,FALSE))) -> 0 | J57: =IF($D$4="N/A",0,IF(OR(ISBLANK(HLOOKUP($D$3,ResourceInputs!$3:$65536,ResourceInputs!E61)),HLOOKUP($D$3,ResourceInputs!$3:$65536,ResourceInputs!E61)="nonleap"),"",IF((HLOOKUP($D$3,ResourceInputs!$3:$65536,ResourceInputs!$E$16)="Scheduled"),MAX(ROUND(HLOOKUP($D$3,ResourceInputs!$3:$65536,ResourceInputs!E61),0),0),MAX(HLOOKUP($D$3,ResourceInputs!$3:$65536,ResourceInputs!E61),0)))) -> 0 | AP57: 1
G58: =IF($D$4="N/A","",IF(HLOOKUP($G$11&$D$4,Look_Tbl!$C$6:$ST$8790,Look_Tbl!B53,FALSE)="","",HLOOKUP($G$11&$D$4,Look_Tbl!$C$6:$ST$8790,Look_Tbl!B53,FALSE))) ->  | I58: =IF($D$4="N/A",0,IF(G58="","",HLOOKUP($I$11&$D$4,Look_Tbl!$C$6:$ST$8790,Look_Tbl!B53,FALSE))) -> 0 | J58: =IF($D$4="N/A",0,IF(OR(ISBLANK(HLOOKUP($D$3,ResourceInputs!$3:$65536,ResourceInputs!E62)),HLOOKUP($D$3,ResourceInputs!$3:$65536,ResourceInputs!E62)="nonleap"),"",IF((HLOOKUP($D$3,ResourceInputs!$3:$65536,ResourceInputs!$E$16)="Scheduled"),MAX(ROUND(HLOOKUP($D$3,ResourceInputs!$3:$65536,ResourceInputs!E62),0),0),MAX(HLOOKUP($D$3,ResourceInputs!$3:$65536,ResourceInputs!E62),0)))) -> 0
G59: =IF($D$4="N/A","",IF(HLOOKUP($G$11&$D$4,Look_Tbl!$C$6:$ST$8790,Look_Tbl!B54,FALSE)="","",HLOOKUP($G$11&$D$4,Look_Tbl!$C$6:$ST$8790,Look_Tbl!B54,FALSE))) ->  | I59: =IF($D$4="N/A",0,IF(G59="","",HLOOKUP($I$11&$D$4,Look_Tbl!$C$6:$ST$8790,Look_Tbl!B54,FALSE))) -> 0 | J59: =IF($D$4="N/A",0,IF(OR(ISBLANK(HLOOKUP($D$3,ResourceInputs!$3:$65536,ResourceInputs!E63)),HLOOKUP($D$3,ResourceInputs!$3:$65536,ResourceInputs!E63)="nonleap"),"",IF((HLOOKUP($D$3,ResourceInputs!$3:$65536,ResourceInputs!$E$16)="Scheduled"),MAX(ROUND(HLOOKUP($D$3,ResourceInputs!$3:$65536,ResourceInputs!E63),0),0),MAX(HLOOKUP($D$3,ResourceInputs!$3:$65536,ResourceInputs!E63),0)))) -> 0
G60: =IF($D$4="N/A","",IF(HLOOKUP($G$11&$D$4,Look_Tbl!$C$6:$ST$8790,Look_Tbl!B55,FALSE)="","",HLOOKUP($G$11&$D$4,Look_Tbl!$C$6:$ST$8790,Look_Tbl!B55,FALSE))) ->  | H60: =IF($D$4="N/A","",IF(G60="","",$D$4)) ->  | I60: =IF($D$4="N/A",0,IF(G60="","",HLOOKUP($I$11&$D$4,Look_Tbl!$C$6:$ST$8790,Look_Tbl!B55,FALSE))) -> 0 | J60: =IF($D$4="N/A",0,IF(OR(ISBLANK(HLOOKUP($D$3,ResourceInputs!$3:$65536,ResourceInputs!E64)),HLOOKUP($D$3,ResourceInputs!$3:$65536,ResourceInputs!E64)="nonleap"),"",IF((HLOOKUP($D$3,ResourceInputs!$3:$65536,ResourceInputs!$E$16)="Scheduled"),MAX(ROUND(HLOOKUP($D$3,ResourceInputs!$3:$65536,ResourceInputs!E64),0),0),MAX(HLOOKUP($D$3,ResourceInputs!$3:$65536,ResourceInputs!E64),0)))) -> 0
G61: =IF($D$4="N/A","",IF(HLOOKUP($G$11&$D$4,Look_Tbl!$C$6:$ST$8790,Look_Tbl!B56,FALSE)="","",HLOOKUP($G$11&$D$4,Look_Tbl!$C$6:$ST$8790,Look_Tbl!B56,FALSE))) ->  | I61: =IF($D$4="N/A",0,IF(G61="","",HLOOKUP($I$11&$D$4,Look_Tbl!$C$6:$ST$8790,Look_Tbl!B56,FALSE))) -> 0 | J61: =IF($D$4="N/A",0,IF(OR(ISBLANK(HLOOKUP($D$3,ResourceInputs!$3:$65536,ResourceInputs!E65)),HLOOKUP($D$3,ResourceInputs!$3:$65536,ResourceInputs!E65)="nonleap"),"",IF((HLOOKUP($D$3,ResourceInputs!$3:$65536,ResourceInputs!$E$16)="Scheduled"),MAX(ROUND(HLOOKUP($D$3,ResourceInputs!$3:$65536,ResourceInputs!E65),0),0),MAX(HLOOKUP($D$3,ResourceInputs!$3:$65536,ResourceInputs!E65),0)))) -> 0 | AG61: 1 | AH61: 2
G62: =IF($D$4="N/A","",IF(HLOOKUP($G$11&$D$4,Look_Tbl!$C$6:$ST$8790,Look_Tbl!B57,FALSE)="","",HLOOKUP($G$11&$D$4,Look_Tbl!$C$6:$ST$8790,Look_Tbl!B57,FALSE))) ->  | I62: =IF($D$4="N/A",0,IF(G62="","",HLOOKUP($I$11&$D$4,Look_Tbl!$C$6:$ST$8790,Look_Tbl!B57,FALSE))) -> 0 | J62: =IF($D$4="N/A",0,IF(OR(ISBLANK(HLOOKUP($D$3,ResourceInputs!$3:$65536,ResourceInputs!E66)),HLOOKUP($D$3,ResourceInputs!$3:$65536,ResourceInputs!E66)="nonleap"),"",IF((HLOOKUP($D$3,ResourceInputs!$3:$65536,ResourceInputs!$E$16)="Scheduled"),MAX(ROUND(HLOOKUP($D$3,ResourceInputs!$3:$65536,ResourceInputs!E66),0),0),MAX(HLOOKUP($D$3,ResourceInputs!$3:$65536,ResourceInputs!E66),0)))) -> 0 | AG62: -1694 | AH62: -1694 | AI62: =AH62+AG62 -> -3388
G63: =IF($D$4="N/A","",IF(HLOOKUP($G$11&$D$4,Look_Tbl!$C$6:$ST$8790,Look_Tbl!B58,FALSE)="","",HLOOKUP($G$11&$D$4,Look_Tbl!$C$6:$ST$8790,Look_Tbl!B58,FALSE))) ->  | I63: =IF($D$4="N/A",0,IF(G63="","",HLOOKUP($I$11&$D$4,Look_Tbl!$C$6:$ST$8790,Look_Tbl!B58,FALSE))) -> 0 | J63: =IF($D$4="N/A",0,IF(OR(ISBLANK(HLOOKUP($D$3,ResourceInputs!$3:$65536,ResourceInputs!E67)),HLOOKUP($D$3,ResourceInputs!$3:$65536,ResourceInputs!E67)="nonleap"),"",IF((HLOOKUP($D$3,ResourceInputs!$3:$65536,ResourceInputs!$E$16)="Scheduled"),MAX(ROUND(HLOOKUP($D$3,ResourceInputs!$3:$65536,ResourceInputs!E67),0),0),MAX(HLOOKUP($D$3,ResourceInputs!$3:$65536,ResourceInputs!E67),0)))) -> 0 | AG63: 0 | AH63: 0 | AI63: =AH63+AG63 -> 0
G64: =IF($D$4="N/A","",IF(HLOOKUP($G$11&$D$4,Look_Tbl!$C$6:$ST$8790,Look_Tbl!B59,FALSE)="","",HLOOKUP($G$11&$D$4,Look_Tbl!$C$6:$ST$8790,Look_Tbl!B59,FALSE))) ->  | I64: =IF($D$4="N/A",0,IF(G64="","",HLOOKUP($I$11&$D$4,Look_Tbl!$C$6:$ST$8790,Look_Tbl!B59,FALSE))) -> 0 | J64: =IF($D$4="N/A",0,IF(OR(ISBLANK(HLOOKUP($D$3,ResourceInputs!$3:$65536,ResourceInputs!E68)),HLOOKUP($D$3,ResourceInputs!$3:$65536,ResourceInputs!E68)="nonleap"),"",IF((HLOOKUP($D$3,ResourceInputs!$3:$65536,ResourceInputs!$E$16)="Scheduled"),MAX(ROUND(HLOOKUP($D$3,ResourceInputs!$3:$65536,ResourceInputs!E68),0),0),MAX(HLOOKUP($D$3,ResourceInputs!$3:$65536,ResourceInputs!E68),0)))) -> 0 | AG64: 0 | AH64: 0 | AI64: 0
G65: =IF($D$4="N/A","",IF(HLOOKUP($G$11&$D$4,Look_Tbl!$C$6:$ST$8790,Look_Tbl!B60,FALSE)="","",HLOOKUP($G$11&$D$4,Look_Tbl!$C$6:$ST$8790,Look_Tbl!B60,FALSE))) ->  | I65: =IF($D$4="N/A",0,IF(G65="","",HLOOKUP($I$11&$D$4,Look_Tbl!$C$6:$ST$8790,Look_Tbl!B60,FALSE))) -> 0 | J65: =IF($D$4="N/A",0,IF(OR(ISBLANK(HLOOKUP($D$3,ResourceInputs!$3:$65536,ResourceInputs!E69)),HLOOKUP($D$3,ResourceInputs!$3:$65536,ResourceInputs!E69)="nonleap"),"",IF((HLOOKUP($D$3,ResourceInputs!$3:$65536,ResourceInputs!$E$16)="Scheduled"),MAX(ROUND(HLOOKUP($D$3,ResourceInputs!$3:$65536,ResourceInputs!E69),0),0),MAX(HLOOKUP($D$3,ResourceInputs!$3:$65536,ResourceInputs!E69),0)))) -> 0 | AG65: -1725.5 | AH65: -1725.5 | AI65: -3451
G66: =IF($D$4="N/A","",IF(HLOOKUP($G$11&$D$4,Look_Tbl!$C$6:$ST$8790,Look_Tbl!B61,FALSE)="","",HLOOKUP($G$11&$D$4,Look_Tbl!$C$6:$ST$8790,Look_Tbl!B61,FALSE))) ->  | I66: =IF($D$4="N/A",0,IF(G66="","",HLOOKUP($I$11&$D$4,Look_Tbl!$C$6:$ST$8790,Look_Tbl!B61,FALSE))) -> 0 | J66: =IF($D$4="N/A",0,IF(OR(ISBLANK(HLOOKUP($D$3,ResourceInputs!$3:$65536,ResourceInputs!E70)),HLOOKUP($D$3,ResourceInputs!$3:$65536,ResourceInputs!E70)="nonleap"),"",IF((HLOOKUP($D$3,ResourceInputs!$3:$65536,ResourceInputs!$E$16)="Scheduled"),MAX(ROUND(HLOOKUP($D$3,ResourceInputs!$3:$65536,ResourceInputs!E70),0),0),MAX(HLOOKUP($D$3,ResourceInputs!$3:$65536,ResourceInputs!E70),0)))) -> 0 | AG66: 0 | AH66: 0 | AI66: 0
G67: =IF($D$4="N/A","",IF(HLOOKUP($G$11&$D$4,Look_Tbl!$C$6:$ST$8790,Look_Tbl!B62,FALSE)="","",HLOOKUP($G$11&$D$4,Look_Tbl!$C$6:$ST$8790,Look_Tbl!B62,FALSE))) ->  | I67: =IF($D$4="N/A",0,IF(G67="","",HLOOKUP($I$11&$D$4,Look_Tbl!$C$6:$ST$8790,Look_Tbl!B62,FALSE))) -> 0 | J67: =IF($D$4="N/A",0,IF(OR(ISBLANK(HLOOKUP($D$3,ResourceInputs!$3:$65536,ResourceInputs!E71)),HLOOKUP($D$3,ResourceInputs!$3:$65536,ResourceInputs!E71)="nonleap"),"",IF((HLOOKUP($D$3,ResourceInputs!$3:$65536,ResourceInputs!$E$16)="Scheduled"),MAX(ROUND(HLOOKUP($D$3,ResourceInputs!$3:$65536,ResourceInputs!E71),0),0),MAX(HLOOKUP($D$3,ResourceInputs!$3:$65536,ResourceInputs!E71),0)))) -> 0 | AG67: 0 | AH67: 0 | AI67: 0
G68: =IF($D$4="N/A","",IF(HLOOKUP($G$11&$D$4,Look_Tbl!$C$6:$ST$8790,Look_Tbl!B63,FALSE)="","",HLOOKUP($G$11&$D$4,Look_Tbl!$C$6:$ST$8790,Look_Tbl!B63,FALSE))) ->  | I68: =IF($D$4="N/A",0,IF(G68="","",HLOOKUP($I$11&$D$4,Look_Tbl!$C$6:$ST$8790,Look_Tbl!B63,FALSE))) -> 0 | J68: =IF($D$4="N/A",0,IF(OR(ISBLANK(HLOOKUP($D$3,ResourceInputs!$3:$65536,ResourceInputs!E72)),HLOOKUP($D$3,ResourceInputs!$3:$65536,ResourceInputs!E72)="nonleap"),"",IF((HLOOKUP($D$3,ResourceInputs!$3:$65536,ResourceInputs!$E$16)="Scheduled"),MAX(ROUND(HLOOKUP($D$3,ResourceInputs!$3:$65536,ResourceInputs!E72),0),0),MAX(HLOOKUP($D$3,ResourceInputs!$3:$65536,ResourceInputs!E72),0)))) -> 0 | AG68: -1659.5 | AH68: -1659.5 | AI68: -3319
G69: =IF($D$4="N/A","",IF(HLOOKUP($G$11&$D$4,Look_Tbl!$C$6:$ST$8790,Look_Tbl!B64,FALSE)="","",HLOOKUP($G$11&$D$4,Look_Tbl!$C$6:$ST$8790,Look_Tbl!B64,FALSE))) ->  | I69: =IF($D$4="N/A",0,IF(G69="","",HLOOKUP($I$11&$D$4,Look_Tbl!$C$6:$ST$8790,Look_Tbl!B64,FALSE))) -> 0 | J69: =IF($D$4="N/A",0,IF(OR(ISBLANK(HLOOKUP($D$3,ResourceInputs!$3:$65536,ResourceInputs!E73)),HLOOKUP($D$3,ResourceInputs!$3:$65536,ResourceInputs!E73)="nonleap"),"",IF((HLOOKUP($D$3,ResourceInputs!$3:$65536,ResourceInputs!$E$16)="Scheduled"),MAX(ROUND(HLOOKUP($D$3,ResourceInputs!$3:$65536,ResourceInputs!E73),0),0),MAX(HLOOKUP($D$3,ResourceInputs!$3:$65536,ResourceInputs!E73),0)))) -> 0 | AG69: -760 | AH69: -760 | AI69: -1520
G70: =IF($D$4="N/A","",IF(HLOOKUP($G$11&$D$4,Look_Tbl!$C$6:$ST$8790,Look_Tbl!B65,FALSE)="","",HLOOKUP($G$11&$D$4,Look_Tbl!$C$6:$ST$8790,Look_Tbl!B65,FALSE))) ->  | I70: =IF($D$4="N/A",0,IF(G70="","",HLOOKUP($I$11&$D$4,Look_Tbl!$C$6:$ST$8790,Look_Tbl!B65,FALSE))) -> 0 | J70: =IF($D$4="N/A",0,IF(OR(ISBLANK(HLOOKUP($D$3,ResourceInputs!$3:$65536,ResourceInputs!E74)),HLOOKUP($D$3,ResourceInputs!$3:$65536,ResourceInputs!E74)="nonleap"),"",IF((HLOOKUP($D$3,ResourceInputs!$3:$65536,ResourceInputs!$E$16)="Scheduled"),MAX(ROUND(HLOOKUP($D$3,ResourceInputs!$3:$65536,ResourceInputs!E74),0),0),MAX(HLOOKUP($D$3,ResourceInputs!$3:$65536,ResourceInputs!E74),0)))) -> 0 | AG70: 0 | AH70: 0 | AI70: 0
G71: =IF($D$4="N/A","",IF(HLOOKUP($G$11&$D$4,Look_Tbl!$C$6:$ST$8790,Look_Tbl!B66,FALSE)="","",HLOOKUP($G$11&$D$4,Look_Tbl!$C$6:$ST$8790,Look_Tbl!B66,FALSE))) ->  | I71: =IF($D$4="N/A",0,IF(G71="","",HLOOKUP($I$11&$D$4,Look_Tbl!$C$6:$ST$8790,Look_Tbl!B66,FALSE))) -> 0 | J71: =IF($D$4="N/A",0,IF(OR(ISBLANK(HLOOKUP($D$3,ResourceInputs!$3:$65536,ResourceInputs!E75)),HLOOKUP($D$3,ResourceInputs!$3:$65536,ResourceInputs!E75)="nonleap"),"",IF((HLOOKUP($D$3,ResourceInputs!$3:$65536,ResourceInputs!$E$16)="Scheduled"),MAX(ROUND(HLOOKUP($D$3,ResourceInputs!$3:$65536,ResourceInputs!E75),0),0),MAX(HLOOKUP($D$3,ResourceInputs!$3:$65536,ResourceInputs!E75),0)))) -> 0 | AG71: -386.5 | AH71: -386.5 | AI71: -773
G72: =IF($D$4="N/A","",IF(HLOOKUP($G$11&$D$4,Look_Tbl!$C$6:$ST$8790,Look_Tbl!B67,FALSE)="","",HLOOKUP($G$11&$D$4,Look_Tbl!$C$6:$ST$8790,Look_Tbl!B67,FALSE))) ->  | I72: =IF($D$4="N/A",0,IF(G72="","",HLOOKUP($I$11&$D$4,Look_Tbl!$C$6:$ST$8790,Look_Tbl!B67,FALSE))) -> 0 | J72: =IF($D$4="N/A",0,IF(OR(ISBLANK(HLOOKUP($D$3,ResourceInputs!$3:$65536,ResourceInputs!E76)),HLOOKUP($D$3,ResourceInputs!$3:$65536,ResourceInputs!E76)="nonleap"),"",IF((HLOOKUP($D$3,ResourceInputs!$3:$65536,ResourceInputs!$E$16)="Scheduled"),MAX(ROUND(HLOOKUP($D$3,ResourceInputs!$3:$65536,ResourceInputs!E76),0),0),MAX(HLOOKUP($D$3,ResourceInputs!$3:$65536,ResourceInputs!E76),0)))) -> 0 | AG72: 0 | AH72: 0 | AI72: 0
G73: =IF($D$4="N/A","",IF(HLOOKUP($G$11&$D$4,Look_Tbl!$C$6:$ST$8790,Look_Tbl!B68,FALSE)="","",HLOOKUP($G$11&$D$4,Look_Tbl!$C$6:$ST$8790,Look_Tbl!B68,FALSE))) ->  | I73: =IF($D$4="N/A",0,IF(G73="","",HLOOKUP($I$11&$D$4,Look_Tbl!$C$6:$ST$8790,Look_Tbl!B68,FALSE))) -> 0 | J73: =IF($D$4="N/A",0,IF(OR(ISBLANK(HLOOKUP($D$3,ResourceInputs!$3:$65536,ResourceInputs!E77)),HLOOKUP($D$3,ResourceInputs!$3:$65536,ResourceInputs!E77)="nonleap"),"",IF((HLOOKUP($D$3,ResourceInputs!$3:$65536,ResourceInputs!$E$16)="Scheduled"),MAX(ROUND(HLOOKUP($D$3,ResourceInputs!$3:$65536,ResourceInputs!E77),0),0),MAX(HLOOKUP($D$3,ResourceInputs!$3:$65536,ResourceInputs!E77),0)))) -> 0 | AG73: 0 | AI73: 0
G74: =IF($D$4="N/A","",IF(HLOOKUP($G$11&$D$4,Look_Tbl!$C$6:$ST$8790,Look_Tbl!B69,FALSE)="","",HLOOKUP($G$11&$D$4,Look_Tbl!$C$6:$ST$8790,Look_Tbl!B69,FALSE))) ->  | I74: =IF($D$4="N/A",0,IF(G74="","",HLOOKUP($I$11&$D$4,Look_Tbl!$C$6:$ST$8790,Look_Tbl!B69,FALSE))) -> 0 | J74: =IF($D$4="N/A",0,IF(OR(ISBLANK(HLOOKUP($D$3,ResourceInputs!$3:$65536,ResourceInputs!E78)),HLOOKUP($D$3,ResourceInputs!$3:$65536,ResourceInputs!E78)="nonleap"),"",IF((HLOOKUP($D$3,ResourceInputs!$3:$65536,ResourceInputs!$E$16)="Scheduled"),MAX(ROUND(HLOOKUP($D$3,ResourceInputs!$3:$65536,ResourceInputs!E78),0),0),MAX(HLOOKUP($D$3,ResourceInputs!$3:$65536,ResourceInputs!E78),0)))) -> 0
G75: =IF($D$4="N/A","",IF(HLOOKUP($G$11&$D$4,Look_Tbl!$C$6:$ST$8790,Look_Tbl!B70,FALSE)="","",HLOOKUP($G$11&$D$4,Look_Tbl!$C$6:$ST$8790,Look_Tbl!B70,FALSE))) ->  | I75: =IF($D$4="N/A",0,IF(G75="","",HLOOKUP($I$11&$D$4,Look_Tbl!$C$6:$ST$8790,Look_Tbl!B70,FALSE))) -> 0 | J75: =IF($D$4="N/A",0,IF(OR(ISBLANK(HLOOKUP($D$3,ResourceInputs!$3:$65536,ResourceInputs!E79)),HLOOKUP($D$3,ResourceInputs!$3:$65536,ResourceInputs!E79)="nonleap"),"",IF((HLOOKUP($D$3,ResourceInputs!$3:$65536,ResourceInputs!$E$16)="Scheduled"),MAX(ROUND(HLOOKUP($D$3,ResourceInputs!$3:$65536,ResourceInputs!E79),0),0),MAX(HLOOKUP($D$3,ResourceInputs!$3:$65536,ResourceInputs!E79),0)))) -> 0
F76: =IF(G76="","",1) ->  | G76: =IF($D$4="N/A","",IF(HLOOKUP($G$11&$D$4,Look_Tbl!$C$6:$ST$8790,Look_Tbl!B71,FALSE)="","",HLOOKUP($G$11&$D$4,Look_Tbl!$C$6:$ST$8790,Look_Tbl!B71,FALSE))) ->  | I76: =IF($D$4="N/A",0,IF(G76="","",HLOOKUP($I$11&$D$4,Look_Tbl!$C$6:$ST$8790,Look_Tbl!B71,FALSE))) -> 0 | J76: =IF($D$4="N/A",0,IF(OR(ISBLANK(HLOOKUP($D$3,ResourceInputs!$3:$65536,ResourceInputs!E80)),HLOOKUP($D$3,ResourceInputs!$3:$65536,ResourceInputs!E80)="nonleap"),"",IF((HLOOKUP($D$3,ResourceInputs!$3:$65536,ResourceInputs!$E$16)="Scheduled"),MAX(ROUND(HLOOKUP($D$3,ResourceInputs!$3:$65536,ResourceInputs!E80),0),0),MAX(HLOOKUP($D$3,ResourceInputs!$3:$65536,ResourceInputs!E80),0)))) -> 0 | K76: =IF(I76="HLH",J76,"") ->  | L76: =IF(I76="LLH",J76,"") -> 
G77: =IF($D$4="N/A","",IF(HLOOKUP($G$11&$D$4,Look_Tbl!$C$6:$ST$8790,Look_Tbl!B72,FALSE)="","",HLOOKUP($G$11&$D$4,Look_Tbl!$C$6:$ST$8790,Look_Tbl!B72,FALSE))) ->  | H77: =IF($D$4="N/A","",IF(G77="","",$D$4)) ->  | I77: =IF($D$4="N/A",0,IF(G77="","",HLOOKUP($I$11&$D$4,Look_Tbl!$C$6:$ST$8790,Look_Tbl!B72,FALSE))) -> 0 | J77: =IF($D$4="N/A",0,IF(OR(ISBLANK(HLOOKUP($D$3,ResourceInputs!$3:$65536,ResourceInputs!E81)),HLOOKUP($D$3,ResourceInputs!$3:$65536,ResourceInputs!E81)="nonleap"),"",IF((HLOOKUP($D$3,ResourceInputs!$3:$65536,ResourceInputs!$E$16)="Scheduled"),MAX(ROUND(HLOOKUP($D$3,ResourceInputs!$3:$65536,ResourceInputs!E81),0),0),MAX(HLOOKUP($D$3,ResourceInputs!$3:$65536,ResourceInputs!E81),0)))) -> 0 | M77: =IF(K77="","",ROUND(MAX(0,K77-(VLOOKUP(G77,$O$12:$W$23,8,FALSE)/VLOOKUP(G77,$B$12:$C$23,2,FALSE))),3)) ->  | N77: =IF(L77="","",ROUND(MAX(0,L77-(VLOOKUP(G77,$O$12:$W$23,9,FALSE)/VLOOKUP(G77,$B$12:$D$23,3,FALSE))),3)) -> 
G78: =IF($D$4="N/A","",IF(HLOOKUP($G$11&$D$4,Look_Tbl!$C$6:$ST$8790,Look_Tbl!B73,FALSE)="","",HLOOKUP($G$11&$D$4,Look_Tbl!$C$6:$ST$8790,Look_Tbl!B73,FALSE))) ->  | I78: =IF($D$4="N/A",0,IF(G78="","",HLOOKUP($I$11&$D$4,Look_Tbl!$C$6:$ST$8790,Look_Tbl!B73,FALSE))) -> 0 | J78: =IF($D$4="N/A",0,IF(OR(ISBLANK(HLOOKUP($D$3,ResourceInputs!$3:$65536,ResourceInputs!E82)),HLOOKUP($D$3,ResourceInputs!$3:$65536,ResourceInputs!E82)="nonleap"),"",IF((HLOOKUP($D$3,ResourceInputs!$3:$65536,ResourceInputs!$E$16)="Scheduled"),MAX(ROUND(HLOOKUP($D$3,ResourceInputs!$3:$65536,ResourceInputs!E82),0),0),MAX(HLOOKUP($D$3,ResourceInputs!$3:$65536,ResourceInputs!E82),0)))) -> 0
G79: =IF($D$4="N/A","",IF(HLOOKUP($G$11&$D$4,Look_Tbl!$C$6:$ST$8790,Look_Tbl!B74,FALSE)="","",HLOOKUP($G$11&$D$4,Look_Tbl!$C$6:$ST$8790,Look_Tbl!B74,FALSE))) ->  | I79: =IF($D$4="N/A",0,IF(G79="","",HLOOKUP($I$11&$D$4,Look_Tbl!$C$6:$ST$8790,Look_Tbl!B74,FALSE))) -> 0 | J79: =IF($D$4="N/A",0,IF(OR(ISBLANK(HLOOKUP($D$3,ResourceInputs!$3:$65536,ResourceInputs!E83)),HLOOKUP($D$3,ResourceInputs!$3:$65536,ResourceInputs!E83)="nonleap"),"",IF((HLOOKUP($D$3,ResourceInputs!$3:$65536,ResourceInputs!$E$16)="Scheduled"),MAX(ROUND(HLOOKUP($D$3,ResourceInputs!$3:$65536,ResourceInputs!E83),0),0),MAX(HLOOKUP($D$3,ResourceInputs!$3:$65536,ResourceInputs!E83),0)))) -> 0
G80: =IF($D$4="N/A","",IF(HLOOKUP($G$11&$D$4,Look_Tbl!$C$6:$ST$8790,Look_Tbl!B75,FALSE)="","",HLOOKUP($G$11&$D$4,Look_Tbl!$C$6:$ST$8790,Look_Tbl!B75,FALSE))) ->  | I80: =IF($D$4="N/A",0,IF(G80="","",HLOOKUP($I$11&$D$4,Look_Tbl!$C$6:$ST$8790,Look_Tbl!B75,FALSE))) -> 0 | J80: =IF($D$4="N/A",0,IF(OR(ISBLANK(HLOOKUP($D$3,ResourceInputs!$3:$65536,ResourceInputs!E84)),HLOOKUP($D$3,ResourceInputs!$3:$65536,ResourceInputs!E84)="nonleap"),"",IF((HLOOKUP($D$3,ResourceInputs!$3:$65536,ResourceInputs!$E$16)="Scheduled"),MAX(ROUND(HLOOKUP($D$3,ResourceInputs!$3:$65536,ResourceInputs!E84),0),0),MAX(HLOOKUP($D$3,ResourceInputs!$3:$65536,ResourceInputs!E84),0)))) -> 0
G81: =IF($D$4="N/A","",IF(HLOOKUP($G$11&$D$4,Look_Tbl!$C$6:$ST$8790,Look_Tbl!B76,FALSE)="","",HLOOKUP($G$11&$D$4,Look_Tbl!$C$6:$ST$8790,Look_Tbl!B76,FALSE))) ->  | I81: =IF($D$4="N/A",0,IF(G81="","",HLOOKUP($I$11&$D$4,Look_Tbl!$C$6:$ST$8790,Look_Tbl!B76,FALSE))) -> 0 | J81: =IF($D$4="N/A",0,IF(OR(ISBLANK(HLOOKUP($D$3,ResourceInputs!$3:$65536,ResourceInputs!E85)),HLOOKUP($D$3,ResourceInputs!$3:$65536,ResourceInputs!E85)="nonleap"),"",IF((HLOOKUP($D$3,ResourceInputs!$3:$65536,ResourceInputs!$E$16)="Scheduled"),MAX(ROUND(HLOOKUP($D$3,ResourceInputs!$3:$65536,ResourceInputs!E85),0),0),MAX(HLOOKUP($D$3,ResourceInputs!$3:$65536,ResourceInputs!E85),0)))) -> 0
G82: =IF($D$4="N/A","",IF(HLOOKUP($G$11&$D$4,Look_Tbl!$C$6:$ST$8790,Look_Tbl!B77,FALSE)="","",HLOOKUP($G$11&$D$4,Look_Tbl!$C$6:$ST$8790,Look_Tbl!B77,FALSE))) ->  | I82: =IF($D$4="N/A",0,IF(G82="","",HLOOKUP($I$11&$D$4,Look_Tbl!$C$6:$ST$8790,Look_Tbl!B77,FALSE))) -> 0 | J82: =IF($D$4="N/A",0,IF(OR(ISBLANK(HLOOKUP($D$3,ResourceInputs!$3:$65536,ResourceInputs!E86)),HLOOKUP($D$3,ResourceInputs!$3:$65536,ResourceInputs!E86)="nonleap"),"",IF((HLOOKUP($D$3,ResourceInputs!$3:$65536,ResourceInputs!$E$16)="Scheduled"),MAX(ROUND(HLOOKUP($D$3,ResourceInputs!$3:$65536,ResourceInputs!E86),0),0),MAX(HLOOKUP($D$3,ResourceInputs!$3:$65536,ResourceInputs!E86),0)))) -> 0
G83: =IF($D$4="N/A","",IF(HLOOKUP($G$11&$D$4,Look_Tbl!$C$6:$ST$8790,Look_Tbl!B78,FALSE)="","",HLOOKUP($G$11&$D$4,Look_Tbl!$C$6:$ST$8790,Look_Tbl!B78,FALSE))) ->  | I83: =IF($D$4="N/A",0,IF(G83="","",HLOOKUP($I$11&$D$4,Look_Tbl!$C$6:$ST$8790,Look_Tbl!B78,FALSE))) -> 0 | J83: =IF($D$4="N/A",0,IF(OR(ISBLANK(HLOOKUP($D$3,ResourceInputs!$3:$65536,ResourceInputs!E87)),HLOOKUP($D$3,ResourceInputs!$3:$65536,ResourceInputs!E87)="nonleap"),"",IF((HLOOKUP($D$3,ResourceInputs!$3:$65536,ResourceInputs!$E$16)="Scheduled"),MAX(ROUND(HLOOKUP($D$3,ResourceInputs!$3:$65536,ResourceInputs!E87),0),0),MAX(HLOOKUP($D$3,ResourceInputs!$3:$65536,ResourceInputs!E87),0)))) -> 0
G84: =IF($D$4="N/A","",IF(HLOOKUP($G$11&$D$4,Look_Tbl!$C$6:$ST$8790,Look_Tbl!B79,FALSE)="","",HLOOKUP($G$11&$D$4,Look_Tbl!$C$6:$ST$8790,Look_Tbl!B79,FALSE))) ->  | I84: =IF($D$4="N/A",0,IF(G84="","",HLOOKUP($I$11&$D$4,Look_Tbl!$C$6:$ST$8790,Look_Tbl!B79,FALSE))) -> 0 | J84: =IF($D$4="N/A",0,IF(OR(ISBLANK(HLOOKUP($D$3,ResourceInputs!$3:$65536,ResourceInputs!E88)),HLOOKUP($D$3,ResourceInputs!$3:$65536,ResourceInputs!E88)="nonleap"),"",IF((HLOOKUP($D$3,ResourceInputs!$3:$65536,ResourceInputs!$E$16)="Scheduled"),MAX(ROUND(HLOOKUP($D$3,ResourceInputs!$3:$65536,ResourceInputs!E88),0),0),MAX(HLOOKUP($D$3,ResourceInputs!$3:$65536,ResourceInputs!E88),0)))) -> 0
G85: =IF($D$4="N/A","",IF(HLOOKUP($G$11&$D$4,Look_Tbl!$C$6:$ST$8790,Look_Tbl!B80,FALSE)="","",HLOOKUP($G$11&$D$4,Look_Tbl!$C$6:$ST$8790,Look_Tbl!B80,FALSE))) ->  | I85: =IF($D$4="N/A",0,IF(G85="","",HLOOKUP($I$11&$D$4,Look_Tbl!$C$6:$ST$8790,Look_Tbl!B80,FALSE))) -> 0 | J85: =IF($D$4="N/A",0,IF(OR(ISBLANK(HLOOKUP($D$3,ResourceInputs!$3:$65536,ResourceInputs!E89)),HLOOKUP($D$3,ResourceInputs!$3:$65536,ResourceInputs!E89)="nonleap"),"",IF((HLOOKUP($D$3,ResourceInputs!$3:$65536,ResourceInputs!$E$16)="Scheduled"),MAX(ROUND(HLOOKUP($D$3,ResourceInputs!$3:$65536,ResourceInputs!E89),0),0),MAX(HLOOKUP($D$3,ResourceInputs!$3:$65536,ResourceInputs!E89),0)))) -> 0
G86: =IF($D$4="N/A","",IF(HLOOKUP($G$11&$D$4,Look_Tbl!$C$6:$ST$8790,Look_Tbl!B81,FALSE)="","",HLOOKUP($G$11&$D$4,Look_Tbl!$C$6:$ST$8790,Look_Tbl!B81,FALSE))) ->  | I86: =IF($D$4="N/A",0,IF(G86="","",HLOOKUP($I$11&$D$4,Look_Tbl!$C$6:$ST$8790,Look_Tbl!B81,FALSE))) -> 0 | J86: =IF($D$4="N/A",0,IF(OR(ISBLANK(HLOOKUP($D$3,ResourceInputs!$3:$65536,ResourceInputs!E90)),HLOOKUP($D$3,ResourceInputs!$3:$65536,ResourceInputs!E90)="nonleap"),"",IF((HLOOKUP($D$3,ResourceInputs!$3:$65536,ResourceInputs!$E$16)="Scheduled"),MAX(ROUND(HLOOKUP($D$3,ResourceInputs!$3:$65536,ResourceInputs!E90),0),0),MAX(HLOOKUP($D$3,ResourceInputs!$3:$65536,ResourceInputs!E90),0)))) -> 0
G87: =IF($D$4="N/A","",IF(HLOOKUP($G$11&$D$4,Look_Tbl!$C$6:$ST$8790,Look_Tbl!B82,FALSE)="","",HLOOKUP($G$11&$D$4,Look_Tbl!$C$6:$ST$8790,Look_Tbl!B82,FALSE))) ->  | I87: =IF($D$4="N/A",0,IF(G87="","",HLOOKUP($I$11&$D$4,Look_Tbl!$C$6:$ST$8790,Look_Tbl!B82,FALSE))) -> 0 | J87: =IF($D$4="N/A",0,IF(OR(ISBLANK(HLOOKUP($D$3,ResourceInputs!$3:$65536,ResourceInputs!E91)),HLOOKUP($D$3,ResourceInputs!$3:$65536,ResourceInputs!E91)="nonleap"),"",IF((HLOOKUP($D$3,ResourceInputs!$3:$65536,ResourceInputs!$E$16)="Scheduled"),MAX(ROUND(HLOOKUP($D$3,ResourceInputs!$3:$65536,ResourceInputs!E91),0),0),MAX(HLOOKUP($D$3,ResourceInputs!$3:$65536,ResourceInputs!E91),0)))) -> 0
G88: =IF($D$4="N/A","",IF(HLOOKUP($G$11&$D$4,Look_Tbl!$C$6:$ST$8790,Look_Tbl!B83,FALSE)="","",HLOOKUP($G$11&$D$4,Look_Tbl!$C$6:$ST$8790,Look_Tbl!B83,FALSE))) ->  | I88: =IF($D$4="N/A",0,IF(G88="","",HLOOKUP($I$11&$D$4,Look_Tbl!$C$6:$ST$8790,Look_Tbl!B83,FALSE))) -> 0 | J88: =IF($D$4="N/A",0,IF(OR(ISBLANK(HLOOKUP($D$3,ResourceInputs!$3:$65536,ResourceInputs!E92)),HLOOKUP($D$3,ResourceInputs!$3:$65536,ResourceInputs!E92)="nonleap"),"",IF((HLOOKUP($D$3,ResourceInputs!$3:$65536,ResourceInputs!$E$16)="Scheduled"),MAX(ROUND(HLOOKUP($D$3,ResourceInputs!$3:$65536,ResourceInputs!E92),0),0),MAX(HLOOKUP($D$3,ResourceInputs!$3:$65536,ResourceInputs!E92),0)))) -> 0
G89: =IF($D$4="N/A","",IF(HLOOKUP($G$11&$D$4,Look_Tbl!$C$6:$ST$8790,Look_Tbl!B84,FALSE)="","",HLOOKUP($G$11&$D$4,Look_Tbl!$C$6:$ST$8790,Look_Tbl!B84,FALSE))) ->  | I89: =IF($D$4="N/A",0,IF(G89="","",HLOOKUP($I$11&$D$4,Look_Tbl!$C$6:$ST$8790,Look_Tbl!B84,FALSE))) -> 0 | J89: =IF($D$4="N/A",0,IF(OR(ISBLANK(HLOOKUP($D$3,ResourceInputs!$3:$65536,ResourceInputs!E93)),HLOOKUP($D$3,ResourceInputs!$3:$65536,ResourceInputs!E93)="nonleap"),"",IF((HLOOKUP($D$3,ResourceInputs!$3:$65536,ResourceInputs!$E$16)="Scheduled"),MAX(ROUND(HLOOKUP($D$3,ResourceInputs!$3:$65536,ResourceInputs!E93),0),0),MAX(HLOOKUP($D$3,ResourceInputs!$3:$65536,ResourceInputs!E93),0)))) -> 0
G90: =IF($D$4="N/A","",IF(HLOOKUP($G$11&$D$4,Look_Tbl!$C$6:$ST$8790,Look_Tbl!B85,FALSE)="","",HLOOKUP($G$11&$D$4,Look_Tbl!$C$6:$ST$8790,Look_Tbl!B85,FALSE))) ->  | I90: =IF($D$4="N/A",0,IF(G90="","",HLOOKUP($I$11&$D$4,Look_Tbl!$C$6:$ST$8790,Look_Tbl!B85,FALSE))) -> 0 | J90: =IF($D$4="N/A",0,IF(OR(ISBLANK(HLOOKUP($D$3,ResourceInputs!$3:$65536,ResourceInputs!E94)),HLOOKUP($D$3,ResourceInputs!$3:$65536,ResourceInputs!E94)="nonleap"),"",IF((HLOOKUP($D$3,ResourceInputs!$3:$65536,ResourceInputs!$E$16)="Scheduled"),MAX(ROUND(HLOOKUP($D$3,ResourceInputs!$3:$65536,ResourceInputs!E94),0),0),MAX(HLOOKUP($D$3,ResourceInputs!$3:$65536,ResourceInputs!E94),0)))) -> 0
G91: =IF($D$4="N/A","",IF(HLOOKUP($G$11&$D$4,Look_Tbl!$C$6:$ST$8790,Look_Tbl!B86,FALSE)="","",HLOOKUP($G$11&$D$4,Look_Tbl!$C$6:$ST$8790,Look_Tbl!B86,FALSE))) ->  | I91: =IF($D$4="N/A",0,IF(G91="","",HLOOKUP($I$11&$D$4,Look_Tbl!$C$6:$ST$8790,Look_Tbl!B86,FALSE))) -> 0 | J91: =IF($D$4="N/A",0,IF(OR(ISBLANK(HLOOKUP($D$3,ResourceInputs!$3:$65536,ResourceInputs!E95)),HLOOKUP($D$3,ResourceInputs!$3:$65536,ResourceInputs!E95)="nonleap"),"",IF((HLOOKUP($D$3,ResourceInputs!$3:$65536,ResourceInputs!$E$16)="Scheduled"),MAX(ROUND(HLOOKUP($D$3,ResourceInputs!$3:$65536,ResourceInputs!E95),0),0),MAX(HLOOKUP($D$3,ResourceInputs!$3:$65536,ResourceInputs!E95),0)))) -> 0
G92: =IF($D$4="N/A","",IF(HLOOKUP($G$11&$D$4,Look_Tbl!$C$6:$ST$8790,Look_Tbl!B87,FALSE)="","",HLOOKUP($G$11&$D$4,Look_Tbl!$C$6:$ST$8790,Look_Tbl!B87,FALSE))) ->  | I92: =IF($D$4="N/A",0,IF(G92="","",HLOOKUP($I$11&$D$4,Look_Tbl!$C$6:$ST$8790,Look_Tbl!B87,FALSE))) -> 0 | J92: =IF($D$4="N/A",0,IF(OR(ISBLANK(HLOOKUP($D$3,ResourceInputs!$3:$65536,ResourceInputs!E96)),HLOOKUP($D$3,ResourceInputs!$3:$65536,ResourceInputs!E96)="nonleap"),"",IF((HLOOKUP($D$3,ResourceInputs!$3:$65536,ResourceInputs!$E$16)="Scheduled"),MAX(ROUND(HLOOKUP($D$3,ResourceInputs!$3:$65536,ResourceInputs!E96),0),0),MAX(HLOOKUP($D$3,ResourceInputs!$3:$65536,ResourceInputs!E96),0)))) -> 0
G93: =IF($D$4="N/A","",IF(HLOOKUP($G$11&$D$4,Look_Tbl!$C$6:$ST$8790,Look_Tbl!B88,FALSE)="","",HLOOKUP($G$11&$D$4,Look_Tbl!$C$6:$ST$8790,Look_Tbl!B88,FALSE))) ->  | I93: =IF($D$4="N/A",0,IF(G93="","",HLOOKUP($I$11&$D$4,Look_Tbl!$C$6:$ST$8790,Look_Tbl!B88,FALSE))) -> 0 | J93: =IF($D$4="N/A",0,IF(OR(ISBLANK(HLOOKUP($D$3,ResourceInputs!$3:$65536,ResourceInputs!E97)),HLOOKUP($D$3,ResourceInputs!$3:$65536,ResourceInputs!E97)="nonleap"),"",IF((HLOOKUP($D$3,ResourceInputs!$3:$65536,ResourceInputs!$E$16)="Scheduled"),MAX(ROUND(HLOOKUP($D$3,ResourceInputs!$3:$65536,ResourceInputs!E97),0),0),MAX(HLOOKUP($D$3,ResourceInputs!$3:$65536,ResourceInputs!E97),0)))) -> 0
G94: =IF($D$4="N/A","",IF(HLOOKUP($G$11&$D$4,Look_Tbl!$C$6:$ST$8790,Look_Tbl!B89,FALSE)="","",HLOOKUP($G$11&$D$4,Look_Tbl!$C$6:$ST$8790,Look_Tbl!B89,FALSE))) ->  | I94: =IF($D$4="N/A",0,IF(G94="","",HLOOKUP($I$11&$D$4,Look_Tbl!$C$6:$ST$8790,Look_Tbl!B89,FALSE))) -> 0 | J94: =IF($D$4="N/A",0,IF(OR(ISBLANK(HLOOKUP($D$3,ResourceInputs!$3:$65536,ResourceInputs!E98)),HLOOKUP($D$3,ResourceInputs!$3:$65536,ResourceInputs!E98)="nonleap"),"",IF((HLOOKUP($D$3,ResourceInputs!$3:$65536,ResourceInputs!$E$16)="Scheduled"),MAX(ROUND(HLOOKUP($D$3,ResourceInputs!$3:$65536,ResourceInputs!E98),0),0),MAX(HLOOKUP($D$3,ResourceInputs!$3:$65536,ResourceInputs!E98),0)))) -> 0
G95: =IF($D$4="N/A","",IF(HLOOKUP($G$11&$D$4,Look_Tbl!$C$6:$ST$8790,Look_Tbl!B90,FALSE)="","",HLOOKUP($G$11&$D$4,Look_Tbl!$C$6:$ST$8790,Look_Tbl!B90,FALSE))) ->  | I95: =IF($D$4="N/A",0,IF(G95="","",HLOOKUP($I$11&$D$4,Look_Tbl!$C$6:$ST$8790,Look_Tbl!B90,FALSE))) -> 0 | J95: =IF($D$4="N/A",0,IF(OR(ISBLANK(HLOOKUP($D$3,ResourceInputs!$3:$65536,ResourceInputs!E99)),HLOOKUP($D$3,ResourceInputs!$3:$65536,ResourceInputs!E99)="nonleap"),"",IF((HLOOKUP($D$3,ResourceInputs!$3:$65536,ResourceInputs!$E$16)="Scheduled"),MAX(ROUND(HLOOKUP($D$3,ResourceInputs!$3:$65536,ResourceInputs!E99),0),0),MAX(HLOOKUP($D$3,ResourceInputs!$3:$65536,ResourceInputs!E99),0)))) -> 0
G96: =IF($D$4="N/A","",IF(HLOOKUP($G$11&$D$4,Look_Tbl!$C$6:$ST$8790,Look_Tbl!B91,FALSE)="","",HLOOKUP($G$11&$D$4,Look_Tbl!$C$6:$ST$8790,Look_Tbl!B91,FALSE))) ->  | I96: =IF($D$4="N/A",0,IF(G96="","",HLOOKUP($I$11&$D$4,Look_Tbl!$C$6:$ST$8790,Look_Tbl!B91,FALSE))) -> 0 | J96: =IF($D$4="N/A",0,IF(OR(ISBLANK(HLOOKUP($D$3,ResourceInputs!$3:$65536,ResourceInputs!E100)),HLOOKUP($D$3,ResourceInputs!$3:$65536,ResourceInputs!E100)="nonleap"),"",IF((HLOOKUP($D$3,ResourceInputs!$3:$65536,ResourceInputs!$E$16)="Scheduled"),MAX(ROUND(HLOOKUP($D$3,ResourceInputs!$3:$65536,ResourceInputs!E100),0),0),MAX(HLOOKUP($D$3,ResourceInputs!$3:$65536,ResourceInputs!E100),0)))) -> 0
G97: =IF($D$4="N/A","",IF(HLOOKUP($G$11&$D$4,Look_Tbl!$C$6:$ST$8790,Look_Tbl!B92,FALSE)="","",HLOOKUP($G$11&$D$4,Look_Tbl!$C$6:$ST$8790,Look_Tbl!B92,FALSE))) ->  | I97: =IF($D$4="N/A",0,IF(G97="","",HLOOKUP($I$11&$D$4,Look_Tbl!$C$6:$ST$8790,Look_Tbl!B92,FALSE))) -> 0 | J97: =IF($D$4="N/A",0,IF(OR(ISBLANK(HLOOKUP($D$3,ResourceInputs!$3:$65536,ResourceInputs!E101)),HLOOKUP($D$3,ResourceInputs!$3:$65536,ResourceInputs!E101)="nonleap"),"",IF((HLOOKUP($D$3,ResourceInputs!$3:$65536,ResourceInputs!$E$16)="Scheduled"),MAX(ROUND(HLOOKUP($D$3,ResourceInputs!$3:$65536,ResourceInputs!E101),0),0),MAX(HLOOKUP($D$3,ResourceInputs!$3:$65536,ResourceInputs!E101),0)))) -> 0
G98: =IF($D$4="N/A","",IF(HLOOKUP($G$11&$D$4,Look_Tbl!$C$6:$ST$8790,Look_Tbl!B93,FALSE)="","",HLOOKUP($G$11&$D$4,Look_Tbl!$C$6:$ST$8790,Look_Tbl!B93,FALSE))) ->  | I98: =IF($D$4="N/A",0,IF(G98="","",HLOOKUP($I$11&$D$4,Look_Tbl!$C$6:$ST$8790,Look_Tbl!B93,FALSE))) -> 0 | J98: =IF($D$4="N/A",0,IF(OR(ISBLANK(HLOOKUP($D$3,ResourceInputs!$3:$65536,ResourceInputs!E102)),HLOOKUP($D$3,ResourceInputs!$3:$65536,ResourceInputs!E102)="nonleap"),"",IF((HLOOKUP($D$3,ResourceInputs!$3:$65536,ResourceInputs!$E$16)="Scheduled"),MAX(ROUND(HLOOKUP($D$3,ResourceInputs!$3:$65536,ResourceInputs!E102),0),0),MAX(HLOOKUP($D$3,ResourceInputs!$3:$65536,ResourceInputs!E102),0)))) -> 0
G99: =IF($D$4="N/A","",IF(HLOOKUP($G$11&$D$4,Look_Tbl!$C$6:$ST$8790,Look_Tbl!B94,FALSE)="","",HLOOKUP($G$11&$D$4,Look_Tbl!$C$6:$ST$8790,Look_Tbl!B94,FALSE))) ->  | I99: =IF($D$4="N/A",0,IF(G99="","",HLOOKUP($I$11&$D$4,Look_Tbl!$C$6:$ST$8790,Look_Tbl!B94,FALSE))) -> 0 | J99: =IF($D$4="N/A",0,IF(OR(ISBLANK(HLOOKUP($D$3,ResourceInputs!$3:$65536,ResourceInputs!E103)),HLOOKUP($D$3,ResourceInputs!$3:$65536,ResourceInputs!E103)="nonleap"),"",IF((HLOOKUP($D$3,ResourceInputs!$3:$65536,ResourceInputs!$E$16)="Scheduled"),MAX(ROUND(HLOOKUP($D$3,ResourceInputs!$3:$65536,ResourceInputs!E103),0),0),MAX(HLOOKUP($D$3,ResourceInputs!$3:$65536,ResourceInputs!E103),0)))) -> 0
G100: =IF($D$4="N/A","",IF(HLOOKUP($G$11&$D$4,Look_Tbl!$C$6:$ST$8790,Look_Tbl!B95,FALSE)="","",HLOOKUP($G$11&$D$4,Look_Tbl!$C$6:$ST$8790,Look_Tbl!B95,FALSE))) ->  | I100: =IF($D$4="N/A",0,IF(G100="","",HLOOKUP($I$11&$D$4,Look_Tbl!$C$6:$ST$8790,Look_Tbl!B95,FALSE))) -> 0 | J100: =IF($D$4="N/A",0,IF(OR(ISBLANK(HLOOKUP($D$3,ResourceInputs!$3:$65536,ResourceInputs!E104)),HLOOKUP($D$3,ResourceInputs!$3:$65536,ResourceInputs!E104)="nonleap"),"",IF((HLOOKUP($D$3,ResourceInputs!$3:$65536,ResourceInputs!$E$16)="Scheduled"),MAX(ROUND(HLOOKUP($D$3,ResourceInputs!$3:$65536,ResourceInputs!E104),0),0),MAX(HLOOKUP($D$3,ResourceInputs!$3:$65536,ResourceInputs!E104),0)))) -> 0
G101: =IF($D$4="N/A","",IF(HLOOKUP($G$11&$D$4,Look_Tbl!$C$6:$ST$8790,Look_Tbl!B96,FALSE)="","",HLOOKUP($G$11&$D$4,Look_Tbl!$C$6:$ST$8790,Look_Tbl!B96,FALSE))) ->  | I101: =IF($D$4="N/A",0,IF(G101="","",HLOOKUP($I$11&$D$4,Look_Tbl!$C$6:$ST$8790,Look_Tbl!B96,FALSE))) -> 0 | J101: =IF($D$4="N/A",0,IF(OR(ISBLANK(HLOOKUP($D$3,ResourceInputs!$3:$65536,ResourceInputs!E105)),HLOOKUP($D$3,ResourceInputs!$3:$65536,ResourceInputs!E105)="nonleap"),"",IF((HLOOKUP($D$3,ResourceInputs!$3:$65536,ResourceInputs!$E$16)="Scheduled"),MAX(ROUND(HLOOKUP($D$3,ResourceInputs!$3:$65536,ResourceInputs!E105),0),0),MAX(HLOOKUP($D$3,ResourceInputs!$3:$65536,ResourceInputs!E105),0)))) -> 0
G102: =IF($D$4="N/A","",IF(HLOOKUP($G$11&$D$4,Look_Tbl!$C$6:$ST$8790,Look_Tbl!B97,FALSE)="","",HLOOKUP($G$11&$D$4,Look_Tbl!$C$6:$ST$8790,Look_Tbl!B97,FALSE))) ->  | I102: =IF($D$4="N/A",0,IF(G102="","",HLOOKUP($I$11&$D$4,Look_Tbl!$C$6:$ST$8790,Look_Tbl!B97,FALSE))) -> 0 | J102: =IF($D$4="N/A",0,IF(OR(ISBLANK(HLOOKUP($D$3,ResourceInputs!$3:$65536,ResourceInputs!E106)),HLOOKUP($D$3,ResourceInputs!$3:$65536,ResourceInputs!E106)="nonleap"),"",IF((HLOOKUP($D$3,ResourceInputs!$3:$65536,ResourceInputs!$E$16)="Scheduled"),MAX(ROUND(HLOOKUP($D$3,ResourceInputs!$3:$65536,ResourceInputs!E106),0),0),MAX(HLOOKUP($D$3,ResourceInputs!$3:$65536,ResourceInputs!E106),0)))) -> 0
G103: =IF($D$4="N/A","",IF(HLOOKUP($G$11&$D$4,Look_Tbl!$C$6:$ST$8790,Look_Tbl!B98,FALSE)="","",HLOOKUP($G$11&$D$4,Look_Tbl!$C$6:$ST$8790,Look_Tbl!B98,FALSE))) ->  | I103: =IF($D$4="N/A",0,IF(G103="","",HLOOKUP($I$11&$D$4,Look_Tbl!$C$6:$ST$8790,Look_Tbl!B98,FALSE))) -> 0 | J103: =IF($D$4="N/A",0,IF(OR(ISBLANK(HLOOKUP($D$3,ResourceInputs!$3:$65536,ResourceInputs!E107)),HLOOKUP($D$3,ResourceInputs!$3:$65536,ResourceInputs!E107)="nonleap"),"",IF((HLOOKUP($D$3,ResourceInputs!$3:$65536,ResourceInputs!$E$16)="Scheduled"),MAX(ROUND(HLOOKUP($D$3,ResourceInputs!$3:$65536,ResourceInputs!E107),0),0),MAX(HLOOKUP($D$3,ResourceInputs!$3:$65536,ResourceInputs!E107),0)))) -> 0
G104: =IF($D$4="N/A","",IF(HLOOKUP($G$11&$D$4,Look_Tbl!$C$6:$ST$8790,Look_Tbl!B99,FALSE)="","",HLOOKUP($G$11&$D$4,Look_Tbl!$C$6:$ST$8790,Look_Tbl!B99,FALSE))) ->  | I104: =IF($D$4="N/A",0,IF(G104="","",HLOOKUP($I$11&$D$4,Look_Tbl!$C$6:$ST$8790,Look_Tbl!B99,FALSE))) -> 0 | J104: =IF($D$4="N/A",0,IF(OR(ISBLANK(HLOOKUP($D$3,ResourceInputs!$3:$65536,ResourceInputs!E108)),HLOOKUP($D$3,ResourceInputs!$3:$65536,ResourceInputs!E108)="nonleap"),"",IF((HLOOKUP($D$3,ResourceInputs!$3:$65536,ResourceInputs!$E$16)="Scheduled"),MAX(ROUND(HLOOKUP($D$3,ResourceInputs!$3:$65536,ResourceInputs!E108),0),0),MAX(HLOOKUP($D$3,ResourceInputs!$3:$65536,ResourceInputs!E108),0)))) -> 0
G105: =IF($D$4="N/A","",IF(HLOOKUP($G$11&$D$4,Look_Tbl!$C$6:$ST$8790,Look_Tbl!B100,FALSE)="","",HLOOKUP($G$11&$D$4,Look_Tbl!$C$6:$ST$8790,Look_Tbl!B100,FALSE))) ->  | I105: =IF($D$4="N/A",0,IF(G105="","",HLOOKUP($I$11&$D$4,Look_Tbl!$C$6:$ST$8790,Look_Tbl!B100,FALSE))) -> 0 | J105: =IF($D$4="N/A",0,IF(OR(ISBLANK(HLOOKUP($D$3,ResourceInputs!$3:$65536,ResourceInputs!E109)),HLOOKUP($D$3,ResourceInputs!$3:$65536,ResourceInputs!E109)="nonleap"),"",IF((HLOOKUP($D$3,ResourceInputs!$3:$65536,ResourceInputs!$E$16)="Scheduled"),MAX(ROUND(HLOOKUP($D$3,ResourceInputs!$3:$65536,ResourceInputs!E109),0),0),MAX(HLOOKUP($D$3,ResourceInputs!$3:$65536,ResourceInputs!E109),0)))) -> 0
G106: =IF($D$4="N/A","",IF(HLOOKUP($G$11&$D$4,Look_Tbl!$C$6:$ST$8790,Look_Tbl!B101,FALSE)="","",HLOOKUP($G$11&$D$4,Look_Tbl!$C$6:$ST$8790,Look_Tbl!B101,FALSE))) ->  | I106: =IF($D$4="N/A",0,IF(G106="","",HLOOKUP($I$11&$D$4,Look_Tbl!$C$6:$ST$8790,Look_Tbl!B101,FALSE))) -> 0 | J106: =IF($D$4="N/A",0,IF(OR(ISBLANK(HLOOKUP($D$3,ResourceInputs!$3:$65536,ResourceInputs!E110)),HLOOKUP($D$3,ResourceInputs!$3:$65536,ResourceInputs!E110)="nonleap"),"",IF((HLOOKUP($D$3,ResourceInputs!$3:$65536,ResourceInputs!$E$16)="Scheduled"),MAX(ROUND(HLOOKUP($D$3,ResourceInputs!$3:$65536,ResourceInputs!E110),0),0),MAX(HLOOKUP($D$3,ResourceInputs!$3:$65536,ResourceInputs!E110),0)))) -> 0
G107: =IF($D$4="N/A","",IF(HLOOKUP($G$11&$D$4,Look_Tbl!$C$6:$ST$8790,Look_Tbl!B102,FALSE)="","",HLOOKUP($G$11&$D$4,Look_Tbl!$C$6:$ST$8790,Look_Tbl!B102,FALSE))) ->  | I107: =IF($D$4="N/A",0,IF(G107="","",HLOOKUP($I$11&$D$4,Look_Tbl!$C$6:$ST$8790,Look_Tbl!B102,FALSE))) -> 0 | J107: =IF($D$4="N/A",0,IF(OR(ISBLANK(HLOOKUP($D$3,ResourceInputs!$3:$65536,ResourceInputs!E111)),HLOOKUP($D$3,ResourceInputs!$3:$65536,ResourceInputs!E111)="nonleap"),"",IF((HLOOKUP($D$3,ResourceInputs!$3:$65536,ResourceInputs!$E$16)="Scheduled"),MAX(ROUND(HLOOKUP($D$3,ResourceInputs!$3:$65536,ResourceInputs!E111),0),0),MAX(HLOOKUP($D$3,ResourceInputs!$3:$65536,ResourceInputs!E111),0)))) -> 0
G108: =IF($D$4="N/A","",IF(HLOOKUP($G$11&$D$4,Look_Tbl!$C$6:$ST$8790,Look_Tbl!B103,FALSE)="","",HLOOKUP($G$11&$D$4,Look_Tbl!$C$6:$ST$8790,Look_Tbl!B103,FALSE))) ->  | I108: =IF($D$4="N/A",0,IF(G108="","",HLOOKUP($I$11&$D$4,Look_Tbl!$C$6:$ST$8790,Look_Tbl!B103,FALSE))) -> 0 | J108: =IF($D$4="N/A",0,IF(OR(ISBLANK(HLOOKUP($D$3,ResourceInputs!$3:$65536,ResourceInputs!E112)),HLOOKUP($D$3,ResourceInputs!$3:$65536,ResourceInputs!E112)="nonleap"),"",IF((HLOOKUP($D$3,ResourceInputs!$3:$65536,ResourceInputs!$E$16)="Scheduled"),MAX(ROUND(HLOOKUP($D$3,ResourceInputs!$3:$65536,ResourceInputs!E112),0),0),MAX(HLOOKUP($D$3,ResourceInputs!$3:$65536,ResourceInputs!E112),0)))) -> 0
G109: =IF($D$4="N/A","",IF(HLOOKUP($G$11&$D$4,Look_Tbl!$C$6:$ST$8790,Look_Tbl!B104,FALSE)="","",HLOOKUP($G$11&$D$4,Look_Tbl!$C$6:$ST$8790,Look_Tbl!B104,FALSE))) ->  | I109: =IF($D$4="N/A",0,IF(G109="","",HLOOKUP($I$11&$D$4,Look_Tbl!$C$6:$ST$8790,Look_Tbl!B104,FALSE))) -> 0 | J109: =IF($D$4="N/A",0,IF(OR(ISBLANK(HLOOKUP($D$3,ResourceInputs!$3:$65536,ResourceInputs!E113)),HLOOKUP($D$3,ResourceInputs!$3:$65536,ResourceInputs!E113)="nonleap"),"",IF((HLOOKUP($D$3,ResourceInputs!$3:$65536,ResourceInputs!$E$16)="Scheduled"),MAX(ROUND(HLOOKUP($D$3,ResourceInputs!$3:$65536,ResourceInputs!E113),0),0),MAX(HLOOKUP($D$3,ResourceInputs!$3:$65536,ResourceInputs!E113),0)))) -> 0
G110: =IF($D$4="N/A","",IF(HLOOKUP($G$11&$D$4,Look_Tbl!$C$6:$ST$8790,Look_Tbl!B105,FALSE)="","",HLOOKUP($G$11&$D$4,Look_Tbl!$C$6:$ST$8790,Look_Tbl!B105,FALSE))) ->  | I110: =IF($D$4="N/A",0,IF(G110="","",HLOOKUP($I$11&$D$4,Look_Tbl!$C$6:$ST$8790,Look_Tbl!B105,FALSE))) -> 0 | J110: =IF($D$4="N/A",0,IF(OR(ISBLANK(HLOOKUP($D$3,ResourceInputs!$3:$65536,ResourceInputs!E114)),HLOOKUP($D$3,ResourceInputs!$3:$65536,ResourceInputs!E114)="nonleap"),"",IF((HLOOKUP($D$3,ResourceInputs!$3:$65536,ResourceInputs!$E$16)="Scheduled"),MAX(ROUND(HLOOKUP($D$3,ResourceInputs!$3:$65536,ResourceInputs!E114),0),0),MAX(HLOOKUP($D$3,ResourceInputs!$3:$65536,ResourceInputs!E114),0)))) -> 0
G111: =IF($D$4="N/A","",IF(HLOOKUP($G$11&$D$4,Look_Tbl!$C$6:$ST$8790,Look_Tbl!B106,FALSE)="","",HLOOKUP($G$11&$D$4,Look_Tbl!$C$6:$ST$8790,Look_Tbl!B106,FALSE))) ->  | I111: =IF($D$4="N/A",0,IF(G111="","",HLOOKUP($I$11&$D$4,Look_Tbl!$C$6:$ST$8790,Look_Tbl!B106,FALSE))) -> 0 | J111: =IF($D$4="N/A",0,IF(OR(ISBLANK(HLOOKUP($D$3,ResourceInputs!$3:$65536,ResourceInputs!E115)),HLOOKUP($D$3,ResourceInputs!$3:$65536,ResourceInputs!E115)="nonleap"),"",IF((HLOOKUP($D$3,ResourceInputs!$3:$65536,ResourceInputs!$E$16)="Scheduled"),MAX(ROUND(HLOOKUP($D$3,ResourceInputs!$3:$65536,ResourceInputs!E115),0),0),MAX(HLOOKUP($D$3,ResourceInputs!$3:$65536,ResourceInputs!E115),0)))) -> 0
G112: =IF($D$4="N/A","",IF(HLOOKUP($G$11&$D$4,Look_Tbl!$C$6:$ST$8790,Look_Tbl!B107,FALSE)="","",HLOOKUP($G$11&$D$4,Look_Tbl!$C$6:$ST$8790,Look_Tbl!B107,FALSE))) ->  | I112: =IF($D$4="N/A",0,IF(G112="","",HLOOKUP($I$11&$D$4,Look_Tbl!$C$6:$ST$8790,Look_Tbl!B107,FALSE))) -> 0 | J112: =IF($D$4="N/A",0,IF(OR(ISBLANK(HLOOKUP($D$3,ResourceInputs!$3:$65536,ResourceInputs!E116)),HLOOKUP($D$3,ResourceInputs!$3:$65536,ResourceInputs!E116)="nonleap"),"",IF((HLOOKUP($D$3,ResourceInputs!$3:$65536,ResourceInputs!$E$16)="Scheduled"),MAX(ROUND(HLOOKUP($D$3,ResourceInputs!$3:$65536,ResourceInputs!E116),0),0),MAX(HLOOKUP($D$3,ResourceInputs!$3:$65536,ResourceInputs!E116),0)))) -> 0
G113: =IF($D$4="N/A","",IF(HLOOKUP($G$11&$D$4,Look_Tbl!$C$6:$ST$8790,Look_Tbl!B108,FALSE)="","",HLOOKUP($G$11&$D$4,Look_Tbl!$C$6:$ST$8790,Look_Tbl!B108,FALSE))) ->  | I113: =IF($D$4="N/A",0,IF(G113="","",HLOOKUP($I$11&$D$4,Look_Tbl!$C$6:$ST$8790,Look_Tbl!B108,FALSE))) -> 0 | J113: =IF($D$4="N/A",0,IF(OR(ISBLANK(HLOOKUP($D$3,ResourceInputs!$3:$65536,ResourceInputs!E117)),HLOOKUP($D$3,ResourceInputs!$3:$65536,ResourceInputs!E117)="nonleap"),"",IF((HLOOKUP($D$3,ResourceInputs!$3:$65536,ResourceInputs!$E$16)="Scheduled"),MAX(ROUND(HLOOKUP($D$3,ResourceInputs!$3:$65536,ResourceInputs!E117),0),0),MAX(HLOOKUP($D$3,ResourceInputs!$3:$65536,ResourceInputs!E117),0)))) -> 0
G114: =IF($D$4="N/A","",IF(HLOOKUP($G$11&$D$4,Look_Tbl!$C$6:$ST$8790,Look_Tbl!B109,FALSE)="","",HLOOKUP($G$11&$D$4,Look_Tbl!$C$6:$ST$8790,Look_Tbl!B109,FALSE))) ->  | I114: =IF($D$4="N/A",0,IF(G114="","",HLOOKUP($I$11&$D$4,Look_Tbl!$C$6:$ST$8790,Look_Tbl!B109,FALSE))) -> 0 | J114: =IF($D$4="N/A",0,IF(OR(ISBLANK(HLOOKUP($D$3,ResourceInputs!$3:$65536,ResourceInputs!E118)),HLOOKUP($D$3,ResourceInputs!$3:$65536,ResourceInputs!E118)="nonleap"),"",IF((HLOOKUP($D$3,ResourceInputs!$3:$65536,ResourceInputs!$E$16)="Scheduled"),MAX(ROUND(HLOOKUP($D$3,ResourceInputs!$3:$65536,ResourceInputs!E118),0),0),MAX(HLOOKUP($D$3,ResourceInputs!$3:$65536,ResourceInputs!E118),0)))) -> 0
G115: =IF($D$4="N/A","",IF(HLOOKUP($G$11&$D$4,Look_Tbl!$C$6:$ST$8790,Look_Tbl!B110,FALSE)="","",HLOOKUP($G$11&$D$4,Look_Tbl!$C$6:$ST$8790,Look_Tbl!B110,FALSE))) ->  | I115: =IF($D$4="N/A",0,IF(G115="","",HLOOKUP($I$11&$D$4,Look_Tbl!$C$6:$ST$8790,Look_Tbl!B110,FALSE))) -> 0 | J115: =IF($D$4="N/A",0,IF(OR(ISBLANK(HLOOKUP($D$3,ResourceInputs!$3:$65536,ResourceInputs!E119)),HLOOKUP($D$3,ResourceInputs!$3:$65536,ResourceInputs!E119)="nonleap"),"",IF((HLOOKUP($D$3,ResourceInputs!$3:$65536,ResourceInputs!$E$16)="Scheduled"),MAX(ROUND(HLOOKUP($D$3,ResourceInputs!$3:$65536,ResourceInputs!E119),0),0),MAX(HLOOKUP($D$3,ResourceInputs!$3:$65536,ResourceInputs!E119),0)))) -> 0
G116: =IF($D$4="N/A","",IF(HLOOKUP($G$11&$D$4,Look_Tbl!$C$6:$ST$8790,Look_Tbl!B111,FALSE)="","",HLOOKUP($G$11&$D$4,Look_Tbl!$C$6:$ST$8790,Look_Tbl!B111,FALSE))) ->  | I116: =IF($D$4="N/A",0,IF(G116="","",HLOOKUP($I$11&$D$4,Look_Tbl!$C$6:$ST$8790,Look_Tbl!B111,FALSE))) -> 0 | J116: =IF($D$4="N/A",0,IF(OR(ISBLANK(HLOOKUP($D$3,ResourceInputs!$3:$65536,ResourceInputs!E120)),HLOOKUP($D$3,ResourceInputs!$3:$65536,ResourceInputs!E120)="nonleap"),"",IF((HLOOKUP($D$3,ResourceInputs!$3:$65536,ResourceInputs!$E$16)="Scheduled"),MAX(ROUND(HLOOKUP($D$3,ResourceInputs!$3:$65536,ResourceInputs!E120),0),0),MAX(HLOOKUP($D$3,ResourceInputs!$3:$65536,ResourceInputs!E120),0)))) -> 0
G117: =IF($D$4="N/A","",IF(HLOOKUP($G$11&$D$4,Look_Tbl!$C$6:$ST$8790,Look_Tbl!B112,FALSE)="","",HLOOKUP($G$11&$D$4,Look_Tbl!$C$6:$ST$8790,Look_Tbl!B112,FALSE))) ->  | I117: =IF($D$4="N/A",0,IF(G117="","",HLOOKUP($I$11&$D$4,Look_Tbl!$C$6:$ST$8790,Look_Tbl!B112,FALSE))) -> 0 | J117: =IF($D$4="N/A",0,IF(OR(ISBLANK(HLOOKUP($D$3,ResourceInputs!$3:$65536,ResourceInputs!E121)),HLOOKUP($D$3,ResourceInputs!$3:$65536,ResourceInputs!E121)="nonleap"),"",IF((HLOOKUP($D$3,ResourceInputs!$3:$65536,ResourceInputs!$E$16)="Scheduled"),MAX(ROUND(HLOOKUP($D$3,ResourceInputs!$3:$65536,ResourceInputs!E121),0),0),MAX(HLOOKUP($D$3,ResourceInputs!$3:$65536,ResourceInputs!E121),0)))) -> 0
G118: =IF($D$4="N/A","",IF(HLOOKUP($G$11&$D$4,Look_Tbl!$C$6:$ST$8790,Look_Tbl!B113,FALSE)="","",HLOOKUP($G$11&$D$4,Look_Tbl!$C$6:$ST$8790,Look_Tbl!B113,FALSE))) ->  | I118: =IF($D$4="N/A",0,IF(G118="","",HLOOKUP($I$11&$D$4,Look_Tbl!$C$6:$ST$8790,Look_Tbl!B113,FALSE))) -> 0 | J118: =IF($D$4="N/A",0,IF(OR(ISBLANK(HLOOKUP($D$3,ResourceInputs!$3:$65536,ResourceInputs!E122)),HLOOKUP($D$3,ResourceInputs!$3:$65536,ResourceInputs!E122)="nonleap"),"",IF((HLOOKUP($D$3,ResourceInputs!$3:$65536,ResourceInputs!$E$16)="Scheduled"),MAX(ROUND(HLOOKUP($D$3,ResourceInputs!$3:$65536,ResourceInputs!E122),0),0),MAX(HLOOKUP($D$3,ResourceInputs!$3:$65536,ResourceInputs!E122),0)))) -> 0
G119: =IF($D$4="N/A","",IF(HLOOKUP($G$11&$D$4,Look_Tbl!$C$6:$ST$8790,Look_Tbl!B114,FALSE)="","",HLOOKUP($G$11&$D$4,Look_Tbl!$C$6:$ST$8790,Look_Tbl!B114,FALSE))) ->  | I119: =IF($D$4="N/A",0,IF(G119="","",HLOOKUP($I$11&$D$4,Look_Tbl!$C$6:$ST$8790,Look_Tbl!B114,FALSE))) -> 0 | J119: =IF($D$4="N/A",0,IF(OR(ISBLANK(HLOOKUP($D$3,ResourceInputs!$3:$65536,ResourceInputs!E123)),HLOOKUP($D$3,ResourceInputs!$3:$65536,ResourceInputs!E123)="nonleap"),"",IF((HLOOKUP($D$3,ResourceInputs!$3:$65536,ResourceInputs!$E$16)="Scheduled"),MAX(ROUND(HLOOKUP($D$3,ResourceInputs!$3:$65536,ResourceInputs!E123),0),0),MAX(HLOOKUP($D$3,ResourceInputs!$3:$65536,ResourceInputs!E123),0)))) -> 0
G120: =IF($D$4="N/A","",IF(HLOOKUP($G$11&$D$4,Look_Tbl!$C$6:$ST$8790,Look_Tbl!B115,FALSE)="","",HLOOKUP($G$11&$D$4,Look_Tbl!$C$6:$ST$8790,Look_Tbl!B115,FALSE))) ->  | I120: =IF($D$4="N/A",0,IF(G120="","",HLOOKUP($I$11&$D$4,Look_Tbl!$C$6:$ST$8790,Look_Tbl!B115,FALSE))) -> 0 | J120: =IF($D$4="N/A",0,IF(OR(ISBLANK(HLOOKUP($D$3,ResourceInputs!$3:$65536,ResourceInputs!E124)),HLOOKUP($D$3,ResourceInputs!$3:$65536,ResourceInputs!E124)="nonleap"),"",IF((HLOOKUP($D$3,ResourceInputs!$3:$65536,ResourceInputs!$E$16)="Scheduled"),MAX(ROUND(HLOOKUP($D$3,ResourceInputs!$3:$65536,ResourceInputs!E124),0),0),MAX(HLOOKUP($D$3,ResourceInputs!$3:$65536,ResourceInputs!E124),0)))) -> 0
G121: =IF($D$4="N/A","",IF(HLOOKUP($G$11&$D$4,Look_Tbl!$C$6:$ST$8790,Look_Tbl!B116,FALSE)="","",HLOOKUP($G$11&$D$4,Look_Tbl!$C$6:$ST$8790,Look_Tbl!B116,FALSE))) ->  | I121: =IF($D$4="N/A",0,IF(G121="","",HLOOKUP($I$11&$D$4,Look_Tbl!$C$6:$ST$8790,Look_Tbl!B116,FALSE))) -> 0 | J121: =IF($D$4="N/A",0,IF(OR(ISBLANK(HLOOKUP($D$3,ResourceInputs!$3:$65536,ResourceInputs!E125)),HLOOKUP($D$3,ResourceInputs!$3:$65536,ResourceInputs!E125)="nonleap"),"",IF((HLOOKUP($D$3,ResourceInputs!$3:$65536,ResourceInputs!$E$16)="Scheduled"),MAX(ROUND(HLOOKUP($D$3,ResourceInputs!$3:$65536,ResourceInputs!E125),0),0),MAX(HLOOKUP($D$3,ResourceInputs!$3:$65536,ResourceInputs!E125),0)))) -> 0
G122: =IF($D$4="N/A","",IF(HLOOKUP($G$11&$D$4,Look_Tbl!$C$6:$ST$8790,Look_Tbl!B117,FALSE)="","",HLOOKUP($G$11&$D$4,Look_Tbl!$C$6:$ST$8790,Look_Tbl!B117,FALSE))) ->  | I122: =IF($D$4="N/A",0,IF(G122="","",HLOOKUP($I$11&$D$4,Look_Tbl!$C$6:$ST$8790,Look_Tbl!B117,FALSE))) -> 0 | J122: =IF($D$4="N/A",0,IF(OR(ISBLANK(HLOOKUP($D$3,ResourceInputs!$3:$65536,ResourceInputs!E126)),HLOOKUP($D$3,ResourceInputs!$3:$65536,ResourceInputs!E126)="nonleap"),"",IF((HLOOKUP($D$3,ResourceInputs!$3:$65536,ResourceInputs!$E$16)="Scheduled"),MAX(ROUND(HLOOKUP($D$3,ResourceInputs!$3:$65536,ResourceInputs!E126),0),0),MAX(HLOOKUP($D$3,ResourceInputs!$3:$65536,ResourceInputs!E126),0)))) -> 0
G123: =IF($D$4="N/A","",IF(HLOOKUP($G$11&$D$4,Look_Tbl!$C$6:$ST$8790,Look_Tbl!B118,FALSE)="","",HLOOKUP($G$11&$D$4,Look_Tbl!$C$6:$ST$8790,Look_Tbl!B118,FALSE))) ->  | I123: =IF($D$4="N/A",0,IF(G123="","",HLOOKUP($I$11&$D$4,Look_Tbl!$C$6:$ST$8790,Look_Tbl!B118,FALSE))) -> 0 | J123: =IF($D$4="N/A",0,IF(OR(ISBLANK(HLOOKUP($D$3,ResourceInputs!$3:$65536,ResourceInputs!E127)),HLOOKUP($D$3,ResourceInputs!$3:$65536,ResourceInputs!E127)="nonleap"),"",IF((HLOOKUP($D$3,ResourceInputs!$3:$65536,ResourceInputs!$E$16)="Scheduled"),MAX(ROUND(HLOOKUP($D$3,ResourceInputs!$3:$65536,ResourceInputs!E127),0),0),MAX(HLOOKUP($D$3,ResourceInputs!$3:$65536,ResourceInputs!E127),0)))) -> 0
G124: =IF($D$4="N/A","",IF(HLOOKUP($G$11&$D$4,Look_Tbl!$C$6:$ST$8790,Look_Tbl!B119,FALSE)="","",HLOOKUP($G$11&$D$4,Look_Tbl!$C$6:$ST$8790,Look_Tbl!B119,FALSE))) ->  | I124: =IF($D$4="N/A",0,IF(G124="","",HLOOKUP($I$11&$D$4,Look_Tbl!$C$6:$ST$8790,Look_Tbl!B119,FALSE))) -> 0 | J124: =IF($D$4="N/A",0,IF(OR(ISBLANK(HLOOKUP($D$3,ResourceInputs!$3:$65536,ResourceInputs!E128)),HLOOKUP($D$3,ResourceInputs!$3:$65536,ResourceInputs!E128)="nonleap"),"",IF((HLOOKUP($D$3,ResourceInputs!$3:$65536,ResourceInputs!$E$16)="Scheduled"),MAX(ROUND(HLOOKUP($D$3,ResourceInputs!$3:$65536,ResourceInputs!E128),0),0),MAX(HLOOKUP($D$3,ResourceInputs!$3:$65536,ResourceInputs!E128),0)))) -> 0
G125: =IF($D$4="N/A","",IF(HLOOKUP($G$11&$D$4,Look_Tbl!$C$6:$ST$8790,Look_Tbl!B120,FALSE)="","",HLOOKUP($G$11&$D$4,Look_Tbl!$C$6:$ST$8790,Look_Tbl!B120,FALSE))) ->  | I125: =IF($D$4="N/A",0,IF(G125="","",HLOOKUP($I$11&$D$4,Look_Tbl!$C$6:$ST$8790,Look_Tbl!B120,FALSE))) -> 0 | J125: =IF($D$4="N/A",0,IF(OR(ISBLANK(HLOOKUP($D$3,ResourceInputs!$3:$65536,ResourceInputs!E129)),HLOOKUP($D$3,ResourceInputs!$3:$65536,ResourceInputs!E129)="nonleap"),"",IF((HLOOKUP($D$3,ResourceInputs!$3:$65536,ResourceInputs!$E$16)="Scheduled"),MAX(ROUND(HLOOKUP($D$3,ResourceInputs!$3:$65536,ResourceInputs!E129),0),0),MAX(HLOOKUP($D$3,ResourceInputs!$3:$65536,ResourceInputs!E129),0)))) -> 0
G126: =IF($D$4="N/A","",IF(HLOOKUP($G$11&$D$4,Look_Tbl!$C$6:$ST$8790,Look_Tbl!B121,FALSE)="","",HLOOKUP($G$11&$D$4,Look_Tbl!$C$6:$ST$8790,Look_Tbl!B121,FALSE))) ->  | I126: =IF($D$4="N/A",0,IF(G126="","",HLOOKUP($I$11&$D$4,Look_Tbl!$C$6:$ST$8790,Look_Tbl!B121,FALSE))) -> 0 | J126: =IF($D$4="N/A",0,IF(OR(ISBLANK(HLOOKUP($D$3,ResourceInputs!$3:$65536,ResourceInputs!E130)),HLOOKUP($D$3,ResourceInputs!$3:$65536,ResourceInputs!E130)="nonleap"),"",IF((HLOOKUP($D$3,ResourceInputs!$3:$65536,ResourceInputs!$E$16)="Scheduled"),MAX(ROUND(HLOOKUP($D$3,ResourceInputs!$3:$65536,ResourceInputs!E130),0),0),MAX(HLOOKUP($D$3,ResourceInputs!$3:$65536,ResourceInputs!E130),0)))) -> 0
G127: =IF($D$4="N/A","",IF(HLOOKUP($G$11&$D$4,Look_Tbl!$C$6:$ST$8790,Look_Tbl!B122,FALSE)="","",HLOOKUP($G$11&$D$4,Look_Tbl!$C$6:$ST$8790,Look_Tbl!B122,FALSE))) ->  | I127: =IF($D$4="N/A",0,IF(G127="","",HLOOKUP($I$11&$D$4,Look_Tbl!$C$6:$ST$8790,Look_Tbl!B122,FALSE))) -> 0 | J127: =IF($D$4="N/A",0,IF(OR(ISBLANK(HLOOKUP($D$3,ResourceInputs!$3:$65536,ResourceInputs!E131)),HLOOKUP($D$3,ResourceInputs!$3:$65536,ResourceInputs!E131)="nonleap"),"",IF((HLOOKUP($D$3,ResourceInputs!$3:$65536,ResourceInputs!$E$16)="Scheduled"),MAX(ROUND(HLOOKUP($D$3,ResourceInputs!$3:$65536,ResourceInputs!E131),0),0),MAX(HLOOKUP($D$3,ResourceInputs!$3:$65536,ResourceInputs!E131),0)))) -> 0
G128: =IF($D$4="N/A","",IF(HLOOKUP($G$11&$D$4,Look_Tbl!$C$6:$ST$8790,Look_Tbl!B123,FALSE)="","",HLOOKUP($G$11&$D$4,Look_Tbl!$C$6:$ST$8790,Look_Tbl!B123,FALSE))) ->  | I128: =IF($D$4="N/A",0,IF(G128="","",HLOOKUP($I$11&$D$4,Look_Tbl!$C$6:$ST$8790,Look_Tbl!B123,FALSE))) -> 0 | J128: =IF($D$4="N/A",0,IF(OR(ISBLANK(HLOOKUP($D$3,ResourceInputs!$3:$65536,ResourceInputs!E132)),HLOOKUP($D$3,ResourceInputs!$3:$65536,ResourceInputs!E132)="nonleap"),"",IF((HLOOKUP($D$3,ResourceInputs!$3:$65536,ResourceInputs!$E$16)="Scheduled"),MAX(ROUND(HLOOKUP($D$3,ResourceInputs!$3:$65536,ResourceInputs!E132),0),0),MAX(HLOOKUP($D$3,ResourceInputs!$3:$65536,ResourceInputs!E132),0)))) -> 0
G129: =IF($D$4="N/A","",IF(HLOOKUP($G$11&$D$4,Look_Tbl!$C$6:$ST$8790,Look_Tbl!B124,FALSE)="","",HLOOKUP($G$11&$D$4,Look_Tbl!$C$6:$ST$8790,Look_Tbl!B124,FALSE))) ->  | I129: =IF($D$4="N/A",0,IF(G129="","",HLOOKUP($I$11&$D$4,Look_Tbl!$C$6:$ST$8790,Look_Tbl!B124,FALSE))) -> 0 | J129: =IF($D$4="N/A",0,IF(OR(ISBLANK(HLOOKUP($D$3,ResourceInputs!$3:$65536,ResourceInputs!E133)),HLOOKUP($D$3,ResourceInputs!$3:$65536,ResourceInputs!E133)="nonleap"),"",IF((HLOOKUP($D$3,ResourceInputs!$3:$65536,ResourceInputs!$E$16)="Scheduled"),MAX(ROUND(HLOOKUP($D$3,ResourceInputs!$3:$65536,ResourceInputs!E133),0),0),MAX(HLOOKUP($D$3,ResourceInputs!$3:$65536,ResourceInputs!E133),0)))) -> 0
G130: =IF($D$4="N/A","",IF(HLOOKUP($G$11&$D$4,Look_Tbl!$C$6:$ST$8790,Look_Tbl!B125,FALSE)="","",HLOOKUP($G$11&$D$4,Look_Tbl!$C$6:$ST$8790,Look_Tbl!B125,FALSE))) ->  | I130: =IF($D$4="N/A",0,IF(G130="","",HLOOKUP($I$11&$D$4,Look_Tbl!$C$6:$ST$8790,Look_Tbl!B125,FALSE))) -> 0 | J130: =IF($D$4="N/A",0,IF(OR(ISBLANK(HLOOKUP($D$3,ResourceInputs!$3:$65536,ResourceInputs!E134)),HLOOKUP($D$3,ResourceInputs!$3:$65536,ResourceInputs!E134)="nonleap"),"",IF((HLOOKUP($D$3,ResourceInputs!$3:$65536,ResourceInputs!$E$16)="Scheduled"),MAX(ROUND(HLOOKUP($D$3,ResourceInputs!$3:$65536,ResourceInputs!E134),0),0),MAX(HLOOKUP($D$3,ResourceInputs!$3:$65536,ResourceInputs!E134),0)))) -> 0
G131: =IF($D$4="N/A","",IF(HLOOKUP($G$11&$D$4,Look_Tbl!$C$6:$ST$8790,Look_Tbl!B126,FALSE)="","",HLOOKUP($G$11&$D$4,Look_Tbl!$C$6:$ST$8790,Look_Tbl!B126,FALSE))) ->  | I131: =IF($D$4="N/A",0,IF(G131="","",HLOOKUP($I$11&$D$4,Look_Tbl!$C$6:$ST$8790,Look_Tbl!B126,FALSE))) -> 0 | J131: =IF($D$4="N/A",0,IF(OR(ISBLANK(HLOOKUP($D$3,ResourceInputs!$3:$65536,ResourceInputs!E135)),HLOOKUP($D$3,ResourceInputs!$3:$65536,ResourceInputs!E135)="nonleap"),"",IF((HLOOKUP($D$3,ResourceInputs!$3:$65536,ResourceInputs!$E$16)="Scheduled"),MAX(ROUND(HLOOKUP($D$3,ResourceInputs!$3:$65536,ResourceInputs!E135),0),0),MAX(HLOOKUP($D$3,ResourceInputs!$3:$65536,ResourceInputs!E135),0)))) -> 0
G132: =IF($D$4="N/A","",IF(HLOOKUP($G$11&$D$4,Look_Tbl!$C$6:$ST$8790,Look_Tbl!B127,FALSE)="","",HLOOKUP($G$11&$D$4,Look_Tbl!$C$6:$ST$8790,Look_Tbl!B127,FALSE))) ->  | I132: =IF($D$4="N/A",0,IF(G132="","",HLOOKUP($I$11&$D$4,Look_Tbl!$C$6:$ST$8790,Look_Tbl!B127,FALSE))) -> 0 | J132: =IF($D$4="N/A",0,IF(OR(ISBLANK(HLOOKUP($D$3,ResourceInputs!$3:$65536,ResourceInputs!E136)),HLOOKUP($D$3,ResourceInputs!$3:$65536,ResourceInputs!E136)="nonleap"),"",IF((HLOOKUP($D$3,ResourceInputs!$3:$65536,ResourceInputs!$E$16)="Scheduled"),MAX(ROUND(HLOOKUP($D$3,ResourceInputs!$3:$65536,ResourceInputs!E136),0),0),MAX(HLOOKUP($D$3,ResourceInputs!$3:$65536,ResourceInputs!E136),0)))) -> 0
G133: =IF($D$4="N/A","",IF(HLOOKUP($G$11&$D$4,Look_Tbl!$C$6:$ST$8790,Look_Tbl!B128,FALSE)="","",HLOOKUP($G$11&$D$4,Look_Tbl!$C$6:$ST$8790,Look_Tbl!B128,FALSE))) ->  | I133: =IF($D$4="N/A",0,IF(G133="","",HLOOKUP($I$11&$D$4,Look_Tbl!$C$6:$ST$8790,Look_Tbl!B128,FALSE))) -> 0 | J133: =IF($D$4="N/A",0,IF(OR(ISBLANK(HLOOKUP($D$3,ResourceInputs!$3:$65536,ResourceInputs!E137)),HLOOKUP($D$3,ResourceInputs!$3:$65536,ResourceInputs!E137)="nonleap"),"",IF((HLOOKUP($D$3,ResourceInputs!$3:$65536,ResourceInputs!$E$16)="Scheduled"),MAX(ROUND(HLOOKUP($D$3,ResourceInputs!$3:$65536,ResourceInputs!E137),0),0),MAX(HLOOKUP($D$3,ResourceInputs!$3:$65536,ResourceInputs!E137),0)))) -> 0
G134: =IF($D$4="N/A","",IF(HLOOKUP($G$11&$D$4,Look_Tbl!$C$6:$ST$8790,Look_Tbl!B129,FALSE)="","",HLOOKUP($G$11&$D$4,Look_Tbl!$C$6:$ST$8790,Look_Tbl!B129,FALSE))) ->  | I134: =IF($D$4="N/A",0,IF(G134="","",HLOOKUP($I$11&$D$4,Look_Tbl!$C$6:$ST$8790,Look_Tbl!B129,FALSE))) -> 0 | J134: =IF($D$4="N/A",0,IF(OR(ISBLANK(HLOOKUP($D$3,ResourceInputs!$3:$65536,ResourceInputs!E138)),HLOOKUP($D$3,ResourceInputs!$3:$65536,ResourceInputs!E138)="nonleap"),"",IF((HLOOKUP($D$3,ResourceInputs!$3:$65536,ResourceInputs!$E$16)="Scheduled"),MAX(ROUND(HLOOKUP($D$3,ResourceInputs!$3:$65536,ResourceInputs!E138),0),0),MAX(HLOOKUP($D$3,ResourceInputs!$3:$65536,ResourceInputs!E138),0)))) -> 0
G135: =IF($D$4="N/A","",IF(HLOOKUP($G$11&$D$4,Look_Tbl!$C$6:$ST$8790,Look_Tbl!B130,FALSE)="","",HLOOKUP($G$11&$D$4,Look_Tbl!$C$6:$ST$8790,Look_Tbl!B130,FALSE))) ->  | I135: =IF($D$4="N/A",0,IF(G135="","",HLOOKUP($I$11&$D$4,Look_Tbl!$C$6:$ST$8790,Look_Tbl!B130,FALSE))) -> 0 | J135: =IF($D$4="N/A",0,IF(OR(ISBLANK(HLOOKUP($D$3,ResourceInputs!$3:$65536,ResourceInputs!E139)),HLOOKUP($D$3,ResourceInputs!$3:$65536,ResourceInputs!E139)="nonleap"),"",IF((HLOOKUP($D$3,ResourceInputs!$3:$65536,ResourceInputs!$E$16)="Scheduled"),MAX(ROUND(HLOOKUP($D$3,ResourceInputs!$3:$65536,ResourceInputs!E139),0),0),MAX(HLOOKUP($D$3,ResourceInputs!$3:$65536,ResourceInputs!E139),0)))) -> 0
G136: =IF($D$4="N/A","",IF(HLOOKUP($G$11&$D$4,Look_Tbl!$C$6:$ST$8790,Look_Tbl!B131,FALSE)="","",HLOOKUP($G$11&$D$4,Look_Tbl!$C$6:$ST$8790,Look_Tbl!B131,FALSE))) ->  | I136: =IF($D$4="N/A",0,IF(G136="","",HLOOKUP($I$11&$D$4,Look_Tbl!$C$6:$ST$8790,Look_Tbl!B131,FALSE))) -> 0 | J136: =IF($D$4="N/A",0,IF(OR(ISBLANK(HLOOKUP($D$3,ResourceInputs!$3:$65536,ResourceInputs!E140)),HLOOKUP($D$3,ResourceInputs!$3:$65536,ResourceInputs!E140)="nonleap"),"",IF((HLOOKUP($D$3,ResourceInputs!$3:$65536,ResourceInputs!$E$16)="Scheduled"),MAX(ROUND(HLOOKUP($D$3,ResourceInputs!$3:$65536,ResourceInputs!E140),0),0),MAX(HLOOKUP($D$3,ResourceInputs!$3:$65536,ResourceInputs!E140),0)))) -> 0
G137: =IF($D$4="N/A","",IF(HLOOKUP($G$11&$D$4,Look_Tbl!$C$6:$ST$8790,Look_Tbl!B132,FALSE)="","",HLOOKUP($G$11&$D$4,Look_Tbl!$C$6:$ST$8790,Look_Tbl!B132,FALSE))) ->  | I137: =IF($D$4="N/A",0,IF(G137="","",HLOOKUP($I$11&$D$4,Look_Tbl!$C$6:$ST$8790,Look_Tbl!B132,FALSE))) -> 0 | J137: =IF($D$4="N/A",0,IF(OR(ISBLANK(HLOOKUP($D$3,ResourceInputs!$3:$65536,ResourceInputs!E141)),HLOOKUP($D$3,ResourceInputs!$3:$65536,ResourceInputs!E141)="nonleap"),"",IF((HLOOKUP($D$3,ResourceInputs!$3:$65536,ResourceInputs!$E$16)="Scheduled"),MAX(ROUND(HLOOKUP($D$3,ResourceInputs!$3:$65536,ResourceInputs!E141),0),0),MAX(HLOOKUP($D$3,ResourceInputs!$3:$65536,ResourceInputs!E141),0)))) -> 0
G138: =IF($D$4="N/A","",IF(HLOOKUP($G$11&$D$4,Look_Tbl!$C$6:$ST$8790,Look_Tbl!B133,FALSE)="","",HLOOKUP($G$11&$D$4,Look_Tbl!$C$6:$ST$8790,Look_Tbl!B133,FALSE))) ->  | I138: =IF($D$4="N/A",0,IF(G138="","",HLOOKUP($I$11&$D$4,Look_Tbl!$C$6:$ST$8790,Look_Tbl!B133,FALSE))) -> 0 | J138: =IF($D$4="N/A",0,IF(OR(ISBLANK(HLOOKUP($D$3,ResourceInputs!$3:$65536,ResourceInputs!E142)),HLOOKUP($D$3,ResourceInputs!$3:$65536,ResourceInputs!E142)="nonleap"),"",IF((HLOOKUP($D$3,ResourceInputs!$3:$65536,ResourceInputs!$E$16)="Scheduled"),MAX(ROUND(HLOOKUP($D$3,ResourceInputs!$3:$65536,ResourceInputs!E142),0),0),MAX(HLOOKUP($D$3,ResourceInputs!$3:$65536,ResourceInputs!E142),0)))) -> 0
G139: =IF($D$4="N/A","",IF(HLOOKUP($G$11&$D$4,Look_Tbl!$C$6:$ST$8790,Look_Tbl!B134,FALSE)="","",HLOOKUP($G$11&$D$4,Look_Tbl!$C$6:$ST$8790,Look_Tbl!B134,FALSE))) ->  | I139: =IF($D$4="N/A",0,IF(G139="","",HLOOKUP($I$11&$D$4,Look_Tbl!$C$6:$ST$8790,Look_Tbl!B134,FALSE))) -> 0 | J139: =IF($D$4="N/A",0,IF(OR(ISBLANK(HLOOKUP($D$3,ResourceInputs!$3:$65536,ResourceInputs!E143)),HLOOKUP($D$3,ResourceInputs!$3:$65536,ResourceInputs!E143)="nonleap"),"",IF((HLOOKUP($D$3,ResourceInputs!$3:$65536,ResourceInputs!$E$16)="Scheduled"),MAX(ROUND(HLOOKUP($D$3,ResourceInputs!$3:$65536,ResourceInputs!E143),0),0),MAX(HLOOKUP($D$3,ResourceInputs!$3:$65536,ResourceInputs!E143),0)))) -> 0
F140: =IF(G140="","",1) ->  | G140: =IF($D$4="N/A","",IF(HLOOKUP($G$11&$D$4,Look_Tbl!$C$6:$ST$8790,Look_Tbl!B135,FALSE)="","",HLOOKUP($G$11&$D$4,Look_Tbl!$C$6:$ST$8790,Look_Tbl!B135,FALSE))) ->  | I140: =IF($D$4="N/A",0,IF(G140="","",HLOOKUP($I$11&$D$4,Look_Tbl!$C$6:$ST$8790,Look_Tbl!B135,FALSE))) -> 0 | J140: =IF($D$4="N/A",0,IF(OR(ISBLANK(HLOOKUP($D$3,ResourceInputs!$3:$65536,ResourceInputs!E144)),HLOOKUP($D$3,ResourceInputs!$3:$65536,ResourceInputs!E144)="nonleap"),"",IF((HLOOKUP($D$3,ResourceInputs!$3:$65536,ResourceInputs!$E$16)="Scheduled"),MAX(ROUND(HLOOKUP($D$3,ResourceInputs!$3:$65536,ResourceInputs!E144),0),0),MAX(HLOOKUP($D$3,ResourceInputs!$3:$65536,ResourceInputs!E144),0)))) -> 0 | K140: =IF(I140="HLH",J140,"") ->  | L140: =IF(I140="LLH",J140,"") -> 
G141: =IF($D$4="N/A","",IF(HLOOKUP($G$11&$D$4,Look_Tbl!$C$6:$ST$8790,Look_Tbl!B136,FALSE)="","",HLOOKUP($G$11&$D$4,Look_Tbl!$C$6:$ST$8790,Look_Tbl!B136,FALSE))) ->  | H141: =IF($D$4="N/A","",IF(G141="","",$D$4)) ->  | I141: =IF($D$4="N/A",0,IF(G141="","",HLOOKUP($I$11&$D$4,Look_Tbl!$C$6:$ST$8790,Look_Tbl!B136,FALSE))) -> 0 | J141: =IF($D$4="N/A",0,IF(OR(ISBLANK(HLOOKUP($D$3,ResourceInputs!$3:$65536,ResourceInputs!E145)),HLOOKUP($D$3,ResourceInputs!$3:$65536,ResourceInputs!E145)="nonleap"),"",IF((HLOOKUP($D$3,ResourceInputs!$3:$65536,ResourceInputs!$E$16)="Scheduled"),MAX(ROUND(HLOOKUP($D$3,ResourceInputs!$3:$65536,ResourceInputs!E145),0),0),MAX(HLOOKUP($D$3,ResourceInputs!$3:$65536,ResourceInputs!E145),0)))) -> 0 | M141: =IF(K141="","",ROUND(MAX(0,K141-(VLOOKUP(G141,$O$12:$W$23,8,FALSE)/VLOOKUP(G141,$B$12:$C$23,2,FALSE))),3)) ->  | N141: =IF(L141="","",ROUND(MAX(0,L141-(VLOOKUP(G141,$O$12:$W$23,9,FALSE)/VLOOKUP(G141,$B$12:$D$23,3,FALSE))),3)) -> 
G142: =IF($D$4="N/A","",IF(HLOOKUP($G$11&$D$4,Look_Tbl!$C$6:$ST$8790,Look_Tbl!B137,FALSE)="","",HLOOKUP($G$11&$D$4,Look_Tbl!$C$6:$ST$8790,Look_Tbl!B137,FALSE))) ->  | I142: =IF($D$4="N/A",0,IF(G142="","",HLOOKUP($I$11&$D$4,Look_Tbl!$C$6:$ST$8790,Look_Tbl!B137,FALSE))) -> 0 | J142: =IF($D$4="N/A",0,IF(OR(ISBLANK(HLOOKUP($D$3,ResourceInputs!$3:$65536,ResourceInputs!E146)),HLOOKUP($D$3,ResourceInputs!$3:$65536,ResourceInputs!E146)="nonleap"),"",IF((HLOOKUP($D$3,ResourceInputs!$3:$65536,ResourceInputs!$E$16)="Scheduled"),MAX(ROUND(HLOOKUP($D$3,ResourceInputs!$3:$65536,ResourceInputs!E146),0),0),MAX(HLOOKUP($D$3,ResourceInputs!$3:$65536,ResourceInputs!E146),0)))) -> 0
G143: =IF($D$4="N/A","",IF(HLOOKUP($G$11&$D$4,Look_Tbl!$C$6:$ST$8790,Look_Tbl!B138,FALSE)="","",HLOOKUP($G$11&$D$4,Look_Tbl!$C$6:$ST$8790,Look_Tbl!B138,FALSE))) ->  | I143: =IF($D$4="N/A",0,IF(G143="","",HLOOKUP($I$11&$D$4,Look_Tbl!$C$6:$ST$8790,Look_Tbl!B138,FALSE))) -> 0 | J143: =IF($D$4="N/A",0,IF(OR(ISBLANK(HLOOKUP($D$3,ResourceInputs!$3:$65536,ResourceInputs!E147)),HLOOKUP($D$3,ResourceInputs!$3:$65536,ResourceInputs!E147)="nonleap"),"",IF((HLOOKUP($D$3,ResourceInputs!$3:$65536,ResourceInputs!$E$16)="Scheduled"),MAX(ROUND(HLOOKUP($D$3,ResourceInputs!$3:$65536,ResourceInputs!E147),0),0),MAX(HLOOKUP($D$3,ResourceInputs!$3:$65536,ResourceInputs!E147),0)))) -> 0
G144: =IF($D$4="N/A","",IF(HLOOKUP($G$11&$D$4,Look_Tbl!$C$6:$ST$8790,Look_Tbl!B139,FALSE)="","",HLOOKUP($G$11&$D$4,Look_Tbl!$C$6:$ST$8790,Look_Tbl!B139,FALSE))) ->  | I144: =IF($D$4="N/A",0,IF(G144="","",HLOOKUP($I$11&$D$4,Look_Tbl!$C$6:$ST$8790,Look_Tbl!B139,FALSE))) -> 0 | J144: =IF($D$4="N/A",0,IF(OR(ISBLANK(HLOOKUP($D$3,ResourceInputs!$3:$65536,ResourceInputs!E148)),HLOOKUP($D$3,ResourceInputs!$3:$65536,ResourceInputs!E148)="nonleap"),"",IF((HLOOKUP($D$3,ResourceInputs!$3:$65536,ResourceInputs!$E$16)="Scheduled"),MAX(ROUND(HLOOKUP($D$3,ResourceInputs!$3:$65536,ResourceInputs!E148),0),0),MAX(HLOOKUP($D$3,ResourceInputs!$3:$65536,ResourceInputs!E148),0)))) -> 0
G145: =IF($D$4="N/A","",IF(HLOOKUP($G$11&$D$4,Look_Tbl!$C$6:$ST$8790,Look_Tbl!B140,FALSE)="","",HLOOKUP($G$11&$D$4,Look_Tbl!$C$6:$ST$8790,Look_Tbl!B140,FALSE))) ->  | I145: =IF($D$4="N/A",0,IF(G145="","",HLOOKUP($I$11&$D$4,Look_Tbl!$C$6:$ST$8790,Look_Tbl!B140,FALSE))) -> 0 | J145: =IF($D$4="N/A",0,IF(OR(ISBLANK(HLOOKUP($D$3,ResourceInputs!$3:$65536,ResourceInputs!E149)),HLOOKUP($D$3,ResourceInputs!$3:$65536,ResourceInputs!E149)="nonleap"),"",IF((HLOOKUP($D$3,ResourceInputs!$3:$65536,ResourceInputs!$E$16)="Scheduled"),MAX(ROUND(HLOOKUP($D$3,ResourceInputs!$3:$65536,ResourceInputs!E149),0),0),MAX(HLOOKUP($D$3,ResourceInputs!$3:$65536,ResourceInputs!E149),0)))) -> 0
G146: =IF($D$4="N/A","",IF(HLOOKUP($G$11&$D$4,Look_Tbl!$C$6:$ST$8790,Look_Tbl!B141,FALSE)="","",HLOOKUP($G$11&$D$4,Look_Tbl!$C$6:$ST$8790,Look_Tbl!B141,FALSE))) ->  | I146: =IF($D$4="N/A",0,IF(G146="","",HLOOKUP($I$11&$D$4,Look_Tbl!$C$6:$ST$8790,Look_Tbl!B141,FALSE))) -> 0 | J146: =IF($D$4="N/A",0,IF(OR(ISBLANK(HLOOKUP($D$3,ResourceInputs!$3:$65536,ResourceInputs!E150)),HLOOKUP($D$3,ResourceInputs!$3:$65536,ResourceInputs!E150)="nonleap"),"",IF((HLOOKUP($D$3,ResourceInputs!$3:$65536,ResourceInputs!$E$16)="Scheduled"),MAX(ROUND(HLOOKUP($D$3,ResourceInputs!$3:$65536,ResourceInputs!E150),0),0),MAX(HLOOKUP($D$3,ResourceInputs!$3:$65536,ResourceInputs!E150),0)))) -> 0
G147: =IF($D$4="N/A","",IF(HLOOKUP($G$11&$D$4,Look_Tbl!$C$6:$ST$8790,Look_Tbl!B142,FALSE)="","",HLOOKUP($G$11&$D$4,Look_Tbl!$C$6:$ST$8790,Look_Tbl!B142,FALSE))) ->  | I147: =IF($D$4="N/A",0,IF(G147="","",HLOOKUP($I$11&$D$4,Look_Tbl!$C$6:$ST$8790,Look_Tbl!B142,FALSE))) -> 0 | J147: =IF($D$4="N/A",0,IF(OR(ISBLANK(HLOOKUP($D$3,ResourceInputs!$3:$65536,ResourceInputs!E151)),HLOOKUP($D$3,ResourceInputs!$3:$65536,ResourceInputs!E151)="nonleap"),"",IF((HLOOKUP($D$3,ResourceInputs!$3:$65536,ResourceInputs!$E$16)="Scheduled"),MAX(ROUND(HLOOKUP($D$3,ResourceInputs!$3:$65536,ResourceInputs!E151),0),0),MAX(HLOOKUP($D$3,ResourceInputs!$3:$65536,ResourceInputs!E151),0)))) -> 0
G148: =IF($D$4="N/A","",IF(HLOOKUP($G$11&$D$4,Look_Tbl!$C$6:$ST$8790,Look_Tbl!B143,FALSE)="","",HLOOKUP($G$11&$D$4,Look_Tbl!$C$6:$ST$8790,Look_Tbl!B143,FALSE))) ->  | I148: =IF($D$4="N/A",0,IF(G148="","",HLOOKUP($I$11&$D$4,Look_Tbl!$C$6:$ST$8790,Look_Tbl!B143,FALSE))) -> 0 | J148: =IF($D$4="N/A",0,IF(OR(ISBLANK(HLOOKUP($D$3,ResourceInputs!$3:$65536,ResourceInputs!E152)),HLOOKUP($D$3,ResourceInputs!$3:$65536,ResourceInputs!E152)="nonleap"),"",IF((HLOOKUP($D$3,ResourceInputs!$3:$65536,ResourceInputs!$E$16)="Scheduled"),MAX(ROUND(HLOOKUP($D$3,ResourceInputs!$3:$65536,ResourceInputs!E152),0),0),MAX(HLOOKUP($D$3,ResourceInputs!$3:$65536,ResourceInputs!E152),0)))) -> 0
G149: =IF($D$4="N/A","",IF(HLOOKUP($G$11&$D$4,Look_Tbl!$C$6:$ST$8790,Look_Tbl!B144,FALSE)="","",HLOOKUP($G$11&$D$4,Look_Tbl!$C$6:$ST$8790,Look_Tbl!B144,FALSE))) ->  | I149: =IF($D$4="N/A",0,IF(G149="","",HLOOKUP($I$11&$D$4,Look_Tbl!$C$6:$ST$8790,Look_Tbl!B144,FALSE))) -> 0 | J149: =IF($D$4="N/A",0,IF(OR(ISBLANK(HLOOKUP($D$3,ResourceInputs!$3:$65536,ResourceInputs!E153)),HLOOKUP($D$3,ResourceInputs!$3:$65536,ResourceInputs!E153)="nonleap"),"",IF((HLOOKUP($D$3,ResourceInputs!$3:$65536,ResourceInputs!$E$16)="Scheduled"),MAX(ROUND(HLOOKUP($D$3,ResourceInputs!$3:$65536,ResourceInputs!E153),0),0),MAX(HLOOKUP($D$3,ResourceInputs!$3:$65536,ResourceInputs!E153),0)))) -> 0
G150: =IF($D$4="N/A","",IF(HLOOKUP($G$11&$D$4,Look_Tbl!$C$6:$ST$8790,Look_Tbl!B145,FALSE)="","",HLOOKUP($G$11&$D$4,Look_Tbl!$C$6:$ST$8790,Look_Tbl!B145,FALSE))) ->  | I150: =IF($D$4="N/A",0,IF(G150="","",HLOOKUP($I$11&$D$4,Look_Tbl!$C$6:$ST$8790,Look_Tbl!B145,FALSE))) -> 0 | J150: =IF($D$4="N/A",0,IF(OR(ISBLANK(HLOOKUP($D$3,ResourceInputs!$3:$65536,ResourceInputs!E154)),HLOOKUP($D$3,ResourceInputs!$3:$65536,ResourceInputs!E154)="nonleap"),"",IF((HLOOKUP($D$3,ResourceInputs!$3:$65536,ResourceInputs!$E$16)="Scheduled"),MAX(ROUND(HLOOKUP($D$3,ResourceInputs!$3:$65536,ResourceInputs!E154),0),0),MAX(HLOOKUP($D$3,ResourceInputs!$3:$65536,ResourceInputs!E154),0)))) -> 0
G151: =IF($D$4="N/A","",IF(HLOOKUP($G$11&$D$4,Look_Tbl!$C$6:$ST$8790,Look_Tbl!B146,FALSE)="","",HLOOKUP($G$11&$D$4,Look_Tbl!$C$6:$ST$8790,Look_Tbl!B146,FALSE))) ->  | I151: =IF($D$4="N/A",0,IF(G151="","",HLOOKUP($I$11&$D$4,Look_Tbl!$C$6:$ST$8790,Look_Tbl!B146,FALSE))) -> 0 | J151: =IF($D$4="N/A",0,IF(OR(ISBLANK(HLOOKUP($D$3,ResourceInputs!$3:$65536,ResourceInputs!E155)),HLOOKUP($D$3,ResourceInputs!$3:$65536,ResourceInputs!E155)="nonleap"),"",IF((HLOOKUP($D$3,ResourceInputs!$3:$65536,ResourceInputs!$E$16)="Scheduled"),MAX(ROUND(HLOOKUP($D$3,ResourceInputs!$3:$65536,ResourceInputs!E155),0),0),MAX(HLOOKUP($D$3,ResourceInputs!$3:$65536,ResourceInputs!E155),0)))) -> 0
G152: =IF($D$4="N/A","",IF(HLOOKUP($G$11&$D$4,Look_Tbl!$C$6:$ST$8790,Look_Tbl!B147,FALSE)="","",HLOOKUP($G$11&$D$4,Look_Tbl!$C$6:$ST$8790,Look_Tbl!B147,FALSE))) ->  | I152: =IF($D$4="N/A",0,IF(G152="","",HLOOKUP($I$11&$D$4,Look_Tbl!$C$6:$ST$8790,Look_Tbl!B147,FALSE))) -> 0 | J152: =IF($D$4="N/A",0,IF(OR(ISBLANK(HLOOKUP($D$3,ResourceInputs!$3:$65536,ResourceInputs!E156)),HLOOKUP($D$3,ResourceInputs!$3:$65536,ResourceInputs!E156)="nonleap"),"",IF((HLOOKUP($D$3,ResourceInputs!$3:$65536,ResourceInputs!$E$16)="Scheduled"),MAX(ROUND(HLOOKUP($D$3,ResourceInputs!$3:$65536,ResourceInputs!E156),0),0),MAX(HLOOKUP($D$3,ResourceInputs!$3:$65536,ResourceInputs!E156),0)))) -> 0
G153: =IF($D$4="N/A","",IF(HLOOKUP($G$11&$D$4,Look_Tbl!$C$6:$ST$8790,Look_Tbl!B148,FALSE)="","",HLOOKUP($G$11&$D$4,Look_Tbl!$C$6:$ST$8790,Look_Tbl!B148,FALSE))) ->  | I153: =IF($D$4="N/A",0,IF(G153="","",HLOOKUP($I$11&$D$4,Look_Tbl!$C$6:$ST$8790,Look_Tbl!B148,FALSE))) -> 0 | J153: =IF($D$4="N/A",0,IF(OR(ISBLANK(HLOOKUP($D$3,ResourceInputs!$3:$65536,ResourceInputs!E157)),HLOOKUP($D$3,ResourceInputs!$3:$65536,ResourceInputs!E157)="nonleap"),"",IF((HLOOKUP($D$3,ResourceInputs!$3:$65536,ResourceInputs!$E$16)="Scheduled"),MAX(ROUND(HLOOKUP($D$3,ResourceInputs!$3:$65536,ResourceInputs!E157),0),0),MAX(HLOOKUP($D$3,ResourceInputs!$3:$65536,ResourceInputs!E157),0)))) -> 0
G154: =IF($D$4="N/A","",IF(HLOOKUP($G$11&$D$4,Look_Tbl!$C$6:$ST$8790,Look_Tbl!B149,FALSE)="","",HLOOKUP($G$11&$D$4,Look_Tbl!$C$6:$ST$8790,Look_Tbl!B149,FALSE))) ->  | I154: =IF($D$4="N/A",0,IF(G154="","",HLOOKUP($I$11&$D$4,Look_Tbl!$C$6:$ST$8790,Look_Tbl!B149,FALSE))) -> 0 | J154: =IF($D$4="N/A",0,IF(OR(ISBLANK(HLOOKUP($D$3,ResourceInputs!$3:$65536,ResourceInputs!E158)),HLOOKUP($D$3,ResourceInputs!$3:$65536,ResourceInputs!E158)="nonleap"),"",IF((HLOOKUP($D$3,ResourceInputs!$3:$65536,ResourceInputs!$E$16)="Scheduled"),MAX(ROUND(HLOOKUP($D$3,ResourceInputs!$3:$65536,ResourceInputs!E158),0),0),MAX(HLOOKUP($D$3,ResourceInputs!$3:$65536,ResourceInputs!E158),0)))) -> 0
G155: =IF($D$4="N/A","",IF(HLOOKUP($G$11&$D$4,Look_Tbl!$C$6:$ST$8790,Look_Tbl!B150,FALSE)="","",HLOOKUP($G$11&$D$4,Look_Tbl!$C$6:$ST$8790,Look_Tbl!B150,FALSE))) ->  | I155: =IF($D$4="N/A",0,IF(G155="","",HLOOKUP($I$11&$D$4,Look_Tbl!$C$6:$ST$8790,Look_Tbl!B150,FALSE))) -> 0 | J155: =IF($D$4="N/A",0,IF(OR(ISBLANK(HLOOKUP($D$3,ResourceInputs!$3:$65536,ResourceInputs!E159)),HLOOKUP($D$3,ResourceInputs!$3:$65536,ResourceInputs!E159)="nonleap"),"",IF((HLOOKUP($D$3,ResourceInputs!$3:$65536,ResourceInputs!$E$16)="Scheduled"),MAX(ROUND(HLOOKUP($D$3,ResourceInputs!$3:$65536,ResourceInputs!E159),0),0),MAX(HLOOKUP($D$3,ResourceInputs!$3:$65536,ResourceInputs!E159),0)))) -> 0
G156: =IF($D$4="N/A","",IF(HLOOKUP($G$11&$D$4,Look_Tbl!$C$6:$ST$8790,Look_Tbl!B151,FALSE)="","",HLOOKUP($G$11&$D$4,Look_Tbl!$C$6:$ST$8790,Look_Tbl!B151,FALSE))) ->  | I156: =IF($D$4="N/A",0,IF(G156="","",HLOOKUP($I$11&$D$4,Look_Tbl!$C$6:$ST$8790,Look_Tbl!B151,FALSE))) -> 0 | J156: =IF($D$4="N/A",0,IF(OR(ISBLANK(HLOOKUP($D$3,ResourceInputs!$3:$65536,ResourceInputs!E160)),HLOOKUP($D$3,ResourceInputs!$3:$65536,ResourceInputs!E160)="nonleap"),"",IF((HLOOKUP($D$3,ResourceInputs!$3:$65536,ResourceInputs!$E$16)="Scheduled"),MAX(ROUND(HLOOKUP($D$3,ResourceInputs!$3:$65536,ResourceInputs!E160),0),0),MAX(HLOOKUP($D$3,ResourceInputs!$3:$65536,ResourceInputs!E160),0)))) -> 0
G157: =IF($D$4="N/A","",IF(HLOOKUP($G$11&$D$4,Look_Tbl!$C$6:$ST$8790,Look_Tbl!B152,FALSE)="","",HLOOKUP($G$11&$D$4,Look_Tbl!$C$6:$ST$8790,Look_Tbl!B152,FALSE))) ->  | I157: =IF($D$4="N/A",0,IF(G157="","",HLOOKUP($I$11&$D$4,Look_Tbl!$C$6:$ST$8790,Look_Tbl!B152,FALSE))) -> 0 | J157: =IF($D$4="N/A",0,IF(OR(ISBLANK(HLOOKUP($D$3,ResourceInputs!$3:$65536,ResourceInputs!E161)),HLOOKUP($D$3,ResourceInputs!$3:$65536,ResourceInputs!E161)="nonleap"),"",IF((HLOOKUP($D$3,ResourceInputs!$3:$65536,ResourceInputs!$E$16)="Scheduled"),MAX(ROUND(HLOOKUP($D$3,ResourceInputs!$3:$65536,ResourceInputs!E161),0),0),MAX(HLOOKUP($D$3,ResourceInputs!$3:$65536,ResourceInputs!E161),0)))) -> 0
G158: =IF($D$4="N/A","",IF(HLOOKUP($G$11&$D$4,Look_Tbl!$C$6:$ST$8790,Look_Tbl!B153,FALSE)="","",HLOOKUP($G$11&$D$4,Look_Tbl!$C$6:$ST$8790,Look_Tbl!B153,FALSE))) ->  | I158: =IF($D$4="N/A",0,IF(G158="","",HLOOKUP($I$11&$D$4,Look_Tbl!$C$6:$ST$8790,Look_Tbl!B153,FALSE))) -> 0 | J158: =IF($D$4="N/A",0,IF(OR(ISBLANK(HLOOKUP($D$3,ResourceInputs!$3:$65536,ResourceInputs!E162)),HLOOKUP($D$3,ResourceInputs!$3:$65536,ResourceInputs!E162)="nonleap"),"",IF((HLOOKUP($D$3,ResourceInputs!$3:$65536,ResourceInputs!$E$16)="Scheduled"),MAX(ROUND(HLOOKUP($D$3,ResourceInputs!$3:$65536,ResourceInputs!E162),0),0),MAX(HLOOKUP($D$3,ResourceInputs!$3:$65536,ResourceInputs!E162),0)))) -> 0
G159: =IF($D$4="N/A","",IF(HLOOKUP($G$11&$D$4,Look_Tbl!$C$6:$ST$8790,Look_Tbl!B154,FALSE)="","",HLOOKUP($G$11&$D$4,Look_Tbl!$C$6:$ST$8790,Look_Tbl!B154,FALSE))) ->  | I159: =IF($D$4="N/A",0,IF(G159="","",HLOOKUP($I$11&$D$4,Look_Tbl!$C$6:$ST$8790,Look_Tbl!B154,FALSE))) -> 0 | J159: =IF($D$4="N/A",0,IF(OR(ISBLANK(HLOOKUP($D$3,ResourceInputs!$3:$65536,ResourceInputs!E163)),HLOOKUP($D$3,ResourceInputs!$3:$65536,ResourceInputs!E163)="nonleap"),"",IF((HLOOKUP($D$3,ResourceInputs!$3:$65536,ResourceInputs!$E$16)="Scheduled"),MAX(ROUND(HLOOKUP($D$3,ResourceInputs!$3:$65536,ResourceInputs!E163),0),0),MAX(HLOOKUP($D$3,ResourceInputs!$3:$65536,ResourceInputs!E163),0)))) -> 0
G160: =IF($D$4="N/A","",IF(HLOOKUP($G$11&$D$4,Look_Tbl!$C$6:$ST$8790,Look_Tbl!B155,FALSE)="","",HLOOKUP($G$11&$D$4,Look_Tbl!$C$6:$ST$8790,Look_Tbl!B155,FALSE))) ->  | I160: =IF($D$4="N/A",0,IF(G160="","",HLOOKUP($I$11&$D$4,Look_Tbl!$C$6:$ST$8790,Look_Tbl!B155,FALSE))) -> 0 | J160: =IF($D$4="N/A",0,IF(OR(ISBLANK(HLOOKUP($D$3,ResourceInputs!$3:$65536,ResourceInputs!E164)),HLOOKUP($D$3,ResourceInputs!$3:$65536,ResourceInputs!E164)="nonleap"),"",IF((HLOOKUP($D$3,ResourceInputs!$3:$65536,ResourceInputs!$E$16)="Scheduled"),MAX(ROUND(HLOOKUP($D$3,ResourceInputs!$3:$65536,ResourceInputs!E164),0),0),MAX(HLOOKUP($D$3,ResourceInputs!$3:$65536,ResourceInputs!E164),0)))) -> 0
G161: =IF($D$4="N/A","",IF(HLOOKUP($G$11&$D$4,Look_Tbl!$C$6:$ST$8790,Look_Tbl!B156,FALSE)="","",HLOOKUP($G$11&$D$4,Look_Tbl!$C$6:$ST$8790,Look_Tbl!B156,FALSE))) ->  | I161: =IF($D$4="N/A",0,IF(G161="","",HLOOKUP($I$11&$D$4,Look_Tbl!$C$6:$ST$8790,Look_Tbl!B156,FALSE))) -> 0 | J161: =IF($D$4="N/A",0,IF(OR(ISBLANK(HLOOKUP($D$3,ResourceInputs!$3:$65536,ResourceInputs!E165)),HLOOKUP($D$3,ResourceInputs!$3:$65536,ResourceInputs!E165)="nonleap"),"",IF((HLOOKUP($D$3,ResourceInputs!$3:$65536,ResourceInputs!$E$16)="Scheduled"),MAX(ROUND(HLOOKUP($D$3,ResourceInputs!$3:$65536,ResourceInputs!E165),0),0),MAX(HLOOKUP($D$3,ResourceInputs!$3:$65536,ResourceInputs!E165),0)))) -> 0
G162: =IF($D$4="N/A","",IF(HLOOKUP($G$11&$D$4,Look_Tbl!$C$6:$ST$8790,Look_Tbl!B157,FALSE)="","",HLOOKUP($G$11&$D$4,Look_Tbl!$C$6:$ST$8790,Look_Tbl!B157,FALSE))) ->  | I162: =IF($D$4="N/A",0,IF(G162="","",HLOOKUP($I$11&$D$4,Look_Tbl!$C$6:$ST$8790,Look_Tbl!B157,FALSE))) -> 0 | J162: =IF($D$4="N/A",0,IF(OR(ISBLANK(HLOOKUP($D$3,ResourceInputs!$3:$65536,ResourceInputs!E166)),HLOOKUP($D$3,ResourceInputs!$3:$65536,ResourceInputs!E166)="nonleap"),"",IF((HLOOKUP($D$3,ResourceInputs!$3:$65536,ResourceInputs!$E$16)="Scheduled"),MAX(ROUND(HLOOKUP($D$3,ResourceInputs!$3:$65536,ResourceInputs!E166),0),0),MAX(HLOOKUP($D$3,ResourceInputs!$3:$65536,ResourceInputs!E166),0)))) -> 0
G163: =IF($D$4="N/A","",IF(HLOOKUP($G$11&$D$4,Look_Tbl!$C$6:$ST$8790,Look_Tbl!B158,FALSE)="","",HLOOKUP($G$11&$D$4,Look_Tbl!$C$6:$ST$8790,Look_Tbl!B158,FALSE))) ->  | I163: =IF($D$4="N/A",0,IF(G163="","",HLOOKUP($I$11&$D$4,Look_Tbl!$C$6:$ST$8790,Look_Tbl!B158,FALSE))) -> 0 | J163: =IF($D$4="N/A",0,IF(OR(ISBLANK(HLOOKUP($D$3,ResourceInputs!$3:$65536,ResourceInputs!E167)),HLOOKUP($D$3,ResourceInputs!$3:$65536,ResourceInputs!E167)="nonleap"),"",IF((HLOOKUP($D$3,ResourceInputs!$3:$65536,ResourceInputs!$E$16)="Scheduled"),MAX(ROUND(HLOOKUP($D$3,ResourceInputs!$3:$65536,ResourceInputs!E167),0),0),MAX(HLOOKUP($D$3,ResourceInputs!$3:$65536,ResourceInputs!E167),0)))) -> 0
G164: =IF($D$4="N/A","",IF(HLOOKUP($G$11&$D$4,Look_Tbl!$C$6:$ST$8790,Look_Tbl!B159,FALSE)="","",HLOOKUP($G$11&$D$4,Look_Tbl!$C$6:$ST$8790,Look_Tbl!B159,FALSE))) ->  | I164: =IF($D$4="N/A",0,IF(G164="","",HLOOKUP($I$11&$D$4,Look_Tbl!$C$6:$ST$8790,Look_Tbl!B159,FALSE))) -> 0 | J164: =IF($D$4="N/A",0,IF(OR(ISBLANK(HLOOKUP($D$3,ResourceInputs!$3:$65536,ResourceInputs!E168)),HLOOKUP($D$3,ResourceInputs!$3:$65536,ResourceInputs!E168)="nonleap"),"",IF((HLOOKUP($D$3,ResourceInputs!$3:$65536,ResourceInputs!$E$16)="Scheduled"),MAX(ROUND(HLOOKUP($D$3,ResourceInputs!$3:$65536,ResourceInputs!E168),0),0),MAX(HLOOKUP($D$3,ResourceInputs!$3:$65536,ResourceInputs!E168),0)))) -> 0
G165: =IF($D$4="N/A","",IF(HLOOKUP($G$11&$D$4,Look_Tbl!$C$6:$ST$8790,Look_Tbl!B160,FALSE)="","",HLOOKUP($G$11&$D$4,Look_Tbl!$C$6:$ST$8790,Look_Tbl!B160,FALSE))) ->  | I165: =IF($D$4="N/A",0,IF(G165="","",HLOOKUP($I$11&$D$4,Look_Tbl!$C$6:$ST$8790,Look_Tbl!B160,FALSE))) -> 0 | J165: =IF($D$4="N/A",0,IF(OR(ISBLANK(HLOOKUP($D$3,ResourceInputs!$3:$65536,ResourceInputs!E169)),HLOOKUP($D$3,ResourceInputs!$3:$65536,ResourceInputs!E169)="nonleap"),"",IF((HLOOKUP($D$3,ResourceInputs!$3:$65536,ResourceInputs!$E$16)="Scheduled"),MAX(ROUND(HLOOKUP($D$3,ResourceInputs!$3:$65536,ResourceInputs!E169),0),0),MAX(HLOOKUP($D$3,ResourceInputs!$3:$65536,ResourceInputs!E169),0)))) -> 0
G166: =IF($D$4="N/A","",IF(HLOOKUP($G$11&$D$4,Look_Tbl!$C$6:$ST$8790,Look_Tbl!B161,FALSE)="","",HLOOKUP($G$11&$D$4,Look_Tbl!$C$6:$ST$8790,Look_Tbl!B161,FALSE))) ->  | I166: =IF($D$4="N/A",0,IF(G166="","",HLOOKUP($I$11&$D$4,Look_Tbl!$C$6:$ST$8790,Look_Tbl!B161,FALSE))) -> 0 | J166: =IF($D$4="N/A",0,IF(OR(ISBLANK(HLOOKUP($D$3,ResourceInputs!$3:$65536,ResourceInputs!E170)),HLOOKUP($D$3,ResourceInputs!$3:$65536,ResourceInputs!E170)="nonleap"),"",IF((HLOOKUP($D$3,ResourceInputs!$3:$65536,ResourceInputs!$E$16)="Scheduled"),MAX(ROUND(HLOOKUP($D$3,ResourceInputs!$3:$65536,ResourceInputs!E170),0),0),MAX(HLOOKUP($D$3,ResourceInputs!$3:$65536,ResourceInputs!E170),0)))) -> 0
G167: =IF($D$4="N/A","",IF(HLOOKUP($G$11&$D$4,Look_Tbl!$C$6:$ST$8790,Look_Tbl!B162,FALSE)="","",HLOOKUP($G$11&$D$4,Look_Tbl!$C$6:$ST$8790,Look_Tbl!B162,FALSE))) ->  | I167: =IF($D$4="N/A",0,IF(G167="","",HLOOKUP($I$11&$D$4,Look_Tbl!$C$6:$ST$8790,Look_Tbl!B162,FALSE))) -> 0 | J167: =IF($D$4="N/A",0,IF(OR(ISBLANK(HLOOKUP($D$3,ResourceInputs!$3:$65536,ResourceInputs!E171)),HLOOKUP($D$3,ResourceInputs!$3:$65536,ResourceInputs!E171)="nonleap"),"",IF((HLOOKUP($D$3,ResourceInputs!$3:$65536,ResourceInputs!$E$16)="Scheduled"),MAX(ROUND(HLOOKUP($D$3,ResourceInputs!$3:$65536,ResourceInputs!E171),0),0),MAX(HLOOKUP($D$3,ResourceInputs!$3:$65536,ResourceInputs!E171),0)))) -> 0
G168: =IF($D$4="N/A","",IF(HLOOKUP($G$11&$D$4,Look_Tbl!$C$6:$ST$8790,Look_Tbl!B163,FALSE)="","",HLOOKUP($G$11&$D$4,Look_Tbl!$C$6:$ST$8790,Look_Tbl!B163,FALSE))) ->  | I168: =IF($D$4="N/A",0,IF(G168="","",HLOOKUP($I$11&$D$4,Look_Tbl!$C$6:$ST$8790,Look_Tbl!B163,FALSE))) -> 0 | J168: =IF($D$4="N/A",0,IF(OR(ISBLANK(HLOOKUP($D$3,ResourceInputs!$3:$65536,ResourceInputs!E172)),HLOOKUP($D$3,ResourceInputs!$3:$65536,ResourceInputs!E172)="nonleap"),"",IF((HLOOKUP($D$3,ResourceInputs!$3:$65536,ResourceInputs!$E$16)="Scheduled"),MAX(ROUND(HLOOKUP($D$3,ResourceInputs!$3:$65536,ResourceInputs!E172),0),0),MAX(HLOOKUP($D$3,ResourceInputs!$3:$65536,ResourceInputs!E172),0)))) -> 0
G169: =IF($D$4="N/A","",IF(HLOOKUP($G$11&$D$4,Look_Tbl!$C$6:$ST$8790,Look_Tbl!B164,FALSE)="","",HLOOKUP($G$11&$D$4,Look_Tbl!$C$6:$ST$8790,Look_Tbl!B164,FALSE))) ->  | I169: =IF($D$4="N/A",0,IF(G169="","",HLOOKUP($I$11&$D$4,Look_Tbl!$C$6:$ST$8790,Look_Tbl!B164,FALSE))) -> 0 | J169: =IF($D$4="N/A",0,IF(OR(ISBLANK(HLOOKUP($D$3,ResourceInputs!$3:$65536,ResourceInputs!E173)),HLOOKUP($D$3,ResourceInputs!$3:$65536,ResourceInputs!E173)="nonleap"),"",IF((HLOOKUP($D$3,ResourceInputs!$3:$65536,ResourceInputs!$E$16)="Scheduled"),MAX(ROUND(HLOOKUP($D$3,ResourceInputs!$3:$65536,ResourceInputs!E173),0),0),MAX(HLOOKUP($D$3,ResourceInputs!$3:$65536,ResourceInputs!E173),0)))) -> 0
G170: =IF($D$4="N/A","",IF(HLOOKUP($G$11&$D$4,Look_Tbl!$C$6:$ST$8790,Look_Tbl!B165,FALSE)="","",HLOOKUP($G$11&$D$4,Look_Tbl!$C$6:$ST$8790,Look_Tbl!B165,FALSE))) ->  | I170: =IF($D$4="N/A",0,IF(G170="","",HLOOKUP($I$11&$D$4,Look_Tbl!$C$6:$ST$8790,Look_Tbl!B165,FALSE))) -> 0 | J170: =IF($D$4="N/A",0,IF(OR(ISBLANK(HLOOKUP($D$3,ResourceInputs!$3:$65536,ResourceInputs!E174)),HLOOKUP($D$3,ResourceInputs!$3:$65536,ResourceInputs!E174)="nonleap"),"",IF((HLOOKUP($D$3,ResourceInputs!$3:$65536,ResourceInputs!$E$16)="Scheduled"),MAX(ROUND(HLOOKUP($D$3,ResourceInputs!$3:$65536,ResourceInputs!E174),0),0),MAX(HLOOKUP($D$3,ResourceInputs!$3:$65536,ResourceInputs!E174),0)))) -> 0
G171: =IF($D$4="N/A","",IF(HLOOKUP($G$11&$D$4,Look_Tbl!$C$6:$ST$8790,Look_Tbl!B166,FALSE)="","",HLOOKUP($G$11&$D$4,Look_Tbl!$C$6:$ST$8790,Look_Tbl!B166,FALSE))) ->  | I171: =IF($D$4="N/A",0,IF(G171="","",HLOOKUP($I$11&$D$4,Look_Tbl!$C$6:$ST$8790,Look_Tbl!B166,FALSE))) -> 0 | J171: =IF($D$4="N/A",0,IF(OR(ISBLANK(HLOOKUP($D$3,ResourceInputs!$3:$65536,ResourceInputs!E175)),HLOOKUP($D$3,ResourceInputs!$3:$65536,ResourceInputs!E175)="nonleap"),"",IF((HLOOKUP($D$3,ResourceInputs!$3:$65536,ResourceInputs!$E$16)="Scheduled"),MAX(ROUND(HLOOKUP($D$3,ResourceInputs!$3:$65536,ResourceInputs!E175),0),0),MAX(HLOOKUP($D$3,ResourceInputs!$3:$65536,ResourceInputs!E175),0)))) -> 0
G172: =IF($D$4="N/A","",IF(HLOOKUP($G$11&$D$4,Look_Tbl!$C$6:$ST$8790,Look_Tbl!B167,FALSE)="","",HLOOKUP($G$11&$D$4,Look_Tbl!$C$6:$ST$8790,Look_Tbl!B167,FALSE))) ->  | I172: =IF($D$4="N/A",0,IF(G172="","",HLOOKUP($I$11&$D$4,Look_Tbl!$C$6:$ST$8790,Look_Tbl!B167,FALSE))) -> 0 | J172: =IF($D$4="N/A",0,IF(OR(ISBLANK(HLOOKUP($D$3,ResourceInputs!$3:$65536,ResourceInputs!E176)),HLOOKUP($D$3,ResourceInputs!$3:$65536,ResourceInputs!E176)="nonleap"),"",IF((HLOOKUP($D$3,ResourceInputs!$3:$65536,ResourceInputs!$E$16)="Scheduled"),MAX(ROUND(HLOOKUP($D$3,ResourceInputs!$3:$65536,ResourceInputs!E176),0),0),MAX(HLOOKUP($D$3,ResourceInputs!$3:$65536,ResourceInputs!E176),0)))) -> 0
G173: =IF($D$4="N/A","",IF(HLOOKUP($G$11&$D$4,Look_Tbl!$C$6:$ST$8790,Look_Tbl!B168,FALSE)="","",HLOOKUP($G$11&$D$4,Look_Tbl!$C$6:$ST$8790,Look_Tbl!B168,FALSE))) ->  | I173: =IF($D$4="N/A",0,IF(G173="","",HLOOKUP($I$11&$D$4,Look_Tbl!$C$6:$ST$8790,Look_Tbl!B168,FALSE))) -> 0 | J173: =IF($D$4="N/A",0,IF(OR(ISBLANK(HLOOKUP($D$3,ResourceInputs!$3:$65536,ResourceInputs!E177)),HLOOKUP($D$3,ResourceInputs!$3:$65536,ResourceInputs!E177)="nonleap"),"",IF((HLOOKUP($D$3,ResourceInputs!$3:$65536,ResourceInputs!$E$16)="Scheduled"),MAX(ROUND(HLOOKUP($D$3,ResourceInputs!$3:$65536,ResourceInputs!E177),0),0),MAX(HLOOKUP($D$3,ResourceInputs!$3:$65536,ResourceInputs!E177),0)))) -> 0
G174: =IF($D$4="N/A","",IF(HLOOKUP($G$11&$D$4,Look_Tbl!$C$6:$ST$8790,Look_Tbl!B169,FALSE)="","",HLOOKUP($G$11&$D$4,Look_Tbl!$C$6:$ST$8790,Look_Tbl!B169,FALSE))) ->  | I174: =IF($D$4="N/A",0,IF(G174="","",HLOOKUP($I$11&$D$4,Look_Tbl!$C$6:$ST$8790,Look_Tbl!B169,FALSE))) -> 0 | J174: =IF($D$4="N/A",0,IF(OR(ISBLANK(HLOOKUP($D$3,ResourceInputs!$3:$65536,ResourceInputs!E178)),HLOOKUP($D$3,ResourceInputs!$3:$65536,ResourceInputs!E178)="nonleap"),"",IF((HLOOKUP($D$3,ResourceInputs!$3:$65536,ResourceInputs!$E$16)="Scheduled"),MAX(ROUND(HLOOKUP($D$3,ResourceInputs!$3:$65536,ResourceInputs!E178),0),0),MAX(HLOOKUP($D$3,ResourceInputs!$3:$65536,ResourceInputs!E178),0)))) -> 0
G175: =IF($D$4="N/A","",IF(HLOOKUP($G$11&$D$4,Look_Tbl!$C$6:$ST$8790,Look_Tbl!B170,FALSE)="","",HLOOKUP($G$11&$D$4,Look_Tbl!$C$6:$ST$8790,Look_Tbl!B170,FALSE))) ->  | I175: =IF($D$4="N/A",0,IF(G175="","",HLOOKUP($I$11&$D$4,Look_Tbl!$C$6:$ST$8790,Look_Tbl!B170,FALSE))) -> 0 | J175: =IF($D$4="N/A",0,IF(OR(ISBLANK(HLOOKUP($D$3,ResourceInputs!$3:$65536,ResourceInputs!E179)),HLOOKUP($D$3,ResourceInputs!$3:$65536,ResourceInputs!E179)="nonleap"),"",IF((HLOOKUP($D$3,ResourceInputs!$3:$65536,ResourceInputs!$E$16)="Scheduled"),MAX(ROUND(HLOOKUP($D$3,ResourceInputs!$3:$65536,ResourceInputs!E179),0),0),MAX(HLOOKUP($D$3,ResourceInputs!$3:$65536,ResourceInputs!E179),0)))) -> 0
G176: =IF($D$4="N/A","",IF(HLOOKUP($G$11&$D$4,Look_Tbl!$C$6:$ST$8790,Look_Tbl!B171,FALSE)="","",HLOOKUP($G$11&$D$4,Look_Tbl!$C$6:$ST$8790,Look_Tbl!B171,FALSE))) ->  | I176: =IF($D$4="N/A",0,IF(G176="","",HLOOKUP($I$11&$D$4,Look_Tbl!$C$6:$ST$8790,Look_Tbl!B171,FALSE))) -> 0 | J176: =IF($D$4="N/A",0,IF(OR(ISBLANK(HLOOKUP($D$3,ResourceInputs!$3:$65536,ResourceInputs!E180)),HLOOKUP($D$3,ResourceInputs!$3:$65536,ResourceInputs!E180)="nonleap"),"",IF((HLOOKUP($D$3,ResourceInputs!$3:$65536,ResourceInputs!$E$16)="Scheduled"),MAX(ROUND(HLOOKUP($D$3,ResourceInputs!$3:$65536,ResourceInputs!E180),0),0),MAX(HLOOKUP($D$3,ResourceInputs!$3:$65536,ResourceInputs!E180),0)))) -> 0
G177: =IF($D$4="N/A","",IF(HLOOKUP($G$11&$D$4,Look_Tbl!$C$6:$ST$8790,Look_Tbl!B172,FALSE)="","",HLOOKUP($G$11&$D$4,Look_Tbl!$C$6:$ST$8790,Look_Tbl!B172,FALSE))) ->  | I177: =IF($D$4="N/A",0,IF(G177="","",HLOOKUP($I$11&$D$4,Look_Tbl!$C$6:$ST$8790,Look_Tbl!B172,FALSE))) -> 0 | J177: =IF($D$4="N/A",0,IF(OR(ISBLANK(HLOOKUP($D$3,ResourceInputs!$3:$65536,ResourceInputs!E181)),HLOOKUP($D$3,ResourceInputs!$3:$65536,ResourceInputs!E181)="nonleap"),"",IF((HLOOKUP($D$3,ResourceInputs!$3:$65536,ResourceInputs!$E$16)="Scheduled"),MAX(ROUND(HLOOKUP($D$3,ResourceInputs!$3:$65536,ResourceInputs!E181),0),0),MAX(HLOOKUP($D$3,ResourceInputs!$3:$65536,ResourceInputs!E181),0)))) -> 0
G178: =IF($D$4="N/A","",IF(HLOOKUP($G$11&$D$4,Look_Tbl!$C$6:$ST$8790,Look_Tbl!B173,FALSE)="","",HLOOKUP($G$11&$D$4,Look_Tbl!$C$6:$ST$8790,Look_Tbl!B173,FALSE))) ->  | I178: =IF($D$4="N/A",0,IF(G178="","",HLOOKUP($I$11&$D$4,Look_Tbl!$C$6:$ST$8790,Look_Tbl!B173,FALSE))) -> 0 | J178: =IF($D$4="N/A",0,IF(OR(ISBLANK(HLOOKUP($D$3,ResourceInputs!$3:$65536,ResourceInputs!E182)),HLOOKUP($D$3,ResourceInputs!$3:$65536,ResourceInputs!E182)="nonleap"),"",IF((HLOOKUP($D$3,ResourceInputs!$3:$65536,ResourceInputs!$E$16)="Scheduled"),MAX(ROUND(HLOOKUP($D$3,ResourceInputs!$3:$65536,ResourceInputs!E182),0),0),MAX(HLOOKUP($D$3,ResourceInputs!$3:$65536,ResourceInputs!E182),0)))) -> 0
G179: =IF($D$4="N/A","",IF(HLOOKUP($G$11&$D$4,Look_Tbl!$C$6:$ST$8790,Look_Tbl!B174,FALSE)="","",HLOOKUP($G$11&$D$4,Look_Tbl!$C$6:$ST$8790,Look_Tbl!B174,FALSE))) ->  | I179: =IF($D$4="N/A",0,IF(G179="","",HLOOKUP($I$11&$D$4,Look_Tbl!$C$6:$ST$8790,Look_Tbl!B174,FALSE))) -> 0 | J179: =IF($D$4="N/A",0,IF(OR(ISBLANK(HLOOKUP($D$3,ResourceInputs!$3:$65536,ResourceInputs!E183)),HLOOKUP($D$3,ResourceInputs!$3:$65536,ResourceInputs!E183)="nonleap"),"",IF((HLOOKUP($D$3,ResourceInputs!$3:$65536,ResourceInputs!$E$16)="Scheduled"),MAX(ROUND(HLOOKUP($D$3,ResourceInputs!$3:$65536,ResourceInputs!E183),0),0),MAX(HLOOKUP($D$3,ResourceInputs!$3:$65536,ResourceInputs!E183),0)))) -> 0
G180: =IF($D$4="N/A","",IF(HLOOKUP($G$11&$D$4,Look_Tbl!$C$6:$ST$8790,Look_Tbl!B175,FALSE)="","",HLOOKUP($G$11&$D$4,Look_Tbl!$C$6:$ST$8790,Look_Tbl!B175,FALSE))) ->  | I180: =IF($D$4="N/A",0,IF(G180="","",HLOOKUP($I$11&$D$4,Look_Tbl!$C$6:$ST$8790,Look_Tbl!B175,FALSE))) -> 0 | J180: =IF($D$4="N/A",0,IF(OR(ISBLANK(HLOOKUP($D$3,ResourceInputs!$3:$65536,ResourceInputs!E184)),HLOOKUP($D$3,ResourceInputs!$3:$65536,ResourceInputs!E184)="nonleap"),"",IF((HLOOKUP($D$3,ResourceInputs!$3:$65536,ResourceInputs!$E$16)="Scheduled"),MAX(ROUND(HLOOKUP($D$3,ResourceInputs!$3:$65536,ResourceInputs!E184),0),0),MAX(HLOOKUP($D$3,ResourceInputs!$3:$65536,ResourceInputs!E184),0)))) -> 0
G181: =IF($D$4="N/A","",IF(HLOOKUP($G$11&$D$4,Look_Tbl!$C$6:$ST$8790,Look_Tbl!B176,FALSE)="","",HLOOKUP($G$11&$D$4,Look_Tbl!$C$6:$ST$8790,Look_Tbl!B176,FALSE))) ->  | I181: =IF($D$4="N/A",0,IF(G181="","",HLOOKUP($I$11&$D$4,Look_Tbl!$C$6:$ST$8790,Look_Tbl!B176,FALSE))) -> 0 | J181: =IF($D$4="N/A",0,IF(OR(ISBLANK(HLOOKUP($D$3,ResourceInputs!$3:$65536,ResourceInputs!E185)),HLOOKUP($D$3,ResourceInputs!$3:$65536,ResourceInputs!E185)="nonleap"),"",IF((HLOOKUP($D$3,ResourceInputs!$3:$65536,ResourceInputs!$E$16)="Scheduled"),MAX(ROUND(HLOOKUP($D$3,ResourceInputs!$3:$65536,ResourceInputs!E185),0),0),MAX(HLOOKUP($D$3,ResourceInputs!$3:$65536,ResourceInputs!E185),0)))) -> 0
G182: =IF($D$4="N/A","",IF(HLOOKUP($G$11&$D$4,Look_Tbl!$C$6:$ST$8790,Look_Tbl!B177,FALSE)="","",HLOOKUP($G$11&$D$4,Look_Tbl!$C$6:$ST$8790,Look_Tbl!B177,FALSE))) ->  | I182: =IF($D$4="N/A",0,IF(G182="","",HLOOKUP($I$11&$D$4,Look_Tbl!$C$6:$ST$8790,Look_Tbl!B177,FALSE))) -> 0 | J182: =IF($D$4="N/A",0,IF(OR(ISBLANK(HLOOKUP($D$3,ResourceInputs!$3:$65536,ResourceInputs!E186)),HLOOKUP($D$3,ResourceInputs!$3:$65536,ResourceInputs!E186)="nonleap"),"",IF((HLOOKUP($D$3,ResourceInputs!$3:$65536,ResourceInputs!$E$16)="Scheduled"),MAX(ROUND(HLOOKUP($D$3,ResourceInputs!$3:$65536,ResourceInputs!E186),0),0),MAX(HLOOKUP($D$3,ResourceInputs!$3:$65536,ResourceInputs!E186),0)))) -> 0
G183: =IF($D$4="N/A","",IF(HLOOKUP($G$11&$D$4,Look_Tbl!$C$6:$ST$8790,Look_Tbl!B178,FALSE)="","",HLOOKUP($G$11&$D$4,Look_Tbl!$C$6:$ST$8790,Look_Tbl!B178,FALSE))) ->  | I183: =IF($D$4="N/A",0,IF(G183="","",HLOOKUP($I$11&$D$4,Look_Tbl!$C$6:$ST$8790,Look_Tbl!B178,FALSE))) -> 0 | J183: =IF($D$4="N/A",0,IF(OR(ISBLANK(HLOOKUP($D$3,ResourceInputs!$3:$65536,ResourceInputs!E187)),HLOOKUP($D$3,ResourceInputs!$3:$65536,ResourceInputs!E187)="nonleap"),"",IF((HLOOKUP($D$3,ResourceInputs!$3:$65536,ResourceInputs!$E$16)="Scheduled"),MAX(ROUND(HLOOKUP($D$3,ResourceInputs!$3:$65536,ResourceInputs!E187),0),0),MAX(HLOOKUP($D$3,ResourceInputs!$3:$65536,ResourceInputs!E187),0)))) -> 0
G184: =IF($D$4="N/A","",IF(HLOOKUP($G$11&$D$4,Look_Tbl!$C$6:$ST$8790,Look_Tbl!B179,FALSE)="","",HLOOKUP($G$11&$D$4,Look_Tbl!$C$6:$ST$8790,Look_Tbl!B179,FALSE))) ->  | I184: =IF($D$4="N/A",0,IF(G184="","",HLOOKUP($I$11&$D$4,Look_Tbl!$C$6:$ST$8790,Look_Tbl!B179,FALSE))) -> 0 | J184: =IF($D$4="N/A",0,IF(OR(ISBLANK(HLOOKUP($D$3,ResourceInputs!$3:$65536,ResourceInputs!E188)),HLOOKUP($D$3,ResourceInputs!$3:$65536,ResourceInputs!E188)="nonleap"),"",IF((HLOOKUP($D$3,ResourceInputs!$3:$65536,ResourceInputs!$E$16)="Scheduled"),MAX(ROUND(HLOOKUP($D$3,ResourceInputs!$3:$65536,ResourceInputs!E188),0),0),MAX(HLOOKUP($D$3,ResourceInputs!$3:$65536,ResourceInputs!E188),0)))) -> 0
G185: =IF($D$4="N/A","",IF(HLOOKUP($G$11&$D$4,Look_Tbl!$C$6:$ST$8790,Look_Tbl!B180,FALSE)="","",HLOOKUP($G$11&$D$4,Look_Tbl!$C$6:$ST$8790,Look_Tbl!B180,FALSE))) ->  | I185: =IF($D$4="N/A",0,IF(G185="","",HLOOKUP($I$11&$D$4,Look_Tbl!$C$6:$ST$8790,Look_Tbl!B180,FALSE))) -> 0 | J185: =IF($D$4="N/A",0,IF(OR(ISBLANK(HLOOKUP($D$3,ResourceInputs!$3:$65536,ResourceInputs!E189)),HLOOKUP($D$3,ResourceInputs!$3:$65536,ResourceInputs!E189)="nonleap"),"",IF((HLOOKUP($D$3,ResourceInputs!$3:$65536,ResourceInputs!$E$16)="Scheduled"),MAX(ROUND(HLOOKUP($D$3,ResourceInputs!$3:$65536,ResourceInputs!E189),0),0),MAX(HLOOKUP($D$3,ResourceInputs!$3:$65536,ResourceInputs!E189),0)))) -> 0
G186: =IF($D$4="N/A","",IF(HLOOKUP($G$11&$D$4,Look_Tbl!$C$6:$ST$8790,Look_Tbl!B181,FALSE)="","",HLOOKUP($G$11&$D$4,Look_Tbl!$C$6:$ST$8790,Look_Tbl!B181,FALSE))) ->  | I186: =IF($D$4="N/A",0,IF(G186="","",HLOOKUP($I$11&$D$4,Look_Tbl!$C$6:$ST$8790,Look_Tbl!B181,FALSE))) -> 0 | J186: =IF($D$4="N/A",0,IF(OR(ISBLANK(HLOOKUP($D$3,ResourceInputs!$3:$65536,ResourceInputs!E190)),HLOOKUP($D$3,ResourceInputs!$3:$65536,ResourceInputs!E190)="nonleap"),"",IF((HLOOKUP($D$3,ResourceInputs!$3:$65536,ResourceInputs!$E$16)="Scheduled"),MAX(ROUND(HLOOKUP($D$3,ResourceInputs!$3:$65536,ResourceInputs!E190),0),0),MAX(HLOOKUP($D$3,ResourceInputs!$3:$65536,ResourceInputs!E190),0)))) -> 0
G187: =IF($D$4="N/A","",IF(HLOOKUP($G$11&$D$4,Look_Tbl!$C$6:$ST$8790,Look_Tbl!B182,FALSE)="","",HLOOKUP($G$11&$D$4,Look_Tbl!$C$6:$ST$8790,Look_Tbl!B182,FALSE))) ->  | I187: =IF($D$4="N/A",0,IF(G187="","",HLOOKUP($I$11&$D$4,Look_Tbl!$C$6:$ST$8790,Look_Tbl!B182,FALSE))) -> 0 | J187: =IF($D$4="N/A",0,IF(OR(ISBLANK(HLOOKUP($D$3,ResourceInputs!$3:$65536,ResourceInputs!E191)),HLOOKUP($D$3,ResourceInputs!$3:$65536,ResourceInputs!E191)="nonleap"),"",IF((HLOOKUP($D$3,ResourceInputs!$3:$65536,ResourceInputs!$E$16)="Scheduled"),MAX(ROUND(HLOOKUP($D$3,ResourceInputs!$3:$65536,ResourceInputs!E191),0),0),MAX(HLOOKUP($D$3,ResourceInputs!$3:$65536,ResourceInputs!E191),0)))) -> 0
G188: =IF($D$4="N/A","",IF(HLOOKUP($G$11&$D$4,Look_Tbl!$C$6:$ST$8790,Look_Tbl!B183,FALSE)="","",HLOOKUP($G$11&$D$4,Look_Tbl!$C$6:$ST$8790,Look_Tbl!B183,FALSE))) ->  | I188: =IF($D$4="N/A",0,IF(G188="","",HLOOKUP($I$11&$D$4,Look_Tbl!$C$6:$ST$8790,Look_Tbl!B183,FALSE))) -> 0 | J188: =IF($D$4="N/A",0,IF(OR(ISBLANK(HLOOKUP($D$3,ResourceInputs!$3:$65536,ResourceInputs!E192)),HLOOKUP($D$3,ResourceInputs!$3:$65536,ResourceInputs!E192)="nonleap"),"",IF((HLOOKUP($D$3,ResourceInputs!$3:$65536,ResourceInputs!$E$16)="Scheduled"),MAX(ROUND(HLOOKUP($D$3,ResourceInputs!$3:$65536,ResourceInputs!E192),0),0),MAX(HLOOKUP($D$3,ResourceInputs!$3:$65536,ResourceInputs!E192),0)))) -> 0
G189: =IF($D$4="N/A","",IF(HLOOKUP($G$11&$D$4,Look_Tbl!$C$6:$ST$8790,Look_Tbl!B184,FALSE)="","",HLOOKUP($G$11&$D$4,Look_Tbl!$C$6:$ST$8790,Look_Tbl!B184,FALSE))) ->  | I189: =IF($D$4="N/A",0,IF(G189="","",HLOOKUP($I$11&$D$4,Look_Tbl!$C$6:$ST$8790,Look_Tbl!B184,FALSE))) -> 0 | J189: =IF($D$4="N/A",0,IF(OR(ISBLANK(HLOOKUP($D$3,ResourceInputs!$3:$65536,ResourceInputs!E193)),HLOOKUP($D$3,ResourceInputs!$3:$65536,ResourceInputs!E193)="nonleap"),"",IF((HLOOKUP($D$3,ResourceInputs!$3:$65536,ResourceInputs!$E$16)="Scheduled"),MAX(ROUND(HLOOKUP($D$3,ResourceInputs!$3:$65536,ResourceInputs!E193),0),0),MAX(HLOOKUP($D$3,ResourceInputs!$3:$65536,ResourceInputs!E193),0)))) -> 0
G190: =IF($D$4="N/A","",IF(HLOOKUP($G$11&$D$4,Look_Tbl!$C$6:$ST$8790,Look_Tbl!B185,FALSE)="","",HLOOKUP($G$11&$D$4,Look_Tbl!$C$6:$ST$8790,Look_Tbl!B185,FALSE))) ->  | I190: =IF($D$4="N/A",0,IF(G190="","",HLOOKUP($I$11&$D$4,Look_Tbl!$C$6:$ST$8790,Look_Tbl!B185,FALSE))) -> 0 | J190: =IF($D$4="N/A",0,IF(OR(ISBLANK(HLOOKUP($D$3,ResourceInputs!$3:$65536,ResourceInputs!E194)),HLOOKUP($D$3,ResourceInputs!$3:$65536,ResourceInputs!E194)="nonleap"),"",IF((HLOOKUP($D$3,ResourceInputs!$3:$65536,ResourceInputs!$E$16)="Scheduled"),MAX(ROUND(HLOOKUP($D$3,ResourceInputs!$3:$65536,ResourceInputs!E194),0),0),MAX(HLOOKUP($D$3,ResourceInputs!$3:$65536,ResourceInputs!E194),0)))) -> 0
G191: =IF($D$4="N/A","",IF(HLOOKUP($G$11&$D$4,Look_Tbl!$C$6:$ST$8790,Look_Tbl!B186,FALSE)="","",HLOOKUP($G$11&$D$4,Look_Tbl!$C$6:$ST$8790,Look_Tbl!B186,FALSE))) ->  | I191: =IF($D$4="N/A",0,IF(G191="","",HLOOKUP($I$11&$D$4,Look_Tbl!$C$6:$ST$8790,Look_Tbl!B186,FALSE))) -> 0 | J191: =IF($D$4="N/A",0,IF(OR(ISBLANK(HLOOKUP($D$3,ResourceInputs!$3:$65536,ResourceInputs!E195)),HLOOKUP($D$3,ResourceInputs!$3:$65536,ResourceInputs!E195)="nonleap"),"",IF((HLOOKUP($D$3,ResourceInputs!$3:$65536,ResourceInputs!$E$16)="Scheduled"),MAX(ROUND(HLOOKUP($D$3,ResourceInputs!$3:$65536,ResourceInputs!E195),0),0),MAX(HLOOKUP($D$3,ResourceInputs!$3:$65536,ResourceInputs!E195),0)))) -> 0
G192: =IF($D$4="N/A","",IF(HLOOKUP($G$11&$D$4,Look_Tbl!$C$6:$ST$8790,Look_Tbl!B187,FALSE)="","",HLOOKUP($G$11&$D$4,Look_Tbl!$C$6:$ST$8790,Look_Tbl!B187,FALSE))) ->  | I192: =IF($D$4="N/A",0,IF(G192="","",HLOOKUP($I$11&$D$4,Look_Tbl!$C$6:$ST$8790,Look_Tbl!B187,FALSE))) -> 0 | J192: =IF($D$4="N/A",0,IF(OR(ISBLANK(HLOOKUP($D$3,ResourceInputs!$3:$65536,ResourceInputs!E196)),HLOOKUP($D$3,ResourceInputs!$3:$65536,ResourceInputs!E196)="nonleap"),"",IF((HLOOKUP($D$3,ResourceInputs!$3:$65536,ResourceInputs!$E$16)="Scheduled"),MAX(ROUND(HLOOKUP($D$3,ResourceInputs!$3:$65536,ResourceInputs!E196),0),0),MAX(HLOOKUP($D$3,ResourceInputs!$3:$65536,ResourceInputs!E196),0)))) -> 0
G193: =IF($D$4="N/A","",IF(HLOOKUP($G$11&$D$4,Look_Tbl!$C$6:$ST$8790,Look_Tbl!B188,FALSE)="","",HLOOKUP($G$11&$D$4,Look_Tbl!$C$6:$ST$8790,Look_Tbl!B188,FALSE))) ->  | I193: =IF($D$4="N/A",0,IF(G193="","",HLOOKUP($I$11&$D$4,Look_Tbl!$C$6:$ST$8790,Look_Tbl!B188,FALSE))) -> 0 | J193: =IF($D$4="N/A",0,IF(OR(ISBLANK(HLOOKUP($D$3,ResourceInputs!$3:$65536,ResourceInputs!E197)),HLOOKUP($D$3,ResourceInputs!$3:$65536,ResourceInputs!E197)="nonleap"),"",IF((HLOOKUP($D$3,ResourceInputs!$3:$65536,ResourceInputs!$E$16)="Scheduled"),MAX(ROUND(HLOOKUP($D$3,ResourceInputs!$3:$65536,ResourceInputs!E197),0),0),MAX(HLOOKUP($D$3,ResourceInputs!$3:$65536,ResourceInputs!E197),0)))) -> 0
G194: =IF($D$4="N/A","",IF(HLOOKUP($G$11&$D$4,Look_Tbl!$C$6:$ST$8790,Look_Tbl!B189,FALSE)="","",HLOOKUP($G$11&$D$4,Look_Tbl!$C$6:$ST$8790,Look_Tbl!B189,FALSE))) ->  | I194: =IF($D$4="N/A",0,IF(G194="","",HLOOKUP($I$11&$D$4,Look_Tbl!$C$6:$ST$8790,Look_Tbl!B189,FALSE))) -> 0 | J194: =IF($D$4="N/A",0,IF(OR(ISBLANK(HLOOKUP($D$3,ResourceInputs!$3:$65536,ResourceInputs!E198)),HLOOKUP($D$3,ResourceInputs!$3:$65536,ResourceInputs!E198)="nonleap"),"",IF((HLOOKUP($D$3,ResourceInputs!$3:$65536,ResourceInputs!$E$16)="Scheduled"),MAX(ROUND(HLOOKUP($D$3,ResourceInputs!$3:$65536,ResourceInputs!E198),0),0),MAX(HLOOKUP($D$3,ResourceInputs!$3:$65536,ResourceInputs!E198),0)))) -> 0
G195: =IF($D$4="N/A","",IF(HLOOKUP($G$11&$D$4,Look_Tbl!$C$6:$ST$8790,Look_Tbl!B190,FALSE)="","",HLOOKUP($G$11&$D$4,Look_Tbl!$C$6:$ST$8790,Look_Tbl!B190,FALSE))) ->  | I195: =IF($D$4="N/A",0,IF(G195="","",HLOOKUP($I$11&$D$4,Look_Tbl!$C$6:$ST$8790,Look_Tbl!B190,FALSE))) -> 0 | J195: =IF($D$4="N/A",0,IF(OR(ISBLANK(HLOOKUP($D$3,ResourceInputs!$3:$65536,ResourceInputs!E199)),HLOOKUP($D$3,ResourceInputs!$3:$65536,ResourceInputs!E199)="nonleap"),"",IF((HLOOKUP($D$3,ResourceInputs!$3:$65536,ResourceInputs!$E$16)="Scheduled"),MAX(ROUND(HLOOKUP($D$3,ResourceInputs!$3:$65536,ResourceInputs!E199),0),0),MAX(HLOOKUP($D$3,ResourceInputs!$3:$65536,ResourceInputs!E199),0)))) -> 0
G196: =IF($D$4="N/A","",IF(HLOOKUP($G$11&$D$4,Look_Tbl!$C$6:$ST$8790,Look_Tbl!B191,FALSE)="","",HLOOKUP($G$11&$D$4,Look_Tbl!$C$6:$ST$8790,Look_Tbl!B191,FALSE))) ->  | I196: =IF($D$4="N/A",0,IF(G196="","",HLOOKUP($I$11&$D$4,Look_Tbl!$C$6:$ST$8790,Look_Tbl!B191,FALSE))) -> 0 | J196: =IF($D$4="N/A",0,IF(OR(ISBLANK(HLOOKUP($D$3,ResourceInputs!$3:$65536,ResourceInputs!E200)),HLOOKUP($D$3,ResourceInputs!$3:$65536,ResourceInputs!E200)="nonleap"),"",IF((HLOOKUP($D$3,ResourceInputs!$3:$65536,ResourceInputs!$E$16)="Scheduled"),MAX(ROUND(HLOOKUP($D$3,ResourceInputs!$3:$65536,ResourceInputs!E200),0),0),MAX(HLOOKUP($D$3,ResourceInputs!$3:$65536,ResourceInputs!E200),0)))) -> 0
G197: =IF($D$4="N/A","",IF(HLOOKUP($G$11&$D$4,Look_Tbl!$C$6:$ST$8790,Look_Tbl!B192,FALSE)="","",HLOOKUP($G$11&$D$4,Look_Tbl!$C$6:$ST$8790,Look_Tbl!B192,FALSE))) ->  | I197: =IF($D$4="N/A",0,IF(G197="","",HLOOKUP($I$11&$D$4,Look_Tbl!$C$6:$ST$8790,Look_Tbl!B192,FALSE))) -> 0 | J197: =IF($D$4="N/A",0,IF(OR(ISBLANK(HLOOKUP($D$3,ResourceInputs!$3:$65536,ResourceInputs!E201)),HLOOKUP($D$3,ResourceInputs!$3:$65536,ResourceInputs!E201)="nonleap"),"",IF((HLOOKUP($D$3,ResourceInputs!$3:$65536,ResourceInputs!$E$16)="Scheduled"),MAX(ROUND(HLOOKUP($D$3,ResourceInputs!$3:$65536,ResourceInputs!E201),0),0),MAX(HLOOKUP($D$3,ResourceInputs!$3:$65536,ResourceInputs!E201),0)))) -> 0
G198: =IF($D$4="N/A","",IF(HLOOKUP($G$11&$D$4,Look_Tbl!$C$6:$ST$8790,Look_Tbl!B193,FALSE)="","",HLOOKUP($G$11&$D$4,Look_Tbl!$C$6:$ST$8790,Look_Tbl!B193,FALSE))) ->  | I198: =IF($D$4="N/A",0,IF(G198="","",HLOOKUP($I$11&$D$4,Look_Tbl!$C$6:$ST$8790,Look_Tbl!B193,FALSE))) -> 0 | J198: =IF($D$4="N/A",0,IF(OR(ISBLANK(HLOOKUP($D$3,ResourceInputs!$3:$65536,ResourceInputs!E202)),HLOOKUP($D$3,ResourceInputs!$3:$65536,ResourceInputs!E202)="nonleap"),"",IF((HLOOKUP($D$3,ResourceInputs!$3:$65536,ResourceInputs!$E$16)="Scheduled"),MAX(ROUND(HLOOKUP($D$3,ResourceInputs!$3:$65536,ResourceInputs!E202),0),0),MAX(HLOOKUP($D$3,ResourceInputs!$3:$65536,ResourceInputs!E202),0)))) -> 0
G199: =IF($D$4="N/A","",IF(HLOOKUP($G$11&$D$4,Look_Tbl!$C$6:$ST$8790,Look_Tbl!B194,FALSE)="","",HLOOKUP($G$11&$D$4,Look_Tbl!$C$6:$ST$8790,Look_Tbl!B194,FALSE))) ->  | I199: =IF($D$4="N/A",0,IF(G199="","",HLOOKUP($I$11&$D$4,Look_Tbl!$C$6:$ST$8790,Look_Tbl!B194,FALSE))) -> 0 | J199: =IF($D$4="N/A",0,IF(OR(ISBLANK(HLOOKUP($D$3,ResourceInputs!$3:$65536,ResourceInputs!E203)),HLOOKUP($D$3,ResourceInputs!$3:$65536,ResourceInputs!E203)="nonleap"),"",IF((HLOOKUP($D$3,ResourceInputs!$3:$65536,ResourceInputs!$E$16)="Scheduled"),MAX(ROUND(HLOOKUP($D$3,ResourceInputs!$3:$65536,ResourceInputs!E203),0),0),MAX(HLOOKUP($D$3,ResourceInputs!$3:$65536,ResourceInputs!E203),0)))) -> 0
G200: =IF($D$4="N/A","",IF(HLOOKUP($G$11&$D$4,Look_Tbl!$C$6:$ST$8790,Look_Tbl!B195,FALSE)="","",HLOOKUP($G$11&$D$4,Look_Tbl!$C$6:$ST$8790,Look_Tbl!B195,FALSE))) ->  | I200: =IF($D$4="N/A",0,IF(G200="","",HLOOKUP($I$11&$D$4,Look_Tbl!$C$6:$ST$8790,Look_Tbl!B195,FALSE))) -> 0 | J200: =IF($D$4="N/A",0,IF(OR(ISBLANK(HLOOKUP($D$3,ResourceInputs!$3:$65536,ResourceInputs!E204)),HLOOKUP($D$3,ResourceInputs!$3:$65536,ResourceInputs!E204)="nonleap"),"",IF((HLOOKUP($D$3,ResourceInputs!$3:$65536,ResourceInputs!$E$16)="Scheduled"),MAX(ROUND(HLOOKUP($D$3,ResourceInputs!$3:$65536,ResourceInputs!E204),0),0),MAX(HLOOKUP($D$3,ResourceInputs!$3:$65536,ResourceInputs!E204),0)))) -> 0
... 4276 more rows

Sheet Sheet3 (hidden)
B1: Light Load/Heavy Load Hours | F1: Documentation | L1: ResourceSelect&Sorter&Summarize | P1: Documentation
B2: =Cover!C14 -> RSSModel.BP26PublicExample FY 26 and FY 28.xlsm | L2: =Cover!M14 -> 0
A3: TOC | C3: Select Key | D3: =CustomerSpecificSummary!C3 -> 10005 | K3: TOC | M3: Select Key | N3: =D3 -> 10005
A4: é | C4: Resource Output Data Year | D4: FY2024 | K4: é | M4: Resource Output Data Year | N4: FY2025
C5: Model Identifier | D5: =HLOOKUP(D3,ResourceProfiles!4:350,ResourceProfiles!A6) -> NF.3.Hydro.1.2024_2025 | M5: Model Identifier | N5: =D5 -> NF.3.Hydro.1.2024_2025
C6: BES_ID | D6: =HLOOKUP(D3,ResourceProfiles!4:350,ResourceProfiles!A8) -> 80004 | M6: BES_ID | N6: 80004
C7: Purchaser | D7: =HLOOKUP(D3,ResourceProfiles!4:350,ResourceProfiles!A7) -> Example Customer D | M7: Purchaser | N7: Example Customer D
C8: Resource Name | D8: =HLOOKUP(D3,ResourceProfiles!4:350,ResourceProfiles!A10) -> WaterBug | M8: Resource Name | N8: WaterBug
C9: Services & RSC | D9: =HLOOKUP(D3,ResourceProfiles!4:350,ResourceProfiles!A18) -> TSS TCMS | M9: Services & RSC | N9: TSS TCMS
C10: Applicable Year(s) | D10: =HLOOKUP(D3,ResourceProfiles!4:350,ResourceProfiles!A127) -> FY2026&FY2028 | M10: Applicable Year(s) | N10: FY2026&FY2028
B11: Month | C11: HLH | D11: LLH | E11: Total | F11: CountHours | G11: Month | H11: Fiscal Year | I11: HLH/LLH | L11: Month | M11: HLH | N11: LLH | O11: Total | P11: CountHours | Q11: Month | R11: Fiscal Year | S11: HLH/LLH
B12: Oct | C12: =DCOUNT($F$11:$I$8795,"counthours",B24:C25) -> 416 | D12: =E12-C12 -> 328 | E12: =DCOUNT($F$11:$I$8795,"counthours",B24:B25) -> 744 | F12: =IF(G12="","",1) -> 1 | G12: =IF($D$4="N/A","",IF(HLOOKUP($G$11&$D$4,Look_Tbl!$C$6:$ST$8790,Look_Tbl!B7,FALSE)="","",HLOOKUP($G$11&$D$4,Look_Tbl!$C$6:$ST$8790,Look_Tbl!B7,FALSE))) -> Oct | H12: =IF($D$4="N/A","",IF(G12="","",$D$4)) -> FY2024 | I12: =IF($D$4="N/A",0,IF(G12="","",HLOOKUP($I$11&$D$4,Look_Tbl!$C$6:$ST$8790,Look_Tbl!B7,FALSE))) -> LLH | L12: Oct | M12: =DCOUNT($P$11:$S$8795,"counthours",L24:M25) -> 432 | N12: =O12-M12 -> 312 | O12: =DCOUNT($P$11:$S$8795,"counthours",L24:L25) -> 744 | P12: =IF(G12="","",1) -> 1 | Q12: =IF($N$4="N/A","",IF(HLOOKUP($Q$11&$N$4,Look_Tbl!$C$6:$ST$8790,Look_Tbl!B7,FALSE)="","",HLOOKUP($Q$11&$N$4,Look_Tbl!$C$6:$ST$8790,Look_Tbl!B7,FALSE))) -> Oct | R12: =IF($N$4="N/A","",IF(Q12="","",$N$4)) -> FY2025 | S12: =IF($N$4="N/A",0,IF(Q12="","",HLOOKUP($S$11&$N$4,Look_Tbl!$C$6:$ST$8790,Look_Tbl!B7,FALSE))) -> LLH
B13: Nov | C13: =DCOUNT($F$11:$I$8795,"counthours",B26:C27) -> 400 | D13: =E13-C13 -> 321 | E13: =DCOUNT($F$11:$I$8795,"counthours",B26:B27) -> 721 | F13: =IF(G13="","",1) -> 1 | G13: =IF($D$4="N/A","",IF(HLOOKUP($G$11&$D$4,Look_Tbl!$C$6:$ST$8790,Look_Tbl!B8,FALSE)="","",HLOOKUP($G$11&$D$4,Look_Tbl!$C$6:$ST$8790,Look_Tbl!B8,FALSE))) -> Oct | H13: FY2024 | I13: =IF($D$4="N/A",0,IF(G13="","",HLOOKUP($I$11&$D$4,Look_Tbl!$C$6:$ST$8790,Look_Tbl!B8,FALSE))) -> LLH | L13: Nov | M13: =DCOUNT($P$11:$S$8795,"counthours",L26:M27) -> 400 | N13: =O13-M13 -> 320 | O13: =DCOUNT($P$11:$S$8795,"counthours",L26:L27) -> 720 | P13: =IF(G13="","",1) -> 1 | Q13: =IF($N$4="N/A","",IF(HLOOKUP($Q$11&$N$4,Look_Tbl!$C$6:$ST$8790,Look_Tbl!B8,FALSE)="","",HLOOKUP($Q$11&$N$4,Look_Tbl!$C$6:$ST$8790,Look_Tbl!B8,FALSE))) -> Oct | R13: =IF($N$4="N/A","",IF(Q13="","",$N$4)) -> FY2025 | S13: =IF($N$4="N/A",0,IF(Q13="","",HLOOKUP($S$11&$N$4,Look_Tbl!$C$6:$ST$8790,Look_Tbl!B8,FALSE))) -> LLH
B14: Dec | C14: =DCOUNT($F$11:$I$8795,"counthours",B28:C29) -> 400 | D14: 344 | E14: =DCOUNT($F$11:$I$8795,"counthours",B28:B29) -> 744 | F14: 1 | G14: =IF($D$4="N/A","",IF(HLOOKUP($G$11&$D$4,Look_Tbl!$C$6:$ST$8790,Look_Tbl!B9,FALSE)="","",HLOOKUP($G$11&$D$4,Look_Tbl!$C$6:$ST$8790,Look_Tbl!B9,FALSE))) -> Oct | H14: FY2024 | I14: =IF($D$4="N/A",0,IF(G14="","",HLOOKUP($I$11&$D$4,Look_Tbl!$C$6:$ST$8790,Look_Tbl!B9,FALSE))) -> LLH | L14: Dec | M14: =DCOUNT($P$11:$S$8795,"counthours",L28:M29) -> 400 | N14: 344 | O14: =DCOUNT($P$11:$S$8795,"counthours",L28:L29) -> 744 | P14: 1 | Q14: =IF($N$4="N/A","",IF(HLOOKUP($Q$11&$N$4,Look_Tbl!$C$6:$ST$8790,Look_Tbl!B9,FALSE)="","",HLOOKUP($Q$11&$N$4,Look_Tbl!$C$6:$ST$8790,Look_Tbl!B9,FALSE))) -> Oct | R14: FY2025 | S14: =IF($N$4="N/A",0,IF(Q14="","",HLOOKUP($S$11&$N$4,Look_Tbl!$C$6:$ST$8790,Look_Tbl!B9,FALSE))) -> LLH
B15: Jan | C15: =DCOUNT($F$11:$I$8795,"counthours",B30:C31) -> 416 | D15: 328 | E15: =DCOUNT($F$11:$I$8795,"counthours",B30:B31) -> 744 | F15: 1 | G15: =IF($D$4="N/A","",IF(HLOOKUP($G$11&$D$4,Look_Tbl!$C$6:$ST$8790,Look_Tbl!B10,FALSE)="","",HLOOKUP($G$11&$D$4,Look_Tbl!$C$6:$ST$8790,Look_Tbl!B10,FALSE))) -> Oct | H15: FY2024 | I15: =IF($D$4="N/A",0,IF(G15="","",HLOOKUP($I$11&$D$4,Look_Tbl!$C$6:$ST$8790,Look_Tbl!B10,FALSE))) -> LLH | L15: Jan | M15: =DCOUNT($P$11:$S$8795,"counthours",L30:M31) -> 416 | N15: 328 | O15: =DCOUNT($P$11:$S$8795,"counthours",L30:L31) -> 744 | P15: 1 | Q15: =IF($N$4="N/A","",IF(HLOOKUP($Q$11&$N$4,Look_Tbl!$C$6:$ST$8790,Look_Tbl!B10,FALSE)="","",HLOOKUP($Q$11&$N$4,Look_Tbl!$C$6:$ST$8790,Look_Tbl!B10,FALSE))) -> Oct | R15: FY2025 | S15: =IF($N$4="N/A",0,IF(Q15="","",HLOOKUP($S$11&$N$4,Look_Tbl!$C$6:$ST$8790,Look_Tbl!B10,FALSE))) -> LLH
B16: Feb | C16: =DCOUNT($F$11:$I$8795,"counthours",B32:C33) -> 400 | D16: 296 | E16: =DCOUNT($F$11:$I$8795,"counthours",B32:B33) -> 696 | F16: 1 | G16: =IF($D$4="N/A","",IF(HLOOKUP($G$11&$D$4,Look_Tbl!$C$6:$ST$8790,Look_Tbl!B11,FALSE)="","",HLOOKUP($G$11&$D$4,Look_Tbl!$C$6:$ST$8790,Look_Tbl!B11,FALSE))) -> Oct | H16: FY2024 | I16: =IF($D$4="N/A",0,IF(G16="","",HLOOKUP($I$11&$D$4,Look_Tbl!$C$6:$ST$8790,Look_Tbl!B11,FALSE))) -> LLH | L16: Feb | M16: =DCOUNT($P$11:$S$8795,"counthours",L32:M33) -> 384 | N16: 288 | O16: =DCOUNT($P$11:$S$8795,"counthours",L32:L33) -> 672 | P16: 1 | Q16: =IF($N$4="N/A","",IF(HLOOKUP($Q$11&$N$4,Look_Tbl!$C$6:$ST$8790,Look_Tbl!B11,FALSE)="","",HLOOKUP($Q$11&$N$4,Look_Tbl!$C$6:$ST$8790,Look_Tbl!B11,FALSE))) -> Oct | R16: FY2025 | S16: =IF($N$4="N/A",0,IF(Q16="","",HLOOKUP($S$11&$N$4,Look_Tbl!$C$6:$ST$8790,Look_Tbl!B11,FALSE))) -> LLH
B17: Mar | C17: =DCOUNT($F$11:$I$8795,"counthours",B34:C35) -> 416 | D17: 327 | E17: =DCOUNT($F$11:$I$8795,"counthours",B34:B35) -> 743 | F17: 1 | G17: =IF($D$4="N/A","",IF(HLOOKUP($G$11&$D$4,Look_Tbl!$C$6:$ST$8790,Look_Tbl!B12,FALSE)="","",HLOOKUP($G$11&$D$4,Look_Tbl!$C$6:$ST$8790,Look_Tbl!B12,FALSE))) -> Oct | H17: FY2024 | I17: =IF($D$4="N/A",0,IF(G17="","",HLOOKUP($I$11&$D$4,Look_Tbl!$C$6:$ST$8790,Look_Tbl!B12,FALSE))) -> LLH | L17: Mar | M17: =DCOUNT($P$11:$S$8795,"counthours",L34:M35) -> 416 | N17: 328 | O17: =DCOUNT($P$11:$S$8795,"counthours",L34:L35) -> 744 | P17: 1 | Q17: =IF($N$4="N/A","",IF(HLOOKUP($Q$11&$N$4,Look_Tbl!$C$6:$ST$8790,Look_Tbl!B12,FALSE)="","",HLOOKUP($Q$11&$N$4,Look_Tbl!$C$6:$ST$8790,Look_Tbl!B12,FALSE))) -> Oct | R17: FY2025 | S17: =IF($N$4="N/A",0,IF(Q17="","",HLOOKUP($S$11&$N$4,Look_Tbl!$C$6:$ST$8790,Look_Tbl!B12,FALSE))) -> LLH
B18: Apr | C18: =DCOUNT($F$11:$I$8795,"counthours",B36:C37) -> 416 | D18: 304 | E18: =DCOUNT($F$11:$I$8795,"counthours",B36:B37) -> 720 | F18: 1 | G18: =IF($D$4="N/A","",IF(HLOOKUP($G$11&$D$4,Look_Tbl!$C$6:$ST$8790,Look_Tbl!B13,FALSE)="","",HLOOKUP($G$11&$D$4,Look_Tbl!$C$6:$ST$8790,Look_Tbl!B13,FALSE))) -> Oct | H18: FY2024 | I18: =IF($D$4="N/A",0,IF(G18="","",HLOOKUP($I$11&$D$4,Look_Tbl!$C$6:$ST$8790,Look_Tbl!B13,FALSE))) -> LLH | L18: Apr | M18: =DCOUNT($P$11:$S$8795,"counthours",L36:M37) -> 416 | N18: 304 | O18: =DCOUNT($P$11:$S$8795,"counthours",L36:L37) -> 720 | P18: 1 | Q18: =IF($N$4="N/A","",IF(HLOOKUP($Q$11&$N$4,Look_Tbl!$C$6:$ST$8790,Look_Tbl!B13,FALSE)="","",HLOOKUP($Q$11&$N$4,Look_Tbl!$C$6:$ST$8790,Look_Tbl!B13,FALSE))) -> Oct | R18: FY2025 | S18: =IF($N$4="N/A",0,IF(Q18="","",HLOOKUP($S$11&$N$4,Look_Tbl!$C$6:$ST$8790,Look_Tbl!B13,FALSE))) -> HLH
B19: May | C19: =DCOUNT($F$11:$I$8795,"counthours",B38:C39) -> 416 | D19: 328 | E19: =DCOUNT($F$11:$I$8795,"counthours",B38:B39) -> 744 | F19: 1 | G19: =IF($D$4="N/A","",IF(HLOOKUP($G$11&$D$4,Look_Tbl!$C$6:$ST$8790,Look_Tbl!B14,FALSE)="","",HLOOKUP($G$11&$D$4,Look_Tbl!$C$6:$ST$8790,Look_Tbl!B14,FALSE))) -> Oct | H19: FY2024 | I19: =IF($D$4="N/A",0,IF(G19="","",HLOOKUP($I$11&$D$4,Look_Tbl!$C$6:$ST$8790,Look_Tbl!B14,FALSE))) -> LLH | L19: May | M19: =DCOUNT($P$11:$S$8795,"counthours",L38:M39) -> 416 | N19: 328 | O19: =DCOUNT($P$11:$S$8795,"counthours",L38:L39) -> 744 | P19: 1 | Q19: =IF($N$4="N/A","",IF(HLOOKUP($Q$11&$N$4,Look_Tbl!$C$6:$ST$8790,Look_Tbl!B14,FALSE)="","",HLOOKUP($Q$11&$N$4,Look_Tbl!$C$6:$ST$8790,Look_Tbl!B14,FALSE))) -> Oct | R19: FY2025 | S19: =IF($N$4="N/A",0,IF(Q19="","",HLOOKUP($S$11&$N$4,Look_Tbl!$C$6:$ST$8790,Look_Tbl!B14,FALSE))) -> HLH
B20: Jun | C20: =DCOUNT($F$11:$I$8795,"counthours",B40:C41) -> 400 | D20: 320 | E20: =DCOUNT($F$11:$I$8795,"counthours",B40:B41) -> 720 | F20: 1 | G20: =IF($D$4="N/A","",IF(HLOOKUP($G$11&$D$4,Look_Tbl!$C$6:$ST$8790,Look_Tbl!B15,FALSE)="","",HLOOKUP($G$11&$D$4,Look_Tbl!$C$6:$ST$8790,Look_Tbl!B15,FALSE))) -> Oct | H20: FY2024 | I20: =IF($D$4="N/A",0,IF(G20="","",HLOOKUP($I$11&$D$4,Look_Tbl!$C$6:$ST$8790,Look_Tbl!B15,FALSE))) -> LLH | L20: Jun | M20: =DCOUNT($P$11:$S$8795,"counthours",L40:M41) -> 400 | N20: 320 | O20: =DCOUNT($P$11:$S$8795,"counthours",L40:L41) -> 720 | P20: 1 | Q20: =IF($N$4="N/A","",IF(HLOOKUP($Q$11&$N$4,Look_Tbl!$C$6:$ST$8790,Look_Tbl!B15,FALSE)="","",HLOOKUP($Q$11&$N$4,Look_Tbl!$C$6:$ST$8790,Look_Tbl!B15,FALSE))) -> Oct | R20: FY2025 | S20: =IF($N$4="N/A",0,IF(Q20="","",HLOOKUP($S$11&$N$4,Look_Tbl!$C$6:$ST$8790,Look_Tbl!B15,FALSE))) -> HLH
B21: Jul | C21: =DCOUNT($F$11:$I$8795,"counthours",B42:C43) -> 416 | D21: 328 | E21: =DCOUNT($F$11:$I$8795,"counthours",B42:B43) -> 744 | F21: 1 | G21: =IF($D$4="N/A","",IF(HLOOKUP($G$11&$D$4,Look_Tbl!$C$6:$ST$8790,Look_Tbl!B16,FALSE)="","",HLOOKUP($G$11&$D$4,Look_Tbl!$C$6:$ST$8790,Look_Tbl!B16,FALSE))) -> Oct | H21: FY2024 | I21: =IF($D$4="N/A",0,IF(G21="","",HLOOKUP($I$11&$D$4,Look_Tbl!$C$6:$ST$8790,Look_Tbl!B16,FALSE))) -> LLH | L21: Jul | M21: =DCOUNT($P$11:$S$8795,"counthours",L42:M43) -> 416 | N21: 328 | O21: =DCOUNT($P$11:$S$8795,"counthours",L42:L43) -> 744 | P21: =IF(G21="","",1) -> 1 | Q21: =IF($N$4="N/A","",IF(HLOOKUP($Q$11&$N$4,Look_Tbl!$C$6:$ST$8790,Look_Tbl!B16,FALSE)="","",HLOOKUP($Q$11&$N$4,Look_Tbl!$C$6:$ST$8790,Look_Tbl!B16,FALSE))) -> Oct | R21: FY2025 | S21: =IF($N$4="N/A",0,IF(Q21="","",HLOOKUP($S$11&$N$4,Look_Tbl!$C$6:$ST$8790,Look_Tbl!B16,FALSE))) -> HLH
B22: Aug | C22: =DCOUNT($F$11:$I$8795,"counthours",B44:C45) -> 432 | D22: 312 | E22: =DCOUNT($F$11:$I$8795,"counthours",B44:B45) -> 744 | F22: 1 | G22: =IF($D$4="N/A","",IF(HLOOKUP($G$11&$D$4,Look_Tbl!$C$6:$ST$8790,Look_Tbl!B17,FALSE)="","",HLOOKUP($G$11&$D$4,Look_Tbl!$C$6:$ST$8790,Look_Tbl!B17,FALSE))) -> Oct | H22: FY2024 | I22: =IF($D$4="N/A",0,IF(G22="","",HLOOKUP($I$11&$D$4,Look_Tbl!$C$6:$ST$8790,Look_Tbl!B17,FALSE))) -> LLH | L22: Aug | M22: =DCOUNT($P$11:$S$8795,"counthours",L44:M45) -> 416 | N22: 328 | O22: =DCOUNT($P$11:$S$8795,"counthours",L44:L45) -> 744 | P22: 1 | Q22: =IF($N$4="N/A","",IF(HLOOKUP($Q$11&$N$4,Look_Tbl!$C$6:$ST$8790,Look_Tbl!B17,FALSE)="","",HLOOKUP($Q$11&$N$4,Look_Tbl!$C$6:$ST$8790,Look_Tbl!B17,FALSE))) -> Oct | R22: FY2025 | S22: =IF($N$4="N/A",0,IF(Q22="","",HLOOKUP($S$11&$N$4,Look_Tbl!$C$6:$ST$8790,Look_Tbl!B17,FALSE))) -> HLH
B23: Sep | C23: =DCOUNT($F$11:$I$8795,"counthours",B46:C47) -> 384 | D23: 336 | E23: =DCOUNT($F$11:$I$8795,"counthours",B46:B47) -> 720 | F23: 1 | G23: =IF($D$4="N/A","",IF(HLOOKUP($G$11&$D$4,Look_Tbl!$C$6:$ST$8790,Look_Tbl!B18,FALSE)="","",HLOOKUP($G$11&$D$4,Look_Tbl!$C$6:$ST$8790,Look_Tbl!B18,FALSE))) -> Oct | H23: FY2024 | I23: =IF($D$4="N/A",0,IF(G23="","",HLOOKUP($I$11&$D$4,Look_Tbl!$C$6:$ST$8790,Look_Tbl!B18,FALSE))) -> LLH | L23: Sep | M23: =DCOUNT($P$11:$S$8795,"counthours",L46:M47) -> 400 | N23: 320 | O23: =DCOUNT($P$11:$S$8795,"counthours",L46:L47) -> 720 | P23: 1 | Q23: =IF($N$4="N/A","",IF(HLOOKUP($Q$11&$N$4,Look_Tbl!$C$6:$ST$8790,Look_Tbl!B18,FALSE)="","",HLOOKUP($Q$11&$N$4,Look_Tbl!$C$6:$ST$8790,Look_Tbl!B18,FALSE))) -> Oct | R23: FY2025 | S23: =IF($N$4="N/A",0,IF(Q23="","",HLOOKUP($S$11&$N$4,Look_Tbl!$C$6:$ST$8790,Look_Tbl!B18,FALSE))) -> HLH
B24: Month | C24: HLH/LLH | E24: =SUM(E12:E23) -> 8784 | F24: 1 | G24: =IF($D$4="N/A","",IF(HLOOKUP($G$11&$D$4,Look_Tbl!$C$6:$ST$8790,Look_Tbl!B19,FALSE)="","",HLOOKUP($G$11&$D$4,Look_Tbl!$C$6:$ST$8790,Look_Tbl!B19,FALSE))) -> Oct | H24: FY2024 | I24: =IF($D$4="N/A",0,IF(G24="","",HLOOKUP($I$11&$D$4,Look_Tbl!$C$6:$ST$8790,Look_Tbl!B19,FALSE))) -> LLH | L24: Month | M24: HLH/LLH | O24: =SUM(O12:O23) -> 8760 | P24: 1 | Q24: =IF($N$4="N/A","",IF(HLOOKUP($Q$11&$N$4,Look_Tbl!$C$6:$ST$8790,Look_Tbl!B19,FALSE)="","",HLOOKUP($Q$11&$N$4,Look_Tbl!$C$6:$ST$8790,Look_Tbl!B19,FALSE))) -> Oct | R24: FY2025 | S24: =IF($N$4="N/A",0,IF(Q24="","",HLOOKUP($S$11&$N$4,Look_Tbl!$C$6:$ST$8790,Look_Tbl!B19,FALSE))) -> HLH
B25: Oct | C25: HLH | F25: 1 | G25: =IF($D$4="N/A","",IF(HLOOKUP($G$11&$D$4,Look_Tbl!$C$6:$ST$8790,Look_Tbl!B20,FALSE)="","",HLOOKUP($G$11&$D$4,Look_Tbl!$C$6:$ST$8790,Look_Tbl!B20,FALSE))) -> Oct | H25: FY2024 | I25: =IF($D$4="N/A",0,IF(G25="","",HLOOKUP($I$11&$D$4,Look_Tbl!$C$6:$ST$8790,Look_Tbl!B20,FALSE))) -> LLH | L25: Oct | M25: HLH | P25: 1 | Q25: =IF($N$4="N/A","",IF(HLOOKUP($Q$11&$N$4,Look_Tbl!$C$6:$ST$8790,Look_Tbl!B20,FALSE)="","",HLOOKUP($Q$11&$N$4,Look_Tbl!$C$6:$ST$8790,Look_Tbl!B20,FALSE))) -> Oct | R25: FY2025 | S25: =IF($N$4="N/A",0,IF(Q25="","",HLOOKUP($S$11&$N$4,Look_Tbl!$C$6:$ST$8790,Look_Tbl!B20,FALSE))) -> HLH
B26: Month | C26: HLH/LLH | F26: 1 | G26: =IF($D$4="N/A","",IF(HLOOKUP($G$11&$D$4,Look_Tbl!$C$6:$ST$8790,Look_Tbl!B21,FALSE)="","",HLOOKUP($G$11&$D$4,Look_Tbl!$C$6:$ST$8790,Look_Tbl!B21,FALSE))) -> Oct | H26: FY2024 | I26: =IF($D$4="N/A",0,IF(G26="","",HLOOKUP($I$11&$D$4,Look_Tbl!$C$6:$ST$8790,Look_Tbl!B21,FALSE))) -> LLH | L26: Month | M26: HLH/LLH | P26: 1 | Q26: =IF($N$4="N/A","",IF(HLOOKUP($Q$11&$N$4,Look_Tbl!$C$6:$ST$8790,Look_Tbl!B21,FALSE)="","",HLOOKUP($Q$11&$N$4,Look_Tbl!$C$6:$ST$8790,Look_Tbl!B21,FALSE))) -> Oct | R26: FY2025 | S26: =IF($N$4="N/A",0,IF(Q26="","",HLOOKUP($S$11&$N$4,Look_Tbl!$C$6:$ST$8790,Look_Tbl!B21,FALSE))) -> HLH
B27: Nov | C27: HLH | F27: 1 | G27: =IF($D$4="N/A","",IF(HLOOKUP($G$11&$D$4,Look_Tbl!$C$6:$ST$8790,Look_Tbl!B22,FALSE)="","",HLOOKUP($G$11&$D$4,Look_Tbl!$C$6:$ST$8790,Look_Tbl!B22,FALSE))) -> Oct | H27: FY2024 | I27: =IF($D$4="N/A",0,IF(G27="","",HLOOKUP($I$11&$D$4,Look_Tbl!$C$6:$ST$8790,Look_Tbl!B22,FALSE))) -> LLH | L27: Nov | M27: HLH | P27: 1 | Q27: =IF($N$4="N/A","",IF(HLOOKUP($Q$11&$N$4,Look_Tbl!$C$6:$ST$8790,Look_Tbl!B22,FALSE)="","",HLOOKUP($Q$11&$N$4,Look_Tbl!$C$6:$ST$8790,Look_Tbl!B22,FALSE))) -> Oct | R27: FY2025 | S27: =IF($N$4="N/A",0,IF(Q27="","",HLOOKUP($S$11&$N$4,Look_Tbl!$C$6:$ST$8790,Look_Tbl!B22,FALSE))) -> HLH
B28: Month | C28: HLH/LLH | F28: 1 | G28: =IF($D$4="N/A","",IF(HLOOKUP($G$11&$D$4,Look_Tbl!$C$6:$ST$8790,Look_Tbl!B23,FALSE)="","",HLOOKUP($G$11&$D$4,Look_Tbl!$C$6:$ST$8790,Look_Tbl!B23,FALSE))) -> Oct | H28: FY2024 | I28: =IF($D$4="N/A",0,IF(G28="","",HLOOKUP($I$11&$D$4,Look_Tbl!$C$6:$ST$8790,Look_Tbl!B23,FALSE))) -> LLH | L28: Month | M28: HLH/LLH | P28: 1 | Q28: =IF($N$4="N/A","",IF(HLOOKUP($Q$11&$N$4,Look_Tbl!$C$6:$ST$8790,Look_Tbl!B23,FALSE)="","",HLOOKUP($Q$11&$N$4,Look_Tbl!$C$6:$ST$8790,Look_Tbl!B23,FALSE))) -> Oct | R28: FY2025 | S28: =IF($N$4="N/A",0,IF(Q28="","",HLOOKUP($S$11&$N$4,Look_Tbl!$C$6:$ST$8790,Look_Tbl!B23,FALSE))) -> HLH
B29: Dec | C29: HLH | F29: 1 | G29: =IF($D$4="N/A","",IF(HLOOKUP($G$11&$D$4,Look_Tbl!$C$6:$ST$8790,Look_Tbl!B24,FALSE)="","",HLOOKUP($G$11&$D$4,Look_Tbl!$C$6:$ST$8790,Look_Tbl!B24,FALSE))) -> Oct | H29: FY2024 | I29: =IF($D$4="N/A",0,IF(G29="","",HLOOKUP($I$11&$D$4,Look_Tbl!$C$6:$ST$8790,Look_Tbl!B24,FALSE))) -> LLH | L29: Dec | M29: HLH | P29: 1 | Q29: =IF($N$4="N/A","",IF(HLOOKUP($Q$11&$N$4,Look_Tbl!$C$6:$ST$8790,Look_Tbl!B24,FALSE)="","",HLOOKUP($Q$11&$N$4,Look_Tbl!$C$6:$ST$8790,Look_Tbl!B24,FALSE))) -> Oct | R29: FY2025 | S29: =IF($N$4="N/A",0,IF(Q29="","",HLOOKUP($S$11&$N$4,Look_Tbl!$C$6:$ST$8790,Look_Tbl!B24,FALSE))) -> HLH
B30: Month | C30: HLH/LLH | F30: 1 | G30: =IF($D$4="N/A","",IF(HLOOKUP($G$11&$D$4,Look_Tbl!$C$6:$ST$8790,Look_Tbl!B25,FALSE)="","",HLOOKUP($G$11&$D$4,Look_Tbl!$C$6:$ST$8790,Look_Tbl!B25,FALSE))) -> Oct | H30: FY2024 | I30: =IF($D$4="N/A",0,IF(G30="","",HLOOKUP($I$11&$D$4,Look_Tbl!$C$6:$ST$8790,Look_Tbl!B25,FALSE))) -> LLH | L30: Month | M30: HLH/LLH | P30: 1 | Q30: =IF($N$4="N/A","",IF(HLOOKUP($Q$11&$N$4,Look_Tbl!$C$6:$ST$8790,Look_Tbl!B25,FALSE)="","",HLOOKUP($Q$11&$N$4,Look_Tbl!$C$6:$ST$8790,Look_Tbl!B25,FALSE))) -> Oct | R30: FY2025 | S30: =IF($N$4="N/A",0,IF(Q30="","",HLOOKUP($S$11&$N$4,Look_Tbl!$C$6:$ST$8790,Look_Tbl!B25,FALSE))) -> HLH
B31: Jan | C31: HLH | F31: 1 | G31: =IF($D$4="N/A","",IF(HLOOKUP($G$11&$D$4,Look_Tbl!$C$6:$ST$8790,Look_Tbl!B26,FALSE)="","",HLOOKUP($G$11&$D$4,Look_Tbl!$C$6:$ST$8790,Look_Tbl!B26,FALSE))) -> Oct | H31: FY2024 | I31: =IF($D$4="N/A",0,IF(G31="","",HLOOKUP($I$11&$D$4,Look_Tbl!$C$6:$ST$8790,Look_Tbl!B26,FALSE))) -> LLH | L31: Jan | M31: HLH | P31: 1 | Q31: =IF($N$4="N/A","",IF(HLOOKUP($Q$11&$N$4,Look_Tbl!$C$6:$ST$8790,Look_Tbl!B26,FALSE)="","",HLOOKUP($Q$11&$N$4,Look_Tbl!$C$6:$ST$8790,Look_Tbl!B26,FALSE))) -> Oct | R31: FY2025 | S31: =IF($N$4="N/A",0,IF(Q31="","",HLOOKUP($S$11&$N$4,Look_Tbl!$C$6:$ST$8790,Look_Tbl!B26,FALSE))) -> HLH
B32: Month | C32: HLH/LLH | F32: 1 | G32: =IF($D$4="N/A","",IF(HLOOKUP($G$11&$D$4,Look_Tbl!$C$6:$ST$8790,Look_Tbl!B27,FALSE)="","",HLOOKUP($G$11&$D$4,Look_Tbl!$C$6:$ST$8790,Look_Tbl!B27,FALSE))) -> Oct | H32: FY2024 | I32: =IF($D$4="N/A",0,IF(G32="","",HLOOKUP($I$11&$D$4,Look_Tbl!$C$6:$ST$8790,Look_Tbl!B27,FALSE))) -> LLH | L32: Month | M32: HLH/LLH | P32: 1 | Q32: =IF($N$4="N/A","",IF(HLOOKUP($Q$11&$N$4,Look_Tbl!$C$6:$ST$8790,Look_Tbl!B27,FALSE)="","",HLOOKUP($Q$11&$N$4,Look_Tbl!$C$6:$ST$8790,Look_Tbl!B27,FALSE))) -> Oct | R32: FY2025 | S32: =IF($N$4="N/A",0,IF(Q32="","",HLOOKUP($S$11&$N$4,Look_Tbl!$C$6:$ST$8790,Look_Tbl!B27,FALSE))) -> HLH
B33: Feb | C33: HLH | F33: 1 | G33: =IF($D$4="N/A","",IF(HLOOKUP($G$11&$D$4,Look_Tbl!$C$6:$ST$8790,Look_Tbl!B28,FALSE)="","",HLOOKUP($G$11&$D$4,Look_Tbl!$C$6:$ST$8790,Look_Tbl!B28,FALSE))) -> Oct | H33: FY2024 | I33: =IF($D$4="N/A",0,IF(G33="","",HLOOKUP($I$11&$D$4,Look_Tbl!$C$6:$ST$8790,Look_Tbl!B28,FALSE))) -> LLH | L33: Feb | M33: HLH | P33: 1 | Q33: =IF($N$4="N/A","",IF(HLOOKUP($Q$11&$N$4,Look_Tbl!$C$6:$ST$8790,Look_Tbl!B28,FALSE)="","",HLOOKUP($Q$11&$N$4,Look_Tbl!$C$6:$ST$8790,Look_Tbl!B28,FALSE))) -> Oct | R33: FY2025 | S33: =IF($N$4="N/A",0,IF(Q33="","",HLOOKUP($S$11&$N$4,Look_Tbl!$C$6:$ST$8790,Look_Tbl!B28,FALSE))) -> HLH
B34: Month | C34: HLH/LLH | F34: 1 | G34: =IF($D$4="N/A","",IF(HLOOKUP($G$11&$D$4,Look_Tbl!$C$6:$ST$8790,Look_Tbl!B29,FALSE)="","",HLOOKUP($G$11&$D$4,Look_Tbl!$C$6:$ST$8790,Look_Tbl!B29,FALSE))) -> Oct | H34: FY2024 | I34: =IF($D$4="N/A",0,IF(G34="","",HLOOKUP($I$11&$D$4,Look_Tbl!$C$6:$ST$8790,Look_Tbl!B29,FALSE))) -> LLH | L34: Month | M34: HLH/LLH | P34: 1 | Q34: =IF($N$4="N/A","",IF(HLOOKUP($Q$11&$N$4,Look_Tbl!$C$6:$ST$8790,Look_Tbl!B29,FALSE)="","",HLOOKUP($Q$11&$N$4,Look_Tbl!$C$6:$ST$8790,Look_Tbl!B29,FALSE))) -> Oct | R34: FY2025 | S34: =IF($N$4="N/A",0,IF(Q34="","",HLOOKUP($S$11&$N$4,Look_Tbl!$C$6:$ST$8790,Look_Tbl!B29,FALSE))) -> LLH
B35: Mar | C35: HLH | F35: 1 | G35: =IF($D$4="N/A","",IF(HLOOKUP($G$11&$D$4,Look_Tbl!$C$6:$ST$8790,Look_Tbl!B30,FALSE)="","",HLOOKUP($G$11&$D$4,Look_Tbl!$C$6:$ST$8790,Look_Tbl!B30,FALSE))) -> Oct | H35: FY2024 | I35: =IF($D$4="N/A",0,IF(G35="","",HLOOKUP($I$11&$D$4,Look_Tbl!$C$6:$ST$8790,Look_Tbl!B30,FALSE))) -> LLH | L35: Mar | M35: HLH | P35: 1 | Q35: =IF($N$4="N/A","",IF(HLOOKUP($Q$11&$N$4,Look_Tbl!$C$6:$ST$8790,Look_Tbl!B30,FALSE)="","",HLOOKUP($Q$11&$N$4,Look_Tbl!$C$6:$ST$8790,Look_Tbl!B30,FALSE))) -> Oct | R35: FY2025 | S35: =IF($N$4="N/A",0,IF(Q35="","",HLOOKUP($S$11&$N$4,Look_Tbl!$C$6:$ST$8790,Look_Tbl!B30,FALSE))) -> LLH
B36: Month | C36: HLH/LLH | F36: 1 | G36: =IF($D$4="N/A","",IF(HLOOKUP($G$11&$D$4,Look_Tbl!$C$6:$ST$8790,Look_Tbl!B31,FALSE)="","",HLOOKUP($G$11&$D$4,Look_Tbl!$C$6:$ST$8790,Look_Tbl!B31,FALSE))) -> Oct | H36: FY2024 | I36: =IF($D$4="N/A",0,IF(G36="","",HLOOKUP($I$11&$D$4,Look_Tbl!$C$6:$ST$8790,Look_Tbl!B31,FALSE))) -> LLH | L36: Month | M36: HLH/LLH | P36: 1 | Q36: =IF($N$4="N/A","",IF(HLOOKUP($Q$11&$N$4,Look_Tbl!$C$6:$ST$8790,Look_Tbl!B31,FALSE)="","",HLOOKUP($Q$11&$N$4,Look_Tbl!$C$6:$ST$8790,Look_Tbl!B31,FALSE))) -> Oct | R36: FY2025 | S36: =IF($N$4="N/A",0,IF(Q36="","",HLOOKUP($S$11&$N$4,Look_Tbl!$C$6:$ST$8790,Look_Tbl!B31,FALSE))) -> LLH
B37: Apr | C37: HLH | F37: 1 | G37: =IF($D$4="N/A","",IF(HLOOKUP($G$11&$D$4,Look_Tbl!$C$6:$ST$8790,Look_Tbl!B32,FALSE)="","",HLOOKUP($G$11&$D$4,Look_Tbl!$C$6:$ST$8790,Look_Tbl!B32,FALSE))) -> Oct | H37: FY2024 | I37: =IF($D$4="N/A",0,IF(G37="","",HLOOKUP($I$11&$D$4,Look_Tbl!$C$6:$ST$8790,Look_Tbl!B32,FALSE))) -> LLH | L37: Apr | M37: HLH | P37: 1 | Q37: =IF($N$4="N/A","",IF(HLOOKUP($Q$11&$N$4,Look_Tbl!$C$6:$ST$8790,Look_Tbl!B32,FALSE)="","",HLOOKUP($Q$11&$N$4,Look_Tbl!$C$6:$ST$8790,Look_Tbl!B32,FALSE))) -> Oct | R37: FY2025 | S37: =IF($N$4="N/A",0,IF(Q37="","",HLOOKUP($S$11&$N$4,Look_Tbl!$C$6:$ST$8790,Look_Tbl!B32,FALSE))) -> LLH
B38: Month | C38: HLH/LLH | F38: 1 | G38: =IF($D$4="N/A","",IF(HLOOKUP($G$11&$D$4,Look_Tbl!$C$6:$ST$8790,Look_Tbl!B33,FALSE)="","",HLOOKUP($G$11&$D$4,Look_Tbl!$C$6:$ST$8790,Look_Tbl!B33,FALSE))) -> Oct | H38: FY2024 | I38: =IF($D$4="N/A",0,IF(G38="","",HLOOKUP($I$11&$D$4,Look_Tbl!$C$6:$ST$8790,Look_Tbl!B33,FALSE))) -> LLH | L38: Month | M38: HLH/LLH | P38: 1 | Q38: =IF($N$4="N/A","",IF(HLOOKUP($Q$11&$N$4,Look_Tbl!$C$6:$ST$8790,Look_Tbl!B33,FALSE)="","",HLOOKUP($Q$11&$N$4,Look_Tbl!$C$6:$ST$8790,Look_Tbl!B33,FALSE))) -> Oct | R38: FY2025 | S38: =IF($N$4="N/A",0,IF(Q38="","",HLOOKUP($S$11&$N$4,Look_Tbl!$C$6:$ST$8790,Look_Tbl!B33,FALSE))) -> LLH
B39: May | C39: HLH | F39: 1 | G39: =IF($D$4="N/A","",IF(HLOOKUP($G$11&$D$4,Look_Tbl!$C$6:$ST$8790,Look_Tbl!B34,FALSE)="","",HLOOKUP($G$11&$D$4,Look_Tbl!$C$6:$ST$8790,Look_Tbl!B34,FALSE))) -> Oct | H39: FY2024 | I39: =IF($D$4="N/A",0,IF(G39="","",HLOOKUP($I$11&$D$4,Look_Tbl!$C$6:$ST$8790,Look_Tbl!B34,FALSE))) -> LLH | L39: May | M39: HLH | P39: 1 | Q39: =IF($N$4="N/A","",IF(HLOOKUP($Q$11&$N$4,Look_Tbl!$C$6:$ST$8790,Look_Tbl!B34,FALSE)="","",HLOOKUP($Q$11&$N$4,Look_Tbl!$C$6:$ST$8790,Look_Tbl!B34,FALSE))) -> Oct | R39: FY2025 | S39: =IF($N$4="N/A",0,IF(Q39="","",HLOOKUP($S$11&$N$4,Look_Tbl!$C$6:$ST$8790,Look_Tbl!B34,FALSE))) -> LLH
B40: Month | C40: HLH/LLH | F40: 1 | G40: =IF($D$4="N/A","",IF(HLOOKUP($G$11&$D$4,Look_Tbl!$C$6:$ST$8790,Look_Tbl!B35,FALSE)="","",HLOOKUP($G$11&$D$4,Look_Tbl!$C$6:$ST$8790,Look_Tbl!B35,FALSE))) -> Oct | H40: FY2024 | I40: =IF($D$4="N/A",0,IF(G40="","",HLOOKUP($I$11&$D$4,Look_Tbl!$C$6:$ST$8790,Look_Tbl!B35,FALSE))) -> LLH | L40: Month | M40: HLH/LLH | P40: 1 | Q40: =IF($N$4="N/A","",IF(HLOOKUP($Q$11&$N$4,Look_Tbl!$C$6:$ST$8790,Look_Tbl!B35,FALSE)="","",HLOOKUP($Q$11&$N$4,Look_Tbl!$C$6:$ST$8790,Look_Tbl!B35,FALSE))) -> Oct | R40: FY2025 | S40: =IF($N$4="N/A",0,IF(Q40="","",HLOOKUP($S$11&$N$4,Look_Tbl!$C$6:$ST$8790,Look_Tbl!B35,FALSE))) -> LLH
B41: Jun | C41: HLH | F41: 1 | G41: =IF($D$4="N/A","",IF(HLOOKUP($G$11&$D$4,Look_Tbl!$C$6:$ST$8790,Look_Tbl!B36,FALSE)="","",HLOOKUP($G$11&$D$4,Look_Tbl!$C$6:$ST$8790,Look_Tbl!B36,FALSE))) -> Oct | H41: FY2024 | I41: =IF($D$4="N/A",0,IF(G41="","",HLOOKUP($I$11&$D$4,Look_Tbl!$C$6:$ST$8790,Look_Tbl!B36,FALSE))) -> LLH | L41: Jun | M41: HLH | P41: 1 | Q41: =IF($N$4="N/A","",IF(HLOOKUP($Q$11&$N$4,Look_Tbl!$C$6:$ST$8790,Look_Tbl!B36,FALSE)="","",HLOOKUP($Q$11&$N$4,Look_Tbl!$C$6:$ST$8790,Look_Tbl!B36,FALSE))) -> Oct | R41: FY2025 | S41: =IF($N$4="N/A",0,IF(Q41="","",HLOOKUP($S$11&$N$4,Look_Tbl!$C$6:$ST$8790,Look_Tbl!B36,FALSE))) -> LLH
B42: Month | C42: HLH/LLH | F42: 1 | G42: =IF($D$4="N/A","",IF(HLOOKUP($G$11&$D$4,Look_Tbl!$C$6:$ST$8790,Look_Tbl!B37,FALSE)="","",HLOOKUP($G$11&$D$4,Look_Tbl!$C$6:$ST$8790,Look_Tbl!B37,FALSE))) -> Oct | H42: FY2024 | I42: =IF($D$4="N/A",0,IF(G42="","",HLOOKUP($I$11&$D$4,Look_Tbl!$C$6:$ST$8790,Look_Tbl!B37,FALSE))) -> HLH | L42: Month | M42: HLH/LLH | P42: 1 | Q42: =IF($N$4="N/A","",IF(HLOOKUP($Q$11&$N$4,Look_Tbl!$C$6:$ST$8790,Look_Tbl!B37,FALSE)="","",HLOOKUP($Q$11&$N$4,Look_Tbl!$C$6:$ST$8790,Look_Tbl!B37,FALSE))) -> Oct | R42: FY2025 | S42: =IF($N$4="N/A",0,IF(Q42="","",HLOOKUP($S$11&$N$4,Look_Tbl!$C$6:$ST$8790,Look_Tbl!B37,FALSE))) -> HLH
B43: Jul | C43: HLH | F43: 1 | G43: =IF($D$4="N/A","",IF(HLOOKUP($G$11&$D$4,Look_Tbl!$C$6:$ST$8790,Look_Tbl!B38,FALSE)="","",HLOOKUP($G$11&$D$4,Look_Tbl!$C$6:$ST$8790,Look_Tbl!B38,FALSE))) -> Oct | H43: FY2024 | I43: =IF($D$4="N/A",0,IF(G43="","",HLOOKUP($I$11&$D$4,Look_Tbl!$C$6:$ST$8790,Look_Tbl!B38,FALSE))) -> HLH | L43: Jul | M43: HLH | P43: 1 | Q43: =IF($N$4="N/A","",IF(HLOOKUP($Q$11&$N$4,Look_Tbl!$C$6:$ST$8790,Look_Tbl!B38,FALSE)="","",HLOOKUP($Q$11&$N$4,Look_Tbl!$C$6:$ST$8790,Look_Tbl!B38,FALSE))) -> Oct | R43: FY2025 | S43: =IF($N$4="N/A",0,IF(Q43="","",HLOOKUP($S$11&$N$4,Look_Tbl!$C$6:$ST$8790,Look_Tbl!B38,FALSE))) -> HLH
B44: Month | C44: HLH/LLH | F44: 1 | G44: =IF($D$4="N/A","",IF(HLOOKUP($G$11&$D$4,Look_Tbl!$C$6:$ST$8790,Look_Tbl!B39,FALSE)="","",HLOOKUP($G$11&$D$4,Look_Tbl!$C$6:$ST$8790,Look_Tbl!B39,FALSE))) -> Oct | H44: FY2024 | I44: =IF($D$4="N/A",0,IF(G44="","",HLOOKUP($I$11&$D$4,Look_Tbl!$C$6:$ST$8790,Look_Tbl!B39,FALSE))) -> HLH | L44: Month | M44: HLH/LLH | P44: 1 | Q44: =IF($N$4="N/A","",IF(HLOOKUP($Q$11&$N$4,Look_Tbl!$C$6:$ST$8790,Look_Tbl!B39,FALSE)="","",HLOOKUP($Q$11&$N$4,Look_Tbl!$C$6:$ST$8790,Look_Tbl!B39,FALSE))) -> Oct | R44: FY2025 | S44: =IF($N$4="N/A",0,IF(Q44="","",HLOOKUP($S$11&$N$4,Look_Tbl!$C$6:$ST$8790,Look_Tbl!B39,FALSE))) -> HLH
B45: Aug | C45: HLH | F45: 1 | G45: =IF($D$4="N/A","",IF(HLOOKUP($G$11&$D$4,Look_Tbl!$C$6:$ST$8790,Look_Tbl!B40,FALSE)="","",HLOOKUP($G$11&$D$4,Look_Tbl!$C$6:$ST$8790,Look_Tbl!B40,FALSE))) -> Oct | H45: FY2024 | I45: =IF($D$4="N/A",0,IF(G45="","",HLOOKUP($I$11&$D$4,Look_Tbl!$C$6:$ST$8790,Look_Tbl!B40,FALSE))) -> HLH | L45: Aug | M45: HLH | P45: 1 | Q45: =IF($N$4="N/A","",IF(HLOOKUP($Q$11&$N$4,Look_Tbl!$C$6:$ST$8790,Look_Tbl!B40,FALSE)="","",HLOOKUP($Q$11&$N$4,Look_Tbl!$C$6:$ST$8790,Look_Tbl!B40,FALSE))) -> Oct | R45: FY2025 | S45: =IF($N$4="N/A",0,IF(Q45="","",HLOOKUP($S$11&$N$4,Look_Tbl!$C$6:$ST$8790,Look_Tbl!B40,FALSE))) -> HLH
B46: Month | C46: HLH/LLH | F46: 1 | G46: =IF($D$4="N/A","",IF(HLOOKUP($G$11&$D$4,Look_Tbl!$C$6:$ST$8790,Look_Tbl!B41,FALSE)="","",HLOOKUP($G$11&$D$4,Look_Tbl!$C$6:$ST$8790,Look_Tbl!B41,FALSE))) -> Oct | H46: FY2024 | I46: =IF($D$4="N/A",0,IF(G46="","",HLOOKUP($I$11&$D$4,Look_Tbl!$C$6:$ST$8790,Look_Tbl!B41,FALSE))) -> HLH | L46: Month | M46: HLH/LLH | P46: 1 | Q46: =IF($N$4="N/A","",IF(HLOOKUP($Q$11&$N$4,Look_Tbl!$C$6:$ST$8790,Look_Tbl!B41,FALSE)="","",HLOOKUP($Q$11&$N$4,Look_Tbl!$C$6:$ST$8790,Look_Tbl!B41,FALSE))) -> Oct | R46: FY2025 | S46: =IF($N$4="N/A",0,IF(Q46="","",HLOOKUP($S$11&$N$4,Look_Tbl!$C$6:$ST$8790,Look_Tbl!B41,FALSE))) -> HLH
B47: Sep | C47: HLH | F47: 1 | G47: =IF($D$4="N/A","",IF(HLOOKUP($G$11&$D$4,Look_Tbl!$C$6:$ST$8790,Look_Tbl!B42,FALSE)="","",HLOOKUP($G$11&$D$4,Look_Tbl!$C$6:$ST$8790,Look_Tbl!B42,FALSE))) -> Oct | H47: FY2024 | I47: =IF($D$4="N/A",0,IF(G47="","",HLOOKUP($I$11&$D$4,Look_Tbl!$C$6:$ST$8790,Look_Tbl!B42,FALSE))) -> HLH | L47: Sep | M47: HLH | P47: 1 | Q47: =IF($N$4="N/A","",IF(HLOOKUP($Q$11&$N$4,Look_Tbl!$C$6:$ST$8790,Look_Tbl!B42,FALSE)="","",HLOOKUP($Q$11&$N$4,Look_Tbl!$C$6:$ST$8790,Look_Tbl!B42,FALSE))) -> Oct | R47: FY2025 | S47: =IF($N$4="N/A",0,IF(Q47="","",HLOOKUP($S$11&$N$4,Look_Tbl!$C$6:$ST$8790,Look_Tbl!B42,FALSE))) -> HLH
F48: 1 | G48: =IF($D$4="N/A","",IF(HLOOKUP($G$11&$D$4,Look_Tbl!$C$6:$ST$8790,Look_Tbl!B43,FALSE)="","",HLOOKUP($G$11&$D$4,Look_Tbl!$C$6:$ST$8790,Look_Tbl!B43,FALSE))) -> Oct | H48: FY2024 | I48: =IF($D$4="N/A",0,IF(G48="","",HLOOKUP($I$11&$D$4,Look_Tbl!$C$6:$ST$8790,Look_Tbl!B43,FALSE))) -> HLH | P48: 1 | Q48: =IF($N$4="N/A","",IF(HLOOKUP($Q$11&$N$4,Look_Tbl!$C$6:$ST$8790,Look_Tbl!B43,FALSE)="","",HLOOKUP($Q$11&$N$4,Look_Tbl!$C$6:$ST$8790,Look_Tbl!B43,FALSE))) -> Oct | R48: FY2025 | S48: =IF($N$4="N/A",0,IF(Q48="","",HLOOKUP($S$11&$N$4,Look_Tbl!$C$6:$ST$8790,Look_Tbl!B43,FALSE))) -> HLH
F49: 1 | G49: =IF($D$4="N/A","",IF(HLOOKUP($G$11&$D$4,Look_Tbl!$C$6:$ST$8790,Look_Tbl!B44,FALSE)="","",HLOOKUP($G$11&$D$4,Look_Tbl!$C$6:$ST$8790,Look_Tbl!B44,FALSE))) -> Oct | H49: FY2024 | I49: =IF($D$4="N/A",0,IF(G49="","",HLOOKUP($I$11&$D$4,Look_Tbl!$C$6:$ST$8790,Look_Tbl!B44,FALSE))) -> HLH | P49: 1 | Q49: =IF($N$4="N/A","",IF(HLOOKUP($Q$11&$N$4,Look_Tbl!$C$6:$ST$8790,Look_Tbl!B44,FALSE)="","",HLOOKUP($Q$11&$N$4,Look_Tbl!$C$6:$ST$8790,Look_Tbl!B44,FALSE))) -> Oct | R49: FY2025 | S49: =IF($N$4="N/A",0,IF(Q49="","",HLOOKUP($S$11&$N$4,Look_Tbl!$C$6:$ST$8790,Look_Tbl!B44,FALSE))) -> HLH
F50: 1 | G50: =IF($D$4="N/A","",IF(HLOOKUP($G$11&$D$4,Look_Tbl!$C$6:$ST$8790,Look_Tbl!B45,FALSE)="","",HLOOKUP($G$11&$D$4,Look_Tbl!$C$6:$ST$8790,Look_Tbl!B45,FALSE))) -> Oct | H50: FY2024 | I50: =IF($D$4="N/A",0,IF(G50="","",HLOOKUP($I$11&$D$4,Look_Tbl!$C$6:$ST$8790,Look_Tbl!B45,FALSE))) -> HLH | P50: 1 | Q50: =IF($N$4="N/A","",IF(HLOOKUP($Q$11&$N$4,Look_Tbl!$C$6:$ST$8790,Look_Tbl!B45,FALSE)="","",HLOOKUP($Q$11&$N$4,Look_Tbl!$C$6:$ST$8790,Look_Tbl!B45,FALSE))) -> Oct | R50: FY2025 | S50: =IF($N$4="N/A",0,IF(Q50="","",HLOOKUP($S$11&$N$4,Look_Tbl!$C$6:$ST$8790,Look_Tbl!B45,FALSE))) -> HLH
F51: 1 | G51: =IF($D$4="N/A","",IF(HLOOKUP($G$11&$D$4,Look_Tbl!$C$6:$ST$8790,Look_Tbl!B46,FALSE)="","",HLOOKUP($G$11&$D$4,Look_Tbl!$C$6:$ST$8790,Look_Tbl!B46,FALSE))) -> Oct | H51: FY2024 | I51: =IF($D$4="N/A",0,IF(G51="","",HLOOKUP($I$11&$D$4,Look_Tbl!$C$6:$ST$8790,Look_Tbl!B46,FALSE))) -> HLH | P51: 1 | Q51: =IF($N$4="N/A","",IF(HLOOKUP($Q$11&$N$4,Look_Tbl!$C$6:$ST$8790,Look_Tbl!B46,FALSE)="","",HLOOKUP($Q$11&$N$4,Look_Tbl!$C$6:$ST$8790,Look_Tbl!B46,FALSE))) -> Oct | R51: FY2025 | S51: =IF($N$4="N/A",0,IF(Q51="","",HLOOKUP($S$11&$N$4,Look_Tbl!$C$6:$ST$8790,Look_Tbl!B46,FALSE))) -> HLH
F52: 1 | G52: =IF($D$4="N/A","",IF(HLOOKUP($G$11&$D$4,Look_Tbl!$C$6:$ST$8790,Look_Tbl!B47,FALSE)="","",HLOOKUP($G$11&$D$4,Look_Tbl!$C$6:$ST$8790,Look_Tbl!B47,FALSE))) -> Oct | H52: FY2024 | I52: =IF($D$4="N/A",0,IF(G52="","",HLOOKUP($I$11&$D$4,Look_Tbl!$C$6:$ST$8790,Look_Tbl!B47,FALSE))) -> HLH | P52: 1 | Q52: =IF($N$4="N/A","",IF(HLOOKUP($Q$11&$N$4,Look_Tbl!$C$6:$ST$8790,Look_Tbl!B47,FALSE)="","",HLOOKUP($Q$11&$N$4,Look_Tbl!$C$6:$ST$8790,Look_Tbl!B47,FALSE))) -> Oct | R52: FY2025 | S52: =IF($N$4="N/A",0,IF(Q52="","",HLOOKUP($S$11&$N$4,Look_Tbl!$C$6:$ST$8790,Look_Tbl!B47,FALSE))) -> HLH
F53: 1 | G53: =IF($D$4="N/A","",IF(HLOOKUP($G$11&$D$4,Look_Tbl!$C$6:$ST$8790,Look_Tbl!B48,FALSE)="","",HLOOKUP($G$11&$D$4,Look_Tbl!$C$6:$ST$8790,Look_Tbl!B48,FALSE))) -> Oct | H53: FY2024 | I53: =IF($D$4="N/A",0,IF(G53="","",HLOOKUP($I$11&$D$4,Look_Tbl!$C$6:$ST$8790,Look_Tbl!B48,FALSE))) -> HLH | P53: 1 | Q53: =IF($N$4="N/A","",IF(HLOOKUP($Q$11&$N$4,Look_Tbl!$C$6:$ST$8790,Look_Tbl!B48,FALSE)="","",HLOOKUP($Q$11&$N$4,Look_Tbl!$C$6:$ST$8790,Look_Tbl!B48,FALSE))) -> Oct | R53: FY2025 | S53: =IF($N$4="N/A",0,IF(Q53="","",HLOOKUP($S$11&$N$4,Look_Tbl!$C$6:$ST$8790,Look_Tbl!B48,FALSE))) -> HLH
F54: 1 | G54: =IF($D$4="N/A","",IF(HLOOKUP($G$11&$D$4,Look_Tbl!$C$6:$ST$8790,Look_Tbl!B49,FALSE)="","",HLOOKUP($G$11&$D$4,Look_Tbl!$C$6:$ST$8790,Look_Tbl!B49,FALSE))) -> Oct | H54: FY2024 | I54: =IF($D$4="N/A",0,IF(G54="","",HLOOKUP($I$11&$D$4,Look_Tbl!$C$6:$ST$8790,Look_Tbl!B49,FALSE))) -> HLH | P54: 1 | Q54: =IF($N$4="N/A","",IF(HLOOKUP($Q$11&$N$4,Look_Tbl!$C$6:$ST$8790,Look_Tbl!B49,FALSE)="","",HLOOKUP($Q$11&$N$4,Look_Tbl!$C$6:$ST$8790,Look_Tbl!B49,FALSE))) -> Oct | R54: FY2025 | S54: =IF($N$4="N/A",0,IF(Q54="","",HLOOKUP($S$11&$N$4,Look_Tbl!$C$6:$ST$8790,Look_Tbl!B49,FALSE))) -> HLH
F55: 1 | G55: =IF($D$4="N/A","",IF(HLOOKUP($G$11&$D$4,Look_Tbl!$C$6:$ST$8790,Look_Tbl!B50,FALSE)="","",HLOOKUP($G$11&$D$4,Look_Tbl!$C$6:$ST$8790,Look_Tbl!B50,FALSE))) -> Oct | H55: FY2024 | I55: =IF($D$4="N/A",0,IF(G55="","",HLOOKUP($I$11&$D$4,Look_Tbl!$C$6:$ST$8790,Look_Tbl!B50,FALSE))) -> HLH | P55: 1 | Q55: =IF($N$4="N/A","",IF(HLOOKUP($Q$11&$N$4,Look_Tbl!$C$6:$ST$8790,Look_Tbl!B50,FALSE)="","",HLOOKUP($Q$11&$N$4,Look_Tbl!$C$6:$ST$8790,Look_Tbl!B50,FALSE))) -> Oct | R55: FY2025 | S55: =IF($N$4="N/A",0,IF(Q55="","",HLOOKUP($S$11&$N$4,Look_Tbl!$C$6:$ST$8790,Look_Tbl!B50,FALSE))) -> HLH
F56: 1 | G56: =IF($D$4="N/A","",IF(HLOOKUP($G$11&$D$4,Look_Tbl!$C$6:$ST$8790,Look_Tbl!B51,FALSE)="","",HLOOKUP($G$11&$D$4,Look_Tbl!$C$6:$ST$8790,Look_Tbl!B51,FALSE))) -> Oct | H56: FY2024 | I56: =IF($D$4="N/A",0,IF(G56="","",HLOOKUP($I$11&$D$4,Look_Tbl!$C$6:$ST$8790,Look_Tbl!B51,FALSE))) -> HLH | P56: 1 | Q56: =IF($N$4="N/A","",IF(HLOOKUP($Q$11&$N$4,Look_Tbl!$C$6:$ST$8790,Look_Tbl!B51,FALSE)="","",HLOOKUP($Q$11&$N$4,Look_Tbl!$C$6:$ST$8790,Look_Tbl!B51,FALSE))) -> Oct | R56: FY2025 | S56: =IF($N$4="N/A",0,IF(Q56="","",HLOOKUP($S$11&$N$4,Look_Tbl!$C$6:$ST$8790,Look_Tbl!B51,FALSE))) -> HLH
F57: 1 | G57: =IF($D$4="N/A","",IF(HLOOKUP($G$11&$D$4,Look_Tbl!$C$6:$ST$8790,Look_Tbl!B52,FALSE)="","",HLOOKUP($G$11&$D$4,Look_Tbl!$C$6:$ST$8790,Look_Tbl!B52,FALSE))) -> Oct | H57: FY2024 | I57: =IF($D$4="N/A",0,IF(G57="","",HLOOKUP($I$11&$D$4,Look_Tbl!$C$6:$ST$8790,Look_Tbl!B52,FALSE))) -> HLH | P57: 1 | Q57: =IF($N$4="N/A","",IF(HLOOKUP($Q$11&$N$4,Look_Tbl!$C$6:$ST$8790,Look_Tbl!B52,FALSE)="","",HLOOKUP($Q$11&$N$4,Look_Tbl!$C$6:$ST$8790,Look_Tbl!B52,FALSE))) -> Oct | R57: FY2025 | S57: =IF($N$4="N/A",0,IF(Q57="","",HLOOKUP($S$11&$N$4,Look_Tbl!$C$6:$ST$8790,Look_Tbl!B52,FALSE))) -> HLH
F58: 1 | G58: =IF($D$4="N/A","",IF(HLOOKUP($G$11&$D$4,Look_Tbl!$C$6:$ST$8790,Look_Tbl!B53,FALSE)="","",HLOOKUP($G$11&$D$4,Look_Tbl!$C$6:$ST$8790,Look_Tbl!B53,FALSE))) -> Oct | H58: FY2024 | I58: =IF($D$4="N/A",0,IF(G58="","",HLOOKUP($I$11&$D$4,Look_Tbl!$C$6:$ST$8790,Look_Tbl!B53,FALSE))) -> LLH | P58: 1 | Q58: =IF($N$4="N/A","",IF(HLOOKUP($Q$11&$N$4,Look_Tbl!$C$6:$ST$8790,Look_Tbl!B53,FALSE)="","",HLOOKUP($Q$11&$N$4,Look_Tbl!$C$6:$ST$8790,Look_Tbl!B53,FALSE))) -> Oct | R58: FY2025 | S58: =IF($N$4="N/A",0,IF(Q58="","",HLOOKUP($S$11&$N$4,Look_Tbl!$C$6:$ST$8790,Look_Tbl!B53,FALSE))) -> LLH
F59: 1 | G59: =IF($D$4="N/A","",IF(HLOOKUP($G$11&$D$4,Look_Tbl!$C$6:$ST$8790,Look_Tbl!B54,FALSE)="","",HLOOKUP($G$11&$D$4,Look_Tbl!$C$6:$ST$8790,Look_Tbl!B54,FALSE))) -> Oct | H59: FY2024 | I59: =IF($D$4="N/A",0,IF(G59="","",HLOOKUP($I$11&$D$4,Look_Tbl!$C$6:$ST$8790,Look_Tbl!B54,FALSE))) -> LLH | P59: 1 | Q59: =IF($N$4="N/A","",IF(HLOOKUP($Q$11&$N$4,Look_Tbl!$C$6:$ST$8790,Look_Tbl!B54,FALSE)="","",HLOOKUP($Q$11&$N$4,Look_Tbl!$C$6:$ST$8790,Look_Tbl!B54,FALSE))) -> Oct | R59: FY2025 | S59: =IF($N$4="N/A",0,IF(Q59="","",HLOOKUP($S$11&$N$4,Look_Tbl!$C$6:$ST$8790,Look_Tbl!B54,FALSE))) -> LLH
F60: 1 | G60: =IF($D$4="N/A","",IF(HLOOKUP($G$11&$D$4,Look_Tbl!$C$6:$ST$8790,Look_Tbl!B55,FALSE)="","",HLOOKUP($G$11&$D$4,Look_Tbl!$C$6:$ST$8790,Look_Tbl!B55,FALSE))) -> Oct | H60: FY2024 | I60: =IF($D$4="N/A",0,IF(G60="","",HLOOKUP($I$11&$D$4,Look_Tbl!$C$6:$ST$8790,Look_Tbl!B55,FALSE))) -> LLH | P60: 1 | Q60: =IF($N$4="N/A","",IF(HLOOKUP($Q$11&$N$4,Look_Tbl!$C$6:$ST$8790,Look_Tbl!B55,FALSE)="","",HLOOKUP($Q$11&$N$4,Look_Tbl!$C$6:$ST$8790,Look_Tbl!B55,FALSE))) -> Oct | R60: FY2025 | S60: =IF($N$4="N/A",0,IF(Q60="","",HLOOKUP($S$11&$N$4,Look_Tbl!$C$6:$ST$8790,Look_Tbl!B55,FALSE))) -> LLH
F61: 1 | G61: =IF($D$4="N/A","",IF(HLOOKUP($G$11&$D$4,Look_Tbl!$C$6:$ST$8790,Look_Tbl!B56,FALSE)="","",HLOOKUP($G$11&$D$4,Look_Tbl!$C$6:$ST$8790,Look_Tbl!B56,FALSE))) -> Oct | H61: FY2024 | I61: =IF($D$4="N/A",0,IF(G61="","",HLOOKUP($I$11&$D$4,Look_Tbl!$C$6:$ST$8790,Look_Tbl!B56,FALSE))) -> LLH | P61: 1 | Q61: =IF($N$4="N/A","",IF(HLOOKUP($Q$11&$N$4,Look_Tbl!$C$6:$ST$8790,Look_Tbl!B56,FALSE)="","",HLOOKUP($Q$11&$N$4,Look_Tbl!$C$6:$ST$8790,Look_Tbl!B56,FALSE))) -> Oct | R61: FY2025 | S61: =IF($N$4="N/A",0,IF(Q61="","",HLOOKUP($S$11&$N$4,Look_Tbl!$C$6:$ST$8790,Look_Tbl!B56,FALSE))) -> LLH
F62: 1 | G62: =IF($D$4="N/A","",IF(HLOOKUP($G$11&$D$4,Look_Tbl!$C$6:$ST$8790,Look_Tbl!B57,FALSE)="","",HLOOKUP($G$11&$D$4,Look_Tbl!$C$6:$ST$8790,Look_Tbl!B57,FALSE))) -> Oct | H62: FY2024 | I62: =IF($D$4="N/A",0,IF(G62="","",HLOOKUP($I$11&$D$4,Look_Tbl!$C$6:$ST$8790,Look_Tbl!B57,FALSE))) -> LLH | P62: 1 | Q62: =IF($N$4="N/A","",IF(HLOOKUP($Q$11&$N$4,Look_Tbl!$C$6:$ST$8790,Look_Tbl!B57,FALSE)="","",HLOOKUP($Q$11&$N$4,Look_Tbl!$C$6:$ST$8790,Look_Tbl!B57,FALSE))) -> Oct | R62: FY2025 | S62: =IF($N$4="N/A",0,IF(Q62="","",HLOOKUP($S$11&$N$4,Look_Tbl!$C$6:$ST$8790,Look_Tbl!B57,FALSE))) -> LLH
F63: 1 | G63: =IF($D$4="N/A","",IF(HLOOKUP($G$11&$D$4,Look_Tbl!$C$6:$ST$8790,Look_Tbl!B58,FALSE)="","",HLOOKUP($G$11&$D$4,Look_Tbl!$C$6:$ST$8790,Look_Tbl!B58,FALSE))) -> Oct | H63: FY2024 | I63: =IF($D$4="N/A",0,IF(G63="","",HLOOKUP($I$11&$D$4,Look_Tbl!$C$6:$ST$8790,Look_Tbl!B58,FALSE))) -> LLH | P63: 1 | Q63: =IF($N$4="N/A","",IF(HLOOKUP($Q$11&$N$4,Look_Tbl!$C$6:$ST$8790,Look_Tbl!B58,FALSE)="","",HLOOKUP($Q$11&$N$4,Look_Tbl!$C$6:$ST$8790,Look_Tbl!B58,FALSE))) -> Oct | R63: FY2025 | S63: =IF($N$4="N/A",0,IF(Q63="","",HLOOKUP($S$11&$N$4,Look_Tbl!$C$6:$ST$8790,Look_Tbl!B58,FALSE))) -> LLH
F64: 1 | G64: =IF($D$4="N/A","",IF(HLOOKUP($G$11&$D$4,Look_Tbl!$C$6:$ST$8790,Look_Tbl!B59,FALSE)="","",HLOOKUP($G$11&$D$4,Look_Tbl!$C$6:$ST$8790,Look_Tbl!B59,FALSE))) -> Oct | H64: FY2024 | I64: =IF($D$4="N/A",0,IF(G64="","",HLOOKUP($I$11&$D$4,Look_Tbl!$C$6:$ST$8790,Look_Tbl!B59,FALSE))) -> LLH | P64: 1 | Q64: =IF($N$4="N/A","",IF(HLOOKUP($Q$11&$N$4,Look_Tbl!$C$6:$ST$8790,Look_Tbl!B59,FALSE)="","",HLOOKUP($Q$11&$N$4,Look_Tbl!$C$6:$ST$8790,Look_Tbl!B59,FALSE))) -> Oct | R64: FY2025 | S64: =IF($N$4="N/A",0,IF(Q64="","",HLOOKUP($S$11&$N$4,Look_Tbl!$C$6:$ST$8790,Look_Tbl!B59,FALSE))) -> LLH
F65: 1 | G65: =IF($D$4="N/A","",IF(HLOOKUP($G$11&$D$4,Look_Tbl!$C$6:$ST$8790,Look_Tbl!B60,FALSE)="","",HLOOKUP($G$11&$D$4,Look_Tbl!$C$6:$ST$8790,Look_Tbl!B60,FALSE))) -> Oct | H65: FY2024 | I65: =IF($D$4="N/A",0,IF(G65="","",HLOOKUP($I$11&$D$4,Look_Tbl!$C$6:$ST$8790,Look_Tbl!B60,FALSE))) -> LLH | P65: 1 | Q65: =IF($N$4="N/A","",IF(HLOOKUP($Q$11&$N$4,Look_Tbl!$C$6:$ST$8790,Look_Tbl!B60,FALSE)="","",HLOOKUP($Q$11&$N$4,Look_Tbl!$C$6:$ST$8790,Look_Tbl!B60,FALSE))) -> Oct | R65: FY2025 | S65: =IF($N$4="N/A",0,IF(Q65="","",HLOOKUP($S$11&$N$4,Look_Tbl!$C$6:$ST$8790,Look_Tbl!B60,FALSE))) -> LLH
F66: 1 | G66: =IF($D$4="N/A","",IF(HLOOKUP($G$11&$D$4,Look_Tbl!$C$6:$ST$8790,Look_Tbl!B61,FALSE)="","",HLOOKUP($G$11&$D$4,Look_Tbl!$C$6:$ST$8790,Look_Tbl!B61,FALSE))) -> Oct | H66: FY2024 | I66: =IF($D$4="N/A",0,IF(G66="","",HLOOKUP($I$11&$D$4,Look_Tbl!$C$6:$ST$8790,Look_Tbl!B61,FALSE))) -> HLH | P66: 1 | Q66: =IF($N$4="N/A","",IF(HLOOKUP($Q$11&$N$4,Look_Tbl!$C$6:$ST$8790,Look_Tbl!B61,FALSE)="","",HLOOKUP($Q$11&$N$4,Look_Tbl!$C$6:$ST$8790,Look_Tbl!B61,FALSE))) -> Oct | R66: FY2025 | S66: =IF($N$4="N/A",0,IF(Q66="","",HLOOKUP($S$11&$N$4,Look_Tbl!$C$6:$ST$8790,Look_Tbl!B61,FALSE))) -> HLH
F67: 1 | G67: =IF($D$4="N/A","",IF(HLOOKUP($G$11&$D$4,Look_Tbl!$C$6:$ST$8790,Look_Tbl!B62,FALSE)="","",HLOOKUP($G$11&$D$4,Look_Tbl!$C$6:$ST$8790,Look_Tbl!B62,FALSE))) -> Oct | H67: FY2024 | I67: =IF($D$4="N/A",0,IF(G67="","",HLOOKUP($I$11&$D$4,Look_Tbl!$C$6:$ST$8790,Look_Tbl!B62,FALSE))) -> HLH | P67: 1 | Q67: =IF($N$4="N/A","",IF(HLOOKUP($Q$11&$N$4,Look_Tbl!$C$6:$ST$8790,Look_Tbl!B62,FALSE)="","",HLOOKUP($Q$11&$N$4,Look_Tbl!$C$6:$ST$8790,Look_Tbl!B62,FALSE))) -> Oct | R67: FY2025 | S67: =IF($N$4="N/A",0,IF(Q67="","",HLOOKUP($S$11&$N$4,Look_Tbl!$C$6:$ST$8790,Look_Tbl!B62,FALSE))) -> HLH
F68: 1 | G68: =IF($D$4="N/A","",IF(HLOOKUP($G$11&$D$4,Look_Tbl!$C$6:$ST$8790,Look_Tbl!B63,FALSE)="","",HLOOKUP($G$11&$D$4,Look_Tbl!$C$6:$ST$8790,Look_Tbl!B63,FALSE))) -> Oct | H68: FY2024 | I68: =IF($D$4="N/A",0,IF(G68="","",HLOOKUP($I$11&$D$4,Look_Tbl!$C$6:$ST$8790,Look_Tbl!B63,FALSE))) -> HLH | P68: 1 | Q68: =IF($N$4="N/A","",IF(HLOOKUP($Q$11&$N$4,Look_Tbl!$C$6:$ST$8790,Look_Tbl!B63,FALSE)="","",HLOOKUP($Q$11&$N$4,Look_Tbl!$C$6:$ST$8790,Look_Tbl!B63,FALSE))) -> Oct | R68: FY2025 | S68: =IF($N$4="N/A",0,IF(Q68="","",HLOOKUP($S$11&$N$4,Look_Tbl!$C$6:$ST$8790,Look_Tbl!B63,FALSE))) -> HLH
F69: 1 | G69: =IF($D$4="N/A","",IF(HLOOKUP($G$11&$D$4,Look_Tbl!$C$6:$ST$8790,Look_Tbl!B64,FALSE)="","",HLOOKUP($G$11&$D$4,Look_Tbl!$C$6:$ST$8790,Look_Tbl!B64,FALSE))) -> Oct | H69: FY2024 | I69: =IF($D$4="N/A",0,IF(G69="","",HLOOKUP($I$11&$D$4,Look_Tbl!$C$6:$ST$8790,Look_Tbl!B64,FALSE))) -> HLH | P69: 1 | Q69: =IF($N$4="N/A","",IF(HLOOKUP($Q$11&$N$4,Look_Tbl!$C$6:$ST$8790,Look_Tbl!B64,FALSE)="","",HLOOKUP($Q$11&$N$4,Look_Tbl!$C$6:$ST$8790,Look_Tbl!B64,FALSE))) -> Oct | R69: FY2025 | S69: =IF($N$4="N/A",0,IF(Q69="","",HLOOKUP($S$11&$N$4,Look_Tbl!$C$6:$ST$8790,Look_Tbl!B64,FALSE))) -> HLH
F70: 1 | G70: =IF($D$4="N/A","",IF(HLOOKUP($G$11&$D$4,Look_Tbl!$C$6:$ST$8790,Look_Tbl!B65,FALSE)="","",HLOOKUP($G$11&$D$4,Look_Tbl!$C$6:$ST$8790,Look_Tbl!B65,FALSE))) -> Oct | H70: FY2024 | I70: =IF($D$4="N/A",0,IF(G70="","",HLOOKUP($I$11&$D$4,Look_Tbl!$C$6:$ST$8790,Look_Tbl!B65,FALSE))) -> HLH | P70: 1 | Q70: =IF($N$4="N/A","",IF(HLOOKUP($Q$11&$N$4,Look_Tbl!$C$6:$ST$8790,Look_Tbl!B65,FALSE)="","",HLOOKUP($Q$11&$N$4,Look_Tbl!$C$6:$ST$8790,Look_Tbl!B65,FALSE))) -> Oct | R70: FY2025 | S70: =IF($N$4="N/A",0,IF(Q70="","",HLOOKUP($S$11&$N$4,Look_Tbl!$C$6:$ST$8790,Look_Tbl!B65,FALSE))) -> HLH
F71: 1 | G71: =IF($D$4="N/A","",IF(HLOOKUP($G$11&$D$4,Look_Tbl!$C$6:$ST$8790,Look_Tbl!B66,FALSE)="","",HLOOKUP($G$11&$D$4,Look_Tbl!$C$6:$ST$8790,Look_Tbl!B66,FALSE))) -> Oct | H71: FY2024 | I71: =IF($D$4="N/A",0,IF(G71="","",HLOOKUP($I$11&$D$4,Look_Tbl!$C$6:$ST$8790,Look_Tbl!B66,FALSE))) -> HLH | P71: 1 | Q71: =IF($N$4="N/A","",IF(HLOOKUP($Q$11&$N$4,Look_Tbl!$C$6:$ST$8790,Look_Tbl!B66,FALSE)="","",HLOOKUP($Q$11&$N$4,Look_Tbl!$C$6:$ST$8790,Look_Tbl!B66,FALSE))) -> Oct | R71: FY2025 | S71: =IF($N$4="N/A",0,IF(Q71="","",HLOOKUP($S$11&$N$4,Look_Tbl!$C$6:$ST$8790,Look_Tbl!B66,FALSE))) -> HLH
F72: 1 | G72: =IF($D$4="N/A","",IF(HLOOKUP($G$11&$D$4,Look_Tbl!$C$6:$ST$8790,Look_Tbl!B67,FALSE)="","",HLOOKUP($G$11&$D$4,Look_Tbl!$C$6:$ST$8790,Look_Tbl!B67,FALSE))) -> Oct | H72: FY2024 | I72: =IF($D$4="N/A",0,IF(G72="","",HLOOKUP($I$11&$D$4,Look_Tbl!$C$6:$ST$8790,Look_Tbl!B67,FALSE))) -> HLH | P72: 1 | Q72: =IF($N$4="N/A","",IF(HLOOKUP($Q$11&$N$4,Look_Tbl!$C$6:$ST$8790,Look_Tbl!B67,FALSE)="","",HLOOKUP($Q$11&$N$4,Look_Tbl!$C$6:$ST$8790,Look_Tbl!B67,FALSE))) -> Oct | R72: FY2025 | S72: =IF($N$4="N/A",0,IF(Q72="","",HLOOKUP($S$11&$N$4,Look_Tbl!$C$6:$ST$8790,Look_Tbl!B67,FALSE))) -> HLH
F73: 1 | G73: =IF($D$4="N/A","",IF(HLOOKUP($G$11&$D$4,Look_Tbl!$C$6:$ST$8790,Look_Tbl!B68,FALSE)="","",HLOOKUP($G$11&$D$4,Look_Tbl!$C$6:$ST$8790,Look_Tbl!B68,FALSE))) -> Oct | H73: FY2024 | I73: =IF($D$4="N/A",0,IF(G73="","",HLOOKUP($I$11&$D$4,Look_Tbl!$C$6:$ST$8790,Look_Tbl!B68,FALSE))) -> HLH | P73: 1 | Q73: =IF($N$4="N/A","",IF(HLOOKUP($Q$11&$N$4,Look_Tbl!$C$6:$ST$8790,Look_Tbl!B68,FALSE)="","",HLOOKUP($Q$11&$N$4,Look_Tbl!$C$6:$ST$8790,Look_Tbl!B68,FALSE))) -> Oct | R73: FY2025 | S73: =IF($N$4="N/A",0,IF(Q73="","",HLOOKUP($S$11&$N$4,Look_Tbl!$C$6:$ST$8790,Look_Tbl!B68,FALSE))) -> HLH
F74: 1 | G74: =IF($D$4="N/A","",IF(HLOOKUP($G$11&$D$4,Look_Tbl!$C$6:$ST$8790,Look_Tbl!B69,FALSE)="","",HLOOKUP($G$11&$D$4,Look_Tbl!$C$6:$ST$8790,Look_Tbl!B69,FALSE))) -> Oct | H74: FY2024 | I74: =IF($D$4="N/A",0,IF(G74="","",HLOOKUP($I$11&$D$4,Look_Tbl!$C$6:$ST$8790,Look_Tbl!B69,FALSE))) -> HLH | P74: 1 | Q74: =IF($N$4="N/A","",IF(HLOOKUP($Q$11&$N$4,Look_Tbl!$C$6:$ST$8790,Look_Tbl!B69,FALSE)="","",HLOOKUP($Q$11&$N$4,Look_Tbl!$C$6:$ST$8790,Look_Tbl!B69,FALSE))) -> Oct | R74: FY2025 | S74: =IF($N$4="N/A",0,IF(Q74="","",HLOOKUP($S$11&$N$4,Look_Tbl!$C$6:$ST$8790,Look_Tbl!B69,FALSE))) -> HLH
F75: 1 | G75: =IF($D$4="N/A","",IF(HLOOKUP($G$11&$D$4,Look_Tbl!$C$6:$ST$8790,Look_Tbl!B70,FALSE)="","",HLOOKUP($G$11&$D$4,Look_Tbl!$C$6:$ST$8790,Look_Tbl!B70,FALSE))) -> Oct | H75: FY2024 | I75: =IF($D$4="N/A",0,IF(G75="","",HLOOKUP($I$11&$D$4,Look_Tbl!$C$6:$ST$8790,Look_Tbl!B70,FALSE))) -> HLH | P75: 1 | Q75: =IF($N$4="N/A","",IF(HLOOKUP($Q$11&$N$4,Look_Tbl!$C$6:$ST$8790,Look_Tbl!B70,FALSE)="","",HLOOKUP($Q$11&$N$4,Look_Tbl!$C$6:$ST$8790,Look_Tbl!B70,FALSE))) -> Oct | R75: FY2025 | S75: =IF($N$4="N/A",0,IF(Q75="","",HLOOKUP($S$11&$N$4,Look_Tbl!$C$6:$ST$8790,Look_Tbl!B70,FALSE))) -> HLH
F76: 1 | G76: =IF($D$4="N/A","",IF(HLOOKUP($G$11&$D$4,Look_Tbl!$C$6:$ST$8790,Look_Tbl!B71,FALSE)="","",HLOOKUP($G$11&$D$4,Look_Tbl!$C$6:$ST$8790,Look_Tbl!B71,FALSE))) -> Oct | H76: =IF($D$4="N/A","",IF(G76="","",$D$4)) -> FY2024 | I76: =IF($D$4="N/A",0,IF(G76="","",HLOOKUP($I$11&$D$4,Look_Tbl!$C$6:$ST$8790,Look_Tbl!B71,FALSE))) -> HLH | P76: 1 | Q76: =IF($N$4="N/A","",IF(HLOOKUP($Q$11&$N$4,Look_Tbl!$C$6:$ST$8790,Look_Tbl!B71,FALSE)="","",HLOOKUP($Q$11&$N$4,Look_Tbl!$C$6:$ST$8790,Look_Tbl!B71,FALSE))) -> Oct | R76: FY2025 | S76: =IF($N$4="N/A",0,IF(Q76="","",HLOOKUP($S$11&$N$4,Look_Tbl!$C$6:$ST$8790,Look_Tbl!B71,FALSE))) -> HLH
F77: =IF(G77="","",1) -> 1 | G77: =IF($D$4="N/A","",IF(HLOOKUP($G$11&$D$4,Look_Tbl!$C$6:$ST$8790,Look_Tbl!B72,FALSE)="","",HLOOKUP($G$11&$D$4,Look_Tbl!$C$6:$ST$8790,Look_Tbl!B72,FALSE))) -> Oct | H77: FY2024 | I77: =IF($D$4="N/A",0,IF(G77="","",HLOOKUP($I$11&$D$4,Look_Tbl!$C$6:$ST$8790,Look_Tbl!B72,FALSE))) -> HLH | P77: 1 | Q77: =IF($N$4="N/A","",IF(HLOOKUP($Q$11&$N$4,Look_Tbl!$C$6:$ST$8790,Look_Tbl!B72,FALSE)="","",HLOOKUP($Q$11&$N$4,Look_Tbl!$C$6:$ST$8790,Look_Tbl!B72,FALSE))) -> Oct | R77: =IF($N$4="N/A","",IF(Q77="","",$N$4)) -> FY2025 | S77: =IF($N$4="N/A",0,IF(Q77="","",HLOOKUP($S$11&$N$4,Look_Tbl!$C$6:$ST$8790,Look_Tbl!B72,FALSE))) -> HLH
F78: 1 | G78: =IF($D$4="N/A","",IF(HLOOKUP($G$11&$D$4,Look_Tbl!$C$6:$ST$8790,Look_Tbl!B73,FALSE)="","",HLOOKUP($G$11&$D$4,Look_Tbl!$C$6:$ST$8790,Look_Tbl!B73,FALSE))) -> Oct | H78: FY2024 | I78: =IF($D$4="N/A",0,IF(G78="","",HLOOKUP($I$11&$D$4,Look_Tbl!$C$6:$ST$8790,Look_Tbl!B73,FALSE))) -> HLH | P78: 1 | Q78: =IF($N$4="N/A","",IF(HLOOKUP($Q$11&$N$4,Look_Tbl!$C$6:$ST$8790,Look_Tbl!B73,FALSE)="","",HLOOKUP($Q$11&$N$4,Look_Tbl!$C$6:$ST$8790,Look_Tbl!B73,FALSE))) -> Oct | R78: FY2025 | S78: =IF($N$4="N/A",0,IF(Q78="","",HLOOKUP($S$11&$N$4,Look_Tbl!$C$6:$ST$8790,Look_Tbl!B73,FALSE))) -> HLH
F79: 1 | G79: =IF($D$4="N/A","",IF(HLOOKUP($G$11&$D$4,Look_Tbl!$C$6:$ST$8790,Look_Tbl!B74,FALSE)="","",HLOOKUP($G$11&$D$4,Look_Tbl!$C$6:$ST$8790,Look_Tbl!B74,FALSE))) -> Oct | H79: FY2024 | I79: =IF($D$4="N/A",0,IF(G79="","",HLOOKUP($I$11&$D$4,Look_Tbl!$C$6:$ST$8790,Look_Tbl!B74,FALSE))) -> HLH | P79: 1 | Q79: =IF($N$4="N/A","",IF(HLOOKUP($Q$11&$N$4,Look_Tbl!$C$6:$ST$8790,Look_Tbl!B74,FALSE)="","",HLOOKUP($Q$11&$N$4,Look_Tbl!$C$6:$ST$8790,Look_Tbl!B74,FALSE))) -> Oct | R79: FY2025 | S79: =IF($N$4="N/A",0,IF(Q79="","",HLOOKUP($S$11&$N$4,Look_Tbl!$C$6:$ST$8790,Look_Tbl!B74,FALSE))) -> HLH
F80: 1 | G80: =IF($D$4="N/A","",IF(HLOOKUP($G$11&$D$4,Look_Tbl!$C$6:$ST$8790,Look_Tbl!B75,FALSE)="","",HLOOKUP($G$11&$D$4,Look_Tbl!$C$6:$ST$8790,Look_Tbl!B75,FALSE))) -> Oct | H80: FY2024 | I80: =IF($D$4="N/A",0,IF(G80="","",HLOOKUP($I$11&$D$4,Look_Tbl!$C$6:$ST$8790,Look_Tbl!B75,FALSE))) -> HLH | P80: 1 | Q80: =IF($N$4="N/A","",IF(HLOOKUP($Q$11&$N$4,Look_Tbl!$C$6:$ST$8790,Look_Tbl!B75,FALSE)="","",HLOOKUP($Q$11&$N$4,Look_Tbl!$C$6:$ST$8790,Look_Tbl!B75,FALSE))) -> Oct | R80: FY2025 | S80: =IF($N$4="N/A",0,IF(Q80="","",HLOOKUP($S$11&$N$4,Look_Tbl!$C$6:$ST$8790,Look_Tbl!B75,FALSE))) -> HLH
F81: 1 | G81: =IF($D$4="N/A","",IF(HLOOKUP($G$11&$D$4,Look_Tbl!$C$6:$ST$8790,Look_Tbl!B76,FALSE)="","",HLOOKUP($G$11&$D$4,Look_Tbl!$C$6:$ST$8790,Look_Tbl!B76,FALSE))) -> Oct | H81: FY2024 | I81: =IF($D$4="N/A",0,IF(G81="","",HLOOKUP($I$11&$D$4,Look_Tbl!$C$6:$ST$8790,Look_Tbl!B76,FALSE))) -> HLH | P81: 1 | Q81: =IF($N$4="N/A","",IF(HLOOKUP($Q$11&$N$4,Look_Tbl!$C$6:$ST$8790,Look_Tbl!B76,FALSE)="","",HLOOKUP($Q$11&$N$4,Look_Tbl!$C$6:$ST$8790,Look_Tbl!B76,FALSE))) -> Oct | R81: FY2025 | S81: =IF($N$4="N/A",0,IF(Q81="","",HLOOKUP($S$11&$N$4,Look_Tbl!$C$6:$ST$8790,Look_Tbl!B76,FALSE))) -> HLH
F82: 1 | G82: =IF($D$4="N/A","",IF(HLOOKUP($G$11&$D$4,Look_Tbl!$C$6:$ST$8790,Look_Tbl!B77,FALSE)="","",HLOOKUP($G$11&$D$4,Look_Tbl!$C$6:$ST$8790,Look_Tbl!B77,FALSE))) -> Oct | H82: FY2024 | I82: =IF($D$4="N/A",0,IF(G82="","",HLOOKUP($I$11&$D$4,Look_Tbl!$C$6:$ST$8790,Look_Tbl!B77,FALSE))) -> LLH | P82: 1 | Q82: =IF($N$4="N/A","",IF(HLOOKUP($Q$11&$N$4,Look_Tbl!$C$6:$ST$8790,Look_Tbl!B77,FALSE)="","",HLOOKUP($Q$11&$N$4,Look_Tbl!$C$6:$ST$8790,Look_Tbl!B77,FALSE))) -> Oct | R82: FY2025 | S82: =IF($N$4="N/A",0,IF(Q82="","",HLOOKUP($S$11&$N$4,Look_Tbl!$C$6:$ST$8790,Look_Tbl!B77,FALSE))) -> LLH
F83: 1 | G83: =IF($D$4="N/A","",IF(HLOOKUP($G$11&$D$4,Look_Tbl!$C$6:$ST$8790,Look_Tbl!B78,FALSE)="","",HLOOKUP($G$11&$D$4,Look_Tbl!$C$6:$ST$8790,Look_Tbl!B78,FALSE))) -> Oct | H83: FY2024 | I83: =IF($D$4="N/A",0,IF(G83="","",HLOOKUP($I$11&$D$4,Look_Tbl!$C$6:$ST$8790,Look_Tbl!B78,FALSE))) -> LLH | P83: 1 | Q83: =IF($N$4="N/A","",IF(HLOOKUP($Q$11&$N$4,Look_Tbl!$C$6:$ST$8790,Look_Tbl!B78,FALSE)="","",HLOOKUP($Q$11&$N$4,Look_Tbl!$C$6:$ST$8790,Look_Tbl!B78,FALSE))) -> Oct | R83: FY2025 | S83: =IF($N$4="N/A",0,IF(Q83="","",HLOOKUP($S$11&$N$4,Look_Tbl!$C$6:$ST$8790,Look_Tbl!B78,FALSE))) -> LLH
F84: 1 | G84: =IF($D$4="N/A","",IF(HLOOKUP($G$11&$D$4,Look_Tbl!$C$6:$ST$8790,Look_Tbl!B79,FALSE)="","",HLOOKUP($G$11&$D$4,Look_Tbl!$C$6:$ST$8790,Look_Tbl!B79,FALSE))) -> Oct | H84: FY2024 | I84: =IF($D$4="N/A",0,IF(G84="","",HLOOKUP($I$11&$D$4,Look_Tbl!$C$6:$ST$8790,Look_Tbl!B79,FALSE))) -> LLH | P84: 1 | Q84: =IF($N$4="N/A","",IF(HLOOKUP($Q$11&$N$4,Look_Tbl!$C$6:$ST$8790,Look_Tbl!B79,FALSE)="","",HLOOKUP($Q$11&$N$4,Look_Tbl!$C$6:$ST$8790,Look_Tbl!B79,FALSE))) -> Oct | R84: FY2025 | S84: =IF($N$4="N/A",0,IF(Q84="","",HLOOKUP($S$11&$N$4,Look_Tbl!$C$6:$ST$8790,Look_Tbl!B79,FALSE))) -> LLH
F85: 1 | G85: =IF($D$4="N/A","",IF(HLOOKUP($G$11&$D$4,Look_Tbl!$C$6:$ST$8790,Look_Tbl!B80,FALSE)="","",HLOOKUP($G$11&$D$4,Look_Tbl!$C$6:$ST$8790,Look_Tbl!B80,FALSE))) -> Oct | H85: FY2024 | I85: =IF($D$4="N/A",0,IF(G85="","",HLOOKUP($I$11&$D$4,Look_Tbl!$C$6:$ST$8790,Look_Tbl!B80,FALSE))) -> LLH | P85: =IF(G85="","",1) -> 1 | Q85: =IF($N$4="N/A","",IF(HLOOKUP($Q$11&$N$4,Look_Tbl!$C$6:$ST$8790,Look_Tbl!B80,FALSE)="","",HLOOKUP($Q$11&$N$4,Look_Tbl!$C$6:$ST$8790,Look_Tbl!B80,FALSE))) -> Oct | R85: FY2025 | S85: =IF($N$4="N/A",0,IF(Q85="","",HLOOKUP($S$11&$N$4,Look_Tbl!$C$6:$ST$8790,Look_Tbl!B80,FALSE))) -> LLH
F86: 1 | G86: =IF($D$4="N/A","",IF(HLOOKUP($G$11&$D$4,Look_Tbl!$C$6:$ST$8790,Look_Tbl!B81,FALSE)="","",HLOOKUP($G$11&$D$4,Look_Tbl!$C$6:$ST$8790,Look_Tbl!B81,FALSE))) -> Oct | H86: FY2024 | I86: =IF($D$4="N/A",0,IF(G86="","",HLOOKUP($I$11&$D$4,Look_Tbl!$C$6:$ST$8790,Look_Tbl!B81,FALSE))) -> LLH | P86: 1 | Q86: =IF($N$4="N/A","",IF(HLOOKUP($Q$11&$N$4,Look_Tbl!$C$6:$ST$8790,Look_Tbl!B81,FALSE)="","",HLOOKUP($Q$11&$N$4,Look_Tbl!$C$6:$ST$8790,Look_Tbl!B81,FALSE))) -> Oct | R86: FY2025 | S86: =IF($N$4="N/A",0,IF(Q86="","",HLOOKUP($S$11&$N$4,Look_Tbl!$C$6:$ST$8790,Look_Tbl!B81,FALSE))) -> LLH
F87: 1 | G87: =IF($D$4="N/A","",IF(HLOOKUP($G$11&$D$4,Look_Tbl!$C$6:$ST$8790,Look_Tbl!B82,FALSE)="","",HLOOKUP($G$11&$D$4,Look_Tbl!$C$6:$ST$8790,Look_Tbl!B82,FALSE))) -> Oct | H87: FY2024 | I87: =IF($D$4="N/A",0,IF(G87="","",HLOOKUP($I$11&$D$4,Look_Tbl!$C$6:$ST$8790,Look_Tbl!B82,FALSE))) -> LLH | P87: 1 | Q87: =IF($N$4="N/A","",IF(HLOOKUP($Q$11&$N$4,Look_Tbl!$C$6:$ST$8790,Look_Tbl!B82,FALSE)="","",HLOOKUP($Q$11&$N$4,Look_Tbl!$C$6:$ST$8790,Look_Tbl!B82,FALSE))) -> Oct | R87: FY2025 | S87: =IF($N$4="N/A",0,IF(Q87="","",HLOOKUP($S$11&$N$4,Look_Tbl!$C$6:$ST$8790,Look_Tbl!B82,FALSE))) -> LLH
F88: 1 | G88: =IF($D$4="N/A","",IF(HLOOKUP($G$11&$D$4,Look_Tbl!$C$6:$ST$8790,Look_Tbl!B83,FALSE)="","",HLOOKUP($G$11&$D$4,Look_Tbl!$C$6:$ST$8790,Look_Tbl!B83,FALSE))) -> Oct | H88: FY2024 | I88: =IF($D$4="N/A",0,IF(G88="","",HLOOKUP($I$11&$D$4,Look_Tbl!$C$6:$ST$8790,Look_Tbl!B83,FALSE))) -> LLH | P88: 1 | Q88: =IF($N$4="N/A","",IF(HLOOKUP($Q$11&$N$4,Look_Tbl!$C$6:$ST$8790,Look_Tbl!B83,FALSE)="","",HLOOKUP($Q$11&$N$4,Look_Tbl!$C$6:$ST$8790,Look_Tbl!B83,FALSE))) -> Oct | R88: FY2025 | S88: =IF($N$4="N/A",0,IF(Q88="","",HLOOKUP($S$11&$N$4,Look_Tbl!$C$6:$ST$8790,Look_Tbl!B83,FALSE))) -> LLH
F89: 1 | G89: =IF($D$4="N/A","",IF(HLOOKUP($G$11&$D$4,Look_Tbl!$C$6:$ST$8790,Look_Tbl!B84,FALSE)="","",HLOOKUP($G$11&$D$4,Look_Tbl!$C$6:$ST$8790,Look_Tbl!B84,FALSE))) -> Oct | H89: FY2024 | I89: =IF($D$4="N/A",0,IF(G89="","",HLOOKUP($I$11&$D$4,Look_Tbl!$C$6:$ST$8790,Look_Tbl!B84,FALSE))) -> LLH | P89: 1 | Q89: =IF($N$4="N/A","",IF(HLOOKUP($Q$11&$N$4,Look_Tbl!$C$6:$ST$8790,Look_Tbl!B84,FALSE)="","",HLOOKUP($Q$11&$N$4,Look_Tbl!$C$6:$ST$8790,Look_Tbl!B84,FALSE))) -> Oct | R89: FY2025 | S89: =IF($N$4="N/A",0,IF(Q89="","",HLOOKUP($S$11&$N$4,Look_Tbl!$C$6:$ST$8790,Look_Tbl!B84,FALSE))) -> LLH
F90: 1 | G90: =IF($D$4="N/A","",IF(HLOOKUP($G$11&$D$4,Look_Tbl!$C$6:$ST$8790,Look_Tbl!B85,FALSE)="","",HLOOKUP($G$11&$D$4,Look_Tbl!$C$6:$ST$8790,Look_Tbl!B85,FALSE))) -> Oct | H90: FY2024 | I90: =IF($D$4="N/A",0,IF(G90="","",HLOOKUP($I$11&$D$4,Look_Tbl!$C$6:$ST$8790,Look_Tbl!B85,FALSE))) -> HLH | P90: 1 | Q90: =IF($N$4="N/A","",IF(HLOOKUP($Q$11&$N$4,Look_Tbl!$C$6:$ST$8790,Look_Tbl!B85,FALSE)="","",HLOOKUP($Q$11&$N$4,Look_Tbl!$C$6:$ST$8790,Look_Tbl!B85,FALSE))) -> Oct | R90: FY2025 | S90: =IF($N$4="N/A",0,IF(Q90="","",HLOOKUP($S$11&$N$4,Look_Tbl!$C$6:$ST$8790,Look_Tbl!B85,FALSE))) -> HLH
F91: 1 | G91: =IF($D$4="N/A","",IF(HLOOKUP($G$11&$D$4,Look_Tbl!$C$6:$ST$8790,Look_Tbl!B86,FALSE)="","",HLOOKUP($G$11&$D$4,Look_Tbl!$C$6:$ST$8790,Look_Tbl!B86,FALSE))) -> Oct | H91: FY2024 | I91: =IF($D$4="N/A",0,IF(G91="","",HLOOKUP($I$11&$D$4,Look_Tbl!$C$6:$ST$8790,Look_Tbl!B86,FALSE))) -> HLH | P91: 1 | Q91: =IF($N$4="N/A","",IF(HLOOKUP($Q$11&$N$4,Look_Tbl!$C$6:$ST$8790,Look_Tbl!B86,FALSE)="","",HLOOKUP($Q$11&$N$4,Look_Tbl!$C$6:$ST$8790,Look_Tbl!B86,FALSE))) -> Oct | R91: FY2025 | S91: =IF($N$4="N/A",0,IF(Q91="","",HLOOKUP($S$11&$N$4,Look_Tbl!$C$6:$ST$8790,Look_Tbl!B86,FALSE))) -> HLH
F92: 1 | G92: =IF($D$4="N/A","",IF(HLOOKUP($G$11&$D$4,Look_Tbl!$C$6:$ST$8790,Look_Tbl!B87,FALSE)="","",HLOOKUP($G$11&$D$4,Look_Tbl!$C$6:$ST$8790,Look_Tbl!B87,FALSE))) -> Oct | H92: FY2024 | I92: =IF($D$4="N/A",0,IF(G92="","",HLOOKUP($I$11&$D$4,Look_Tbl!$C$6:$ST$8790,Look_Tbl!B87,FALSE))) -> HLH | P92: 1 | Q92: =IF($N$4="N/A","",IF(HLOOKUP($Q$11&$N$4,Look_Tbl!$C$6:$ST$8790,Look_Tbl!B87,FALSE)="","",HLOOKUP($Q$11&$N$4,Look_Tbl!$C$6:$ST$8790,Look_Tbl!B87,FALSE))) -> Oct | R92: FY2025 | S92: =IF($N$4="N/A",0,IF(Q92="","",HLOOKUP($S$11&$N$4,Look_Tbl!$C$6:$ST$8790,Look_Tbl!B87,FALSE))) -> HLH
F93: 1 | G93: =IF($D$4="N/A","",IF(HLOOKUP($G$11&$D$4,Look_Tbl!$C$6:$ST$8790,Look_Tbl!B88,FALSE)="","",HLOOKUP($G$11&$D$4,Look_Tbl!$C$6:$ST$8790,Look_Tbl!B88,FALSE))) -> Oct | H93: FY2024 | I93: =IF($D$4="N/A",0,IF(G93="","",HLOOKUP($I$11&$D$4,Look_Tbl!$C$6:$ST$8790,Look_Tbl!B88,FALSE))) -> HLH | P93: 1 | Q93: =IF($N$4="N/A","",IF(HLOOKUP($Q$11&$N$4,Look_Tbl!$C$6:$ST$8790,Look_Tbl!B88,FALSE)="","",HLOOKUP($Q$11&$N$4,Look_Tbl!$C$6:$ST$8790,Look_Tbl!B88,FALSE))) -> Oct | R93: FY2025 | S93: =IF($N$4="N/A",0,IF(Q93="","",HLOOKUP($S$11&$N$4,Look_Tbl!$C$6:$ST$8790,Look_Tbl!B88,FALSE))) -> HLH
F94: 1 | G94: =IF($D$4="N/A","",IF(HLOOKUP($G$11&$D$4,Look_Tbl!$C$6:$ST$8790,Look_Tbl!B89,FALSE)="","",HLOOKUP($G$11&$D$4,Look_Tbl!$C$6:$ST$8790,Look_Tbl!B89,FALSE))) -> Oct | H94: FY2024 | I94: =IF($D$4="N/A",0,IF(G94="","",HLOOKUP($I$11&$D$4,Look_Tbl!$C$6:$ST$8790,Look_Tbl!B89,FALSE))) -> HLH | P94: 1 | Q94: =IF($N$4="N/A","",IF(HLOOKUP($Q$11&$N$4,Look_Tbl!$C$6:$ST$8790,Look_Tbl!B89,FALSE)="","",HLOOKUP($Q$11&$N$4,Look_Tbl!$C$6:$ST$8790,Look_Tbl!B89,FALSE))) -> Oct | R94: FY2025 | S94: =IF($N$4="N/A",0,IF(Q94="","",HLOOKUP($S$11&$N$4,Look_Tbl!$C$6:$ST$8790,Look_Tbl!B89,FALSE))) -> HLH
F95: 1 | G95: =IF($D$4="N/A","",IF(HLOOKUP($G$11&$D$4,Look_Tbl!$C$6:$ST$8790,Look_Tbl!B90,FALSE)="","",HLOOKUP($G$11&$D$4,Look_Tbl!$C$6:$ST$8790,Look_Tbl!B90,FALSE))) -> Oct | H95: FY2024 | I95: =IF($D$4="N/A",0,IF(G95="","",HLOOKUP($I$11&$D$4,Look_Tbl!$C$6:$ST$8790,Look_Tbl!B90,FALSE))) -> HLH | P95: 1 | Q95: =IF($N$4="N/A","",IF(HLOOKUP($Q$11&$N$4,Look_Tbl!$C$6:$ST$8790,Look_Tbl!B90,FALSE)="","",HLOOKUP($Q$11&$N$4,Look_Tbl!$C$6:$ST$8790,Look_Tbl!B90,FALSE))) -> Oct | R95: FY2025 | S95: =IF($N$4="N/A",0,IF(Q95="","",HLOOKUP($S$11&$N$4,Look_Tbl!$C$6:$ST$8790,Look_Tbl!B90,FALSE))) -> HLH
F96: 1 | G96: =IF($D$4="N/A","",IF(HLOOKUP($G$11&$D$4,Look_Tbl!$C$6:$ST$8790,Look_Tbl!B91,FALSE)="","",HLOOKUP($G$11&$D$4,Look_Tbl!$C$6:$ST$8790,Look_Tbl!B91,FALSE))) -> Oct | H96: FY2024 | I96: =IF($D$4="N/A",0,IF(G96="","",HLOOKUP($I$11&$D$4,Look_Tbl!$C$6:$ST$8790,Look_Tbl!B91,FALSE))) -> HLH | P96: 1 | Q96: =IF($N$4="N/A","",IF(HLOOKUP($Q$11&$N$4,Look_Tbl!$C$6:$ST$8790,Look_Tbl!B91,FALSE)="","",HLOOKUP($Q$11&$N$4,Look_Tbl!$C$6:$ST$8790,Look_Tbl!B91,FALSE))) -> Oct | R96: FY2025 | S96: =IF($N$4="N/A",0,IF(Q96="","",HLOOKUP($S$11&$N$4,Look_Tbl!$C$6:$ST$8790,Look_Tbl!B91,FALSE))) -> HLH
F97: 1 | G97: =IF($D$4="N/A","",IF(HLOOKUP($G$11&$D$4,Look_Tbl!$C$6:$ST$8790,Look_Tbl!B92,FALSE)="","",HLOOKUP($G$11&$D$4,Look_Tbl!$C$6:$ST$8790,Look_Tbl!B92,FALSE))) -> Oct | H97: FY2024 | I97: =IF($D$4="N/A",0,IF(G97="","",HLOOKUP($I$11&$D$4,Look_Tbl!$C$6:$ST$8790,Look_Tbl!B92,FALSE))) -> HLH | P97: 1 | Q97: =IF($N$4="N/A","",IF(HLOOKUP($Q$11&$N$4,Look_Tbl!$C$6:$ST$8790,Look_Tbl!B92,FALSE)="","",HLOOKUP($Q$11&$N$4,Look_Tbl!$C$6:$ST$8790,Look_Tbl!B92,FALSE))) -> Oct | R97: FY2025 | S97: =IF($N$4="N/A",0,IF(Q97="","",HLOOKUP($S$11&$N$4,Look_Tbl!$C$6:$ST$8790,Look_Tbl!B92,FALSE))) -> HLH
F98: 1 | G98: =IF($D$4="N/A","",IF(HLOOKUP($G$11&$D$4,Look_Tbl!$C$6:$ST$8790,Look_Tbl!B93,FALSE)="","",HLOOKUP($G$11&$D$4,Look_Tbl!$C$6:$ST$8790,Look_Tbl!B93,FALSE))) -> Oct | H98: FY2024 | I98: =IF($D$4="N/A",0,IF(G98="","",HLOOKUP($I$11&$D$4,Look_Tbl!$C$6:$ST$8790,Look_Tbl!B93,FALSE))) -> HLH | P98: 1 | Q98: =IF($N$4="N/A","",IF(HLOOKUP($Q$11&$N$4,Look_Tbl!$C$6:$ST$8790,Look_Tbl!B93,FALSE)="","",HLOOKUP($Q$11&$N$4,Look_Tbl!$C$6:$ST$8790,Look_Tbl!B93,FALSE))) -> Oct | R98: FY2025 | S98: =IF($N$4="N/A",0,IF(Q98="","",HLOOKUP($S$11&$N$4,Look_Tbl!$C$6:$ST$8790,Look_Tbl!B93,FALSE))) -> HLH
F99: 1 | G99: =IF($D$4="N/A","",IF(HLOOKUP($G$11&$D$4,Look_Tbl!$C$6:$ST$8790,Look_Tbl!B94,FALSE)="","",HLOOKUP($G$11&$D$4,Look_Tbl!$C$6:$ST$8790,Look_Tbl!B94,FALSE))) -> Oct | H99: FY2024 | I99: =IF($D$4="N/A",0,IF(G99="","",HLOOKUP($I$11&$D$4,Look_Tbl!$C$6:$ST$8790,Look_Tbl!B94,FALSE))) -> HLH | P99: 1 | Q99: =IF($N$4="N/A","",IF(HLOOKUP($Q$11&$N$4,Look_Tbl!$C$6:$ST$8790,Look_Tbl!B94,FALSE)="","",HLOOKUP($Q$11&$N$4,Look_Tbl!$C$6:$ST$8790,Look_Tbl!B94,FALSE))) -> Oct | R99: FY2025 | S99: =IF($N$4="N/A",0,IF(Q99="","",HLOOKUP($S$11&$N$4,Look_Tbl!$C$6:$ST$8790,Look_Tbl!B94,FALSE))) -> HLH
F100: 1 | G100: =IF($D$4="N/A","",IF(HLOOKUP($G$11&$D$4,Look_Tbl!$C$6:$ST$8790,Look_Tbl!B95,FALSE)="","",HLOOKUP($G$11&$D$4,Look_Tbl!$C$6:$ST$8790,Look_Tbl!B95,FALSE))) -> Oct | H100: FY2024 | I100: =IF($D$4="N/A",0,IF(G100="","",HLOOKUP($I$11&$D$4,Look_Tbl!$C$6:$ST$8790,Look_Tbl!B95,FALSE))) -> HLH | P100: 1 | Q100: =IF($N$4="N/A","",IF(HLOOKUP($Q$11&$N$4,Look_Tbl!$C$6:$ST$8790,Look_Tbl!B95,FALSE)="","",HLOOKUP($Q$11&$N$4,Look_Tbl!$C$6:$ST$8790,Look_Tbl!B95,FALSE))) -> Oct | R100: FY2025 | S100: =IF($N$4="N/A",0,IF(Q100="","",HLOOKUP($S$11&$N$4,Look_Tbl!$C$6:$ST$8790,Look_Tbl!B95,FALSE))) -> HLH
F101: 1 | G101: =IF($D$4="N/A","",IF(HLOOKUP($G$11&$D$4,Look_Tbl!$C$6:$ST$8790,Look_Tbl!B96,FALSE)="","",HLOOKUP($G$11&$D$4,Look_Tbl!$C$6:$ST$8790,Look_Tbl!B96,FALSE))) -> Oct | H101: FY2024 | I101: =IF($D$4="N/A",0,IF(G101="","",HLOOKUP($I$11&$D$4,Look_Tbl!$C$6:$ST$8790,Look_Tbl!B96,FALSE))) -> HLH | P101: 1 | Q101: =IF($N$4="N/A","",IF(HLOOKUP($Q$11&$N$4,Look_Tbl!$C$6:$ST$8790,Look_Tbl!B96,FALSE)="","",HLOOKUP($Q$11&$N$4,Look_Tbl!$C$6:$ST$8790,Look_Tbl!B96,FALSE))) -> Oct | R101: FY2025 | S101: =IF($N$4="N/A",0,IF(Q101="","",HLOOKUP($S$11&$N$4,Look_Tbl!$C$6:$ST$8790,Look_Tbl!B96,FALSE))) -> HLH
F102: 1 | G102: =IF($D$4="N/A","",IF(HLOOKUP($G$11&$D$4,Look_Tbl!$C$6:$ST$8790,Look_Tbl!B97,FALSE)="","",HLOOKUP($G$11&$D$4,Look_Tbl!$C$6:$ST$8790,Look_Tbl!B97,FALSE))) -> Oct | H102: FY2024 | I102: =IF($D$4="N/A",0,IF(G102="","",HLOOKUP($I$11&$D$4,Look_Tbl!$C$6:$ST$8790,Look_Tbl!B97,FALSE))) -> HLH | P102: 1 | Q102: =IF($N$4="N/A","",IF(HLOOKUP($Q$11&$N$4,Look_Tbl!$C$6:$ST$8790,Look_Tbl!B97,FALSE)="","",HLOOKUP($Q$11&$N$4,Look_Tbl!$C$6:$ST$8790,Look_Tbl!B97,FALSE))) -> Oct | R102: FY2025 | S102: =IF($N$4="N/A",0,IF(Q102="","",HLOOKUP($S$11&$N$4,Look_Tbl!$C$6:$ST$8790,Look_Tbl!B97,FALSE))) -> HLH
F103: 1 | G103: =IF($D$4="N/A","",IF(HLOOKUP($G$11&$D$4,Look_Tbl!$C$6:$ST$8790,Look_Tbl!B98,FALSE)="","",HLOOKUP($G$11&$D$4,Look_Tbl!$C$6:$ST$8790,Look_Tbl!B98,FALSE))) -> Oct | H103: FY2024 | I103: =IF($D$4="N/A",0,IF(G103="","",HLOOKUP($I$11&$D$4,Look_Tbl!$C$6:$ST$8790,Look_Tbl!B98,FALSE))) -> HLH | P103: 1 | Q103: =IF($N$4="N/A","",IF(HLOOKUP($Q$11&$N$4,Look_Tbl!$C$6:$ST$8790,Look_Tbl!B98,FALSE)="","",HLOOKUP($Q$11&$N$4,Look_Tbl!$C$6:$ST$8790,Look_Tbl!B98,FALSE))) -> Oct | R103: FY2025 | S103: =IF($N$4="N/A",0,IF(Q103="","",HLOOKUP($S$11&$N$4,Look_Tbl!$C$6:$ST$8790,Look_Tbl!B98,FALSE))) -> HLH
F104: 1 | G104: =IF($D$4="N/A","",IF(HLOOKUP($G$11&$D$4,Look_Tbl!$C$6:$ST$8790,Look_Tbl!B99,FALSE)="","",HLOOKUP($G$11&$D$4,Look_Tbl!$C$6:$ST$8790,Look_Tbl!B99,FALSE))) -> Oct | H104: FY2024 | I104: =IF($D$4="N/A",0,IF(G104="","",HLOOKUP($I$11&$D$4,Look_Tbl!$C$6:$ST$8790,Look_Tbl!B99,FALSE))) -> HLH | P104: 1 | Q104: =IF($N$4="N/A","",IF(HLOOKUP($Q$11&$N$4,Look_Tbl!$C$6:$ST$8790,Look_Tbl!B99,FALSE)="","",HLOOKUP($Q$11&$N$4,Look_Tbl!$C$6:$ST$8790,Look_Tbl!B99,FALSE))) -> Oct | R104: FY2025 | S104: =IF($N$4="N/A",0,IF(Q104="","",HLOOKUP($S$11&$N$4,Look_Tbl!$C$6:$ST$8790,Look_Tbl!B99,FALSE))) -> HLH
F105: 1 | G105: =IF($D$4="N/A","",IF(HLOOKUP($G$11&$D$4,Look_Tbl!$C$6:$ST$8790,Look_Tbl!B100,FALSE)="","",HLOOKUP($G$11&$D$4,Look_Tbl!$C$6:$ST$8790,Look_Tbl!B100,FALSE))) -> Oct | H105: FY2024 | I105: =IF($D$4="N/A",0,IF(G105="","",HLOOKUP($I$11&$D$4,Look_Tbl!$C$6:$ST$8790,Look_Tbl!B100,FALSE))) -> HLH | P105: 1 | Q105: =IF($N$4="N/A","",IF(HLOOKUP($Q$11&$N$4,Look_Tbl!$C$6:$ST$8790,Look_Tbl!B100,FALSE)="","",HLOOKUP($Q$11&$N$4,Look_Tbl!$C$6:$ST$8790,Look_Tbl!B100,FALSE))) -> Oct | R105: FY2025 | S105: =IF($N$4="N/A",0,IF(Q105="","",HLOOKUP($S$11&$N$4,Look_Tbl!$C$6:$ST$8790,Look_Tbl!B100,FALSE))) -> HLH
F106: 1 | G106: =IF($D$4="N/A","",IF(HLOOKUP($G$11&$D$4,Look_Tbl!$C$6:$ST$8790,Look_Tbl!B101,FALSE)="","",HLOOKUP($G$11&$D$4,Look_Tbl!$C$6:$ST$8790,Look_Tbl!B101,FALSE))) -> Oct | H106: FY2024 | I106: =IF($D$4="N/A",0,IF(G106="","",HLOOKUP($I$11&$D$4,Look_Tbl!$C$6:$ST$8790,Look_Tbl!B101,FALSE))) -> LLH | P106: 1 | Q106: =IF($N$4="N/A","",IF(HLOOKUP($Q$11&$N$4,Look_Tbl!$C$6:$ST$8790,Look_Tbl!B101,FALSE)="","",HLOOKUP($Q$11&$N$4,Look_Tbl!$C$6:$ST$8790,Look_Tbl!B101,FALSE))) -> Oct | R106: FY2025 | S106: =IF($N$4="N/A",0,IF(Q106="","",HLOOKUP($S$11&$N$4,Look_Tbl!$C$6:$ST$8790,Look_Tbl!B101,FALSE))) -> LLH
F107: 1 | G107: =IF($D$4="N/A","",IF(HLOOKUP($G$11&$D$4,Look_Tbl!$C$6:$ST$8790,Look_Tbl!B102,FALSE)="","",HLOOKUP($G$11&$D$4,Look_Tbl!$C$6:$ST$8790,Look_Tbl!B102,FALSE))) -> Oct | H107: FY2024 | I107: =IF($D$4="N/A",0,IF(G107="","",HLOOKUP($I$11&$D$4,Look_Tbl!$C$6:$ST$8790,Look_Tbl!B102,FALSE))) -> LLH | P107: 1 | Q107: =IF($N$4="N/A","",IF(HLOOKUP($Q$11&$N$4,Look_Tbl!$C$6:$ST$8790,Look_Tbl!B102,FALSE)="","",HLOOKUP($Q$11&$N$4,Look_Tbl!$C$6:$ST$8790,Look_Tbl!B102,FALSE))) -> Oct | R107: FY2025 | S107: =IF($N$4="N/A",0,IF(Q107="","",HLOOKUP($S$11&$N$4,Look_Tbl!$C$6:$ST$8790,Look_Tbl!B102,FALSE))) -> LLH
F108: 1 | G108: =IF($D$4="N/A","",IF(HLOOKUP($G$11&$D$4,Look_Tbl!$C$6:$ST$8790,Look_Tbl!B103,FALSE)="","",HLOOKUP($G$11&$D$4,Look_Tbl!$C$6:$ST$8790,Look_Tbl!B103,FALSE))) -> Oct | H108: FY2024 | I108: =IF($D$4="N/A",0,IF(G108="","",HLOOKUP($I$11&$D$4,Look_Tbl!$C$6:$ST$8790,Look_Tbl!B103,FALSE))) -> LLH | P108: 1 | Q108: =IF($N$4="N/A","",IF(HLOOKUP($Q$11&$N$4,Look_Tbl!$C$6:$ST$8790,Look_Tbl!B103,FALSE)="","",HLOOKUP($Q$11&$N$4,Look_Tbl!$C$6:$ST$8790,Look_Tbl!B103,FALSE))) -> Oct | R108: FY2025 | S108: =IF($N$4="N/A",0,IF(Q108="","",HLOOKUP($S$11&$N$4,Look_Tbl!$C$6:$ST$8790,Look_Tbl!B103,FALSE))) -> LLH
F109: 1 | G109: =IF($D$4="N/A","",IF(HLOOKUP($G$11&$D$4,Look_Tbl!$C$6:$ST$8790,Look_Tbl!B104,FALSE)="","",HLOOKUP($G$11&$D$4,Look_Tbl!$C$6:$ST$8790,Look_Tbl!B104,FALSE))) -> Oct | H109: FY2024 | I109: =IF($D$4="N/A",0,IF(G109="","",HLOOKUP($I$11&$D$4,Look_Tbl!$C$6:$ST$8790,Look_Tbl!B104,FALSE))) -> LLH | P109: 1 | Q109: =IF($N$4="N/A","",IF(HLOOKUP($Q$11&$N$4,Look_Tbl!$C$6:$ST$8790,Look_Tbl!B104,FALSE)="","",HLOOKUP($Q$11&$N$4,Look_Tbl!$C$6:$ST$8790,Look_Tbl!B104,FALSE))) -> Oct | R109: FY2025 | S109: =IF($N$4="N/A",0,IF(Q109="","",HLOOKUP($S$11&$N$4,Look_Tbl!$C$6:$ST$8790,Look_Tbl!B104,FALSE))) -> LLH
F110: 1 | G110: =IF($D$4="N/A","",IF(HLOOKUP($G$11&$D$4,Look_Tbl!$C$6:$ST$8790,Look_Tbl!B105,FALSE)="","",HLOOKUP($G$11&$D$4,Look_Tbl!$C$6:$ST$8790,Look_Tbl!B105,FALSE))) -> Oct | H110: FY2024 | I110: =IF($D$4="N/A",0,IF(G110="","",HLOOKUP($I$11&$D$4,Look_Tbl!$C$6:$ST$8790,Look_Tbl!B105,FALSE))) -> LLH | P110: 1 | Q110: =IF($N$4="N/A","",IF(HLOOKUP($Q$11&$N$4,Look_Tbl!$C$6:$ST$8790,Look_Tbl!B105,FALSE)="","",HLOOKUP($Q$11&$N$4,Look_Tbl!$C$6:$ST$8790,Look_Tbl!B105,FALSE))) -> Oct | R110: FY2025 | S110: =IF($N$4="N/A",0,IF(Q110="","",HLOOKUP($S$11&$N$4,Look_Tbl!$C$6:$ST$8790,Look_Tbl!B105,FALSE))) -> LLH
F111: 1 | G111: =IF($D$4="N/A","",IF(HLOOKUP($G$11&$D$4,Look_Tbl!$C$6:$ST$8790,Look_Tbl!B106,FALSE)="","",HLOOKUP($G$11&$D$4,Look_Tbl!$C$6:$ST$8790,Look_Tbl!B106,FALSE))) -> Oct | H111: FY2024 | I111: =IF($D$4="N/A",0,IF(G111="","",HLOOKUP($I$11&$D$4,Look_Tbl!$C$6:$ST$8790,Look_Tbl!B106,FALSE))) -> LLH | P111: 1 | Q111: =IF($N$4="N/A","",IF(HLOOKUP($Q$11&$N$4,Look_Tbl!$C$6:$ST$8790,Look_Tbl!B106,FALSE)="","",HLOOKUP($Q$11&$N$4,Look_Tbl!$C$6:$ST$8790,Look_Tbl!B106,FALSE))) -> Oct | R111: FY2025 | S111: =IF($N$4="N/A",0,IF(Q111="","",HLOOKUP($S$11&$N$4,Look_Tbl!$C$6:$ST$8790,Look_Tbl!B106,FALSE))) -> LLH
F112: 1 | G112: =IF($D$4="N/A","",IF(HLOOKUP($G$11&$D$4,Look_Tbl!$C$6:$ST$8790,Look_Tbl!B107,FALSE)="","",HLOOKUP($G$11&$D$4,Look_Tbl!$C$6:$ST$8790,Look_Tbl!B107,FALSE))) -> Oct | H112: FY2024 | I112: =IF($D$4="N/A",0,IF(G112="","",HLOOKUP($I$11&$D$4,Look_Tbl!$C$6:$ST$8790,Look_Tbl!B107,FALSE))) -> LLH | P112: 1 | Q112: =IF($N$4="N/A","",IF(HLOOKUP($Q$11&$N$4,Look_Tbl!$C$6:$ST$8790,Look_Tbl!B107,FALSE)="","",HLOOKUP($Q$11&$N$4,Look_Tbl!$C$6:$ST$8790,Look_Tbl!B107,FALSE))) -> Oct | R112: FY2025 | S112: =IF($N$4="N/A",0,IF(Q112="","",HLOOKUP($S$11&$N$4,Look_Tbl!$C$6:$ST$8790,Look_Tbl!B107,FALSE))) -> LLH
F113: 1 | G113: =IF($D$4="N/A","",IF(HLOOKUP($G$11&$D$4,Look_Tbl!$C$6:$ST$8790,Look_Tbl!B108,FALSE)="","",HLOOKUP($G$11&$D$4,Look_Tbl!$C$6:$ST$8790,Look_Tbl!B108,FALSE))) -> Oct | H113: FY2024 | I113: =IF($D$4="N/A",0,IF(G113="","",HLOOKUP($I$11&$D$4,Look_Tbl!$C$6:$ST$8790,Look_Tbl!B108,FALSE))) -> LLH | P113: 1 | Q113: =IF($N$4="N/A","",IF(HLOOKUP($Q$11&$N$4,Look_Tbl!$C$6:$ST$8790,Look_Tbl!B108,FALSE)="","",HLOOKUP($Q$11&$N$4,Look_Tbl!$C$6:$ST$8790,Look_Tbl!B108,FALSE))) -> Oct | R113: FY2025 | S113: =IF($N$4="N/A",0,IF(Q113="","",HLOOKUP($S$11&$N$4,Look_Tbl!$C$6:$ST$8790,Look_Tbl!B108,FALSE))) -> LLH
F114: 1 | G114: =IF($D$4="N/A","",IF(HLOOKUP($G$11&$D$4,Look_Tbl!$C$6:$ST$8790,Look_Tbl!B109,FALSE)="","",HLOOKUP($G$11&$D$4,Look_Tbl!$C$6:$ST$8790,Look_Tbl!B109,FALSE))) -> Oct | H114: FY2024 | I114: =IF($D$4="N/A",0,IF(G114="","",HLOOKUP($I$11&$D$4,Look_Tbl!$C$6:$ST$8790,Look_Tbl!B109,FALSE))) -> HLH | P114: 1 | Q114: =IF($N$4="N/A","",IF(HLOOKUP($Q$11&$N$4,Look_Tbl!$C$6:$ST$8790,Look_Tbl!B109,FALSE)="","",HLOOKUP($Q$11&$N$4,Look_Tbl!$C$6:$ST$8790,Look_Tbl!B109,FALSE))) -> Oct | R114: FY2025 | S114: =IF($N$4="N/A",0,IF(Q114="","",HLOOKUP($S$11&$N$4,Look_Tbl!$C$6:$ST$8790,Look_Tbl!B109,FALSE))) -> HLH
F115: 1 | G115: =IF($D$4="N/A","",IF(HLOOKUP($G$11&$D$4,Look_Tbl!$C$6:$ST$8790,Look_Tbl!B110,FALSE)="","",HLOOKUP($G$11&$D$4,Look_Tbl!$C$6:$ST$8790,Look_Tbl!B110,FALSE))) -> Oct | H115: FY2024 | I115: =IF($D$4="N/A",0,IF(G115="","",HLOOKUP($I$11&$D$4,Look_Tbl!$C$6:$ST$8790,Look_Tbl!B110,FALSE))) -> HLH | P115: 1 | Q115: =IF($N$4="N/A","",IF(HLOOKUP($Q$11&$N$4,Look_Tbl!$C$6:$ST$8790,Look_Tbl!B110,FALSE)="","",HLOOKUP($Q$11&$N$4,Look_Tbl!$C$6:$ST$8790,Look_Tbl!B110,FALSE))) -> Oct | R115: FY2025 | S115: =IF($N$4="N/A",0,IF(Q115="","",HLOOKUP($S$11&$N$4,Look_Tbl!$C$6:$ST$8790,Look_Tbl!B110,FALSE))) -> HLH
F116: 1 | G116: =IF($D$4="N/A","",IF(HLOOKUP($G$11&$D$4,Look_Tbl!$C$6:$ST$8790,Look_Tbl!B111,FALSE)="","",HLOOKUP($G$11&$D$4,Look_Tbl!$C$6:$ST$8790,Look_Tbl!B111,FALSE))) -> Oct | H116: FY2024 | I116: =IF($D$4="N/A",0,IF(G116="","",HLOOKUP($I$11&$D$4,Look_Tbl!$C$6:$ST$8790,Look_Tbl!B111,FALSE))) -> HLH | P116: 1 | Q116: =IF($N$4="N/A","",IF(HLOOKUP($Q$11&$N$4,Look_Tbl!$C$6:$ST$8790,Look_Tbl!B111,FALSE)="","",HLOOKUP($Q$11&$N$4,Look_Tbl!$C$6:$ST$8790,Look_Tbl!B111,FALSE))) -> Oct | R116: FY2025 | S116: =IF($N$4="N/A",0,IF(Q116="","",HLOOKUP($S$11&$N$4,Look_Tbl!$C$6:$ST$8790,Look_Tbl!B111,FALSE))) -> HLH
F117: 1 | G117: =IF($D$4="N/A","",IF(HLOOKUP($G$11&$D$4,Look_Tbl!$C$6:$ST$8790,Look_Tbl!B112,FALSE)="","",HLOOKUP($G$11&$D$4,Look_Tbl!$C$6:$ST$8790,Look_Tbl!B112,FALSE))) -> Oct | H117: FY2024 | I117: =IF($D$4="N/A",0,IF(G117="","",HLOOKUP($I$11&$D$4,Look_Tbl!$C$6:$ST$8790,Look_Tbl!B112,FALSE))) -> HLH | P117: 1 | Q117: =IF($N$4="N/A","",IF(HLOOKUP($Q$11&$N$4,Look_Tbl!$C$6:$ST$8790,Look_Tbl!B112,FALSE)="","",HLOOKUP($Q$11&$N$4,Look_Tbl!$C$6:$ST$8790,Look_Tbl!B112,FALSE))) -> Oct | R117: FY2025 | S117: =IF($N$4="N/A",0,IF(Q117="","",HLOOKUP($S$11&$N$4,Look_Tbl!$C$6:$ST$8790,Look_Tbl!B112,FALSE))) -> HLH
F118: 1 | G118: =IF($D$4="N/A","",IF(HLOOKUP($G$11&$D$4,Look_Tbl!$C$6:$ST$8790,Look_Tbl!B113,FALSE)="","",HLOOKUP($G$11&$D$4,Look_Tbl!$C$6:$ST$8790,Look_Tbl!B113,FALSE))) -> Oct | H118: FY2024 | I118: =IF($D$4="N/A",0,IF(G118="","",HLOOKUP($I$11&$D$4,Look_Tbl!$C$6:$ST$8790,Look_Tbl!B113,FALSE))) -> HLH | P118: 1 | Q118: =IF($N$4="N/A","",IF(HLOOKUP($Q$11&$N$4,Look_Tbl!$C$6:$ST$8790,Look_Tbl!B113,FALSE)="","",HLOOKUP($Q$11&$N$4,Look_Tbl!$C$6:$ST$8790,Look_Tbl!B113,FALSE))) -> Oct | R118: FY2025 | S118: =IF($N$4="N/A",0,IF(Q118="","",HLOOKUP($S$11&$N$4,Look_Tbl!$C$6:$ST$8790,Look_Tbl!B113,FALSE))) -> HLH
F119: 1 | G119: =IF($D$4="N/A","",IF(HLOOKUP($G$11&$D$4,Look_Tbl!$C$6:$ST$8790,Look_Tbl!B114,FALSE)="","",HLOOKUP($G$11&$D$4,Look_Tbl!$C$6:$ST$8790,Look_Tbl!B114,FALSE))) -> Oct | H119: FY2024 | I119: =IF($D$4="N/A",0,IF(G119="","",HLOOKUP($I$11&$D$4,Look_Tbl!$C$6:$ST$8790,Look_Tbl!B114,FALSE))) -> HLH | P119: 1 | Q119: =IF($N$4="N/A","",IF(HLOOKUP($Q$11&$N$4,Look_Tbl!$C$6:$ST$8790,Look_Tbl!B114,FALSE)="","",HLOOKUP($Q$11&$N$4,Look_Tbl!$C$6:$ST$8790,Look_Tbl!B114,FALSE))) -> Oct | R119: FY2025 | S119: =IF($N$4="N/A",0,IF(Q119="","",HLOOKUP($S$11&$N$4,Look_Tbl!$C$6:$ST$8790,Look_Tbl!B114,FALSE))) -> HLH
F120: 1 | G120: =IF($D$4="N/A","",IF(HLOOKUP($G$11&$D$4,Look_Tbl!$C$6:$ST$8790,Look_Tbl!B115,FALSE)="","",HLOOKUP($G$11&$D$4,Look_Tbl!$C$6:$ST$8790,Look_Tbl!B115,FALSE))) -> Oct | H120: FY2024 | I120: =IF($D$4="N/A",0,IF(G120="","",HLOOKUP($I$11&$D$4,Look_Tbl!$C$6:$ST$8790,Look_Tbl!B115,FALSE))) -> HLH | P120: 1 | Q120: =IF($N$4="N/A","",IF(HLOOKUP($Q$11&$N$4,Look_Tbl!$C$6:$ST$8790,Look_Tbl!B115,FALSE)="","",HLOOKUP($Q$11&$N$4,Look_Tbl!$C$6:$ST$8790,Look_Tbl!B115,FALSE))) -> Oct | R120: FY2025 | S120: =IF($N$4="N/A",0,IF(Q120="","",HLOOKUP($S$11&$N$4,Look_Tbl!$C$6:$ST$8790,Look_Tbl!B115,FALSE))) -> HLH
F121: 1 | G121: =IF($D$4="N/A","",IF(HLOOKUP($G$11&$D$4,Look_Tbl!$C$6:$ST$8790,Look_Tbl!B116,FALSE)="","",HLOOKUP($G$11&$D$4,Look_Tbl!$C$6:$ST$8790,Look_Tbl!B116,FALSE))) -> Oct | H121: FY2024 | I121: =IF($D$4="N/A",0,IF(G121="","",HLOOKUP($I$11&$D$4,Look_Tbl!$C$6:$ST$8790,Look_Tbl!B116,FALSE))) -> HLH | P121: 1 | Q121: =IF($N$4="N/A","",IF(HLOOKUP($Q$11&$N$4,Look_Tbl!$C$6:$ST$8790,Look_Tbl!B116,FALSE)="","",HLOOKUP($Q$11&$N$4,Look_Tbl!$C$6:$ST$8790,Look_Tbl!B116,FALSE))) -> Oct | R121: FY2025 | S121: =IF($N$4="N/A",0,IF(Q121="","",HLOOKUP($S$11&$N$4,Look_Tbl!$C$6:$ST$8790,Look_Tbl!B116,FALSE))) -> HLH
F122: 1 | G122: =IF($D$4="N/A","",IF(HLOOKUP($G$11&$D$4,Look_Tbl!$C$6:$ST$8790,Look_Tbl!B117,FALSE)="","",HLOOKUP($G$11&$D$4,Look_Tbl!$C$6:$ST$8790,Look_Tbl!B117,FALSE))) -> Oct | H122: FY2024 | I122: =IF($D$4="N/A",0,IF(G122="","",HLOOKUP($I$11&$D$4,Look_Tbl!$C$6:$ST$8790,Look_Tbl!B117,FALSE))) -> HLH | P122: 1 | Q122: =IF($N$4="N/A","",IF(HLOOKUP($Q$11&$N$4,Look_Tbl!$C$6:$ST$8790,Look_Tbl!B117,FALSE)="","",HLOOKUP($Q$11&$N$4,Look_Tbl!$C$6:$ST$8790,Look_Tbl!B117,FALSE))) -> Oct | R122: FY2025 | S122: =IF($N$4="N/A",0,IF(Q122="","",HLOOKUP($S$11&$N$4,Look_Tbl!$C$6:$ST$8790,Look_Tbl!B117,FALSE))) -> HLH
F123: 1 | G123: =IF($D$4="N/A","",IF(HLOOKUP($G$11&$D$4,Look_Tbl!$C$6:$ST$8790,Look_Tbl!B118,FALSE)="","",HLOOKUP($G$11&$D$4,Look_Tbl!$C$6:$ST$8790,Look_Tbl!B118,FALSE))) -> Oct | H123: FY2024 | I123: =IF($D$4="N/A",0,IF(G123="","",HLOOKUP($I$11&$D$4,Look_Tbl!$C$6:$ST$8790,Look_Tbl!B118,FALSE))) -> HLH | P123: 1 | Q123: =IF($N$4="N/A","",IF(HLOOKUP($Q$11&$N$4,Look_Tbl!$C$6:$ST$8790,Look_Tbl!B118,FALSE)="","",HLOOKUP($Q$11&$N$4,Look_Tbl!$C$6:$ST$8790,Look_Tbl!B118,FALSE))) -> Oct | R123: FY2025 | S123: =IF($N$4="N/A",0,IF(Q123="","",HLOOKUP($S$11&$N$4,Look_Tbl!$C$6:$ST$8790,Look_Tbl!B118,FALSE))) -> HLH
F124: 1 | G124: =IF($D$4="N/A","",IF(HLOOKUP($G$11&$D$4,Look_Tbl!$C$6:$ST$8790,Look_Tbl!B119,FALSE)="","",HLOOKUP($G$11&$D$4,Look_Tbl!$C$6:$ST$8790,Look_Tbl!B119,FALSE))) -> Oct | H124: FY2024 | I124: =IF($D$4="N/A",0,IF(G124="","",HLOOKUP($I$11&$D$4,Look_Tbl!$C$6:$ST$8790,Look_Tbl!B119,FALSE))) -> HLH | P124: 1 | Q124: =IF($N$4="N/A","",IF(HLOOKUP($Q$11&$N$4,Look_Tbl!$C$6:$ST$8790,Look_Tbl!B119,FALSE)="","",HLOOKUP($Q$11&$N$4,Look_Tbl!$C$6:$ST$8790,Look_Tbl!B119,FALSE))) -> Oct | R124: FY2025 | S124: =IF($N$4="N/A",0,IF(Q124="","",HLOOKUP($S$11&$N$4,Look_Tbl!$C$6:$ST$8790,Look_Tbl!B119,FALSE))) -> HLH
F125: 1 | G125: =IF($D$4="N/A","",IF(HLOOKUP($G$11&$D$4,Look_Tbl!$C$6:$ST$8790,Look_Tbl!B120,FALSE)="","",HLOOKUP($G$11&$D$4,Look_Tbl!$C$6:$ST$8790,Look_Tbl!B120,FALSE))) -> Oct | H125: FY2024 | I125: =IF($D$4="N/A",0,IF(G125="","",HLOOKUP($I$11&$D$4,Look_Tbl!$C$6:$ST$8790,Look_Tbl!B120,FALSE))) -> HLH | P125: 1 | Q125: =IF($N$4="N/A","",IF(HLOOKUP($Q$11&$N$4,Look_Tbl!$C$6:$ST$8790,Look_Tbl!B120,FALSE)="","",HLOOKUP($Q$11&$N$4,Look_Tbl!$C$6:$ST$8790,Look_Tbl!B120,FALSE))) -> Oct | R125: FY2025 | S125: =IF($N$4="N/A",0,IF(Q125="","",HLOOKUP($S$11&$N$4,Look_Tbl!$C$6:$ST$8790,Look_Tbl!B120,FALSE))) -> HLH
F126: 1 | G126: =IF($D$4="N/A","",IF(HLOOKUP($G$11&$D$4,Look_Tbl!$C$6:$ST$8790,Look_Tbl!B121,FALSE)="","",HLOOKUP($G$11&$D$4,Look_Tbl!$C$6:$ST$8790,Look_Tbl!B121,FALSE))) -> Oct | H126: FY2024 | I126: =IF($D$4="N/A",0,IF(G126="","",HLOOKUP($I$11&$D$4,Look_Tbl!$C$6:$ST$8790,Look_Tbl!B121,FALSE))) -> HLH | P126: 1 | Q126: =IF($N$4="N/A","",IF(HLOOKUP($Q$11&$N$4,Look_Tbl!$C$6:$ST$8790,Look_Tbl!B121,FALSE)="","",HLOOKUP($Q$11&$N$4,Look_Tbl!$C$6:$ST$8790,Look_Tbl!B121,FALSE))) -> Oct | R126: FY2025 | S126: =IF($N$4="N/A",0,IF(Q126="","",HLOOKUP($S$11&$N$4,Look_Tbl!$C$6:$ST$8790,Look_Tbl!B121,FALSE))) -> HLH
F127: 1 | G127: =IF($D$4="N/A","",IF(HLOOKUP($G$11&$D$4,Look_Tbl!$C$6:$ST$8790,Look_Tbl!B122,FALSE)="","",HLOOKUP($G$11&$D$4,Look_Tbl!$C$6:$ST$8790,Look_Tbl!B122,FALSE))) -> Oct | H127: FY2024 | I127: =IF($D$4="N/A",0,IF(G127="","",HLOOKUP($I$11&$D$4,Look_Tbl!$C$6:$ST$8790,Look_Tbl!B122,FALSE))) -> HLH | P127: 1 | Q127: =IF($N$4="N/A","",IF(HLOOKUP($Q$11&$N$4,Look_Tbl!$C$6:$ST$8790,Look_Tbl!B122,FALSE)="","",HLOOKUP($Q$11&$N$4,Look_Tbl!$C$6:$ST$8790,Look_Tbl!B122,FALSE))) -> Oct | R127: FY2025 | S127: =IF($N$4="N/A",0,IF(Q127="","",HLOOKUP($S$11&$N$4,Look_Tbl!$C$6:$ST$8790,Look_Tbl!B122,FALSE))) -> HLH
F128: 1 | G128: =IF($D$4="N/A","",IF(HLOOKUP($G$11&$D$4,Look_Tbl!$C$6:$ST$8790,Look_Tbl!B123,FALSE)="","",HLOOKUP($G$11&$D$4,Look_Tbl!$C$6:$ST$8790,Look_Tbl!B123,FALSE))) -> Oct | H128: FY2024 | I128: =IF($D$4="N/A",0,IF(G128="","",HLOOKUP($I$11&$D$4,Look_Tbl!$C$6:$ST$8790,Look_Tbl!B123,FALSE))) -> HLH | P128: 1 | Q128: =IF($N$4="N/A","",IF(HLOOKUP($Q$11&$N$4,Look_Tbl!$C$6:$ST$8790,Look_Tbl!B123,FALSE)="","",HLOOKUP($Q$11&$N$4,Look_Tbl!$C$6:$ST$8790,Look_Tbl!B123,FALSE))) -> Oct | R128: FY2025 | S128: =IF($N$4="N/A",0,IF(Q128="","",HLOOKUP($S$11&$N$4,Look_Tbl!$C$6:$ST$8790,Look_Tbl!B123,FALSE))) -> HLH
F129: 1 | G129: =IF($D$4="N/A","",IF(HLOOKUP($G$11&$D$4,Look_Tbl!$C$6:$ST$8790,Look_Tbl!B124,FALSE)="","",HLOOKUP($G$11&$D$4,Look_Tbl!$C$6:$ST$8790,Look_Tbl!B124,FALSE))) -> Oct | H129: FY2024 | I129: =IF($D$4="N/A",0,IF(G129="","",HLOOKUP($I$11&$D$4,Look_Tbl!$C$6:$ST$8790,Look_Tbl!B124,FALSE))) -> HLH | P129: 1 | Q129: =IF($N$4="N/A","",IF(HLOOKUP($Q$11&$N$4,Look_Tbl!$C$6:$ST$8790,Look_Tbl!B124,FALSE)="","",HLOOKUP($Q$11&$N$4,Look_Tbl!$C$6:$ST$8790,Look_Tbl!B124,FALSE))) -> Oct | R129: FY2025 | S129: =IF($N$4="N/A",0,IF(Q129="","",HLOOKUP($S$11&$N$4,Look_Tbl!$C$6:$ST$8790,Look_Tbl!B124,FALSE))) -> HLH
F130: 1 | G130: =IF($D$4="N/A","",IF(HLOOKUP($G$11&$D$4,Look_Tbl!$C$6:$ST$8790,Look_Tbl!B125,FALSE)="","",HLOOKUP($G$11&$D$4,Look_Tbl!$C$6:$ST$8790,Look_Tbl!B125,FALSE))) -> Oct | H130: FY2024 | I130: =IF($D$4="N/A",0,IF(G130="","",HLOOKUP($I$11&$D$4,Look_Tbl!$C$6:$ST$8790,Look_Tbl!B125,FALSE))) -> LLH | P130: 1 | Q130: =IF($N$4="N/A","",IF(HLOOKUP($Q$11&$N$4,Look_Tbl!$C$6:$ST$8790,Look_Tbl!B125,FALSE)="","",HLOOKUP($Q$11&$N$4,Look_Tbl!$C$6:$ST$8790,Look_Tbl!B125,FALSE))) -> Oct | R130: FY2025 | S130: =IF($N$4="N/A",0,IF(Q130="","",HLOOKUP($S$11&$N$4,Look_Tbl!$C$6:$ST$8790,Look_Tbl!B125,FALSE))) -> LLH
F131: 1 | G131: =IF($D$4="N/A","",IF(HLOOKUP($G$11&$D$4,Look_Tbl!$C$6:$ST$8790,Look_Tbl!B126,FALSE)="","",HLOOKUP($G$11&$D$4,Look_Tbl!$C$6:$ST$8790,Look_Tbl!B126,FALSE))) -> Oct | H131: FY2024 | I131: =IF($D$4="N/A",0,IF(G131="","",HLOOKUP($I$11&$D$4,Look_Tbl!$C$6:$ST$8790,Look_Tbl!B126,FALSE))) -> LLH | P131: 1 | Q131: =IF($N$4="N/A","",IF(HLOOKUP($Q$11&$N$4,Look_Tbl!$C$6:$ST$8790,Look_Tbl!B126,FALSE)="","",HLOOKUP($Q$11&$N$4,Look_Tbl!$C$6:$ST$8790,Look_Tbl!B126,FALSE))) -> Oct | R131: FY2025 | S131: =IF($N$4="N/A",0,IF(Q131="","",HLOOKUP($S$11&$N$4,Look_Tbl!$C$6:$ST$8790,Look_Tbl!B126,FALSE))) -> LLH
F132: 1 | G132: =IF($D$4="N/A","",IF(HLOOKUP($G$11&$D$4,Look_Tbl!$C$6:$ST$8790,Look_Tbl!B127,FALSE)="","",HLOOKUP($G$11&$D$4,Look_Tbl!$C$6:$ST$8790,Look_Tbl!B127,FALSE))) -> Oct | H132: FY2024 | I132: =IF($D$4="N/A",0,IF(G132="","",HLOOKUP($I$11&$D$4,Look_Tbl!$C$6:$ST$8790,Look_Tbl!B127,FALSE))) -> LLH | P132: 1 | Q132: =IF($N$4="N/A","",IF(HLOOKUP($Q$11&$N$4,Look_Tbl!$C$6:$ST$8790,Look_Tbl!B127,FALSE)="","",HLOOKUP($Q$11&$N$4,Look_Tbl!$C$6:$ST$8790,Look_Tbl!B127,FALSE))) -> Oct | R132: FY2025 | S132: =IF($N$4="N/A",0,IF(Q132="","",HLOOKUP($S$11&$N$4,Look_Tbl!$C$6:$ST$8790,Look_Tbl!B127,FALSE))) -> LLH
F133: 1 | G133: =IF($D$4="N/A","",IF(HLOOKUP($G$11&$D$4,Look_Tbl!$C$6:$ST$8790,Look_Tbl!B128,FALSE)="","",HLOOKUP($G$11&$D$4,Look_Tbl!$C$6:$ST$8790,Look_Tbl!B128,FALSE))) -> Oct | H133: FY2024 | I133: =IF($D$4="N/A",0,IF(G133="","",HLOOKUP($I$11&$D$4,Look_Tbl!$C$6:$ST$8790,Look_Tbl!B128,FALSE))) -> LLH | P133: 1 | Q133: =IF($N$4="N/A","",IF(HLOOKUP($Q$11&$N$4,Look_Tbl!$C$6:$ST$8790,Look_Tbl!B128,FALSE)="","",HLOOKUP($Q$11&$N$4,Look_Tbl!$C$6:$ST$8790,Look_Tbl!B128,FALSE))) -> Oct | R133: FY2025 | S133: =IF($N$4="N/A",0,IF(Q133="","",HLOOKUP($S$11&$N$4,Look_Tbl!$C$6:$ST$8790,Look_Tbl!B128,FALSE))) -> LLH
F134: 1 | G134: =IF($D$4="N/A","",IF(HLOOKUP($G$11&$D$4,Look_Tbl!$C$6:$ST$8790,Look_Tbl!B129,FALSE)="","",HLOOKUP($G$11&$D$4,Look_Tbl!$C$6:$ST$8790,Look_Tbl!B129,FALSE))) -> Oct | H134: FY2024 | I134: =IF($D$4="N/A",0,IF(G134="","",HLOOKUP($I$11&$D$4,Look_Tbl!$C$6:$ST$8790,Look_Tbl!B129,FALSE))) -> LLH | P134: 1 | Q134: =IF($N$4="N/A","",IF(HLOOKUP($Q$11&$N$4,Look_Tbl!$C$6:$ST$8790,Look_Tbl!B129,FALSE)="","",HLOOKUP($Q$11&$N$4,Look_Tbl!$C$6:$ST$8790,Look_Tbl!B129,FALSE))) -> Oct | R134: FY2025 | S134: =IF($N$4="N/A",0,IF(Q134="","",HLOOKUP($S$11&$N$4,Look_Tbl!$C$6:$ST$8790,Look_Tbl!B129,FALSE))) -> LLH
F135: 1 | G135: =IF($D$4="N/A","",IF(HLOOKUP($G$11&$D$4,Look_Tbl!$C$6:$ST$8790,Look_Tbl!B130,FALSE)="","",HLOOKUP($G$11&$D$4,Look_Tbl!$C$6:$ST$8790,Look_Tbl!B130,FALSE))) -> Oct | H135: FY2024 | I135: =IF($D$4="N/A",0,IF(G135="","",HLOOKUP($I$11&$D$4,Look_Tbl!$C$6:$ST$8790,Look_Tbl!B130,FALSE))) -> LLH | P135: 1 | Q135: =IF($N$4="N/A","",IF(HLOOKUP($Q$11&$N$4,Look_Tbl!$C$6:$ST$8790,Look_Tbl!B130,FALSE)="","",HLOOKUP($Q$11&$N$4,Look_Tbl!$C$6:$ST$8790,Look_Tbl!B130,FALSE))) -> Oct | R135: FY2025 | S135: =IF($N$4="N/A",0,IF(Q135="","",HLOOKUP($S$11&$N$4,Look_Tbl!$C$6:$ST$8790,Look_Tbl!B130,FALSE))) -> LLH
F136: 1 | G136: =IF($D$4="N/A","",IF(HLOOKUP($G$11&$D$4,Look_Tbl!$C$6:$ST$8790,Look_Tbl!B131,FALSE)="","",HLOOKUP($G$11&$D$4,Look_Tbl!$C$6:$ST$8790,Look_Tbl!B131,FALSE))) -> Oct | H136: FY2024 | I136: =IF($D$4="N/A",0,IF(G136="","",HLOOKUP($I$11&$D$4,Look_Tbl!$C$6:$ST$8790,Look_Tbl!B131,FALSE))) -> LLH | P136: 1 | Q136: =IF($N$4="N/A","",IF(HLOOKUP($Q$11&$N$4,Look_Tbl!$C$6:$ST$8790,Look_Tbl!B131,FALSE)="","",HLOOKUP($Q$11&$N$4,Look_Tbl!$C$6:$ST$8790,Look_Tbl!B131,FALSE))) -> Oct | R136: FY2025 | S136: =IF($N$4="N/A",0,IF(Q136="","",HLOOKUP($S$11&$N$4,Look_Tbl!$C$6:$ST$8790,Look_Tbl!B131,FALSE))) -> LLH
F137: 1 | G137: =IF($D$4="N/A","",IF(HLOOKUP($G$11&$D$4,Look_Tbl!$C$6:$ST$8790,Look_Tbl!B132,FALSE)="","",HLOOKUP($G$11&$D$4,Look_Tbl!$C$6:$ST$8790,Look_Tbl!B132,FALSE))) -> Oct | H137: FY2024 | I137: =IF($D$4="N/A",0,IF(G137="","",HLOOKUP($I$11&$D$4,Look_Tbl!$C$6:$ST$8790,Look_Tbl!B132,FALSE))) -> LLH | P137: 1 | Q137: =IF($N$4="N/A","",IF(HLOOKUP($Q$11&$N$4,Look_Tbl!$C$6:$ST$8790,Look_Tbl!B132,FALSE)="","",HLOOKUP($Q$11&$N$4,Look_Tbl!$C$6:$ST$8790,Look_Tbl!B132,FALSE))) -> Oct | R137: FY2025 | S137: =IF($N$4="N/A",0,IF(Q137="","",HLOOKUP($S$11&$N$4,Look_Tbl!$C$6:$ST$8790,Look_Tbl!B132,FALSE))) -> LLH
F138: 1 | G138: =IF($D$4="N/A","",IF(HLOOKUP($G$11&$D$4,Look_Tbl!$C$6:$ST$8790,Look_Tbl!B133,FALSE)="","",HLOOKUP($G$11&$D$4,Look_Tbl!$C$6:$ST$8790,Look_Tbl!B133,FALSE))) -> Oct | H138: FY2024 | I138: =IF($D$4="N/A",0,IF(G138="","",HLOOKUP($I$11&$D$4,Look_Tbl!$C$6:$ST$8790,Look_Tbl!B133,FALSE))) -> HLH | P138: 1 | Q138: =IF($N$4="N/A","",IF(HLOOKUP($Q$11&$N$4,Look_Tbl!$C$6:$ST$8790,Look_Tbl!B133,FALSE)="","",HLOOKUP($Q$11&$N$4,Look_Tbl!$C$6:$ST$8790,Look_Tbl!B133,FALSE))) -> Oct | R138: FY2025 | S138: =IF($N$4="N/A",0,IF(Q138="","",HLOOKUP($S$11&$N$4,Look_Tbl!$C$6:$ST$8790,Look_Tbl!B133,FALSE))) -> LLH
F139: 1 | G139: =IF($D$4="N/A","",IF(HLOOKUP($G$11&$D$4,Look_Tbl!$C$6:$ST$8790,Look_Tbl!B134,FALSE)="","",HLOOKUP($G$11&$D$4,Look_Tbl!$C$6:$ST$8790,Look_Tbl!B134,FALSE))) -> Oct | H139: FY2024 | I139: =IF($D$4="N/A",0,IF(G139="","",HLOOKUP($I$11&$D$4,Look_Tbl!$C$6:$ST$8790,Look_Tbl!B134,FALSE))) -> HLH | P139: 1 | Q139: =IF($N$4="N/A","",IF(HLOOKUP($Q$11&$N$4,Look_Tbl!$C$6:$ST$8790,Look_Tbl!B134,FALSE)="","",HLOOKUP($Q$11&$N$4,Look_Tbl!$C$6:$ST$8790,Look_Tbl!B134,FALSE))) -> Oct | R139: FY2025 | S139: =IF($N$4="N/A",0,IF(Q139="","",HLOOKUP($S$11&$N$4,Look_Tbl!$C$6:$ST$8790,Look_Tbl!B134,FALSE))) -> LLH
F140: 1 | G140: =IF($D$4="N/A","",IF(HLOOKUP($G$11&$D$4,Look_Tbl!$C$6:$ST$8790,Look_Tbl!B135,FALSE)="","",HLOOKUP($G$11&$D$4,Look_Tbl!$C$6:$ST$8790,Look_Tbl!B135,FALSE))) -> Oct | H140: =IF($D$4="N/A","",IF(G140="","",$D$4)) -> FY2024 | I140: =IF($D$4="N/A",0,IF(G140="","",HLOOKUP($I$11&$D$4,Look_Tbl!$C$6:$ST$8790,Look_Tbl!B135,FALSE))) -> HLH | P140: 1 | Q140: =IF($N$4="N/A","",IF(HLOOKUP($Q$11&$N$4,Look_Tbl!$C$6:$ST$8790,Look_Tbl!B135,FALSE)="","",HLOOKUP($Q$11&$N$4,Look_Tbl!$C$6:$ST$8790,Look_Tbl!B135,FALSE))) -> Oct | R140: FY2025 | S140: =IF($N$4="N/A",0,IF(Q140="","",HLOOKUP($S$11&$N$4,Look_Tbl!$C$6:$ST$8790,Look_Tbl!B135,FALSE))) -> LLH
